Workbook

Sheet TITLE PAGE
A1: Project: | B1: Developing a modeling system to analyse and evaluate emissions reduction opportunities in the South African economy
A3: Calculation: | B3: Commercial Sector Energy Balance for South Africa 2006
A6: Author: | B6: Caroline Martin
B7: Energy Research Centre
B8: University of Cape Town
A10: Issue: | B10: Draft 1
A11: Date: | B11: 2011-01-27

Sheet Change Log
B2: Author | C2: Date | D2: Version | E2: Change/description
B4: Bryce | C4: 21/11/2013 | E4: - Changed all costs to 2010 Rands
E5: - Changed total elec consumption to match EB for calibration with NERSA 2006 ESI. This comes after electricity consumption in the Carbon Calculator project did not match the nersa, and residential and commercial were both adjusted so the RES diagram
E6: from the ESI matched with ours.
C8: 30/01/2014 | E8: -efficiencies for space heating were linking to the wrong values. Corrected these.
C11: 20/02/2014 | E11: -CNH AFA was wrong leading to incorrect utilisation values.
E12: added Gas boilers for space heating for both new and existing.
C14: 02/05/2014 | E14: Added in trigen system. See trigen1,2,3 sheets.
E15: This also includes HVAC functionality (not complete)
C17: 20/05/2014 | E17: Added costs to Chillers.
C19: 23/05/2014 | D19: 1.6 | E19: Added 200MW upper limit for trigen (as per the Deloitte Res+Com gas doc).
C20: 26/05/2014 | D20: 1.7 | E20: Added a constraint to solar PV upper bound - linked it to the size of the com sector
E21: Added a constraint for trigeneration capacity to be linked to gas system capcity. 0.2% of gas supply (minus coastal gas pipeline).
C22: 30/05/2014 | E22: Removed contradiction new build and build limit for trigen
C24: 18/06/2014 | E24: Added extra COMFR sheet for the shortened Timeslices version of Times
E25: there is a switch for this on 'index'
C26: 23/06/2014 | D26: 1.8 | E26: removed the trigen and solar constraints

Sheet Index
B3: Short timeslices ?
B4: 0 | C4: 1-yes, 0 -no

Sheet Methods
A1: To calculate floor area of commercial sector
A2: Key assumptions: | J2: De Villiers:
A3: Base floor area value for 1990 assumed to be 65 million sqm from de villiers calculations | J3: Project sales output of the commercial sub-sectors (sales output measured in rands).
A4: Share of floor area by building activity taken from de villiers calculations | J4: Use commercial sub-sector output projections to project floor-space for different types of buildings (floor-space measured in square metres).
A5: Updated floor area data used between 1993 & 2007 | J5: The output variable used for the commercial sector was annual sales, since the Industrial Development Corporation (1999) provides sales growth projections for the period 1999 to 2015 for the following commercial sub-sectors:
A6: Updated GDP data used between 2000 & 2009 | J6: Trade, catering and accommodation (SIC 6).
A7: Floor area growth from 2007 onwards predicted from GDP growth projections from stats SA | J7: Finance, Property and Business Services (SIC 8).
A8: Floor area growth in 1991 & 1992 calculated from GDP growth for each sector: | J8: Community, Social and Personal Services (SIC 9).
A9: Based on updated floor and GDP data floor space grows at 20% of GDP growth | J9: Sales growth for 2015 to 2030 was taken to be the average growth projected for 2010 to 2015.
A10: – Note devilliers assumption of 70% seems high | J10: Energy consumption in the commercial sector is usually related to floor-space.
J11: Floor-space for each type of building was estimated for 1990 based on the floor-space of buildings completed in South Africa over the last 45 years (Statistics South Africa, 1946-1990).
J12: Floor-space for each building type was projected using annual sales growth in a related commercial sub-sector.
J13: Due to increasing efficiencies of floor-space use and an increasing number of people working from home, it was assumed that floor-space will grow at 70% of sales growth.
J14: Price (1999) calculated commercial floor space in South Africa to be 80 million square metres in 1996 compared with the 71 million square metres calculated in this study.
A17: To calculate the energy intensity in MJ/m2 for each end use:
A18: Method 6b
A19: Electricity:
A20: Obtain energy consumption by end use and building activity from CBECS 2003in MJ/m2
A21: Calculate weighted average for each end use by multiplying energy consumption MJ/m2 by total floor area of particular building activity for each building activity and adding together and dividing by total floor area of commercial sector
A22: Calculate the share of fuel by end use by calculating the percentage that each weighted average is of the total weighted average
A23: Multiply the total electricity consumed in 2006 by the end use percentage and divide by total commercial floor area.
A25: Diesel:
A26: Multiply the total diesel consumed in 2006 by the end use percentages calculated for electricity and divide by total commercial floor area (assumes all diesel is used for back up electrical generators)
A28: Other fuels:
A29: Obtain energy consumption by end use and building activity from De Villiers 1994 data in MJ/m2
A30: Calculate weighted average for each end use by multiplying energy consumption MJ/m2 by total floor area of particular building activity for each building activity and adding together and dividing by total floor area of commercial sector
A31: Calculate the share of fuel by end use by calculating the percentage that each weighted average is of the total weighted average
A32: Multiply the total electricity consumed in 2006 by the end use percentage and divide by total commercial floor area.
A37: Interventions:
A38: New build meet SANS 10004XA targets | B38: Annual kWh/m2 | C38: Reduced floor area growth on new build to represent EE measures from meeting SANS 204 targets?
A40: Existing:
A41: Heating | B41: Cooling | C41: Hot water | D41: Lighting | E41: Other
A42: operational improvements | B42: operational improvements | C42: operational improvements | D42: operational improvements | E42: operational improvements
A43: Insulation | B43: Glazing spec | C43: insulation | D43: automatic controls
A44: Double glazing | B44: Shading
A45: efficient central boiler | B45: efficient central chiller | C45: efficient geyser | D45: efficient lamps | E45: more efficient appliances
A46: efficient heat emitter | B46: efficient room unit
A49: inefficient systems:
A50: Heating | B50: Cooling | C50: Hot water | D50: Lighting | E50: Other
B51: Split DX system COP 2.75 | C51: Conventional electric geyser (200L, no insulation) | D51: two 40W fluorescent tube lights with magnetic ballast
A52: Efficient systems:
A53: Heating | B53: Cooling | C53: Hot water | D53: Lighting | E53: Other
B54: VRV system COP of 4 (32% more efficient) | C54: Solar Water Heater (200L with back-up element and timer) - RETROFIT | D54: two 32W fluorescent tube lights with electronic ballast
A57: SANS 10004 XA | B57: De Villiers (from old CBECS?) | C57: Stats SA floor areas
A58: Places of instruction | B58: Education facilities
A59: Large shop (including shopping malls) | B59: Shops | C59: Shopping space
A60: Offices | B60: Offices | C60: Office & banking
A61: Hotel | B61: Accommodation
B62: Healthcare facilities
B63: Catering
B64: Warehouses | C64: Industrial & warehouses
A65: Worship | B65: Other | C65: Other
A66: Entertainment and public assembly
A67: Theatrical and indoor sport

Sheet sources
A1: External sources:
A3: 1 | B3: Commercial sector.rev2 -”Toms spreadsheet”
A5: 2 | B5: 2010_11_22 LTMS - 2007 MARKAL inputs - “Mary's spreadsheet”
A7: 3 | B7: Winkler, Harald et al 2006 "Energy Policies for sustainable Development in South Africa - Options for the Future"
B8: Energy Research Centre, University of Cape Town
A10: 4 | B10: Mark De Villiers – calcs incorporated into ref 1, accompanying report: De Villiers, M., 2000. Greenhouse gas baseline and mitigation options for the commercial sector. Cape Town, Energy & Development Research Centre
A12: 4a | B12: Mark Devillier appendix D – references Anderssen et al (1995), Energy Information Agency (1994), Spoormaker (1993), and Piani (1995).
B13: Anderssen J.J, Venter H., le Roux C. and Oosthuizen K (1995). Cape Town electrical load study and end-use segmentation. Department of Mineral and Energy Affairs. Report number ED9006.
B14: Piani C.B. (1995). Establishing the energy savings potential for office buildings in South Africa. Master’s Dissertation, Department of Mechanical Engineering, University of Pretoria, November.
B15: Energy Information Agency (1994). Energy end-use intensities in commercial buildings. DOE/IEA-0555(94)/2. United States.
A17: 5 | B17: CBECS Proportion of energy consumed by each end use for commercial buildings within climate zone <4000HDD & <2000CDD (EIA, 2003b: Table E1A)
A19: 6a | B19: Ref CBECS table E6A. Electricity Consumption (kWh) Intensities by End Use for All Buildings, 2003
B20: Under 2,000 CDD and -- | D20: South Africa Degree days
B21: Fewer than 4,000 HDD ....... | D21: 6 year average
D22: HDD @15.5dC | E22: 892.54
D23: CDD @18dC | E23: 896.12
A25: 6b | B25: Ref CBECS table E6A. Electricity Consumption (kWh) Intensities by End Use for All Buildings, 2003
B26: by building activity
A28: 7 | B28: green book?
A29: 8 | B29: IEA?
A31: 9 | B31: terajoule | C31: TJ | D31: 1000000000000 | E31: joules
B32: gigajoule | C32: GJ | D32: 1000000000 | E32: joules
B33: megajoule | C33: MJ | D33: 1000000 | E33: joules
B34: kilojoule | C34: kJ | D34: 1000 | E34: joules
B35: hectojoule | C35: hJ | D35: 100 | E35: joules
B36: decajoule | C36: daJ | D36: 10 | E36: joules
B37: joule | C37: J | D37: 1 | E37: joule
A39: 10a | B39: DME energy balance 2001
A41: 10b | B41: DME energy balance 2006
A43: 11 | B43: Floor space projections

Sheet RES equip
A1: COMMERCIAL BUILDINGS
A2: Energy efficient equipment & appliance:
A5: Energy Demand / kWh/m2 | F5: Energy Demand / kWh/m2 | Q5: Energy Output / kWh/m2
A6: Renewable power station | B6: Nuclear power station | C6: Coal power station | D6: Diesel generators | F6: Electricity | G6: LPG | H6: Paraffin | I6: Wood | J6: Coal | K6: HFO | L6: Coal gas | M6: Solar thermal | O6: Technology (efficiency) | Q6: Space heating | R6: Cooling | S6: Water heating | T6: Lighting | U6: Cooking | V6: Refrigeration | W6: Other
O9: Heater 1 (electric)
O11: Heater 2 (LPG)
O13: Heater 3 (Wood)
O15: Heater 4 (coal)
O17: Heater 5 (oil)
O19: Heater 6 (coal gas)
O23: Cooling system 1 (Air cooled chiller)
O25: Cooling system 2 (Heat pump)
O27: Cooling system 3 (Room air chiller)
O29: Cooling system 4 (Central AC)
O33: Geyser 1 (electric)
O35: Geyser 1a (heat pump)
O37: Geyser 1 (solar)
O39: Geyser 2 (LPG)
O41: Geyser 3 (Paraffin)
O43: Geyser 4 (coal)
O45: Geyser 5 (oil)
O47: Geyser 6 (coal gas)
O51: Lamp 1 (CFL)
O53: Lamp 2 (Fluorescents)
O55: Lamp 3 (Halogen)
O57: Lamp 4 (HID's)
O59: Lamp 5 (Incandescent)
O63: Stove 1 (electric)
O65: Stove 2 (gas)
O67: Stove 3 (paraffin)
O71: Refrigeration 1
O75: Other appliances

Sheet devilliers floor space projecti
A1: Key
A2: Blue - value calculated in cell
A3: Red – value from external source
A4: Black – value linked to another cell or spreadsheet
A5: unreferenced data – from previous LTMS
A7: Floor area data
B8: Source | C8: Average growth | D8: 1990 | E8: =D8+1 -> 1991 | F8: =E8+1 -> 1992 | G8: 1993 | H8: 1994 | I8: 1995 | J8: 1996 | K8: 1997 | L8: 1998 | M8: 1999 | N8: 2000 | O8: 2001 | P8: 2002 | Q8: 2003 | R8: 2004 | S8: 2005 | T8: 2006 | U8: 2007
A9: Floor area growth million m2 | B9: Stats SA 2010 building data | G9: 1.506807 | H9: 1.993409 | I9: 2.265422 | J9: 3.02391 | K9: 2.852114 | L9: 2.523356 | M9: 2.553267 | N9: 2.288696 | O9: 1.554345 | P9: 1.474678 | Q9: 1.426643 | R9: 1.77647 | S9: 2.210548 | T9: 2.535024 | U9: 2.463543
A10: Total Floor area million m2 | D10: =D45 -> 65 | E10: =E45 -> 65.636272 | F10: =F45 -> 66.28707052 | G10: =F10+G9 -> 67.79387752 | H10: 69.78728652 | I10: 72.05270852 | J10: 75.07661852 | K10: 77.92873252 | L10: 80.45208852 | M10: 83.00535552 | N10: 85.29405152 | O10: 86.84839652 | P10: 88.32307452 | Q10: 89.74971752 | R10: 91.52618752 | S10: 93.73673552 | T10: 96.27175952 | U10: 98.73530252
A11: Floor area annualised percentage change | C11: =AVERAGE(H11:U11) -> 0.02724627971 | G11: =G10/F10-1 -> 0.02273153706 | H11: 0.02940396792 | I11: 0.03246181523 | J11: 0.04196802677 | K11: 0.03798937747 | L11: 0.03238030337 | M11: 0.03173649121 | N11: 0.02757287148 | O11: 0.0182233693 | P11: 0.0169799105 | Q11: 0.01615255139 | R11: 0.0197935999 | S11: 0.02415208215 | T11: 0.02704408241 | U11: 0.02558946686
A13: GDP data used to determine floorspace to growth ratio
B14: Source | C14: Average growth | D14: 1990 | E14: =D14+1 -> 1991 | F14: =E14+1 -> 1992 | G14: 1993 | H14: 1994 | I14: 1995 | J14: 1996 | K14: 1997 | L14: 1998 | M14: 1999 | N14: 2000 | O14: 2001 | P14: 2002 | Q14: 2003 | R14: 2004 | S14: 2005 | T14: 2006 | U14: 2007
A15: GDP-E/ZAR - SIC sectors 6, 8 & 9 | B15: Stats SA 2009 4th quarterly report GDP, Table 5 | E15: 139268.9395 | F15: 139268.9395 | G15: 139268.9395 | H15: 156367.6788 | I15: 181474.9564 | J15: 204624.7159 | K15: 231522.9242 | L15: 252148.7 | M15: 287867.7 | N15: 330336.55 | O15: 364231 | P15: 415377.6 | Q15: 462775.3 | R15: 518381.2 | S15: 578971 | T15: 653169.3 | U15: 753782.6
A16: GDP percentage change % | C16: =AVERAGE(H16:U16) -> 0.1283573239 | H16: =(H15/G15-1) -> 0.1227749658 | I16: 0.1605656475 | J16: 0.1275644859 | K16: 0.1314514145 | L16: 0.08908740172 | M16: 0.1416584737 | N16: 0.1475290559 | O16: 0.1026058122 | P16: 0.1404235224 | Q16: 0.1141075012 | R16: 0.1201574501 | S16: 0.116882711 | T16: 0.1281554689 | U16: 0.1540386237
B18: 1994-2007 | C18: 2000-2007
A19: Average GDP Growth for commercial sector | B19: =AVERAGE(H16:U16) -> 0.1283573239 | C19: =AVERAGE(N16:U16) -> 0.1279875182
A20: Average Floorspace percentage change | B20: =AVERAGE(H11:U11) -> 0.02724627971 | C20: =AVERAGE(N11:U11) -> 0.02193849175
A21: Floorspace to growth ratio | B21: =B20/B19 -> 0.2122689916 | C21: =C20/C19 -> 0.1714111818
A23: GDP percentage change to estimate floor area growth where floor area data not available
B25: Source | C25: Average growth | D25: 1990 | E25: =D25+1 -> 1991 | F25: =E25+1 -> 1992 | G25: 1993 | H25: 1994 | I25: 1995 | J25: 1996 | K25: 1997 | L25: 1998 | M25: 1999 | N25: 2000 | O25: 2001 | P25: 2002 | Q25: 2003 | R25: 2004 | S25: 2005 | T25: 2006 | U25: 2007
A26: Annualised percentage change SIC (6) Trade, catering & accommodation | B26: Stats SA 2009 4th quarterly report GDP, Table 4 | C26: =AVERAGE(E26:U26) -> 0.03786875 | E26: 0.0193 | F26: 0.0193 | G26: 0.0193 | H26: 0.025 | I26: 0.059 | J26: 0.037 | K26: 0.004 | L26: 0.013 | M26: 0.076 | N26: 0.081 | O26: 0.019 | P26: 0.023 | Q26: 0.027 | R26: 0.054 | S26: 0.07 | T26: 0.06
A27: Annualised percentage change SIC (8) Finance, Property & Business Services | C27: =AVERAGE(E27:U27) -> 0.05028125 | E27: 0.0315 | F27: 0.0315 | G27: 0.0315 | H27: 0.037 | I27: 0.035 | J27: 0.068 | K27: 0.047 | L27: 0.023 | M27: 0.051 | N27: 0.032 | O27: 0.082 | P27: 0.063 | Q27: 0.048 | R27: 0.071 | S27: 0.057 | T27: 0.096
A28: Annualised percentage change SIC (9) Community, Social & Personal Services | C28: =AVERAGE(E28:U28) -> 0.02914375 | E28: -0.0079 | F28: -0.0079 | G28: -0.0079 | H28: 0.049 | I28: 0.055 | J28: 0.027 | K28: 0 | L28: 0.062 | M28: 0.039 | N28: 0.048 | O28: 0.022 | P28: 0.025 | Q28: 0.056 | R28: 0.017 | S28: 0.038 | T28: 0.052
A31: Floor area predictions
A33: Assumption: 1991- 1992 Floor space grows at | B33: 0.7 | C33: of GDP growth
A34: Calculation: 1993- 2010 Floor space grows at | B34: 0.24 | C34: of GDP growth
G35: based on real floor area
A36: Floor area / Million square meters | B36: SIC sector | C36: Percentage share of floor area (REF?) | D36: 1990 | E36: =D36+1 -> 1991 | F36: 1992 | G36: 1993 | H36: 1994 | I36: 1995 | J36: 1996 | K36: 1997 | L36: 1998 | M36: 1999 | N36: 2000 | O36: 2001 | P36: 2002 | Q36: 2003 | R36: 2004 | S36: 2005 | T36: 2006 | U36: 2007
A37: Warehouses | B37: 6 | C37: 0.11 | D37: =C37*$D$45 -> 7.15 | E37: =D37+($B$33*E$26*D37) -> 7.2465965 | F37: 7.344498019 | G37: =$C37*G$10 -> 7.457326527 | H37: 7.676601517 | I37: 7.925797937 | J37: 8.258428037 | K37: 8.572160577 | L37: 8.849729737 | M37: 9.130589107 | N37: 9.382345667 | O37: 9.553323617 | P37: 9.715538197 | Q37: 9.872468927 | R37: 10.06788063 | S37: 10.31104091 | T37: 10.58989355 | U37: 10.86088328
A38: Shops | B38: 6 | C38: 0.18 | D38: 11.7 | E38: 11.858067 | F38: 12.01826949 | G38: 12.20289795 | H38: 12.56171157 | I38: 12.96948753 | J38: 13.51379133 | K38: 14.02717185 | L38: 14.48137593 | M38: 14.94096399 | N38: 15.35292927 | O38: 15.63271137 | P38: 15.89815341 | Q38: 16.15494915 | R38: 16.47471375 | S38: 16.87261239 | T38: 17.32891671 | U38: 17.77235445
A39: Accommodation | B39: 6 | C39: 0.04 | D39: 2.6 | E39: 2.635126 | F39: 2.670726552 | G39: 2.711755101 | H39: 2.791491461 | I39: 2.882108341 | J39: 3.003064741 | K39: 3.117149301 | L39: 3.218083541 | M39: 3.320214221 | N39: 3.411762061 | O39: 3.473935861 | P39: 3.532922981 | Q39: 3.589988701 | R39: 3.661047501 | S39: 3.749469421 | T39: 3.850870381 | U39: 3.949412101
A40: Catering | B40: 6 | C40: 0.04 | D40: 2.6 | E40: 2.635126 | F40: 2.670726552 | G40: 2.711755101 | H40: 2.791491461 | I40: 2.882108341 | J40: 3.003064741 | K40: 3.117149301 | L40: 3.218083541 | M40: 3.320214221 | N40: 3.411762061 | O40: 3.473935861 | P40: 3.532922981 | Q40: 3.589988701 | R40: 3.661047501 | S40: 3.749469421 | T40: 3.850870381 | U40: 3.949412101
A41: Offices | B41: 8 | C41: 0.3 | D41: 19.5 | E41: =D41+($B$33*E$27*D41) -> 19.929975 | F41: =E41+($B$33*F$27*E41) -> 20.36943095 | G41: 20.33816326 | H41: 20.93618596 | I41: 21.61581256 | J41: 22.52298556 | K41: 23.37861976 | L41: 24.13562656 | M41: 24.90160666 | N41: 25.58821546 | O41: 26.05451896 | P41: 26.49692236 | Q41: 26.92491526 | R41: 27.45785626 | S41: 28.12102066 | T41: 28.88152786 | U41: 29.62059076
A42: Education facilities | B42: 9 | C42: 0.12 | D42: 7.8 | E42: =D42+($B$33*E$28*D42) -> 7.756866 | F42: 7.713970531 | G42: 8.135265302 | H42: 8.374474382 | I42: 8.646325022 | J42: 9.009194222 | K42: 9.351447902 | L42: 9.654250622 | M42: 9.960642662 | N42: 10.23528618 | O42: 10.42180758 | P42: 10.59876894 | Q42: 10.7699661 | R42: 10.9831425 | S42: 11.24840826 | T42: 11.55261114 | U42: 11.8482363
A43: Healthcare facilities | B43: 9 | C43: 0.07 | D43: 4.55 | E43: 4.5248385 | F43: 4.499816143 | G43: =$C43*G$10 -> 4.745571426 | H43: 4.885110056 | I43: 5.043689596 | J43: 5.255363296 | K43: 5.455011276 | L43: 5.631646196 | M43: 5.810374886 | N43: 5.970583606 | O43: 6.079387756 | P43: 6.182615216 | Q43: 6.282480226 | R43: 6.406833126 | S43: 6.561571486 | T43: 6.739023166 | U43: 6.911471176
A44: Other | B44: 9 | C44: 0.14 | D44: 9.1 | E44: 9.049677 | F44: 8.999632286 | G44: 9.491142852 | H44: 9.770220112 | I44: 10.08737919 | J44: 10.51072659 | K44: 10.91002255 | L44: 11.26329239 | M44: 11.62074977 | N44: 11.94116721 | O44: 12.15877551 | P44: 12.36523043 | Q44: 12.56496045 | R44: 12.81366625 | S44: 13.12314297 | T44: 13.47804633 | U44: 13.82294235
A45: Total [Million square meter] | C45: =SUM(C37:C44) -> 1 | D45: 65 | E45: =SUM(E37:E44) -> 65.636272 | F45: 66.28707052 | G45: 67.79387752 | H45: 69.78728652 | I45: 72.05270852 | J45: 75.07661852 | K45: 77.92873252 | L45: 80.45208852 | M45: 83.00535552 | N45: 85.29405152 | O45: 86.84839652 | P45: 88.32307452 | Q45: 89.74971752 | R45: 91.52618752 | S45: 93.73673552 | T45: 96.27175952 | U45: 98.73530252
A47: Comparison with GDP method @ 70% growth ratio
A49: Floor area / Million square meters | B49: SIC sector | C49: Percentage share of floor area (REF?) | D49: 1990 | E49: =D49+1 -> 1991 | F49: 1992 | G49: 1993 | H49: 1994 | I49: 1995 | J49: 1996 | K49: 1997 | L49: 1998 | M49: 1999 | N49: 2000 | O49: 2001 | P49: 2002 | Q49: 2003 | R49: 2004 | S49: 2005 | T49: 2006 | U49: 2007
A50: Warehouses | B50: 6 | C50: 0.11 | D50: =C50*$D$45 -> 7.15 | E50: =D50+($B$33*E$26*D50) -> 7.2465965 | F50: 7.344498019 | G50: 7.443722187 | H50: 7.573987325 | I50: 7.886793002 | J50: 8.09106094 | K50: 8.113715911 | L50: 8.187550726 | M50: 8.623128425 | N50: 9.112059806 | O50: 9.233250202 | P50: 9.38190553 | Q50: 9.559223544 | R50: 9.920562194 | S50: 10.40666974 | T50: 10.84374987 | U50: =T50+($B$33*U$26*T50) -> 10.84374987
A51: Shops | B51: 6 | C51: 0.18 | D51: 11.7 | E51: 11.858067 | F51: 12.01826949 | G51: 12.18063631 | H51: 12.39379744 | I51: 12.90566128 | J51: 13.2399179 | K51: 13.27698967 | L51: 13.39781028 | M51: 14.11057379 | N51: 14.91064332 | O51: 15.10895488 | P51: 15.35220905 | Q51: 15.6423658 | R51: 16.23364723 | S51: 17.02909594 | T51: 17.74431797 | U51: 17.74431797
A52: Accommodation | B52: 6 | C52: 0.04 | D52: 2.6 | E52: 2.635126 | F52: 2.670726552 | G52: 2.706808068 | H52: 2.754177209 | I52: 2.867924728 | J52: 2.942203978 | K52: 2.95044215 | L52: 2.977291173 | M52: 3.135683063 | N52: 3.313476293 | O52: 3.357545528 | P52: 3.411602011 | Q52: 3.476081289 | R52: 3.607477162 | S52: 3.784243543 | T52: 3.943181771 | U52: 3.943181771
A53: Catering | B53: 6 | C53: 0.04 | D53: 2.6 | E53: 2.635126 | F53: 2.670726552 | G53: 2.706808068 | H53: 2.754177209 | I53: 2.867924728 | J53: 2.942203978 | K53: 2.95044215 | L53: 2.977291173 | M53: 3.135683063 | N53: 3.313476293 | O53: 3.357545528 | P53: 3.411602011 | Q53: 3.476081289 | R53: 3.607477162 | S53: 3.784243543 | T53: 3.943181771 | U53: 3.943181771
A54: Offices | B54: 8 | C54: 0.3 | D54: 19.5 | E54: =D54+($B$33*E$27*D54) -> 19.929975 | F54: 20.36943095 | G54: 20.8185769 | H54: 21.35777804 | I54: 21.8810436 | J54: 22.92258128 | K54: 23.6767342 | L54: 24.05792963 | M54: 24.91679771 | N54: 25.47493398 | O54: 26.93719519 | P54: 28.1251255 | Q54: 29.07012972 | R54: 30.51491516 | S54: 31.73246028 | T54: 33.86488161 | U54: 33.86488161
A55: Education facilities | B55: 9 | C55: 0.12 | D55: 7.8 | E55: =D55+($B$33*E$28*D55) -> 7.756866 | F55: 7.713970531 | G55: 7.671312274 | H55: 7.934438285 | I55: 8.239914159 | J55: 8.395648537 | K55: 8.395648537 | L55: 8.760019683 | M55: 8.99916822 | N55: 9.301540273 | O55: 9.444783993 | P55: 9.610067713 | Q55: 9.986782367 | R55: 10.10562508 | S55: 10.3744347 | T55: 10.75206413 | U55: =T55+($B$33*U$28*T55) -> 10.75206413
A56: Healthcare facilities | B56: 9 | C56: 0.07 | D56: 4.55 | E56: 4.5248385 | F56: 4.499816143 | G56: 4.47493216 | H56: 4.628422333 | I56: 4.806616593 | J56: 4.897461646 | K56: 4.897461646 | L56: 5.110011482 | M56: 5.249514795 | N56: 5.425898492 | O56: 5.509457329 | P56: 5.605872832 | Q56: 5.825623047 | R56: 5.894947962 | S56: 6.051753577 | T56: 6.272037408 | U56: 6.272037408
A57: Other | B57: 9 | C57: 0.14 | D57: 9.1 | E57: 9.049677 | F57: 8.999632286 | G57: 8.94986432 | H57: 9.256844666 | I57: 9.613233185 | J57: 9.794923293 | K57: 9.794923293 | L57: 10.22002296 | M57: 10.49902959 | N57: 10.85179698 | O57: 11.01891466 | P57: 11.21174566 | Q57: 11.65124609 | R57: 11.78989592 | S57: 12.10350715 | T57: 12.54407482 | U57: 12.54407482
A58: Total [Million square meter] | C58: =SUM(C50:C57) -> 1 | D58: 65 | E58: =SUM(E50:E57) -> 65.636272 | F58: 66.28707052 | G58: 66.95266028 | H58: 68.65362251 | I58: 71.06911128 | J58: 73.22600156 | K58: 74.05635756 | L58: 75.6879271 | M58: 78.66957866 | N58: 81.70382544 | O58: 83.96764731 | P58: 86.11013031 | Q58: 88.68753315 | R58: 91.67454787 | S58: 95.26640848 | T58: 99.90748934 | U58: 99.90748934
A60: Comparison with GDP method @ 24% growth ratio
A62: Floor area / Million square meters | B62: SIC sector | C62: Percentage share of floor area (REF?) | D62: 1990 | E62: =D62+1 -> 1991 | F62: 1992 | G62: 1993 | H62: 1994 | I62: 1995 | J62: 1996 | K62: 1997 | L62: 1998 | M62: 1999 | N62: 2000 | O62: 2001 | P62: 2002 | Q62: 2003 | R62: 2004 | S62: 2005 | T62: 2006 | U62: 2007
A63: Warehouses | B63: 6 | C63: 0.11 | D63: =C63*$D$45 -> 7.15 | E63: =D63+($B$33*E$26*D63) -> 7.2465965 | F63: 7.344498019 | G63: =F63+($B$34*G$26*F63) -> 7.378517734 | H63: 7.42278884 | I63: 7.52789553 | J63: 7.594743242 | K63: 7.602034196 | L63: 7.625752542 | M63: 7.764846269 | N63: 7.91579488 | O63: 7.951890905 | P63: 7.995785343 | Q63: 8.047598032 | R63: 8.151894902 | S63: 8.288846737 | T63: 8.40820613 | U63: 8.40820613
A64: Shops | B64: 6 | C64: 0.18 | D64: 11.7 | E64: 11.858067 | F64: 12.01826949 | G64: 12.07393811 | H64: 12.14638174 | I64: 12.3183745 | J64: 12.42776167 | K64: 12.43969232 | L64: 12.47850416 | M64: 12.70611208 | N64: 12.95311889 | O64: 13.01218512 | P64: 13.08401238 | Q64: 13.16879678 | R64: 13.33946439 | S64: 13.56356739 | T64: 13.75888276 | U64: 13.75888276
A65: Accommodation | B65: 6 | C65: 0.04 | D65: 2.6 | E65: 2.635126 | F65: 2.670726552 | G65: 2.683097358 | H65: 2.699195942 | I65: 2.737416556 | J65: 2.761724815 | K65: 2.764376071 | L65: 2.773000925 | M65: 2.823580461 | N65: 2.878470866 | O65: 2.891596693 | P65: 2.907558306 | Q65: 2.926399284 | R65: 2.964325419 | S65: 3.014126086 | T65: 3.057529502 | U65: 3.057529502
A66: Catering | B66: 6 | C66: 0.04 | D66: 2.6 | E66: 2.635126 | F66: 2.670726552 | G66: 2.683097358 | H66: 2.699195942 | I66: 2.737416556 | J66: 2.761724815 | K66: 2.764376071 | L66: 2.773000925 | M66: 2.823580461 | N66: 2.878470866 | O66: 2.891596693 | P66: 2.907558306 | Q66: 2.926399284 | R66: 2.964325419 | S66: 3.014126086 | T66: 3.057529502 | U66: 3.057529502
A67: Offices | B67: 8 | C67: 0.3 | D67: 19.5 | E67: 19.763445 | F67: 20.03044914 | G67: 20.12323018 | H67: 20.24396956 | I67: 20.53062417 | J67: 20.71293612 | K67: 20.73282053 | L67: 20.79750693 | M67: 21.17685346 | N67: 21.58853149 | O67: 21.6869752 | P67: 21.8066873 | Q67: 21.94799463 | R67: 22.23244064 | S67: 22.60594565 | T67: 22.93147126 | U67: 22.93147126
A68: Education facilities | B68: 9 | C68: 0.12 | D68: 7.8 | E68: 7.905378 | F68: 8.012179657 | G68: 8.049292073 | H68: 8.097587825 | I68: 8.212249669 | J68: 8.285174446 | K68: 8.293128214 | L68: 8.319002774 | M68: 8.470741384 | N68: 8.635412597 | O68: 8.674790078 | P68: 8.722674919 | Q68: 8.779197853 | R68: 8.892976257 | S68: 9.042378258 | T68: 9.172588505 | U68: 9.172588505
A69: Healthcare facilities | B69: 9 | C69: 0.07 | D69: 4.55 | E69: 4.6114705 | F69: 4.673771466 | G69: 4.695420376 | H69: 4.723592898 | I69: 4.790478974 | J69: 4.833018427 | K69: 4.837658125 | L69: 4.852751618 | M69: 4.941265807 | N69: 5.037324015 | O69: 5.060294212 | P69: 5.088227036 | Q69: 5.121198747 | R69: 5.187569483 | S69: 5.274720651 | T69: 5.350676628 | U69: 5.350676628
A70: Other | B70: 9 | C70: 0.14 | D70: 9.1 | E70: 9.222941 | F70: 9.347542933 | G70: 9.390840752 | H70: 9.447185796 | I70: 9.580957947 | J70: 9.666036854 | K70: 9.675316249 | L70: 9.705503236 | M70: 9.882531615 | N70: 10.07464803 | O70: 10.12058842 | P70: 10.17645407 | Q70: 10.24239749 | R70: 10.37513897 | S70: 10.5494413 | T70: 10.70135326 | U70: 10.70135326
A71: Total [Million square meter] | C71: =SUM(C63:C70) -> 1 | D71: 65 | E71: =SUM(E63:E70) -> 65.87815 | F71: 66.76816381 | G71: 67.07743394 | H71: 67.47989854 | I71: 68.43541391 | J71: 69.04312038 | K71: 69.10940178 | L71: 69.32502311 | M71: 70.58951153 | N71: 71.96177164 | O71: 72.28991732 | P71: 72.68895766 | Q71: 73.15998211 | R71: 74.10813547 | S71: 75.35315215 | T71: 76.43823754 | U71: 76.43823754
A73: Comparison with GDP method @ regression equation growth
A75: f(x) = 5.346E-5 X + 57.12
A76: m | E76: =5.346/100000 -> 5.346e-05
A77: C | E77: 57.12
A80: Floor area / Million square meters | B80: SIC sector | C80: Percentage share of floor area (REF?) | D80: 1990 | E80: =D80+1 -> 1991 | F80: 1992 | G80: 1993 | H80: 1994 | I80: 1995 | J80: 1996 | K80: 1997 | L80: 1998 | M80: 1999 | N80: 2000 | O80: 2001 | P80: 2002 | Q80: 2003 | R80: 2004 | S80: 2005 | T80: 2006 | U80: 2007
A81: Warehouses | B81: 6 | C81: 0.11 | D81: =$C81*D$89 -> 7.15 | E81: 7.102184926 | F81: 7.102184926 | G81: 7.102184926 | H81: 7.202735772 | I81: 7.350381629 | J81: 7.486516104 | K81: 7.644693708 | L81: 7.765985645 | M81: 7.976034797 | N81: 8.225777116 | O81: 8.425096819 | P81: 8.725869515 | Q81: 9.004596429 | R81: 9.331592485 | S81: 9.687896863 | T81: 10.12422739 | U81: 10.71589396
A82: Shops | B82: 6 | C82: 0.18 | D82: =C82*D$89 -> 11.7 | E82: 11.62175715 | F82: 11.62175715 | G82: 11.62175715 | H82: 11.7862949 | I82: 12.02789721 | J82: 12.25066272 | K82: 12.5094988 | L82: 12.70797651 | M82: 13.0516933 | N82: 13.46036255 | O82: 13.78652207 | P82: 14.27869557 | Q82: 14.73479416 | R82: 15.26987861 | S82: 15.85292214 | T82: 16.56691754 | U82: 17.5350992
A83: Accommodation | B83: 6 | C83: 0.04 | D83: 2.6 | E83: 2.5826127 | F83: 2.5826127 | G83: 2.5826127 | H83: 2.619176644 | I83: 2.672866047 | J83: 2.722369492 | K83: 2.779888621 | L83: 2.82399478 | M83: 2.90037629 | N83: 2.991191679 | O83: 3.06367157 | P83: 3.17304346 | Q83: 3.274398702 | R83: 3.393306358 | S83: 3.522871586 | T83: 3.681537231 | U83: 3.896688712
A84: Catering | B84: 6 | C84: 0.04 | D84: 2.6 | E84: 2.5826127 | F84: 2.5826127 | G84: 2.5826127 | H84: 2.619176644 | I84: 2.672866047 | J84: 2.722369492 | K84: 2.779888621 | L84: 2.82399478 | M84: 2.90037629 | N84: 2.991191679 | O84: 3.06367157 | P84: 3.17304346 | Q84: 3.274398702 | R84: 3.393306358 | S84: 3.522871586 | T84: 3.681537231 | U84: 3.896688712
A85: Offices | B85: 8 | C85: 0.3 | D85: 19.5 | E85: 19.36959525 | F85: 19.36959525 | G85: 19.36959525 | H85: 19.64382483 | I85: 20.04649535 | J85: 20.41777119 | K85: 20.84916466 | L85: 21.17996085 | M85: 21.75282217 | N85: 22.43393759 | O85: 22.97753678 | P85: 23.79782595 | Q85: 24.55799026 | R85: 25.44979769 | S85: 26.4215369 | T85: 27.61152923 | U85: 29.22516534
A86: Education facilities | B86: 9 | C86: 0.12 | D86: 7.8 | E86: 7.747838101 | F86: 7.747838101 | G86: 7.747838101 | H86: 7.857529933 | I86: 8.01859814 | J86: 8.167108477 | K86: 8.339665864 | L86: 8.47198434 | M86: 8.701128869 | N86: 8.973575036 | O86: 9.191014711 | P86: 9.51913038 | Q86: 9.823196105 | R86: 10.17991907 | S86: 10.56861476 | T86: 11.04461169 | U86: 11.69006614
A87: Healthcare facilities | B87: 9 | C87: 0.07 | D87: 4.55 | E87: 4.519572225 | F87: 4.519572225 | G87: 4.519572225 | H87: 4.583559128 | I87: 4.677515582 | J87: 4.764146612 | K87: 4.864805087 | L87: 4.941990865 | M87: 5.075658507 | N87: 5.234585437 | O87: 5.361425248 | P87: 5.552826055 | Q87: 5.730197728 | R87: 5.938286127 | S87: 6.165025276 | T87: 6.442690154 | U87: 6.819205246
A88: Other | B88: 9 | C88: 0.14 | D88: 9.1 | E88: 9.039144451 | F88: 9.039144451 | G88: 9.039144451 | H88: 9.167118255 | I88: 9.355031164 | J88: 9.528293224 | K88: 9.729610174 | L88: 9.88398173 | M88: 10.15131701 | N88: 10.46917087 | O88: 10.7228505 | P88: 11.10565211 | Q88: 11.46039546 | R88: 11.87657225 | S88: 12.33005055 | T88: 12.88538031 | U88: 13.63841049
A89: Total [Million square meter] | C89: =SUM(C81:C88) -> 1 | D89: 65 | E89: =E15*$E$76+$E$77 -> 64.56531751 | F89: 64.56531751 | G89: 64.56531751 | H89: 65.47941611 | I89: 66.82165117 | J89: 68.05923731 | K89: 69.49721553 | L89: 70.5998695 | M89: 72.50940724 | N89: 74.77979196 | O89: 76.59178926 | P89: 79.3260865 | Q89: 81.85996754 | R89: 84.83265895 | S89: 88.07178966 | T89: 92.03843078 | U89: 97.4172178

Sheet Stats SA floor 1993-2006
A1: Buildings reported completed to municipalities by type of building
A2: Excludes additions & alterations
A3: SOUTH AFRICA
A4: type | B4: 1993 | C4: 1994 | D4: 1995 | E4: 1996 | F4: 1997 | G4: 1998 | H4: 1999 | I4: 2000 | J4: 2001 | K4: 2002 | L4: 2003 | M4: 2004 | N4: 2005 | O4: 2006 | P4: 2007 | Q4: Total | R4: share
A5: Office and banking space | B5: =SUM(B12:M12) -> 524258 | C5: =SUM(N12:Y12) -> 786759 | D5: =SUM(Z12:AK12) -> 1001967 | E5: =SUM(AL12:AW12) -> 1331479 | F5: =SUM(AX12:BI12) -> 1210605 | G5: =SUM(BJ12:BU12) -> 911463 | H5: =SUM(BV12:CG12) -> 1092502 | I5: =SUM(CH12:CS12) -> 1146762 | J5: =SUM(CT12:DE12) -> 736748 | K5: =SUM(DF12:DQ12) -> 447633 | L5: =SUM(DR12:EC12) -> 437632 | M5: =SUM(ED12:EO12) -> 514389 | N5: =SUM(EP12:FA12) -> 609630 | O5: =SUM(FB12:FM12) -> 973300 | P5: =SUM(FN12:FY12) -> 911049 | Q5: =SUM(B5:O5) -> 11725127 | R5: =Q5/$Q$8 -> 0.391037139
A6: Shopping space | B6: =SUM(B13:M13) -> 473160 | C6: =SUM(N13:Y13) -> 604803 | D6: =SUM(Z13:AK13) -> 639001 | E6: =SUM(AL13:AW13) -> 913311 | F6: =SUM(AX13:BI13) -> 886877 | G6: =SUM(BJ13:BU13) -> 1046152 | H6: =SUM(BV13:CG13) -> 828921 | I6: =SUM(CH13:CS13) -> 599295 | J6: =SUM(CT13:DE13) -> 450973 | K6: =SUM(DF13:DQ13) -> 499150 | L6: =SUM(DR13:EC13) -> 675746 | M6: =SUM(ED13:EO13) -> 865220 | N6: =SUM(EP13:FA13) -> 1254332 | O6: =SUM(FB13:FM13) -> 1185866 | P6: =SUM(FN13:FY13) -> 1191675 | Q6: =SUM(B6:O6) -> 10922807 | R6: =Q6/$Q$8 -> 0.3642794828
A7: Other non-residential space | B7: =SUM(B14:M14) -> 509389 | C7: =SUM(N14:Y14) -> 601847 | D7: =SUM(Z14:AK14) -> 624454 | E7: =SUM(AL14:AW14) -> 779120 | F7: =SUM(AX14:BI14) -> 754632 | G7: =SUM(BJ14:BU14) -> 565741 | H7: =SUM(BV14:CG14) -> 631844 | I7: =SUM(CH14:CS14) -> 542639 | J7: =SUM(CT14:DE14) -> 366624 | K7: =SUM(DF14:DQ14) -> 527895 | L7: =SUM(DR14:EC14) -> 313265 | M7: =SUM(ED14:EO14) -> 396861 | N7: =SUM(EP14:FA14) -> 346586 | O7: =SUM(FB14:FM14) -> 375858 | P7: =SUM(FN14:FY14) -> 360819 | Q7: =SUM(B7:O7) -> 7336755 | R7: =Q7/$Q$8 -> 0.2446833782
A8: Total | B8: =SUM(B5:B7) -> 1506807 | C8: 1993409 | D8: 2265422 | E8: 3023910 | F8: 2852114 | G8: 2523356 | H8: 2553267 | I8: 2288696 | J8: 1554345 | K8: 1474678 | L8: 1426643 | M8: 1776470 | N8: 2210548 | O8: 2535024 | P8: 2463543 | Q8: =SUM(B8:O8) -> 29984689
B10: MO011993 | C10: MO021993 | D10: MO031993 | E10: MO041993 | F10: MO051993 | G10: MO061993 | H10: MO071993 | I10: MO081993 | J10: MO091993 | K10: MO101993 | L10: MO111993 | M10: MO121993 | N10: MO011994 | O10: MO021994 | P10: MO031994 | Q10: MO041994 | R10: MO051994 | S10: MO061994 | T10: MO071994 | U10: MO081994 | V10: MO091994 | W10: MO101994 | X10: MO111994 | Y10: MO121994 | Z10: MO011995 | AA10: MO021995 | AB10: MO031995 | AC10: MO041995 | AD10: MO051995 | AE10: MO061995 | AF10: MO071995 | AG10: MO081995 | AH10: MO091995 | AI10: MO101995 | AJ10: MO111995 | AK10: MO121995 | AL10: MO011996 | AM10: MO021996 | AN10: MO031996 | AO10: MO041996 | AP10: MO051996 | AQ10: MO061996 | AR10: MO071996 | AS10: MO081996 | AT10: MO091996 | AU10: MO101996 | AV10: MO111996 | AW10: MO121996 | AX10: MO011997 | AY10: MO021997 | AZ10: MO031997 | BA10: MO041997 | BB10: MO051997 | BC10: MO061997 | BD10: MO071997 | BE10: MO081997 | BF10: MO091997 | BG10: MO101997 | BH10: MO111997 | BI10: MO121997 | BJ10: MO011998 | BK10: MO021998 | BL10: MO031998 | BM10: MO041998 | BN10: MO051998 | BO10: MO061998 | BP10: MO071998 | BQ10: MO081998 | BR10: MO091998 | BS10: MO101998 | BT10: MO111998 | BU10: MO121998 | BV10: MO011999 | BW10: MO021999 | BX10: MO031999 | BY10: MO041999 | BZ10: MO051999 | CA10: MO061999 | CB10: MO071999 | CC10: MO081999 | CD10: MO091999 | CE10: MO101999 | CF10: MO111999 | CG10: MO121999 | CH10: MO012000 | CI10: MO022000 | CJ10: MO032000 | CK10: MO042000 | CL10: MO052000 | CM10: MO062000 | CN10: MO072000 | CO10: MO082000 | CP10: MO092000 | CQ10: MO102000 | CR10: MO112000 | CS10: MO122000 | CT10: MO012001 | CU10: MO022001 | CV10: MO032001 | CW10: MO042001 | CX10: MO052001 | CY10: MO062001 | CZ10: MO072001 | DA10: MO082001 | DB10: MO092001 | DC10: MO102001 | DD10: MO112001 | DE10: MO122001 | DF10: MO012002 | DG10: MO022002 | DH10: MO032002 | DI10: MO042002 | DJ10: MO052002 | DK10: MO062002 | DL10: MO072002 | DM10: MO082002 | DN10: MO092002 | DO10: MO102002 | DP10: MO112002 | DQ10: MO122002 | DR10: MO012003 | DS10: MO022003 | DT10: MO032003 | DU10: MO042003 | DV10: MO052003 | DW10: MO062003 | DX10: MO072003 | DY10: MO082003 | DZ10: MO092003 | EA10: MO102003 | EB10: MO112003 | EC10: MO122003 | ED10: MO012004 | EE10: MO022004 | EF10: MO032004 | EG10: MO042004 | EH10: MO052004 | EI10: MO062004 | EJ10: MO072004 | EK10: MO082004 | EL10: MO092004 | EM10: MO102004 | EN10: MO112004 | EO10: MO122004 | EP10: MO012005 | EQ10: MO022005 | ER10: MO032005 | ES10: MO042005 | ET10: MO052005 | EU10: MO062005 | EV10: MO072005 | EW10: MO082005 | EX10: MO092005 | EY10: MO102005 | EZ10: MO112005 | FA10: MO122005 | FB10: MO012006 | FC10: MO022006 | FD10: MO032006 | FE10: MO042006 | FF10: MO052006 | FG10: MO062006 | FH10: MO072006 | FI10: MO082006 | FJ10: MO092006 | FK10: MO102006 | FL10: MO112006 | FM10: MO122006 | FN10: MO012007 | FO10: MO022007 | FP10: MO032007 | FQ10: MO042007 | FR10: MO052007 | FS10: MO062007 | FT10: MO072007 | FU10: MO082007 | FV10: MO092007 | FW10: MO102007 | FX10: MO112007 | FY10: MO122007 | FZ10: MO012008 | GA10: MO022008 | GB10: MO032008 | GC10: MO042008 | GD10: MO052008 | GE10: MO062008 | GF10: MO072008 | GG10: MO082008 | GH10: MO092008 | GI10: MO102008 | GJ10: MO112008 | GK10: MO122008 | GL10: MO012009 | GM10: MO022009 | GN10: MO032009 | GO10: MO042009 | GP10: MO052009 | GQ10: MO062009 | GR10: MO072009 | GS10: MO082009 | GT10: MO092009 | GU10: MO102009 | GV10: MO112009 | GW10: MO122009 | GX10: MO012010
A12: Office and banking space | B12: 13400 | C12: 129721 | D12: 27664 | E12: 53449 | F12: 27099 | G12: 44914 | H12: 63477 | I12: 32917 | J12: 50685 | K12: 35854 | L12: 26595 | M12: 18483 | N12: 104039 | O12: 68775 | P12: 58182 | Q12: 65834 | R12: 54477 | S12: 54750 | T12: 48839 | U12: 56919 | V12: 61948 | W12: 102127 | X12: 78323 | Y12: 32546 | Z12: 27851 | AA12: 57535 | AB12: 72286 | AC12: 74286 | AD12: 55252 | AE12: 77080 | AF12: 85242 | AG12: 116992 | AH12: 95305 | AI12: 103092 | AJ12: 134930 | AK12: 102116 | AL12: 50167 | AM12: 131756 | AN12: 183230 | AO12: 136522 | AP12: 63621 | AQ12: 60344 | AR12: 120284 | AS12: 176269 | AT12: 94173 | AU12: 150231 | AV12: 107919 | AW12: 56963 | AX12: 83961 | AY12: 140346 | AZ12: 76784 | BA12: 60620 | BB12: 70135 | BC12: 116953 | BD12: 71589 | BE12: 99467 | BF12: 190286 | BG12: 108331 | BH12: 127293 | BI12: 64840 | BJ12: 57609 | BK12: 73076 | BL12: 94148 | BM12: 66951 | BN12: 46406 | BO12: 40279 | BP12: 83187 | BQ12: 66153 | BR12: 98054 | BS12: 71434 | BT12: 143128 | BU12: 71038 | BV12: 19267 | BW12: 77971 | BX12: 121210 | BY12: 73201 | BZ12: 62098 | CA12: 126631 | CB12: 175455 | CC12: 93422 | CD12: 63642 | CE12: 65882 | CF12: 154303 | CG12: 59420 | CH12: 26362 | CI12: 104087 | CJ12: 95609 | CK12: 55876 | CL12: 186914 | CM12: 71578 | CN12: 98584 | CO12: 87306 | CP12: 89916 | CQ12: 118851 | CR12: 141154 | CS12: 70525 | CT12: 118138 | CU12: 74201 | CV12: 29770 | CW12: 30431 | CX12: 74390 | CY12: 70060 | CZ12: 94989 | DA12: 72947 | DB12: 57707 | DC12: 38449 | DD12: 51609 | DE12: 24057 | DF12: 23409 | DG12: 108370 | DH12: 34957 | DI12: 60163 | DJ12: 22804 | DK12: 24554 | DL12: 38869 | DM12: 18899 | DN12: 24220 | DO12: 37314 | DP12: 34445 | DQ12: 19629 | DR12: 25876 | DS12: 31485 | DT12: 36351 | DU12: 25801 | DV12: 50504 | DW12: 42245 | DX12: 21570 | DY12: 61796 | DZ12: 27047 | EA12: 37556 | EB12: 47224 | EC12: 30177 | ED12: 16720 | EE12: 19811 | EF12: 66630 | EG12: 38346 | EH12: 42945 | EI12: 36377 | EJ12: 46459 | EK12: 63426 | EL12: 36076 | EM12: 37165 | EN12: 37617 | EO12: 72817 | EP12: 51927 | EQ12: 71214 | ER12: 57715 | ES12: 44279 | ET12: 32506 | EU12: 58297 | EV12: 82492 | EW12: 83189 | EX12: 27837 | EY12: 35127 | EZ12: 36069 | FA12: 28978 | FB12: 59496 | FC12: 83665 | FD12: 85155 | FE12: 70920 | FF12: 70355 | FG12: 39706 | FH12: 113045 | FI12: 113259 | FJ12: 101624 | FK12: 93010 | FL12: 74606 | FM12: 68459 | FN12: 32661 | FO12: 82477 | FP12: 102156 | FQ12: 84035 | FR12: 75908 | FS12: 95599 | FT12: 64806 | FU12: 102165 | FV12: 53931 | FW12: 93890 | FX12: 30198 | FY12: 93223 | FZ12: 32989 | GA12: 103342 | GB12: 125409 | GC12: 126941 | GD12: 127371 | GE12: 65957 | GF12: 49610 | GG12: 52241 | GH12: 103522 | GI12: 98773 | GJ12: 93937 | GK12: 38121 | GL12: 50305 | GM12: 74168 | GN12: 58426 | GO12: 109021 | GP12: 103532 | GQ12: 40799 | GR12: 58961 | GS12: 31543 | GT12: 61059 | GU12: 36329 | GV12: 39688 | GW12: 25334 | GX12: 10563
A13: Shopping space | B13: 16592 | C13: 50761 | D13: 38501 | E13: 47092 | F13: 20055 | G13: 42800 | H13: 26261 | I13: 86677 | J13: 32815 | K13: 32169 | L13: 38942 | M13: 40495 | N13: 53476 | O13: 59343 | P13: 39684 | Q13: 32210 | R13: 69160 | S13: 37272 | T13: 49627 | U13: 77290 | V13: 41129 | W13: 19900 | X13: 76707 | Y13: 49005 | Z13: 37691 | AA13: 45037 | AB13: 39806 | AC13: 71519 | AD13: 94895 | AE13: 62343 | AF13: 66465 | AG13: 41162 | AH13: 40116 | AI13: 73610 | AJ13: 23434 | AK13: 42923 | AL13: 50658 | AM13: 58385 | AN13: 32662 | AO13: 28926 | AP13: 129037 | AQ13: 107691 | AR13: 72336 | AS13: 155080 | AT13: 48733 | AU13: 60249 | AV13: 131575 | AW13: 37979 | AX13: 82479 | AY13: 160962 | AZ13: 121031 | BA13: 88849 | BB13: 65513 | BC13: 62090 | BD13: 73872 | BE13: 58439 | BF13: 33035 | BG13: 60191 | BH13: 59381 | BI13: 21035 | BJ13: 131600 | BK13: 51858 | BL13: 62469 | BM13: 85160 | BN13: 98388 | BO13: 119184 | BP13: 97477 | BQ13: 80024 | BR13: 52395 | BS13: 121100 | BT13: 84605 | BU13: 61892 | BV13: 57083 | BW13: 35036 | BX13: 316266 | BY13: 76778 | BZ13: 20456 | CA13: 69962 | CB13: 28828 | CC13: 42304 | CD13: 38099 | CE13: 41503 | CF13: 78313 | CG13: 24293 | CH13: 28174 | CI13: 73060 | CJ13: 28765 | CK13: 25916 | CL13: 53631 | CM13: 63954 | CN13: 56873 | CO13: 45405 | CP13: 64428 | CQ13: 38832 | CR13: 39772 | CS13: 80485 | CT13: 100460 | CU13: 21392 | CV13: 38436 | CW13: 21413 | CX13: 33575 | CY13: 37673 | CZ13: 42069 | DA13: 26684 | DB13: 15109 | DC13: 17331 | DD13: 62179 | DE13: 34652 | DF13: 31830 | DG13: 18035 | DH13: 39300 | DI13: 28761 | DJ13: 37992 | DK13: 30311 | DL13: 26962 | DM13: 112311 | DN13: 44163 | DO13: 49902 | DP13: 49473 | DQ13: 30110 | DR13: 82717 | DS13: 23943 | DT13: 21499 | DU13: 33181 | DV13: 80847 | DW13: 38790 | DX13: 93772 | DY13: 46924 | DZ13: 110939 | EA13: 65430 | EB13: 34483 | EC13: 43221 | ED13: 69610 | EE13: 65228 | EF13: 121379 | EG13: 30229 | EH13: 26323 | EI13: 57895 | EJ13: 65799 | EK13: 105848 | EL13: 87090 | EM13: 102629 | EN13: 73492 | EO13: 59698 | EP13: 97789 | EQ13: 55196 | ER13: 78303 | ES13: 74440 | ET13: 97441 | EU13: 104560 | EV13: 101564 | EW13: 169437 | EX13: 87076 | EY13: 114278 | EZ13: 190800 | FA13: 83448 | FB13: 80967 | FC13: 42160 | FD13: 81632 | FE13: 192986 | FF13: 67136 | FG13: 59321 | FH13: 137880 | FI13: 58966 | FJ13: 37733 | FK13: 212808 | FL13: 137861 | FM13: 76416 | FN13: 68219 | FO13: 121582 | FP13: 87880 | FQ13: 88187 | FR13: 177481 | FS13: 80021 | FT13: 118985 | FU13: 147885 | FV13: 104024 | FW13: 92030 | FX13: 54270 | FY13: 51111 | FZ13: 266184 | GA13: 75754 | GB13: 119960 | GC13: 229752 | GD13: 46617 | GE13: 56470 | GF13: 134344 | GG13: 78166 | GH13: 67531 | GI13: 104667 | GJ13: 98310 | GK13: 85874 | GL13: 38310 | GM13: 94147 | GN13: 145046 | GO13: 21356 | GP13: 332313 | GQ13: 37377 | GR13: 147556 | GS13: 51865 | GT13: 117137 | GU13: 119203 | GV13: 39247 | GW13: 32395 | GX13: 32232
A14: Other non-residential space | B14: 34077 | C14: 29748 | D14: 27378 | E14: 31611 | F14: 50782 | G14: 49260 | H14: 45509 | I14: 72185 | J14: 38733 | K14: 51015 | L14: 51657 | M14: 27434 | N14: 35354 | O14: 35170 | P14: 52691 | Q14: 31584 | R14: 43205 | S14: 48808 | T14: 48767 | U14: 56477 | V14: 99181 | W14: 54036 | X14: 62881 | Y14: 33693 | Z14: 40232 | AA14: 35414 | AB14: 51936 | AC14: 33066 | AD14: 58564 | AE14: 51016 | AF14: 76079 | AG14: 42284 | AH14: 66437 | AI14: 62450 | AJ14: 50961 | AK14: 56015 | AL14: 36689 | AM14: 63287 | AN14: 77829 | AO14: 74461 | AP14: 68933 | AQ14: 43914 | AR14: 45363 | AS14: 82885 | AT14: 53743 | AU14: 112478 | AV14: 52557 | AW14: 66981 | AX14: 40938 | AY14: 56558 | AZ14: 57120 | BA14: 134865 | BB14: 67442 | BC14: 55152 | BD14: 51259 | BE14: 40746 | BF14: 62624 | BG14: 43513 | BH14: 98073 | BI14: 46342 | BJ14: 37761 | BK14: 64583 | BL14: 43328 | BM14: 42326 | BN14: 49146 | BO14: 51709 | BP14: 43318 | BQ14: 43694 | BR14: 54913 | BS14: 47502 | BT14: 34758 | BU14: 52703 | BV14: 38778 | BW14: 49042 | BX14: 107916 | BY14: 20696 | BZ14: 47483 | CA14: 38798 | CB14: 77930 | CC14: 96935 | CD14: 53754 | CE14: 38943 | CF14: 32989 | CG14: 28580 | CH14: 23913 | CI14: 33186 | CJ14: 49267 | CK14: 40671 | CL14: 50288 | CM14: 24531 | CN14: 32932 | CO14: 30841 | CP14: 29126 | CQ14: 55648 | CR14: 42912 | CS14: 129324 | CT14: 17351 | CU14: 34243 | CV14: 48519 | CW14: 38628 | CX14: 36345 | CY14: 20126 | CZ14: 39746 | DA14: 22734 | DB14: 31050 | DC14: 12583 | DD14: 53753 | DE14: 11546 | DF14: 15740 | DG14: 146585 | DH14: 129993 | DI14: 29017 | DJ14: 24554 | DK14: 38638 | DL14: 25374 | DM14: 22946 | DN14: 31488 | DO14: 30564 | DP14: 21152 | DQ14: 11844 | DR14: 18852 | DS14: 17862 | DT14: 23007 | DU14: 28378 | DV14: 44611 | DW14: 30407 | DX14: 34401 | DY14: 29564 | DZ14: 24408 | EA14: 11464 | EB14: 21734 | EC14: 28577 | ED14: 24761 | EE14: 15380 | EF14: 32343 | EG14: 65908 | EH14: 35874 | EI14: 33585 | EJ14: 21164 | EK14: 28137 | EL14: 28873 | EM14: 43773 | EN14: 45768 | EO14: 21295 | EP14: 7394 | EQ14: 52263 | ER14: 22697 | ES14: 26856 | ET14: 41937 | EU14: 38799 | EV14: 24411 | EW14: 33652 | EX14: 26446 | EY14: 25370 | EZ14: 30426 | FA14: 16335 | FB14: 13499 | FC14: 50607 | FD14: 34840 | FE14: 15835 | FF14: 31303 | FG14: 32893 | FH14: 49011 | FI14: 35408 | FJ14: 20931 | FK14: 24771 | FL14: 55649 | FM14: 11111 | FN14: 15563 | FO14: 54346 | FP14: 14721 | FQ14: 14201 | FR14: 44965 | FS14: 48952 | FT14: 31276 | FU14: 28137 | FV14: 37087 | FW14: 27982 | FX14: 22259 | FY14: 21330 | FZ14: 15478 | GA14: 16394 | GB14: 8732 | GC14: 45088 | GD14: 23579 | GE14: 28466 | GF14: 22980 | GG14: 28939 | GH14: 27558 | GI14: 36694 | GJ14: 17274 | GK14: 14366 | GL14: 40449 | GM14: 25181 | GN14: 41685 | GO14: 15079 | GP14: 26794 | GQ14: 41826 | GR14: 27622 | GS14: 73847 | GT14: 12910 | GU14: 27487 | GV14: 33195 | GW14: 24438 | GX14: 15881

Sheet floor space projections 1990-19
A1: Key
A3: Devilliers 2000 unreferenced data
A4: Blue = calculated value
A5: Red = value from external source
A6: Updated from latest stats SA data
A7: Calculated from GDP growth
A9: SOUTH AFRICA
A12: Assumption: 1991- 1992 Floor space grows at | B12: 0.7 | C12: of GDP growth
A14: GDP percentage change to estimate floor area growth where floor area data not available
B16: Source | C16: 1990 | D16: =C16+1 -> 1991 | E16: =D16+1 -> 1992
A17: Annualised percentage change SIC (6) Trade, catering & accommodation | B17: Stats SA 2009 4th quarterly report GDP, Table 4 | D17: 0.0193 | E17: 0.0193
A18: Annualised percentage change SIC (8) Finance, Property & Business Services | D18: 0.0315 | E18: 0.0315
A19: Annualised percentage change SIC (9) Community, Social & Personal Services | D19: -0.0079 | E19: -0.0079
A22: Floor area predictions
A24: Floor area / Million square meters | B24: SIC sector | C24: Percentage share of floor area
A25: Warehouses | B25: 6 | C25: 0.11
A26: Shops | B26: 6 | C26: 0.18
A27: Accommodation | B27: 6 | C27: 0.04
A28: Catering | B28: 6 | C28: 0.04
A29: Offices | B29: 8 | C29: 0.3
A30: Education facilities | B30: 9 | C30: 0.12
A31: Healthcare facilities | B31: 9 | C31: 0.07
A32: Other | B32: 9 | C32: 0.14
A33: Total [Million square meter] | C33: =SUM(C25:C32) -> 1
A37: Floor area / Million square meters | B37: SIC sector | C37: 1990 | D37: =C37+1 -> 1991 | E37: =D37+1 -> 1992 | F37: 1992 excluding warehouse
A38: Warehouses | B38: 6 | C38: =C25*$C$46 -> 7.15 | D38: =C38+($B$12*D$17*C38) -> 7.2465965 | E38: 7.344498019
A39: Shops | B39: 6 | C39: 11.7 | D39: 11.858067 | E39: 12.01826949
A40: Accommodation | B40: 6 | C40: 2.6 | D40: 2.635126 | E40: 2.670726552
A41: Catering | B41: 6 | C41: 2.6 | D41: 2.635126 | E41: 2.670726552
A42: Offices | B42: 8 | C42: 19.5 | D42: =C42+($B$12*D$18*C42) -> 19.929975 | E42: =D42+($B$12*E$18*D42) -> 20.36943095
A43: Education facilities | B43: 9 | C43: 7.8 | D43: =C43+($B$12*D$19*C43) -> 7.756866 | E43: 7.713970531
A44: Healthcare facilities | B44: 9 | C44: 4.55 | D44: 4.5248385 | E44: 4.499816143
A45: Other | B45: 9 | C45: 9.1 | D45: 9.049677 | E45: 8.999632286
A46: Total [Million square meter] | C46: 65 | D46: =SUM(D38:D45) -> 65.636272 | E46: =SUM(E38:E45) -> 66.28707052 | F46: =E46-E38 -> 58.9425725

Sheet floor space 1993-2007
A1: Key
A3: Devilliers 2000 unreferenced data
A4: Blue = calculated value
A5: Red = value from external source
A6: Updated from latest stats SA data
A7: Calculated from GDP growth
A9: Floor space 1993 – 2006
B12: South Africa
A13: 1992 | B13: ='floor space projections 1990-19'!F46 -> 58.9425725
A20: Year | B20: Floor area growth million m2 SOUTH AFRICA | C20: Total Floor area SA
A21: 1993 | B21: ='Stats SA floor 1993-2006'!B8/1000000 -> 1.506807 | C21: =B13+B21 -> 60.4493795
A22: 1994 | B22: ='Stats SA floor 1993-2006'!C8/1000000 -> 1.993409 | C22: =C21+B22 -> 62.4427885
A23: 1995 | B23: ='Stats SA floor 1993-2006'!D8/1000000 -> 2.265422 | C23: 64.7082105
A24: 1996 | B24: ='Stats SA floor 1993-2006'!E8/1000000 -> 3.02391 | C24: 67.7321205
A25: 1997 | B25: ='Stats SA floor 1993-2006'!F8/1000000 -> 2.852114 | C25: 70.5842345
A26: 1998 | B26: ='Stats SA floor 1993-2006'!G8/1000000 -> 2.523356 | C26: 73.1075905
A27: 1999 | B27: ='Stats SA floor 1993-2006'!H8/1000000 -> 2.553267 | C27: 75.6608575
A28: 2000 | B28: ='Stats SA floor 1993-2006'!I8/1000000 -> 2.288696 | C28: 77.9495535
A29: 2001 | B29: ='Stats SA floor 1993-2006'!J8/1000000 -> 1.554345 | C29: 79.5038985
A30: 2002 | B30: ='Stats SA floor 1993-2006'!K8/1000000 -> 1.474678 | C30: 80.9785765
A31: 2003 | B31: ='Stats SA floor 1993-2006'!L8/1000000 -> 1.426643 | C31: 82.4052195
A32: 2004 | B32: ='Stats SA floor 1993-2006'!M8/1000000 -> 1.77647 | C32: 84.1816895
A33: 2005 | B33: ='Stats SA floor 1993-2006'!N8/1000000 -> 2.210548 | C33: 86.3922375
A34: 2006 | B34: ='Stats SA floor 1993-2006'!O8/1000000 -> 2.535024 | C34: 88.9272615

Sheet 2006 Energy data
A1: Key
A2: Blue - value calculated in cell
A3: Red – value from external source
A4: Black – value linked to another cell or spreadsheet
A5: unreferenced data – from previous LTMS
A7: Energy use in the commercial sector by fuel:
A10: Fuel | B10: 2006/ TJ | D10: Ref
A11: electricity | B11: 134716.5874 | C11: Commerce takes remainder in balance after res and ag subtracted | D11: 1992-2006 Disaggregated Balance v1.xls
A12: LPG | B12: 12 | C12: as previous LTMS
A13: paraffin | B13: 322
A14: coal | B14: 74788 | C14: bitumous coal
A15: HFO | B15: 17766.61 | C15: residual fuel
A16: methane rich gas | B16: 864.23 | C16: gas works gas (coal gas)
A17: Petrol | B17: 237.1 | C17: motor gasoline
A18: Diesel | B18: 1742.02 | C18: gas diesel
A19: Renewables | B19: -
A20: Total | B20: =SUM(B11:B19) -> 230448.5474

Sheet End use share 1994
A1: Key
A2: Blue - value calculated in cell
A3: Red – value from external source
A4: Black – value linked to another cell or spreadsheet
A5: unreferenced data – from previous LTMS
A7: TJ | B7: 1994
A8: Electricity | B8: =J19*'devilliers floor space projecti'!$H$45 -> 56953.28661
A9: LPG | B9: =J20*'devilliers floor space projecti'!$H$45 -> 2160.082678
A10: Paraffin | B10: =J21*'devilliers floor space projecti'!$H$45 -> 164.0162033
A11: Coal | B11: =J22*'devilliers floor space projecti'!$H$45 -> 17473.62166
A12: Residual oil | B12: =J23*'devilliers floor space projecti'!$H$45 -> 3058.419792
A13: Gas | B13: =J24*'devilliers floor space projecti'!$H$45 -> 427.1925296
A16: 1994 Weighted average by fuel and end use ref 4a
A18: MJ/m2 | C18: Lighting | D18: Space heating | E18: Water heating | F18: Cooling & ventilation | G18: Refrigeration | H18: Cooking | I18: Other | J18: Total | L18: Lighting | M18: Space heating | N18: Water heating | O18: Cooling & ventilation | P18: Refrigeration | Q18: Cooking | R18: Other
A19: Electricity | C19: =C51 -> 215.1920123 | D19: 65.43778802 | E19: 26.23655914 | F19: 352.0430108 | G19: 47.58832565 | H19: 4.792626728 | I19: 104.8079877 | J19: 816.0983103 | L19: =C19/$J19 -> 0.2636839331 | M19: =D19/$J19 -> 0.08018370727 | N19: 0.03214877278 | O19: 0.4313732872 | P19: 0.0583120012 | Q19: 0.005872609547 | R19: 0.1284256889
A20: LPG | C20: =C63 -> 0 | D20: 0 | E20: 21.59754224 | F20: 0 | G20: 0 | H20: 9.35483871 | I20: 0 | J20: 30.95238095 | L20: 0 | M20: 0 | N20: 0.6977667494 | O20: 0 | P20: 0 | Q20: 0.3022332506 | R20: 0
A21: Paraffin | C21: =C74 -> 0 | D21: 0 | E21: 2.350230415 | F21: 0 | G21: 0 | H21: 0 | I21: 0 | J21: 2.350230415 | L21: 0 | M21: 0 | N21: 1 | O21: 0 | P21: 0 | Q21: 0 | R21: 0
A22: Coal | C22: =C86 -> 0 | D22: =D86 -> 112.1351767 | E22: 94.16282642 | F22: 0 | G22: 0 | H22: 1.996927803 | I22: 42.0890937 | J22: 250.3840246 | L22: 0 | M22: 0.4478527607 | N22: 0.3760736196 | O22: 0 | P22: 0 | Q22: 0.007975460123 | R22: 0.1680981595
A23: Residual oil | C23: =C97 -> 0 | D23: 18.43317972 | E23: 21.85867896 | F23: 0 | G23: 0 | H23: 0 | I23: 3.533026114 | J23: 43.82488479 | L23: 0 | M23: 0.4206098843 | N23: 0.4987732212 | O23: 0 | P23: 0 | Q23: 0 | R23: 0.0806168945
A24: Town gas | C24: =C108 -> 0 | D24: 1.766513057 | E24: 4.35483871 | F24: 0 | G24: 0 | H24: 0 | I24: 0 | J24: 6.121351767 | L24: 0 | M24: 0.2885821832 | N24: 0.7114178168 | O24: 0 | P24: 0 | Q24: 0 | R24: 0
A25: weighted average by end use | C25: =SUM(C19:C24) -> 215.1920123 | D25: =SUM(D19:D24) -> 197.7726575 | E25: =SUM(E19:E24) -> 170.5606759 | F25: 352.0430108 | G25: 47.58832565 | H25: 16.14439324 | I25: 150.4301075 | J25: 1149.731183 | L25: =C25/$J25 -> 0.1871672401 | M25: 0.1720164334 | N25: 0.1483483082 | O25: 0.3061959317 | P25: 0.04139082802 | Q25: 0.01404188517 | R25: 0.1308393734
A27: 1994 Data by building activity & end use ref 4a
A29: MJ/m2 | B29: Million m2 | C29: Lighting | D29: Space heating | E29: Water heating | F29: Cooling & ventilation | G29: Refrigeration | H29: Cooking | I29: Other | J29: Total | L29: Lighting | M29: Space heating | N29: Water heating | O29: Cooling & ventilation | P29: Refrigeration | Q29: Cooking | R29: Other
A30: Warehouses | B30: 7.2 | C30: =C43+C78+C100+C66+C89+C55 -> 120 | F30: =F43+F78+F100+F66+F89+F55 -> 40 | G30: =G43+G78+G100+G66+G89+G55 -> 50 | I30: =I43+I78+I100+I66+I89+I55 -> 70 | J30: =SUM(C30:I30) -> 280 | L30: =C30/$J30 -> 0.4285714286 | M30: 0 | N30: 0 | O30: 0.1428571429 | P30: 0.1785714286 | Q30: 0 | R30: 0.25
A31: Shops | B31: 11.7 | C31: 200 | D31: 50 | E31: 25 | F31: =F44+F79+F101+F67+F90+F56 -> 400 | G31: =G44+G79+G101+G67+G90+G56 -> 150 | I31: 150 | J31: 975 | L31: 0.2051282051 | M31: 0.05128205128 | N31: 0.02564102564 | O31: 0.4102564103 | P31: 0.1538461538 | Q31: 0 | R31: 0.1538461538
A32: Accommodation | B32: 2.6 | C32: 150 | D32: 250 | E32: 340 | F32: 300 | G32: 0 | I32: 50 | J32: 1090 | L32: 0.1376146789 | M32: 0.2293577982 | N32: 0.3119266055 | O32: 0.2752293578 | P32: 0 | Q32: 0 | R32: 0.04587155963
A33: Catering | B33: 2.6 | C33: 180 | D33: 100 | E33: 190 | F33: 400 | G33: =G46+G81+G103+G69+G92+G58 -> 150 | H33: =H46+H81+H103+H69+H92+H58 -> 250 | I33: 100 | J33: 1370 | L33: 0.1313868613 | M33: 0.07299270073 | N33: 0.1386861314 | O33: 0.2919708029 | P33: 0.1094890511 | Q33: 0.1824817518 | R33: 0.07299270073
A34: Offices | B34: 19.5 | C34: 270 | D34: 170 | E34: 110 | F34: 600 | G34: 0 | I34: 100 | J34: 1250 | L34: 0.216 | M34: 0.136 | N34: 0.088 | O34: 0.48 | P34: 0 | Q34: 0 | R34: 0.08
A35: Education facilities | B35: 7.8 | C35: 190 | D35: 380 | E35: 160 | F35: 100 | G35: 0 | H35: =H48+H83+H105+H71+H94+H60 -> 25 | I35: 80 | J35: 935 | L35: 0.2032085561 | M35: 0.4064171123 | N35: 0.1711229947 | O35: 0.1069518717 | P35: 0 | Q35: 0.02673796791 | R35: 0.08556149733
A36: Healthcare facilities | B36: 4.6 | C36: 300 | D36: 555 | E36: 680 | F36: 200 | G36: =G49+G84+G106+G72+G95+G61 -> 30 | H36: =H49+H84+H106+H72+H95+H61 -> 25 | I36: 400 | J36: 2190 | L36: 0.1369863014 | M36: 0.2534246575 | N36: 0.3105022831 | O36: 0.09132420091 | P36: 0.01369863014 | Q36: 0.01141552511 | R36: 0.1826484018
A37: Other | B37: 9.1 | C37: 200 | D37: 280 | E37: 320 | F37: 300 | G37: =G50+G85+G107+G73+G96+G62 -> 50 | H37: =H50+H85+H107+H73+H96+H62 -> 10 | I37: 300 | J37: 1460 | L37: 0.1369863014 | M37: 0.1917808219 | N37: 0.2191780822 | O37: 0.2054794521 | P37: 0.03424657534 | Q37: 0.006849315068 | R37: 0.2054794521
A38: Weighted Average | B38: =SUM(B30:B37) -> 65.1 | C38: =($B30*C30+$B31*C31+$B32*C32+$B33*C33+$B34*C34+$B35*C35+$B36*C36+$B37*C37)/$B38 -> 215.1920123 | D38: 197.7726575 | E38: 170.5606759 | F38: 352.0430108 | G38: 47.58832565 | H38: 16.14439324 | I38: 150.4301075 | J38: 1149.731183 | L38: 0.1871672401 | M38: 0.1720164334 | N38: 0.1483483082 | O38: 0.3061959317 | P38: 0.04139082802 | Q38: 0.01404188517 | R38: 0.1308393734
A40: 1994 Data by building activity & fuel ref 4a
A42: Electricity MJ/m2 | B42: Million m2 | C42: Lighting | D42: Space heating | E42: Water heating | F42: Cooling & ventilation | G42: Refrigeration | H42: Cooking | I42: Other | J42: Total | L42: Lighting | M42: Space heating | N42: Water heating | O42: Cooling & ventilation | P42: Refrigeration | Q42: Cooking | R42: Other
A43: Warehouses | B43: 7.2 | C43: 120 | F43: 40 | G43: 50 | I43: 70 | J43: 280 | L43: =C43/$J43 -> 0.4285714286 | M43: 0 | N43: 0 | O43: 0.1428571429 | P43: 0.1785714286 | Q43: 0 | R43: 0.25
A44: Shops | B44: 11.7 | C44: 200 | D44: 50 | E44: 20 | F44: 400 | G44: 150 | I44: 150 | J44: 970 | L44: 0.206185567 | M44: 0.05154639175 | N44: 0.0206185567 | O44: 0.412371134 | P44: 0.1546391753 | Q44: 0 | R44: 0.1546391753
A45: Accommodation | B45: 2.6 | C45: 150 | D45: 200 | E45: 150 | F45: 300 | I45: 50 | J45: 850 | L45: 0.1764705882 | M45: 0.2352941176 | N45: 0.1764705882 | O45: 0.3529411765 | P45: 0 | Q45: 0 | R45: 0.05882352941
A46: Catering | B46: 2.6 | C46: 180 | D46: 50 | E46: 30 | F46: 400 | G46: 150 | H46: 120 | I46: 100 | J46: 1030 | L46: 0.1747572816 | M46: 0.04854368932 | N46: 0.02912621359 | O46: 0.3883495146 | P46: 0.145631068 | Q46: 0.1165048544 | R46: 0.09708737864
A47: Offices | B47: 19.5 | C47: 270 | D47: 100 | E47: 10 | F47: 600 | I47: 100 | J47: 1080 | L47: 0.25 | M47: 0.09259259259 | N47: 0.009259259259 | O47: 0.5555555556 | P47: 0 | Q47: 0 | R47: 0.09259259259
A48: Education facilities | B48: 7.8 | C48: 190 | D48: 50 | E48: 10 | F48: 100 | I48: 80 | J48: 430 | L48: 0.4418604651 | M48: 0.1162790698 | N48: 0.02325581395 | O48: 0.2325581395 | P48: 0 | Q48: 0 | R48: 0.1860465116
A49: Healthcare facilities | B49: 4.6 | C49: 300 | D49: 50 | E49: 100 | F49: 200 | G49: 30 | I49: 150 | J49: 830 | L49: 0.3614457831 | M49: 0.06024096386 | N49: 0.1204819277 | O49: 0.2409638554 | P49: 0.03614457831 | Q49: 0 | R49: 0.1807228916
A50: Other | B50: 9.1 | C50: 200 | D50: 50 | E50: 30 | F50: 300 | G50: 50 | I50: 100 | J50: 730 | L50: 0.2739726027 | M50: 0.06849315068 | N50: 0.04109589041 | O50: 0.4109589041 | P50: 0.06849315068 | Q50: 0 | R50: 0.1369863014
A51: Weighted Average | B51: =SUM(B43:B50) -> 65.1 | C51: =($B43*C43+$B44*C44+$B45*C45+$B46*C46+$B47*C47+$B48*C48+$B49*C49+$B50*C50)/$B51 -> 215.1920123 | D51: 65.43778802 | E51: 26.23655914 | F51: 352.0430108 | G51: 47.58832565 | H51: 4.792626728 | I51: 104.8079877 | J51: 816.0983103 | L51: 0.2636839331 | M51: 0.08018370727 | N51: 0.03214877278 | O51: 0.4313732872 | P51: 0.0583120012 | Q51: 0.005872609547 | R51: 0.1284256889
A54: LPG | C54: Lighting | D54: Space heating | E54: Water heating | F54: Cooling & ventilation | G54: Refrigeration | H54: Cooking | I54: Other | J54: Total | L54: Lighting | M54: Space heating | N54: Water heating | O54: Cooling & ventilation | P54: Refrigeration | Q54: Cooking | R54: Other
A55: Warehouses | B55: 7.2 | C55: 0 | D55: 0 | F55: 0 | G55: 0 | H55: 0 | I55: 0 | J55: 0 | L55: =C55/$J55 -> 
A56: Shops | B56: 11.7 | C56: 0 | D56: 0 | F56: 0 | G56: 0 | H56: 0 | I56: 0 | J56: 0
A57: Accommodation | B57: 2.6 | C57: 0 | D57: 0 | E57: 30 | F57: 0 | G57: 0 | H57: 0 | I57: 0 | J57: 30 | L57: 0 | M57: 0 | N57: 1 | O57: 0 | P57: 0 | Q57: 0 | R57: 0
A58: Catering | B58: 2.6 | C58: 0 | D58: 0 | E58: 10 | F58: 0 | G58: 0 | H58: 80 | I58: 0 | J58: 90 | L58: 0 | M58: 0 | N58: 0.1111111111 | O58: 0 | P58: 0 | Q58: 0.8888888889 | R58: 0
A59: Offices | B59: 19.5 | C59: 0 | D59: 0 | E59: 40 | F59: 0 | G59: 0 | I59: 0 | J59: 40 | L59: 0 | M59: 0 | N59: 1 | O59: 0 | P59: 0 | Q59: 0 | R59: 0
A60: Education facilities | B60: 7.8 | C60: 0 | D60: 0 | E60: 20 | F60: 0 | G60: 0 | H60: 25 | I60: 0 | J60: 45 | L60: 0 | M60: 0 | N60: 0.4444444444 | O60: 0 | P60: 0 | Q60: 0.5555555556 | R60: 0
A61: Healthcare facilities | B61: 4.6 | C61: 0 | D61: 0 | E61: 40 | F61: 0 | G61: 0 | H61: 25 | I61: 0 | J61: 65 | L61: 0 | M61: 0 | N61: 0.6153846154 | O61: 0 | P61: 0 | Q61: 0.3846153846 | R61: 0
A62: Other | B62: 9.1 | C62: 0 | D62: 0 | E62: 20 | F62: 0 | G62: 0 | H62: 10 | I62: 0 | J62: 30 | L62: 0 | M62: 0 | N62: 0.6666666667 | O62: 0 | P62: 0 | Q62: 0.3333333333 | R62: 0
A63: Weighted Average | B63: =SUM(B55:B62) -> 65.1 | C63: =($B55*C55+$B56*C56+$B57*C57+$B58*C58+$B59*C59+$B60*C60+$B61*C61+$B62*C62)/$B63 -> 0 | D63: 0 | E63: 21.59754224 | F63: 0 | G63: 0 | H63: 9.35483871 | I63: 0 | J63: 30.95238095 | L63: 0 | M63: 0 | N63: 0.6977667494 | O63: 0 | P63: 0 | Q63: 0.3022332506 | R63: 0
A65: Paraffin | C65: Lighting | D65: Space heating | E65: Water heating | F65: Cooling & ventilation | G65: Refrigeration | H65: Cooking | I65: Other | J65: Total | L65: Lighting | M65: Space heating | N65: Water heating | O65: Cooling & ventilation | P65: Refrigeration | Q65: Cooking | R65: Other
A66: Warehouses | B66: 7.2 | C66: 0 | D66: 0 | F66: 0 | G66: 0 | H66: 0 | I66: 0 | L66: =C66/$J66 -> 
A67: Shops | B67: 11.7 | C67: 0 | D67: 0 | E67: 5 | F67: 0 | G67: 0 | H67: 0 | I67: 0 | J67: 5 | L67: 0 | M67: 0 | N67: 1 | O67: 0 | P67: 0 | Q67: 0 | R67: 0
A68: Accommodation | B68: 2.6 | C68: 0 | D68: 0 | E68: 10 | F68: 0 | G68: 0 | H68: 0 | I68: 0 | J68: 10 | L68: 0 | M68: 0 | N68: 1 | O68: 0 | P68: 0 | Q68: 0 | R68: 0
A69: Catering | B69: 2.6 | C69: 0 | D69: 0 | F69: 0 | G69: 0 | H69: 0 | I69: 0
A70: Offices | B70: 19.5 | C70: 0 | D70: 0 | F70: 0 | G70: 0 | H70: 0 | I70: 0
A71: Education facilities | B71: 7.8 | C71: 0 | D71: 0 | F71: 0 | G71: 0 | H71: 0 | I71: 0
A72: Healthcare facilities | B72: 4.6 | C72: 0 | D72: 0 | E72: 5 | F72: 0 | G72: 0 | H72: 0 | I72: 0 | J72: 5 | L72: 0 | M72: 0 | N72: 1 | O72: 0 | P72: 0 | Q72: 0 | R72: 0
A73: Other | B73: 9.1 | C73: 0 | D73: 0 | E73: 5 | F73: 0 | G73: 0 | H73: 0 | I73: 0 | J73: 5 | L73: 0 | M73: 0 | N73: 1 | O73: 0 | P73: 0 | Q73: 0 | R73: 0
A74: Weighted Average | B74: =SUM(B66:B73) -> 65.1 | C74: =($B66*C66+$B67*C67+$B68*C68+$B69*C69+$B70*C70+$B71*C71+$B72*C72+$B73*C73)/$B74 -> 0 | D74: 0 | E74: 2.350230415 | F74: 0 | G74: 0 | H74: 0 | I74: 0 | J74: 2.350230415 | L74: 0 | M74: 0 | N74: 1 | O74: 0 | P74: 0 | Q74: 0 | R74: 0
A77: Coal | C77: Lighting | D77: Space heating | E77: Water heating | F77: Cooling & ventilation | G77: Refrigeration | H77: Cooking | I77: Other | J77: Total | L77: Lighting | M77: Space heating | N77: Water heating | O77: Cooling & ventilation | P77: Refrigeration | Q77: Cooking | R77: Other
A78: Warehouses | B78: 7.2 | C78: 0 | F78: 0 | G78: 0 | L78: =C78/$J78 -> 
A79: Shops | B79: 11.7 | C79: 0 | F79: 0 | G79: 0
A80: Accommodation | B80: 2.6 | C80: 0 | E80: 100 | F80: 0 | G80: 0 | J80: 100 | L80: 0 | M80: 0 | N80: 1 | O80: 0 | P80: 0 | Q80: 0 | R80: 0
A81: Catering | B81: 2.6 | C81: 0 | D81: 50 | E81: 100 | F81: 0 | G81: 0 | H81: 50 | J81: 200 | L81: 0 | M81: 0.25 | N81: 0.5 | O81: 0 | P81: 0 | Q81: 0.25 | R81: 0
A82: Offices | B82: 19.5 | C82: 0 | D82: 60 | E82: 60 | F82: 0 | G82: 0 | J82: 120 | L82: 0 | M82: 0.5 | N82: 0.5 | O82: 0 | P82: 0 | Q82: 0 | R82: 0
A83: Education facilities | B83: 7.8 | C83: 0 | D83: 300 | E83: 100 | F83: 0 | G83: 0 | J83: 400 | L83: 0 | M83: 0.75 | N83: 0.25 | O83: 0 | P83: 0 | Q83: 0 | R83: 0
A84: Healthcare facilities | B84: 4.6 | C84: 0 | D84: 400 | E84: 400 | F84: 0 | G84: 0 | I84: 200 | J84: 1000 | L84: 0 | M84: 0.4 | N84: 0.4 | O84: 0 | P84: 0 | Q84: 0 | R84: 0.2
A85: Other | B85: 9.1 | C85: 0 | D85: 200 | E85: 200 | F85: 0 | G85: 0 | I85: 200 | J85: 600 | L85: 0 | M85: 0.3333333333 | N85: 0.3333333333 | O85: 0 | P85: 0 | Q85: 0 | R85: 0.3333333333
A86: Weighted Average | B86: =SUM(B78:B85) -> 65.1 | C86: =($B78*C78+$B79*C79+$B80*C80+$B81*C81+$B82*C82+$B83*C83+$B84*C84+$B85*C85)/$B86 -> 0 | D86: 112.1351767 | E86: 94.16282642 | F86: 0 | G86: 0 | H86: 1.996927803 | I86: 42.0890937 | J86: 250.3840246 | L86: 0 | M86: 0.4478527607 | N86: 0.3760736196 | O86: 0 | P86: 0 | Q86: 0.007975460123 | R86: 0.1680981595
A88: Residual Oil | C88: Lighting | D88: Space heating | E88: Water heating | F88: Cooling & ventilation | G88: Refrigeration | H88: Cooking | I88: Other | J88: Total | L88: Lighting | M88: Space heating | N88: Water heating | O88: Cooling & ventilation | P88: Refrigeration | Q88: Cooking | R88: Other
A89: Warehouses | B89: 7.2 | C89: 0 | F89: 0 | G89: 0 | H89: 0 | L89: =C89/$J89 -> 
A90: Shops | B90: 11.7 | C90: 0 | F90: 0 | G90: 0 | H90: 0
A91: Accommodation | B91: 2.6 | C91: 0 | D91: 50 | E91: 50 | F91: 0 | G91: 0 | H91: 0 | J91: 100 | L91: 0 | M91: 0.5 | N91: 0.5 | O91: 0 | P91: 0 | Q91: 0 | R91: 0
A92: Catering | B92: 2.6 | C92: 0 | E92: 50 | F92: 0 | G92: 0 | H92: 0 | J92: 50 | L92: 0 | M92: 0 | N92: 1 | O92: 0 | P92: 0 | Q92: 0 | R92: 0
A93: Offices | B93: 19.5 | C93: 0 | D93: 10 | F93: 0 | G93: 0 | H93: 0 | J93: 10 | L93: 0 | M93: 1 | N93: 0 | O93: 0 | P93: 0 | Q93: 0 | R93: 0
A94: Education facilities | B94: 7.8 | C94: 0 | D94: 30 | E94: 20 | F94: 0 | G94: 0 | H94: 0 | J94: 50 | L94: 0 | M94: 0.6 | N94: 0.4 | O94: 0 | P94: 0 | Q94: 0 | R94: 0
A95: Healthcare facilities | B95: 4.6 | C95: 0 | D95: 80 | E95: 120 | F95: 0 | G95: 0 | H95: 0 | I95: 50 | J95: 250 | L95: 0 | M95: 0.32 | N95: 0.48 | O95: 0 | P95: 0 | Q95: 0 | R95: 0.2
A96: Other | B96: 9.1 | C96: 0 | D96: 30 | E96: 50 | F96: 0 | G96: 0 | H96: 0 | J96: 80 | L96: 0 | M96: 0.375 | N96: 0.625 | O96: 0 | P96: 0 | Q96: 0 | R96: 0
A97: Weighted Average | B97: =SUM(B89:B96) -> 65.1 | C97: =($B89*C89+$B90*C90+$B91*C91+$B92*C92+$B93*C93+$B94*C94+$B95*C95+$B96*C96)/$B97 -> 0 | D97: 18.43317972 | E97: 21.85867896 | F97: 0 | G97: 0 | H97: 0 | I97: 3.533026114 | J97: 43.82488479 | L97: 0 | M97: 0.4206098843 | N97: 0.4987732212 | O97: 0 | P97: 0 | Q97: 0 | R97: 0.0806168945
A99: Town Gas | C99: Lighting | D99: Space heating | E99: Water heating | F99: Cooling & ventilation | G99: Refrigeration | H99: Cooking | I99: Other | J99: Total | L99: Lighting | M99: Space heating | N99: Water heating | O99: Cooling & ventilation | P99: Refrigeration | Q99: Cooking | R99: Other
A100: Warehouses | B100: 7.2 | C100: 0 | D100: 0 | E100: 0 | F100: 0 | G100: 0 | H100: 0 | I100: 0 | J100: 0 | L100: =C100/$J100 -> 
A101: Shops | B101: 11.7 | C101: 0 | D101: 0 | E101: 0 | F101: 0 | G101: 0 | H101: 0 | I101: 0 | J101: 0
A102: Accommodation | B102: 2.6 | C102: 0 | D102: 0 | E102: 0 | F102: 0 | G102: 0 | H102: 0 | I102: 0 | J102: 0
A103: Catering | B103: 2.6 | C103: 0 | D103: 0 | E103: 0 | F103: 0 | G103: 0 | H103: 0 | I103: 0 | J103: 0
A104: Offices | B104: 19.5 | C104: 0 | D104: 0 | E104: 0 | F104: 0 | G104: 0 | H104: 0 | I104: 0 | J104: 0
A105: Education facilities | B105: 7.8 | C105: 0 | D105: 0 | E105: 10 | F105: 0 | G105: 0 | H105: 0 | I105: 0 | J105: 10 | L105: 0 | M105: 0 | N105: 1 | O105: 0 | P105: 0 | Q105: 0 | R105: 0
A106: Healthcare facilities | B106: 4.6 | C106: 0 | D106: 25 | E106: 15 | F106: 0 | G106: 0 | H106: 0 | I106: 0 | J106: 40 | L106: 0 | M106: 0.625 | N106: 0.375 | O106: 0 | P106: 0 | Q106: 0 | R106: 0
A107: Other | B107: 9.1 | C107: 0 | D107: 0 | E107: 15 | F107: 0 | G107: 0 | H107: 0 | I107: 0 | J107: 15 | L107: 0 | M107: 0 | N107: 1 | O107: 0 | P107: 0 | Q107: 0 | R107: 0
A108: Weighted Average | B108: =SUM(B100:B107) -> 65.1 | C108: =($B100*C100+$B101*C101+$B102*C102+$B103*C103+$B104*C104+$B105*C105+$B106*C106+$B107*C107)/$B108 -> 0 | D108: 1.766513057 | E108: 4.35483871 | F108: 0 | G108: 0 | H108: 0 | I108: 0 | J108: 6.121351767 | L108: 0 | M108: 0.2885821832 | N108: 0.7114178168 | O108: 0 | P108: 0 | Q108: 0 | R108: 0

Sheet End use share 2001
A1: Key
A2: Blue - value calculated in cell
A3: Red – value from external source
A4: Black – value linked to another cell or spreadsheet
A5: unreferenced data – from previous LTMS
A7: 2001 Energy Data REF 10a
A9: TJ | B9: 2001
A10: Electricity | B10: 63509.01081
A11: LPG | B11: 12
A12: Paraffin | B12: 150
A13: Coal | B13: 20000
A14: Residual oil
A15: Gas | B15: 1160
A17: 2001 Floor area Data ref 11
A19: Total commercial floor area | B19: ='devilliers floor space projecti'!O45 -> 86.84839652 | C19: million sqm
A21: 2001 weighted average by fuel and end use
A23: MJ/m2 | B23: Lighting | C23: Space heating | D23: Water heating | E23: Cooling & ventilation | F23: Refrigeration | G23: Cooking | H23: Other | I23: Total
A24: Electricity | B24: =$B10*B35/$B$19 -> 192.8222792 | C24: 58.63537078 | D24: 23.509205 | E24: 315.4472835 | F24: 42.64140345 | G24: 4.294421522 | H24: 93.91294246 | I24: =SUM(B24:H24) -> 731.2629059
A25: LPG | B25: 0 | C25: 0 | D25: 0.09641169358 | E25: 0 | F25: 0 | G25: 0.04176011478 | H25: 0 | I25: 0.1381718084
A26: Paraffin | B26: 0 | C26: 0 | D26: 1.727147605 | E26: 0 | F26: 0 | G26: 0 | H26: 0 | I26: 1.727147605
A27: Coal | B27: 0 | C27: 103.1343764 | D27: 86.60462017 | E27: 0 | F27: 0 | G27: 1.836639579 | H27: 38.71071114 | I27: 230.2863473
A28: Residual oil | B28: 0 | C28: 0 | D28: 0 | E28: 0 | F28: 0 | G28: 0 | H28: 0 | I28: 0
A29: Town gas | B29: 0 | C29: 3.854479137 | D29: 9.502129004 | E29: 0 | F29: 0 | G29: 0 | H29: 0 | I29: 13.35660814
A30: Total | B30: =SUM(B24:B29) -> 192.8222792 | C30: 165.6242263 | D30: 121.4395135 | E30: 315.4472835 | F30: 42.64140345 | G30: 6.172821216 | H30: 132.6236536 | I30: 976.7711807
A32: 1994 data used as basis for above calculation ref 4a
B34: Lighting | C34: Space heating | D34: Water heating | E34: Cooling & ventilation | F34: Refrigeration | G34: Cooking | H34: Other
A35: Electricity | B35: ='End use share 1994'!L19 -> 0.2636839331 | C35: ='End use share 1994'!M19 -> 0.08018370727 | D35: ='End use share 1994'!N19 -> 0.03214877278 | E35: ='End use share 1994'!O19 -> 0.4313732872 | F35: ='End use share 1994'!P19 -> 0.0583120012 | G35: ='End use share 1994'!Q19 -> 0.005872609547 | H35: ='End use share 1994'!R19 -> 0.1284256889
A36: LPG | B36: ='End use share 1994'!L20 -> 0 | C36: ='End use share 1994'!M20 -> 0 | D36: ='End use share 1994'!N20 -> 0.6977667494 | E36: ='End use share 1994'!O20 -> 0 | F36: ='End use share 1994'!P20 -> 0 | G36: ='End use share 1994'!Q20 -> 0.3022332506 | H36: ='End use share 1994'!R20 -> 0
A37: Paraffin | B37: ='End use share 1994'!L21 -> 0 | C37: ='End use share 1994'!M21 -> 0 | D37: ='End use share 1994'!N21 -> 1 | E37: ='End use share 1994'!O21 -> 0 | F37: ='End use share 1994'!P21 -> 0 | G37: ='End use share 1994'!Q21 -> 0 | H37: ='End use share 1994'!R21 -> 0
A38: Coal | B38: ='End use share 1994'!L22 -> 0 | C38: ='End use share 1994'!M22 -> 0.4478527607 | D38: ='End use share 1994'!N22 -> 0.3760736196 | E38: ='End use share 1994'!O22 -> 0 | F38: ='End use share 1994'!P22 -> 0 | G38: ='End use share 1994'!Q22 -> 0.007975460123 | H38: ='End use share 1994'!R22 -> 0.1680981595
A39: Residual oil | B39: ='End use share 1994'!L23 -> 0 | C39: ='End use share 1994'!M23 -> 0.4206098843 | D39: ='End use share 1994'!N23 -> 0.4987732212 | E39: ='End use share 1994'!O23 -> 0 | F39: ='End use share 1994'!P23 -> 0 | G39: ='End use share 1994'!Q23 -> 0 | H39: ='End use share 1994'!R23 -> 0.0806168945
A40: Town gas | B40: ='End use share 1994'!L24 -> 0 | C40: ='End use share 1994'!M24 -> 0.2885821832 | D40: ='End use share 1994'!N24 -> 0.7114178168 | E40: ='End use share 1994'!O24 -> 0 | F40: ='End use share 1994'!P24 -> 0 | G40: ='End use share 1994'!Q24 -> 0 | H40: ='End use share 1994'!R24 -> 0

Sheet End use share 2006c
A1: 2006 Energy Data Cape Town
B2: TJ
A3: Electricity | B3: ='2006 Energy data '!B11 -> 134716.5874 | D3: =B3/$B$10 -> 0.5890369153
A4: LPG | B4: 12 | D4: =B4/$B$10 -> 5.246898781e-05
A5: Paraffin | B5: ='2006 Energy data '!B13 -> 322 | D5: 0.00140791784
A6: Coal | B6: ='2006 Energy data '!B14 -> 74788 | D6: 0.3270042217
A7: HFO | B7: ='2006 Energy data '!B15 -> 17766.61 | D7: 0.07768300363
A8: Gas | B8: ='2006 Energy data '!B16 -> 864.23 | D8: 0.003778772778
A9: Wood | B9: ='2006 Energy data '!B17 -> 237.1 | D9: 0.001036699751
A10: Total | B10: =SUM(B3:B9) -> 228706.5274 | D10: 1
A12: Diesel | B12: 0
A14: 2006 Floor area Data Cape Town
A16: Total commercial floor area | B16: ='floor space 1993-2007'!C34 -> 88.9272615 | C16: million sqm
A18: 2006 consumption of each fuel by end use
O19: All fuels
A20: MJ/m2 | B20: Lighting | C20: Space heating | D20: Water heating | E20: Cooling & ventilation | F20: Refrigeration | G20: Cooking | H20: Public lighting | I20: pubic water | J20: Other | K20: Total MJ/m2 | L20: kWh/m2
A21: Electricity | B21: =$B3*B34/$B$16 -> 569.2840171 | C21: =$B3*C34/$B$16 -> 73.41339216 | D21: =$B3*D34/$B$16 -> 49.69664231 | E21: 454.3350104 | F21: 107.421395 | G21: =$B3*G34/$B$16 -> 5.502326355 | H21: =$B3*H34/$B$16 -> 39.16068454 | I21: 46.23293821 | J21: =$B3*J34/$B$16 -> 169.8612291 | K21: =SUM(B21:J21) -> 1514.907635 | L21: =K21/$B$160 -> 420.8076764
A22: Paraffin | B22: 0 | C22: 0 | D22: 0.1349417467 | E22: 0 | F22: 0 | G22: 0 | H22: 0 | I22: 0 | J22: 0 | K22: 0.1349417467 | L22: =K22/$B$160 -> 0.03748381854
A23: Wood | B23: 0 | C23: 0.004486910621 | D23: 0 | E23: 0 | F23: 0 | G23: 3.61644996 | H23: 0 | I23: 0 | J23: 0 | K23: 3.620936871 | L23: 1.005815798
A24: Coal | B24: 0 | C24: 456.8080897 | D24: 383.5936425 | E24: 0 | F24: 0 | G24: 0.6002140685 | H24: 0 | I24: 0 | J24: 0 | K24: 841.0019463 | L24: 233.6116518
A25: Diesel | B25: 0 | C25: 0 | D25: 0 | E25: 0 | F25: =$B7*F38/$B$16 -> 0 | G25: 0 | H25: 0 | I25: 0 | J25: 199.7881156 | K25: 199.7881156 | L25: 55.49669878
A26: HFO | B26: 0 | C26: 0 | D26: 0 | E26: 0 | F26: 0 | G26: 0 | H26: 0 | I26: 0 | J26: 9.718392149 | K26: 9.718392149 | L26: 2.699553375
A27: LPG | B27: 0 | C27: 0 | D27: 2.396842852 | E27: 0 | F27: 0 | G27: 0.2693811611 | H27: 0 | I27: 0 | J27: 0 | K27: 2.666224013 | L27: 0.7406177813
A28: Total MJ/m2 | B28: =SUM(B21:B27) -> 569.2840171 | C28: 530.2259688 | D28: 435.8220694 | E28: 454.3350104 | F28: 107.421395 | G28: 9.988371545 | H28: =SUM(H21:H27) -> 39.16068454 | I28: 46.23293821 | J28: =SUM(J21:J27) -> 379.3677368 | K28: 2571.838192 | L28: =K28/$B$160 -> 714.3994977
A29: kWh/m2 | B29: =B28/$B$160 -> 158.1344492 | C29: 147.2849913 | D29: 121.0616859 | E29: 126.2041695 | F29: 29.8392764 | G29: 2.774547651 | H29: =H28/$B$160 -> 10.87796793 | I29: 12.84248284 | J29: =J28/$B$160 -> 105.3799269 | K29: =K28/$B$160 -> 714.3994977
A31: 2006 consumption of each fuel by end use percentage share
O32: Electricity
B33: Lighting | C33: Space heating | D33: Water heating | E33: Cooling & ventilation | F33: Refrigeration | G33: Cooking | H33: Public Lights | I33: public water | J33: Other | K33: Source
A34: Electricity | B34: =B69 -> 0.3757879384 | C34: =C69 -> 0.04846063909 | D34: 0.03280506426 | E34: 0.2999093805 | F34: 0.07090953438 | G34: =G69 -> 0.003632120023 | H34: =H69 -> 0.02585021267 | I34: =I69 -> 0.03051865153 | J34: =J69 -> 0.1121264592 | K34: 2003 CBECS
A35: Paraffin | B35: =K75 -> 0 | C35: =L75 -> 0 | D35: 1 | E35: 0 | F35: 0 | G35: =P75 -> 0 | H35: =Q75 -> 0 | I35: 0 | J35: =S75 -> 0 | K35: 2006 AQD
A36: Wood | B36: 0 | C36: 0.001239157373 | D36: 0 | E36: 0 | F36: 0 | G36: 0.9987608426 | H36: =Q76 -> 0 | I36: =R76 -> 0 | J36: 0
A37: Coal | B37: 0 | C37: 0.5431712635 | D37: 0.4561150473 | E37: 0 | F37: 0 | G37: 0.000713689274 | H37: 0 | I37: 0 | J37: 0
A38: Diesel | B38: 0 | C38: 0 | D38: 0 | E38: 0 | F38: 0 | G38: 0 | H38: 0 | I38: 0 | J38: 1
A39: HFO | B39: 0 | C39: 0 | D39: 0 | E39: 0 | F39: 0 | G39: 0 | H39: 0 | I39: 0 | J39: 1
A40: LPG | B40: 0 | C40: 0 | D40: 0.8989652933 | E40: 0 | F40: 0 | G40: 0.1010347067 | H40: 0 | I40: 0 | J40: 0
A42: Share of floor area by building activity – source stats SA 1993-2007
B44: SIC sector | C44: Devilliers | D44: Stats SA 1993-2006
A45: Office and banking space | B45: 6 | C45: =11+18+4+4 -> 37 | D45: 0.3803081613
A46: Shopping space | B46: 8 | C46: =30 -> 30 | D46: 0.2813674233
A47: Other non-residential space | B47: 9 | C47: =12+7+14 -> 33 | D47: 0.3383244154
D48: =SUM(D45:D47) -> 1
A50: 2006 calculation for electricity from CBECS 2003 table E6A
L51: BRYCE - Lights + water
A52: Electricity MJ/m2 | B52: Lighting | C52: Space heating | D52: Water heating | E52: Cooling & ventilation | F52: Refrigeration | G52: Cooking | H52: Public Lighting | I52: Public water | J52: Other | K52: Total MJ/m2 | L52: Public Lighting | O52: MJ | S52: old lighting | T52: old other
A53: Office and banking space | B53: =S53-L53 -> 246.38758 | C53: 31 | D53: 7.75 | E53: =93+58.13 -> 151.13 | F53: 31 | G53: 0 | H53: =L53 -> 17.11242001 | I53: =M53 -> 20.20285055 | J53: =T53-M53 -> 65.04714945 | K53: =SUM(B53:J53) -> 569.63 | L53: =L$56/3 -> 17.11242001 | M53: =M$56/3 -> 20.20285055 | O53: 4565281948 | P53: 5389752521 | S53: 263.5 | T53: 85.25
A54: Shopping space | B54: =S54-L54 -> 296.76758 | C54: 58.13 | D54: 38.75 | E54: =112.38+58.13 -> 170.51 | F54: 50.38 | G54: 3.88 | H54: =L54 -> 17.11242001 | I54: =M54 -> 20.20285055 | J54: =T54-M54 -> 65.04714945 | K54: =SUM(B54:J54) -> 720.78 | L54: 17.11242001 | M54: 20.20285055 | S54: 313.88 | T54: 85.25
A55: Other non-residential space | B55: 211.51758 | C55: 11.63 | D55: 23.25 | E55: =197.63+77.5 -> 275.13 | F55: 62 | G55: 3.88 | H55: 17.11242001 | I55: 20.20285055 | J55: 92.17714945 | K55: =SUM(B55:J55) -> 716.9 | L55: 17.11242001 | M55: 20.20285055 | S55: 228.63 | T55: 112.38
L56: =O53/(1000000*$B$16) -> 51.33726004 | M56: =P53/(1000000*$B$16) -> 60.60855165
A58: Office and banking space | B58: =B53/$K53 -> 0.4325396836 | C58: =C53/$K$53 -> 0.05442129101 | D58: 0.01360532275 | E58: 0.2653125713 | F58: 0.05442129101 | G58: 0 | J58: =J53/$K$53 -> 0.1141919306 | K58: =SUM(B58:J58) -> 0.9344920904
A59: Shopping space | B59: =B54/$K$53 -> 0.5209830592 | C59: 0.1020486983 | D59: 0.06802661377 | E59: 0.2993346558 | F59: 0.08844337552 | G59: 0.006811439004 | J59: =J54/$K$53 -> 0.1141919306 | K59: =SUM(B59:J59) -> 1.199839772
A60: Other non-residential space | B60: =B55/$K$53 -> 0.3713245089 | C60: 0.02041676176 | D60: 0.04081596826 | E60: 0.4829977354 | F60: 0.108842582 | G60: 0.006811439004 | J60: =J55/$K$53 -> 0.1618193379 | K60: =SUM(B60:J60) -> 1.193028333
L62: H
A64: Weighted Electricity MJ/m2 | B64: Lighting | C64: Space heating | D64: Water heating | E64: Cooling & ventilation | F64: Refrigeration | G64: Cooking | H64: Public Lighting | I64: Public water | J64: Other | K64: Total MJ/m2
A65: Office and banking space | B65: =B53*$D45 -> 93.70320751 | C65: =C53*$D45 -> 11.789553 | D65: 2.94738825 | E65: 57.47597242 | F65: 11.789553 | G65: 0 | H65: =H53*$D45 -> 6.507992991 | I65: 7.683308945 | J65: =J53*$D45 -> 24.73796181 | K65: =SUM(B65:J65) -> 216.6349379
A66: Shopping space | B66: =B54*$D46 -> 83.50072929 | C66: 16.35588831 | D66: 10.90298765 | E66: 47.97595934 | F66: 14.17529078 | G66: =G54*$D46 -> 1.091705602 | H66: 4.814877525 | I66: 5.684424002 | J66: =J54*$D46 -> 18.30214883 | K66: =SUM(B66:J66) -> 202.8040113
A67: Other non-residential space | B67: =B55*$D47 -> 71.5615616 | C67: 3.934712951 | D67: =D55*$D47 -> 7.866042659 | E67: 93.08319641 | F67: 20.97611376 | G67: =G55*$D47 -> 1.312698732 | H67: 5.789549498 | I67: 6.835117602 | J67: =J55*$D47 -> 31.1857802 | K67: =SUM(B67:J67) -> 242.5447734
A68: weighted average | B68: =SUM(B65:B67) -> 248.7654984 | C68: 32.08015427 | D68: 21.71641856 | E68: 198.5351282 | F68: 46.94095754 | G68: 2.404404334 | H68: =SUM(H65:H67) -> 17.11242001 | I68: 20.20285055 | J68: =SUM(J65:J67) -> 74.22589084 | K68: =SUM(B68:J68) -> 661.9837227
A69: weighted averager as share of total | B69: =B68/$K$68 -> 0.3757879384 | C69: 0.04846063909 | D69: =D68/$K$68 -> 0.03280506426 | E69: 0.2999093805 | F69: 0.07090953438 | G69: 0.003632120023 | H69: =H68/$K$68 -> 0.02585021267 | I69: =I68/$K$68 -> 0.03051865153 | J69: =J68/$K$68 -> 0.1121264592 | K69: =SUM(B69:J69) -> 1
A72: 2006 calculation for other fuels from AQD data 2006 for Cape Town
A74: Total GJ | B74: Lighting | C74: Space heating | D74: Water heating | E74: Cooling & ventilation | F74: Refrigeration | G74: Cooking | H74: Other | I74: Total | K74: Lighting | L74: space heating | M74: water heating | N74: Cooling & ventilation | O74: Refrigeration | P74: Cooking | Q74: Public lights | R74: public water | S74: Other
A75: Paraffin | D75: =G105 -> 15530.4 | G75: =H105 -> 0 | H75: =I105 -> 0 | I75: =SUM(B75:H75) -> 15530.4 | K75: =B75/$I75 -> 0 | L75: 0 | M75: 1 | N75: 0 | O75: 0 | P75: 0 | Q75: 0 | R75: 0 | S75: =H75/$I75 -> 0
A76: Wood | C76: =G115 -> 41.04 | G76: =H115 -> 33078.24 | H76: =I115 -> 0 | I76: 33119.28 | K76: 0 | L76: 0.001239157373 | M76: 0 | N76: 0 | O76: 0 | P76: 0.9987608426 | Q76: 0 | R76: 0 | S76: 0
A77: Coal | C77: =G125*'End use share 1994'!D22/('End use share 1994'!D22+'End use share 1994'!E22) -> 113248.0015 | D77: =G125*'End use share 1994'!E22/('End use share 1994'!D22+'End use share 1994'!E22) -> 95097.29445 | G77: =H125 -> 148.8 | H77: =I125 -> 0 | I77: 208494.096 | K77: 0 | L77: 0.5431712635 | M77: 0.4561150473 | N77: 0 | O77: 0 | P77: 0.000713689274 | Q77: 0 | R77: 0 | S77: 0
A78: Diesel | C78: =G135 -> 0 | G78: =H135 -> 0 | H78: =I135 -> 46488.354 | I78: 46488.354 | K78: 0 | L78: 0 | M78: 0 | N78: 0 | O78: 0 | P78: 0 | Q78: 0 | R78: 0 | S78: 1
A79: HFO | C79: =G145 -> 0 | G79: =H145 -> 0 | H79: =I145 -> 12096 | I79: 12096 | K79: 0 | L79: 0 | M79: 0 | N79: 0 | O79: 0 | P79: 0 | Q79: 0 | R79: 0 | S79: 1
A80: LPG | D80: =G155 -> 163454.76 | G80: =H155 -> 18370.68 | H80: =I155 -> 0 | I80: 181825.44 | K80: 0 | L80: 0 | M80: 0.8989652933 | N80: 0 | O80: 0 | P80: 0.1010347067 | Q80: 0 | R80: 0 | S80: 0
C81: =SUM(C75:C80) -> 113289.0415 | G81: =SUM(G75:G80) -> 51597.72 | H81: =SUM(H75:H80) -> 58584.354
A83: From Cape Town AQD
A84: GJ | B84: Paraffin | C84: Wood | D84: Coal | E84: Diesel | F84: HFO | G84: LPG
A85: retail | B85: 0 | C85: 0 | D85: 0 | E85: 0 | F85: 0 | G85: 0
A86: Catering | B86: 0 | C86: 33078.24 | D86: 148.8 | E86: 0 | F86: 0 | G86: 186
A87: accommodation | B87: 14601.6 | C87: 0 | D87: 0 | E87: 5554.662 | F87: 0 | G87: 66.6
A88: office | B88: 799.2 | C88: 0 | D88: 0 | E88: 33851.004 | F88: 0 | G88: 0
A89: Education | B89: 129.6 | C89: 0 | D89: 0 | E89: 387.168 | F89: 11040 | G89: 181587.6
A90: healthcare | B90: 0 | C90: 0 | D90: 208345.296 | E90: 5749.8 | F90: 1056 | G90: 51.84
A91: other | B91: 0 | C91: 41.04 | D91: 0 | E91: 945.72 | F91: 0 | G91: 0
A92: Total | B92: 15530.4 | C92: 33119.28 | D92: 208494.096 | E92: 46488.354 | F92: 12096 | G92: 181892.04
A95: Energy consumption for building activity group by end use
A96: share of fuel consumed | F96: GJ
A97: Paraffin | B97: heating | C97: Cooking | D97: Other | F97: Paraffin | G97: heating | H97: Cooking | I97: Other
A98: retail | F98: retail
A99: Catering | F99: Catering
A100: accommodation | B100: 1 | F100: accommodation | G100: =B100*B87 -> 14601.6
A101: office | B101: 1 | F101: office | G101: =B101*B88 -> 799.2
A102: Education | B102: 1 | F102: Education | G102: =B102*B89 -> 129.6
A103: healthcare | F103: healthcare
A104: other | F104: other
A105: Total | F105: Total | G105: =SUM(G98:G104) -> 15530.4 | H105: =SUM(H98:H104) -> 0 | I105: =SUM(I98:I104) -> 0
A107: Wood | B107: heating | C107: Cooking | D107: Other | F107: Wood | G107: heating | H107: Cooking | I107: Other
A108: retail | F108: retail
A109: Catering | C109: 1 | F109: Catering | H109: =C109*C86 -> 33078.24
A110: accommodation | F110: accommodation
A111: office | F111: office
A112: Education | F112: Education
A113: healthcare | F113: healthcare
A114: other | B114: 1 | F114: other | G114: =B114*C91 -> 41.04
A115: Total | F115: Total | G115: =SUM(G108:G114) -> 41.04 | H115: =SUM(H108:H114) -> 33078.24 | I115: =SUM(I108:I114) -> 0
A117: Coal | B117: heating | C117: Cooking | D117: Other | F117: Coal | G117: heating | H117: Cooking | I117: Other
A118: retail | F118: retail
A119: Catering | C119: 1 | F119: Catering | H119: =C119*D86 -> 148.8
A120: accommodation | F120: accommodation
A121: office | F121: office
A122: Education | F122: Education
A123: healthcare | B123: 1 | F123: healthcare | G123: =B123*D90 -> 208345.296
A124: other | F124: other
A125: Total | F125: Total | G125: =SUM(G118:G124) -> 208345.296 | H125: =SUM(H118:H124) -> 148.8 | I125: =SUM(I118:I124) -> 0
A127: Diesel | B127: heating | C127: Cooking | D127: Other | F127: Diesel | G127: heating | H127: Cooking | I127: Other
A128: retail | F128: retail
A129: Catering | F129: Catering
A130: accommodation | D130: 1 | F130: accommodation | I130: =D130*E87 -> 5554.662
A131: office | D131: 1 | F131: office | I131: =D131*E88 -> 33851.004
A132: Education | D132: 1 | F132: Education | I132: =D132*E89 -> 387.168
A133: healthcare | D133: 1 | F133: healthcare | I133: =D133*E90 -> 5749.8
A134: other | D134: 1 | F134: other | I134: =D134*E91 -> 945.72
A135: Total | F135: Total | G135: =SUM(G128:G134) -> 0 | H135: =SUM(H128:H134) -> 0 | I135: =SUM(I128:I134) -> 46488.354
A137: HFO | B137: heating | C137: Cooking | D137: Other | F137: HFO | G137: heating | H137: Cooking | I137: Other
A138: retail | F138: retail
A139: Catering | F139: Catering
A140: accommodation | F140: accommodation
A141: office | F141: office
A142: Education | D142: 1 | F142: Education | I142: =D142*F89 -> 11040
A143: healthcare | D143: 1 | F143: healthcare | I143: =D143*F90 -> 1056
A144: other | F144: other
A145: Total | F145: Total | G145: =SUM(G138:G144) -> 0 | H145: =SUM(H138:H144) -> 0 | I145: =SUM(I138:I144) -> 12096
A147: Gas | B147: heating | C147: Cooking | D147: Other | F147: Gas | G147: heating | H147: Cooking | I147: Other
A148: retail | F148: retail | G148: =B148*$G85 -> 0 | H148: 0 | I148: 0
A149: Catering | C149: 1 | F149: Catering | G149: 0 | H149: 186 | I149: 0
A150: accommodation | F150: accommodation | G150: 0 | H150: 0 | I150: 0
A151: office | F151: office | G151: 0 | H151: 0 | I151: 0
A152: Education | B152: 0.9 | C152: 0.1 | F152: Education | G152: 163428.84 | H152: 18158.76 | I152: 0
A153: healthcare | B153: 0.5 | C153: 0.5 | F153: healthcare | G153: 25.92 | H153: 25.92 | I153: 0
A154: other | F154: other | G154: 0 | H154: 0 | I154: 0
A155: Total | F155: Total | G155: =SUM(G148:G154) -> 163454.76 | H155: =SUM(H148:H154) -> 18370.68 | I155: =SUM(I148:I154) -> 0
A157: Conversion factors
A160: Convert MJ to kWh divide by | B160: 3.6
A161: Convert C to CO2 divide by | B161: 0.27

Sheet End use share comparison of yea
A1: Key
A2: Blue - value calculated in cell
A3: Red – value from external source
A4: Black – value linked to another cell or spreadsheet
A5: unreferenced data – from previous LTMS
A7: End use comparison between years
B9: Lighting | C9: Space heating | D9: Water heating | E9: Cooling & ventilation | F9: Refrigeration | G9: Cooking | H9: Other | I9: Comments
A10: 2001 | B10: ='End use share 2001'!B30 -> 192.8222792 | C10: ='End use share 2001'!C30 -> 165.6242263 | D10: ='End use share 2001'!D30 -> 121.4395135 | E10: ='End use share 2001'!E30 -> 315.4472835 | F10: ='End use share 2001'!F30 -> 42.64140345 | G10: ='End use share 2001'!G30 -> 6.172821216 | H10: ='End use share 2001'!H30 -> 132.6236536 | I10: Updated total energy consumption & total floor area to 2001 values
A11: 2006c | B11: ='End use share 2006c'!B28 -> 569.2840171 | C11: ='End use share 2006c'!C28 -> 530.2259688 | D11: ='End use share 2006c'!D28 -> 435.8220694 | E11: ='End use share 2006c'!E28 -> 454.3350104 | F11: ='End use share 2006c'!F28 -> 107.421395 | G11: ='End use share 2006c'!G28 -> 9.988371545 | H11: ='End use share 2006c'!J28 -> 379.3677368
B13: Lighting | C13: Space heating | D13: Water heating | E13: Cooling & ventilation | F13: Refrigeration | G13: Cooking | H13: Other
A14: =A10 -> 2001 | B14: 192.8222792 | C14: 165.6242263 | D14: 121.4395135 | E14: =E10 -> 315.4472835 | F14: 42.64140345 | G14: 6.172821216 | H14: 132.6236536
A15: 2006 | B15: 569.2840171 | C15: 530.2259688 | D15: 435.8220694 | E15: 454.3350104 | F15: 107.421395 | G15: 9.988371545 | H15: 379.3677368
A18: MJ/m2 | B18: 2001 | C18: 2006 | D18: 1994
A19: Electricity | B19: ='End use share 2001'!I24 -> 731.2629059 | C19: ='2006 Energy data '!B11/'floor space 1993-2007'!$C$34 -> 1514.907635 | D19: ='End use share 1994'!J19 -> 816.0983103
A20: LPG | B20: ='End use share 2001'!I25 -> 0.1381718084 | C20: ='2006 Energy data '!B12/'floor space 1993-2007'!$C$34 -> 0.1349417467 | D20: ='End use share 1994'!J20 -> 30.95238095
A21: Paraffin | B21: ='End use share 2001'!I26 -> 1.727147605 | C21: ='2006 Energy data '!B13/'floor space 1993-2007'!$C$34 -> 3.620936871 | D21: ='End use share 1994'!J21 -> 2.350230415
A22: Coal | B22: ='End use share 2001'!I27 -> 230.2863473 | C22: ='2006 Energy data '!B14/'floor space 1993-2007'!$C$34 -> 841.0019463 | D22: ='End use share 1994'!J22 -> 250.3840246
A23: Residual oil | B23: ='End use share 2001'!I28 -> 0 | C23: ='2006 Energy data '!B15/'floor space 1993-2007'!$C$34 -> 199.7881156 | D23: ='End use share 1994'!J23 -> 43.82488479
A24: Town gas | B24: ='End use share 2001'!I29 -> 13.35660814 | C24: ='2006 Energy data '!B16/'floor space 1993-2007'!$C$34 -> 9.718392149 | D24: ='End use share 1994'!J24 -> 6.121351767
A26: TJ | B26: 2001 | C26: 2006
A27: Electricity | B27: ='End use share 2001'!B10 -> 63509.01081 | C27: ='2006 Energy data '!B11 -> 134716.5874
A28: LPG | B28: ='End use share 2001'!B11 -> 12 | C28: ='2006 Energy data '!B12 -> 12
A29: Paraffin | B29: ='End use share 2001'!B12 -> 150 | C29: ='2006 Energy data '!B13 -> 322
A30: Coal | B30: ='End use share 2001'!B13 -> 20000 | C30: ='2006 Energy data '!B14 -> 74788
A31: Residual oil | B31: ='End use share 2001'!B14 -> 0 | C31: ='2006 Energy data '!B15 -> 17766.61
A32: Town gas | B32: ='End use share 2001'!B15 -> 1160 | C32: ='2006 Energy data '!B16 -> 864.23

Sheet Deflator
A1: Country Name | B1: 1991 | C1: 1992 | D1: 1993 | E1: 1994 | F1: 1995 | G1: 1996 | H1: 1997 | I1: 1998 | J1: 1999 | K1: 2000 | L1: 2001 | M1: 2002 | N1: 2003 | O1: 2004 | P1: 2005 | Q1: 2006 | R1: 2007 | S1: 2008 | T1: 2009 | U1: 2010 | V1: 2011 | W1: 2012 | X1: 2013 | Y1: 2014
A2: South Africa | B2: 15.72700869 | C2: 14.57115172 | D2: 13.08756887 | E2: 9.594010154 | F2: 10.25032595 | G2: 8.089661507 | H2: 8.106475448 | I2: 7.710412813 | J2: 7.073229448 | K2: 8.809544793 | L2: 7.666925937 | M2: 10.74945241 | N2: 5.550229783 | O2: 6.371894226 | P2: 5.444673925 | Q2: 6.527613116 | R2: 8.07894945 | S2: 8.298147889 | T2: 7.650632419 | U2: 7.861608575 | V2: 8.005617098 | W2: 8.005617098
A3: =B12 -> 2010 | B3: =IF(B1=$A$3,1,IF(B1<$A3,C3/(1+C2/100),A3*(B2/100+1))) -> 0.213137201 | C3: 0.2441937459 | D3: 0.2761527706 | E3: 0.3026468955 | F3: 0.3336691887 | G3: 0.3606618967 | H3: 0.3898988648 | I3: 0.4199616768 | J3: 0.4496665298 | K3: 0.4892801042 | L3: 0.5267928474 | M3: 0.5834201938 | N3: 0.6158013551 | O3: 0.6550395661 | P3: 0.6907043346 | Q3: 0.7357908413 | R3: 0.7952350114 | S3: 0.8612247888 | T3: 0.9271139316 | U3: =IF(U1=$A$3,1,IF(U1<$A3,V3/(1+V2/100),T3*(U2/100+1))) -> 1 | V3: 1.080056171 | W3: 1.166521332
A4: Multiplier | B4: =1/B3 -> 4.691813514 | C4: 4.095108972 | D4: 3.62118402 | E4: 3.304180598 | F4: 2.996980344 | G4: 2.772679923 | H4: 2.564767662 | I4: 2.381169652 | J4: 2.22387021 | K4: 2.043819055 | L4: 1.898279381 | M4: 1.714030489 | N4: 1.623900291 | O4: =1/O3 -> 1.526625339 | P4: 1.447797487 | Q4: 1.35908188 | R4: 1.257489906 | S4: 1.161137038 | T4: 1.078616086 | U4: =1/U3 -> 1 | V4: 0.9258777709 | W4: 0.8572496466
A5: GDP deflator (annual change %) for South Africa from "The World Bank"
A6: http://search.worldbank.org/data?qterm=gdp%20deflator%20%22south%20africa%22&language=EN
A7: updated November 2012
A9: Year to Convert from
B10: 2007 | C10: Rands | E10: 2005 | G10: 2006
A11: Year to Convert to
B12: 2010 | C12: Rands | E12: 2010 | G12: 2010
A13: Conversion factor
A14: multipy by | B14: =1/B15 -> 1.257489906 | E14: =1/E15 -> 1.447797487 | G14: =1/G15 -> 1.35908188
A15: or divide by | B15: =SUMIF($B$1:$U$1,B10,$B$3:$U$3) -> 0.7952350114 | E15: =SUMIF($B$1:$U$1,E10,$B$3:$U$3) -> 0.6907043346 | G15: =SUMIF($B$1:$U$1,G10,$B$3:$U$3) -> 0.7357908413 | AD15: Minister of Energy
AC16: 2012R | AD16: 18000 | AE16: R per connection | AG16: urban
A17: GDP deflator (annual change %) for US from "The World Bank" | AD17: 60000 | AE17: R per connection | AG17: rural
A18: Country Name | B18: 1991 | C18: 1992 | D18: 1993 | E18: 1994 | F18: 1995 | G18: 1996 | H18: 1997 | I18: 1998 | J18: 1999 | K18: 2000 | L18: 2001 | M18: 2002 | N18: 2003 | O18: 2004 | P18: 2005 | Q18: 2006 | R18: 2007 | S18: 2008 | T18: 2009 | U18: 2010 | V18: 2011 | W18: 2012 | AC18: 2010R | AD18: =AD16*$U$3/$W$3 -> 15430.49364
A19: United States | B19: 3.399425238 | C19: 2.105478815 | D19: 2.192433289 | E19: 2.036030946 | F19: 2.326378708 | G19: 1.771762948 | H19: 1.927356757 | I19: 1.40484778 | J19: 1.466294332 | K19: 2.163727483 | L19: 2.267094833 | M19: 1.623883629 | N19: 2.106471654 | O19: 2.811435885 | P19: 3.319262913 | Q19: 3.225981517 | R19: 2.899111496 | S19: 2.211347037 | T19: 1.063454981 | U19: 1.152326348 | V19: 2.731283432 | W19: 2.731283432 | AD19: =AD17*$U$3/$W$3 -> 51434.9788
A20: 2005 | B20: =IF(B18=$A$20,1,IF(B18<$A20,C20/(1+C19/100),A20*(B19/100+1))) -> 0.7467720337 | C20: 0.7624951607 | D20: 0.7792123584 | E20: 0.7950773631 | F20: 0.8135738736 | G20: 0.8279884741 | H20: 0.8439467659 | I20: 0.8558029333 | J20: 0.8683515232 | K20: 0.8871402837 | L20: 0.9072525953 | M20: 0.9219853216 | N20: 0.9414066811 | O20: 0.9678737264 | P20: 1 | Q20: 1.032259815 | R20: 1.062186178 | S20: 1.085674801 | T20: 1.097220463 | U20: 1.109864024 | V20: 1.140177556 | W20: 1.171319037 | AC20: 2010$ | AD20: =AD18/$AC$34 -> 2085.201843
A21: Multiplier | B21: =1/B20 -> 1.339096746 | C21: 1.311483733 | D21: 1.283347202 | E21: 1.257739242 | F21: 1.229144682 | G21: 1.207746281 | H21: 1.18490886 | I21: 1.168493307 | J21: 1.151607354 | K21: 1.12721744 | L21: 1.102228867 | M21: 1.084615966 | N21: 1.062240177 | O21: 1.033192629 | P21: 1 | Q21: 0.9687483571 | R21: 0.9414545402 | S21: 0.9210861294 | T21: 0.911393866 | U21: 0.9010112756 | V21: 0.87705638 | W21: 0.8537383655 | AD21: =AD19/$AC$34 -> 6950.67281
AC22: kW/con. | AD22: 2
A23: Official Exchange Rate (LCU per US$, period average) | AD23: 2
A24: Country Name | B24: 1991 | C24: 1992 | D24: 1993 | E24: 1994 | F24: 1995 | G24: 1996 | H24: 1997 | I24: 1998 | J24: 1999 | K24: 2000 | L24: 2001 | M24: 2002 | N24: 2003 | O24: 2004 | P24: 2005 | Q24: 2006 | R24: 2007 | S24: 2008 | T24: 2009 | U24: 2010 | V24: 2011 | W24: 2012 | X24: 2013 | Y24: 2014 | AC24: $/kW | AD24: =AD20/AD22 -> 1042.600922
A25: South Africa | B25: 2.761315 | C25: 2.852014167 | D25: 3.267741583 | E25: 3.550798333 | F25: 3.627085 | G25: 4.299349167 | H25: 4.607961667 | I25: 5.528284167 | J25: 6.109484167 | K25: 6.939828333 | L25: 8.609180833 | M25: 10.54074667 | N25: 7.564749167 | O25: 6.4596925 | P25: 6.359328333 | Q25: 6.771549167 | R25: 7.045365 | S25: 8.261223333 | T25: 8.473674158 | U25: 7.321221961 | V25: 7.261132132 | W25: 8.5 | Y25: 10.34 | AD25: =AD21/AD23 -> 3475.336405
A26: 2010 | B26: =IF(B24=$A$26,1,IF(B24<$A26,C26/(1+C25/100),A26*(B25/100+1))) -> 0.3188312562 | C26: 0.3279243688 | D26: 0.3386400898 | E26: 0.3506645165 | F26: 0.3633834165 | G26: =IF(G24=$A$26,1,IF(G24<$A26,H26/(1+H25/100),F26*(G25/100+1))) -> 0.3790065384 | H26: 0.3964710144 | I26: 0.4183890588 | J26: 0.4439504721 | K26: 0.4747598727 | L26: 0.5156328087 | M26: 0.5699843568 | N26: 0.6131022436 | O26: 0.6527067633 | P26: =IF(P24=$A$26,1,IF(P24<$A26,Q26/(1+Q25/100),O26*(P25/100+1))) -> 0.6942145294 | Q26: 0.7412236076 | R26: 0.7934455162 | S26: 0.8589938223 | T26: 0.9317821599 | U26: 1 | V26: =IF(V24=$A$26,1,IF(V24<$A26,W26/(1+W25/100),U26*(V25/100+1))) -> 1.072611321 | W26: 1.163783284
A27: Multiplier | B27: =1/B26 -> 3.136455352 | C27: 3.049483646 | D27: 2.952987641 | E27: 2.851728513 | F27: =1/F26 -> 2.751914244 | G27: 2.638476909 | H27: 2.522252481 | I27: 2.390119864 | J27: 2.252503518 | K27: 2.106327972 | L27: 1.93936457 | M27: 1.754434114 | N27: 1.631049324 | O27: 1.532081566 | P27: =1/P26 -> 1.44047691 | Q27: 1.349120548 | R27: 1.260325983 | S27: 1.164152726 | T27: 1.07321222 | U27: 1 | V27: =1/V26 -> 0.9323041629 | W27: 0.8592665095
A29: Real effective exchange rate index (2005 = 100)
A30: Country Name | B30: 1991 | C30: 1992 | D30: 1993 | E30: 1994 | F30: 1995 | G30: 1996 | H30: 1997 | I30: 1998 | J30: 1999 | K30: 2000 | L30: 2001 | M30: 2002 | N30: 2003 | O30: 2004 | P30: 2005 | Q30: 2006 | R30: 2007 | S30: 2008 | T30: 2009 | U30: 2010 | V30: 2011 | W30: 2012
A31: South Africa | B31: 120.9191667 | C31: 124.9175 | D31: 122.595 | E31: 117.3541667 | F31: 114.0725 | G31: 105.07 | H31: 110.8866667 | I31: 101.9483333 | J31: 96.4325 | K31: 93.36083333 | L31: 82.35833333 | M31: 70.56166667 | N31: 91.40666667 | O31: 99.68916667 | P31: 100 | Q31: 96.11583333 | R31: 90.37833333 | S31: 80.405 | T31: 87.7925 | U31: 101.2 | V31: 99.1
Y33: Conversion example
Y34: Initial exchange rate | AA34: 2010 R/2010$ | AC34: 7.4
Y35: New Exchange rate | AA35: 2012 R/2012$ | AC35: 8.5
Y36: Share of local content (2010) | AC36: 0.3
Y37: Nuclear IRP | AA37: 2010 R/kW | AC37: 37205
A38: CPI | AA38: 2010 $/kW | AC38: =AC37/AC34 -> 5027.702703
A39: Country Name | B39: 2003 | C39: 2004 | D39: 2005 | E39: 2006 | F39: 2007 | G39: 2008 | H39: 2009 | I39: 2010 | J39: 2011 | K39: 2012 | Y39: Cost of local content | AA39: 2010 R/kW | AC39: =AC36*AC37 -> 11161.5
A40: South Africa | B40: 95.39092507 | C40: 96.71245362 | D40: 100 | E40: 104.6416249 | F40: 112.0695267 | G40: 124.9983725 | H40: 133.9107565 | I40: 139.6231821 | J40: 146.5980913 | Y40: Cost of imported content | AA40: 2010 $/kW | AC40: =(1-AC36)*AC38 -> 3519.391892
C41: =D40/C40-1 -> 0.03399299946 | D41: 0.04641624894 | E41: 0.07098419808 | F41: 0.1153645077 | G41: 0.0713 | H41: 0.04265845235 | I41: 0.04995523724
Y44: Method 1
Y45: New Nuclear | AA45: 2012 $/kW
Y46: Cost of imported content | AA46: 2012 $/kW | AC46: =AC40*W20/U20 -> 3714.266462
Y47: Cost of domestic content | AA47: 2012 R/kW | AC47: =AC39*W3/U3 -> 13020.12785
Y48: Total Cost | AA48: 2012 R/kW | AC48: =AC47+AC46*AC35 -> 44591.39278
AA49: 2010 R/kW | AC49: =AC48*U3/W3 -> 38225.9557 | AD49: =AC49/AC37-1 -> 0.0274413573
Y53: MYPD Nuclear
Y54: New Nuclear | AA54: 2012$/kW | AC54: 6131
Y55: IDC | AC55: =#REF! -> 
Y56: Overnight | AC56: =AC54/AC55 ->  | AD56: =AC56*8.5 ->  | AE56: =AD56*U3/W3 -> 
Y57: Cost of imported content | AA57: 2012 $/kW | AC57: =AC56*(1-AC36) -> 
Y58: Cost of domestic content | AA58: 2012 R/kW | AC58: =AC56*AC35*AC36 -> 
Y59: Cost of imported content | AA59: 2010$/kW | AC59: =AC57*U20/W20 -> 
Y60: Cost of domestic content | AA60: 2010R/kW | AC60: =AC58*U3/W3 -> 
Y61: Total | AC61: =AC59*AC34+AC60 -> 

Sheet Appliances
A1: Key
A2: Blue - value calculated in cell
A3: Red – value from external source
A4: Black – value linked to another cell or spreadsheet
A5: unreferenced data – from previous LTMS
A7: Based on Tom's spreadsheet ref 1
A8: Efficiency
K9: Source | L9: Site
A10: Space Heating | B10: Appliance Description | C10: Fuel | D10: Total fuel consumption in 2006/TJ | E10: Share of total fuel consumption | F10: Share of fuel used by appliance | G10: Efficiency 2000 | H10: Efficiency 2008 | I10: % annual improvement | J10: Efficiency 2006 | K10: Energy Demand/ TJ/annum | L10: Useful energy TJ/annum
A11: Heating system 1 | C11: Electricity | D11: ='2006 Energy data '!B11 -> 134716.5874 | E11: ='End use share 2006c'!C34 -> 0.04846063909 | F11: 1 | G11: =C110 -> 1 | H11: =D110 -> 1 | I11: =(H11-G11)/8 -> 0 | J11: 1 | K11: =E11*D11*F11 -> 6528.451922 | L11: =J11*E11*D11 -> 6528.451922
A12: Heating system 2 | C12: LPG | D12: ='2006 Energy data '!B12 -> 12 | E12: ='End use share 2006c'!C40 -> 0 | I12: 0 | K12: 0 | L12: 0
A13: Heating system 3 | C13: Wood | D13: 0 | E13: ='End use share 2006c'!C36 -> 0.001239157373 | I13: 0 | K13: 0 | L13: 0
A14: Heating system 4 | C14: coal | D14: ='2006 Energy data '!B14 -> 74788 | E14: ='End use share 2006c'!C37 -> 0.5431712635 | F14: 1 | G14: =C111 -> 0.65 | H14: =D111 -> 0.8 | I14: 0.01875 | J14: 0.6 | K14: 40622.69245 | L14: 24373.61547
A15: Heating system 5 | C15: oil | D15: ='2006 Energy data '!B15 -> 17766.61 | E15: ='End use share 2006c'!C39 -> 0 | F15: 1 | I15: 0 | K15: 0 | L15: 0
A16: Heating system 6 | C16: natural gas | D16: ='2006 Energy data '!B16 -> 864.23 | E16: ='End use share 2006c'!C40 -> 0 | F16: 1 | G16: =C113 -> 0.75 | H16: =D113 -> 0.92 | I16: 0.02125 | J16: 0.69 | K16: 0 | L16: 0
A17: Total | K17: =SUM(K11:K16) -> 47151.14437 | L17: =SUM(L11:L16) -> 30902.06739
A19: Water Heating | B19: Appliance Description | C19: Fuel | D19: Total fuel consumption in 2006/TJ | E19: Share of total fuel consumption | F19: Share of fuel used by appliance | G19: Efficiency 2000 | H19: Efficiency 2008 | J19: Efficiency 2006 | K19: Energy Demand/ TJ/annum | L19: Useful energy TJ/annum
A20: Geyser 1 | C20: Electricity | D20: ='2006 Energy data '!B11 -> 134716.5874 | E20: ='End use share 2006c'!D34 -> 0.03280506426 | F20: 1 | G20: =C116 -> 1 | H20: 1 | I20: =(H20-G20)/8 -> 0 | J20: 1 | K20: =E20*D20 -> 4419.386307 | L20: =J20*E20*D20 -> 4419.386307
A21: Geyser 2 | C21: LPG | D21: ='2006 Energy data '!B12 -> 12 | E21: ='End use share 2006c'!D40 -> 0.8989652933 | F21: 1 | G21: 0.75 | H21: 0.91 | I21: 0.02 | J21: 0.68 | K21: 10.78758352 | L21: 7.335556793
A22: Geyser 3 | C22: Paraffin | D22: ='2006 Energy data '!B13 -> 322 | E22: ='End use share 2006c'!D35 -> 1 | F22: 1 | G22: 0.7 | H22: 0.91 | I22: 0.02625 | J22: 0.68 | K22: 322 | L22: 218.96
A23: Geyser 4 | C23: coal | D23: ='2006 Energy data '!B14 -> 74788 | E23: ='End use share 2006c'!D37 -> 0.4561150473 | F23: 1 | G23: 0.65 | H23: 0.8 | I23: 0.01875 | J23: 0.6 | K23: 34111.93215 | L23: 20467.15929
A24: Geyser 5 | C24: oil | D24: ='2006 Energy data '!B15 -> 17766.61 | E24: ='End use share 2006c'!D39 -> 0 | F24: 1 | G24: 0.65 | H24: 0.85 | I24: 0.025 | J24: 0.64 | K24: 0 | L24: 0
A25: Geyser 6 | C25: natural gas | D25: ='2006 Energy data '!B16 -> 864.23 | E25: ='End use share 2006c'!D40 -> 0.8989652933 | F25: 1 | G25: 0.75 | H25: 0.92 | I25: 0.02125 | J25: 0.69 | K25: 776.9127754 | L25: 536.069815
K26: =SUM(K20:K25) -> 39641.01882 | L26: =SUM(L20:L25) -> 25648.91097
A28: Cooking | B28: Appliance Description | C28: Fuel | D28: Total fuel consumption in 2006/TJ | E28: Share of total fuel consumption | F28: Share of fuel used by appliance | G28: Efficiency 2000 | H28: Efficiency 2008 | J28: Efficiency 2006 | K28: Energy Demand/ TJ/annum | L28: Useful energy TJ/annum
A29: Stove 1 | C29: Electricity | D29: ='2006 Energy data '!B11 -> 134716.5874 | E29: ='End use share 2006c'!G34 -> 0.003632120023 | F29: 1 | G29: =C126 -> 1 | H29: 1 | I29: =(H29-G29)/8 -> 0 | J29: 1 | K29: =E29*D29 -> 489.3068146 | L29: =J29*E29*D29 -> 489.3068146
A30: Stove 2 | C30: LPG | D30: ='2006 Energy data '!B12 -> 12 | E30: ='End use share 2006c'!G40 -> 0.1010347067 | F30: 1 | G30: 0.9 | H30: 0.9 | I30: =(H30-G30)/8 -> 0 | J30: 0.9 | K30: =E30*D30 -> 1.21241648 | L30: =J30*E30*D30 -> 1.091174832
A31: Stove 3 | C31: coal | D31: ='2006 Energy data '!B14 -> 74788 | E31: ='End use share 2006c'!G37 -> 0.000713689274 | F31: 1 | G31: 0.75 | H31: 0.75 | I31: =(H31-G31)/8 -> 0 | J31: 0.75 | K31: =E31*D31 -> 53.37539342 | L31: =J31*E31*D31 -> 40.03154507
K32: =SUM(K29:K31) -> 543.8946245 | L32: =SUM(L29:L31) -> 530.4295345
A34: Other | B34: Appliance Description | C34: Fuel | D34: Total fuel consumption in 2006/TJ | E34: Share of total fuel consumption | F34: Share of fuel used by appliance | G34: Efficiency 2000 | H34: Efficiency 2008 | J34: Efficiency 2006 | K34: Energy Demand/ TJ/annum | L34: Useful energy TJ/annum
A35: Appliance 1 | B35: Computers | C35: Electricity | D35: ='2006 Energy data '!B11 -> 134716.5874 | E35: ='End use share 2006c'!J34 -> 0.1121264592 | F35: 1 | G35: =C132 -> 0.75 | H35: 0.75 | I35: =(H35-G35)/8 -> 0 | J35: 0.75 | K35: =E35*D35 -> 15105.29394 | L35: =J35*E35*D35 -> 11328.97045
A36: Appliance 2 | C36: coal | D36: ='2006 Energy data '!B14 -> 74788 | E36: ='End use share 2006c'!J37 -> 0 | F36: 1 | G36: 1 | H36: 1 | I36: =(H36-G36)/8 -> 0 | J36: 1 | K36: =E36*D36 -> 0 | L36: =J36*E36*D36 -> 0
A37: Appliance 3 | C37: residual oil | D37: ='2006 Energy data '!B15 -> 17766.61 | E37: ='End use share 2006c'!J39 -> 1 | F37: 1 | G37: 0.9 | H37: 0.9 | I37: =(H37-G37)/8 -> 0 | J37: 0.9 | K37: =E37*D37 -> 17766.61 | L37: =J37*E37*D37 -> 15989.949
A39: Public Water
A40: Pumps 1 | B40: Reticulation | C40: Electricity | E40: 1 | F40: 1 | J40: 1 | K40: 5389.752521
A41: Pumps 2 | C41: Electricity | K41: =SUM(K35:K37) -> 32871.90394 | L41: =SUM(L35:L37) -> 27318.91945
A43: COP
N44: Toms calcs
A45: Cooling | B45: Appliance Description | C45: Fuel | D45: Total fuel consumption in 2006/TJ | E45: Share of total fuel consumption | F45: Share of fuel used by appliance | G45: COP 2000 | H45: COP 2008 | J45: COP 2006 | K45: Energy Demand/ TJ/annum | L45: Useful energy TJ/annum | N45: weighted average COP | O45: Consumption [TJ] | P45: Output [Index]
A46: Cooling system 1 | B46: Air Cooled chiller | C46: Electricity | D46: ='2006 Energy data '!B11 -> 134716.5874 | E46: ='End use share 2006c'!E34 -> 0.2999093805 | F46: 0.05 | G46: =C94 -> 2 | H46: 2.983050847 | I46: =(H46-G46)/8 -> 0.1228813559 | J46: 2.2 | K46: =D46*E46*F46 -> 2020.138414 | L46: =D46*F46*E46*J46 -> 4444.30451 | N46: =F46*J46 -> 0.11 | O46: =P46/J46 -> 2598.632596 | P46: =F46*$N$50*$E$50 -> 5716.991711
A47: Cooling system 2 | B47: Central | C47: Electricity | F47: 0.6 | G47: 3 | H47: 4.228813559 | I47: =(H47-G47)/8 -> 0.1536016949 | J47: 3.1 | K47: =D46*E46*F47 -> 24241.66096 | L47: =D46*F47*E46*J47 -> 75149.14899 | N47: =F47*J47 -> 1.86 | O47: =P47/J47 -> 22130.29049 | P47: =F47*$N$50*$E$50 -> 68603.90053
A48: Cooling system 3 | B48: Heat pump air | C48: Electricity | F48: 0.2 | G48: 2.2 | H48: 3.281355932 | I48: =(H48-G48)/8 -> 0.1351694915 | J48: 2.5 | K48: =D46*E46*F48 -> 8080.553655 | L48: =D46*F48*E46*J48 -> 20201.38414 | N48: =F48*J48 -> 0.5 | O48: =P48/J48 -> 9147.186737 | P48: =F48*$N$50*$E$50 -> 22867.96684
A49: Cooling system 4 | B49: Room | C49: Electricity | F49: 0.15 | G49: 2 | H49: 3.228813559 | I49: =(H49-G49)/8 -> 0.1536016949 | J49: 2.4 | K49: =D46*E46*F49 -> 6060.415241 | L49: =D46*F49*E46*J49 -> 14544.99658 | N49: =F49*J49 -> 0.36 | O49: =P49/J49 -> 7146.239639 | P49: =F49*$N$50*$E$50 -> 17150.97513
B50: Total | C50: Total | E50: =D46*E46 -> 40402.76827 | F50: =SUM(F46:F49) -> 1 | K50: =SUM(K46:K49) -> 40402.76827 | L50: =SUM(L46:L49) -> 114339.8342 | N50: =SUM(N46:N49) -> 2.83 | O50: =SUM(O46:O49) -> 41022.34947 | P50: =SUM(P46:P49) -> 114339.8342
A52: Refrigeration | B52: Appliance Description | C52: Fuel | D52: Total fuel consumption in 2006/TJ | E52: Share of total fuel consumption | F52: Share of fuel used by appliance | G52: COP 2000 | H52: COP 2008 | J52: COP 2006 | K52: Energy Demand/ TJ/annum | L52: Useful energy TJ/annum
A53: Electric fridge | C53: Electricity | D53: ='2006 Energy data '!$B$11 -> 134716.5874 | E53: ='End use share 2006c'!F34 -> 0.07090953438 | F53: 1 | G53: =C107 -> 1 | H53: =D107 -> 1 | J53: 1 | K53: =D53*E53*F53 -> 9552.690486 | L53: =D53*F53*E53*J53 -> 9552.690486
A55: Relative efficiency
N56: Toms calcs
A57: Lighting | B57: Appliance Description | C57: Fuel | D57: Total fuel consumption in 2006/TJ | E57: Share of total fuel consumption | F57: Share of fuel used by appliance | G57: Relative Efficiency 2000 | H57: Relative Efficiency 2008 | J57: Relative Efficiency 2006 | K57: Energy Demand/ TJ/annum | L57: Useful energy TJ/annum | N57: weighted average COP | O57: Consumption [TJ] | P57: Output [Index]
A58: Lamp 1 | B58: CFL | C58: Electricity | D58: ='2006 Energy data '!$B$11 -> 134716.5874 | E58: ='End use share 2006c'!B34 -> 0.3757879384 | F58: 0.06 | G58: =C100 -> 4 | H58: 4 | I58: =(H58-G58)/8 -> 0 | J58: 4 | K58: =D58*E58*F58 -> 3037.492119 | L58: =D58*F58*E58*J58 -> 12149.96848 | N58: =F58*J58 -> 0.24 | O58: =P58/J58 -> 3455.147286 | P58: =F58*$N$63*$E$63 -> 13820.58914
A59: Lamp 2 | B59: Fluorescent | C59: Electricity | F59: 0.7 | G59: 4.5 | H59: 4.5 | I59: =(H59-G59)/8 -> 0 | J59: 4.5 | K59: =D58*E58*F59 -> 35437.40806 | L59: =D58*F59*E58*J59 -> 159468.3363 | N59: =F59*J59 -> 3.15 | O59: =P59/J59 -> 35831.15704 | P59: =F59*$N$63*$E$63 -> 161240.2067 | S59: Assumptions loosly on
A60: Lamp 3 | B60: Halogen | C60: Electricity | F60: 0.02 | G60: 2 | H60: 2 | I60: =(H60-G60)/8 -> 0 | J60: 2 | K60: =D58*E58*F60 -> 1012.497373 | L60: =D58*F60*E58*J60 -> 2024.994746 | N60: =F60*J60 -> 0.04 | O60: =P60/J60 -> 2303.431524 | P60: =F60*$N$63*$E$63 -> 4606.863047 | S60: CT budget for public lights
A61: Lamp 4 | B61: HID | C61: Electricity | F61: 0.15 | G61: 7 | H61: 7 | I61: =(H61-G61)/8 -> 0 | J61: 7 | K61: =D58*E58*F61 -> 7593.730298 | L61: =D58*F61*E58*J61 -> 53156.11209 | N61: =F61*J61 -> 1.05 | O61: =P61/J61 -> 4935.924694 | P61: =F61*$N$63*$E$63 -> 34551.47286 | U61: SEA efficient public lighting guide | Z61: From SEA eThekwini LEAP model methodology. According to a municipal study:
A62: Lamp 5 | B62: Incandescent | C62: Electricity | F62: 0.07 | G62: 1 | H62: 1 | I62: =(H62-G62)/8 -> 0 | J62: 1 | K62: =D58*E58*F62 -> 3543.740806 | L62: =D58*F62*E58*J62 -> 3543.740806 | N62: =F62*J62 -> 0.07 | O62: =P62/J62 -> 16124.02067 | P62: =F62*$N$63*$E$63 -> 16124.02067 | R62: Fuel shares | S62: Public lighting tech shares
C63: Total | E63: =E58*D58 -> 50624.86865 | F63: =SUM(F58:F62) -> 1 | K63: =SUM(K58:K62) -> 50624.86865 | L63: =SUM(L58:L62) -> 230343.1524 | N63: =SUM(N58:N62) -> 4.55 | O63: =SUM(O58:O62) -> 62649.6812 | P63: =SUM(P58:P62) -> 230343.1524 | V63: Lm/W
A64: Public Lighting
A65: Lamp 6 | B65: INCandescent | C65: Electricity | F65: =AA68 -> 0.0495 | H65: =G62 -> 1 | J65: =H65 -> 1 | R65: =S65/H65 -> 0.05 | S65: 0.05 | U65: HPS | V65: 45 -130 | W65: =130/20 -> 6.5 | Z65: MV lamp | AA65: 0.6276078117
A66: Lamp 7 | B66: HALogen | C66: Electricity | F66: =AA69 -> 0.0495 | H66: =G60 -> 2 | J66: 2 | R66: =S66/H66 -> 0.025 | S66: 0.05 | U66: MV | V66: 13 -48 | W66: =48/20 -> 2.4 | Z66: HPS lamp | AA66: 0.2638433158
A67: Lamp 8 | B67: HPMV | C67: =C58 -> Electricity | F67: =AA65 -> 0.6276078117 | H67: =W66 -> 2.4 | J67: 2.4 | R67: 0.1666666667 | S67: 0.4 | U67: Incand | V67: 11 -20 | W67: 1 | Z67: MH lamp | AA67: 0.009288854606
A68: Lamp 9 | B68: HPS | C68: =C67 -> Electricity | F68: =AA66 -> 0.2638433158 | H68: =W65 -> 6.5 | J68: 6.5 | R68: 0.06923076923 | S68: 0.45 | U68: MH | V68: 60-100 | W68: =100/20 -> 5 | Z68: Traffic INC | AA68: =9.9/2/100 -> 0.0495 | AB68: assum
A69: Lamp 11 | B69: MHL | C69: =C68 -> Electricity | F69: =AA67 -> 0.009288854606 | H69: =W68 -> 5 | J69: 5 | R69: 0.01 | S69: 0.05 | Z69: Traffic HAL | AA69: =9.9/2/100 -> 0.0495 | AB69: assum
A70: Lamp 12 | B70: LED | C70: =C69 -> Electricity | F70: =R70/SUM($R$65:$R$70) -> 0 | H70: 9.8 | J70: 9.8 | R70: 0 | S70: 0
F72: =SUM(F65:F70) -> 0.9997399821
A73: Summary
A75: Total | B75: 1994 (de villiers) energy demand | C75: 2001 (Tom) energy demand | D75: 2006 energy demand from sales data | E75: 2006 energy demand from above calcs | F75: 2006 useful energy from above calcs | G75: 2006 energy demand toms method | H75: 2006 useful energy toms method
B76: MJ/M2 | C76: MJ/M2 | D76: MJ/M2 | E76: MJ/M2 | F76: MJ/M2 | G76: MJ/M2 | H76: MJ/M2
A77: Space Heating | B77: ='End use share 1994'!D25 -> 197.7726575 | C77: ='End use share 2001'!C30 -> 165.6242263 | D77: ='End use share 2006c'!C28 -> 530.2259688 | E77: =K17/'floor space 1993-2007'!$C$34 -> 530.2214819 | F77: =L17/'floor space 1993-2007'!$C$34 -> 347.498246
A78: Water Heating | B78: ='End use share 1994'!E25 -> 170.5606759 | C78: ='End use share 2001'!D30 -> 121.4395135 | D78: ='End use share 2006c'!D28 -> 435.8220694 | E78: =K26/'floor space 1993-2007'!$C$34 -> 445.7690269 | F78: =L26/'floor space 1993-2007'!$C$34 -> 288.4257374
A79: Cooking | B79: ='End use share 1994'!H25 -> 16.14439324 | C79: ='End use share 2001'!G30 -> 6.172821216 | D79: ='End use share 2006c'!G28 -> 9.988371545 | E79: =K32/'floor space 1993-2007'!$C$34 -> 6.116174223 | F79: =L32/'floor space 1993-2007'!$C$34 -> 5.964757326
A80: Other | B80: ='End use share 1994'!I25 -> 150.4301075 | C80: ='End use share 2001'!H30 -> 132.6236536 | D80: ='End use share 2006c'!J28 -> 379.3677368 | E80: =K41/'floor space 1993-2007'!$C$34 -> 369.6493447 | F80: =L41/'floor space 1993-2007'!$C$34 -> 307.2052258
A81: Cooling | B81: ='End use share 1994'!F25 -> 352.0430108 | C81: ='End use share 2001'!E30 -> 315.4472835 | D81: ='End use share 2006c'!E28 -> 454.3350104 | E81: =K50/'floor space 1993-2007'!$C$34 -> 454.3350104 | F81: =L50/'floor space 1993-2007'!$C$34 -> 1285.768079 | G81: =O50/'floor space 1993-2007'!$C$34 -> 461.302291 | H81: =P50/'floor space 1993-2007'!$C$34 -> 1285.768079
A82: Refrigeration | B82: ='End use share 1994'!G25 -> 47.58832565 | C82: ='End use share 2001'!F30 -> 42.64140345 | D82: ='End use share 2006c'!F28 -> 107.421395 | E82: =K53/'floor space 1993-2007'!$C$34 -> 107.421395 | F82: =L53/'floor space 1993-2007'!$C$34 -> 107.421395 | G82: =O53/'floor space 1993-2007'!$C$34 -> 0 | H82: =P53/'floor space 1993-2007'!$C$34 -> 0
A83: Lighting | B83: ='End use share 1994'!C25 -> 215.1920123 | C83: ='End use share 2001'!B30 -> 192.8222792 | D83: ='End use share 2006c'!B28 -> 569.2840171 | E83: =K63/'floor space 1993-2007'!$C$34 -> 569.2840171 | F83: =L63/'floor space 1993-2007'!$C$34 -> 2590.242278 | G83: =O63/'floor space 1993-2007'!$C$34 -> 704.5047846 | H83: =P63/'floor space 1993-2007'!$C$34 -> 2590.242278
A87: OLD assumptions for efficiencies
A88: Note: for cooling and refrigeration this is COP: coefficient of performance - ratio of output heat to supplied work
A89: Note: efficiencies for lighting are relative to incandescent lights. Ie assume 100% for incandescent and calculate the other efficiencies relative to that
A91: fuel consumed | B91: device | C91: base year 2001 | D91: 2008
C92: Ref 1 | D92: Ref 2
A93: Cooling
A94: electricity | B94: air cooled chillers | C94: 2 | D94: 2.983050847
B95: central air conditioners | C95: 3 | D95: 4.228813559
B96: heat pumps | C96: 2.2 | D96: 3.281355932
B97: room air chillers | C97: 2 | D97: 3.228813559
A99: lighting
A100: electricity | B100: CFL | C100: 4 | D100: 4
B101: Fluorescents | C101: 4.5 | D101: 4.5
B102: Halogen | C102: 2 | D102: 2
B103: HID's | C103: 7 | D103: 7
B104: Incandescent | C104: 1 | D104: 1
A106: Refrigeration
A107: electricity | B107: refrigeration | C107: 1 | D107: 1
A109: Heating
A110: electricity | B110: heaters | C110: 1 | D110: 1
A111: Coal | B111: heaters/boilers | C111: 0.65 | D111: 0.8
A112: HFO | B112: heaters/boilers | D112: 0.85
A113: Methane rich gas | B113: heaters/boilers | C113: 0.75 | D113: 0.92
A115: Water heating
A116: electricity | C116: 1 | D116: 1
A117: LPG | C117: 0.75 | D117: 0.91
A118: paraffin | C118: 0.7 | D118: 0.91
A119: coal | B119: boilers | C119: 0.65 | D119: 0.8
A120: HFO | B120: boilers | C120: 0.65 | D120: 0.85
A121: methane rich gas | B121: boilers | C121: 0.75 | D121: 0.92
A122: Heat pump | D122: 3.03030303
A123: Solar water heater | D123: 10
A125: Cooking
A126: Electricity | B126: Stove 1 | C126: 1 | D126: 1
A127: LPG | B127: Stove 3 | C127: 0.9 | D127: 0.9
A128: coal | B128: Stove 2 | C128: 0.75 | D128: 0.75
A131: Other appliances?
A132: Coal | B132: appliances | C132: 0.75 | D132: 0.75
A133: elec | B133: appliances | C133: 1 | D133: 1
A134: LPG | B134: appliances | C134: 0.9 | D134: 0.9

Sheet Forecast
A1: Key
A2: Blue - value calculated in cell
A3: Red – value from external source
A4: Black – value linked to another cell or spreadsheet
A5: unreferenced data – from previous LTMS
A7: Year | B7: Reduction factor | C7: 2006 | D7: 2007 | E7: 2008 | F7: 2009 | G7: 2010 | H7: 2011 | I7: 2012 | J7: 2013 | K7: 2014 | L7: 2015 | M7: 2016 | N7: 2017 | O7: 2018 | P7: 2019 | Q7: 2020 | R7: 2021 | S7: 2022 | T7: 2023 | U7: 2024 | V7: 2025 | W7: 2026 | X7: 2027 | Y7: 2028 | Z7: 2029 | AA7: 2030 | AB7: 2031 | AC7: 2032 | AD7: 2033 | AE7: 2034 | AF7: 2035 | AG7: 2036
A8: Floor area[Million square meters] | C8: ='devilliers floor space projecti'!T45 -> 96.27175952 | D8: ='devilliers floor space projecti'!U45 -> 98.73530252 | E8: =[2]COM!M17 -> 0 | F8: =[2]COM!N17 -> 0 | G8: =[2]COM!O17 -> 0 | H8: =[2]COM!P17 -> 0 | I8: =[2]COM!Q17 -> 0 | J8: =[2]COM!R17 -> 0 | K8: =[2]COM!S17 -> 0 | L8: =[2]COM!T17 -> 0 | M8: =[2]COM!U17 -> 0 | N8: =[2]COM!V17 -> 0 | O8: =[2]COM!W17 -> 0 | P8: =[2]COM!X17 -> 0 | Q8: =[2]COM!Y17 -> 0 | R8: =[2]COM!Z17 -> 0 | S8: =[2]COM!AA17 -> 0 | T8: =[2]COM!AB17 -> 0 | U8: =[2]COM!AC17 -> 0 | V8: =[2]COM!AD17 -> 0 | W8: =[2]COM!AE17 -> 0 | X8: =[2]COM!AF17 -> 0 | Y8: =[2]COM!AG17 -> 0 | Z8: =[2]COM!AH17 -> 0 | AA8: =[2]COM!AI17 -> 0
A10: Energy demand [TJ]
A11: Space Heating | B11: 1 | C11: =Appliances!$D77*C$8*$B11 -> 51045.78696 | D11: =Appliances!$D77*D$8*$B11 -> 52352.02143 | E11: =Appliances!$D77*E$8*$B11 -> 0 | F11: =Appliances!$D77*F$8*$B11 -> 0 | G11: =Appliances!$D77*G$8*$B11 -> 0 | H11: =Appliances!$D77*H$8*$B11 -> 0 | I11: =Appliances!$D77*I$8*$B11 -> 0 | J11: =Appliances!$D77*J$8*$B11 -> 0 | K11: =Appliances!$D77*K$8*$B11 -> 0 | L11: =Appliances!$D77*L$8*$B11 -> 0 | M11: =Appliances!$D77*M$8*$B11 -> 0 | N11: =Appliances!$D77*N$8*$B11 -> 0 | O11: =Appliances!$D77*O$8*$B11 -> 0 | P11: =Appliances!$D77*P$8*$B11 -> 0 | Q11: =Appliances!$D77*Q$8*$B11 -> 0 | R11: =Appliances!$D77*R$8*$B11 -> 0 | S11: =Appliances!$D77*S$8*$B11 -> 0 | T11: =Appliances!$D77*T$8*$B11 -> 0 | U11: =Appliances!$D77*U$8*$B11 -> 0 | V11: =Appliances!$D77*V$8*$B11 -> 0 | W11: =Appliances!$D77*W$8*$B11 -> 0 | X11: =Appliances!$D77*X$8*$B11 -> 0 | Y11: =Appliances!$D77*Y$8*$B11 -> 0 | Z11: =Appliances!$D77*Z$8*$B11 -> 0 | AA11: =Appliances!$D77*AA$8*$B11 -> 0 | AB11: =Appliances!$D77*AB$8*$B11 ->  | AC11: =Appliances!$D77*AC$8*$B11 ->  | AD11: =Appliances!$D77*AD$8*$B11 ->  | AE11: =Appliances!$D77*AE$8*$B11 ->  | AF11: =Appliances!$D77*AF$8*$B11 ->  | AG11: =Appliances!$D77*AG$8*$B11 -> 
A12: Water Heating | B12: 1 | C12: =Appliances!$D78*C$8*$B12 -> 41957.35746 | D12: =Appliances!$D78*D$8*$B12 -> 43031.02387 | E12: =Appliances!$D78*E$8*$B12 -> 0 | F12: =Appliances!$D78*F$8*$B12 -> 0 | G12: =Appliances!$D78*G$8*$B12 -> 0 | H12: =Appliances!$D78*H$8*$B12 -> 0 | I12: =Appliances!$D78*I$8*$B12 -> 0 | J12: =Appliances!$D78*J$8*$B12 -> 0 | K12: =Appliances!$D78*K$8*$B12 -> 0 | L12: =Appliances!$D78*L$8*$B12 -> 0 | M12: =Appliances!$D78*M$8*$B12 -> 0 | N12: =Appliances!$D78*N$8*$B12 -> 0 | O12: =Appliances!$D78*O$8*$B12 -> 0 | P12: =Appliances!$D78*P$8*$B12 -> 0 | Q12: =Appliances!$D78*Q$8*$B12 -> 0 | R12: =Appliances!$D78*R$8*$B12 -> 0 | S12: =Appliances!$D78*S$8*$B12 -> 0 | T12: =Appliances!$D78*T$8*$B12 -> 0 | U12: =Appliances!$D78*U$8*$B12 -> 0 | V12: =Appliances!$D78*V$8*$B12 -> 0 | W12: =Appliances!$D78*W$8*$B12 -> 0 | X12: =Appliances!$D78*X$8*$B12 -> 0 | Y12: =Appliances!$D78*Y$8*$B12 -> 0 | Z12: =Appliances!$D78*Z$8*$B12 -> 0 | AA12: =Appliances!$D78*AA$8*$B12 -> 0 | AB12: =Appliances!$D78*AB$8*$B12 ->  | AC12: =Appliances!$D78*AC$8*$B12 ->  | AD12: =Appliances!$D78*AD$8*$B12 ->  | AE12: =Appliances!$D78*AE$8*$B12 ->  | AF12: =Appliances!$D78*AF$8*$B12 ->  | AG12: =Appliances!$D78*AG$8*$B12 -> 
A13: Cooking | B13: 1 | C13: =Appliances!$D79*C$8*$B13 -> 961.5981033 | D13: =Appliances!$D79*D$8*$B13 -> 986.2048861 | E13: =Appliances!$D79*E$8*$B13 -> 0 | F13: =Appliances!$D79*F$8*$B13 -> 0 | G13: =Appliances!$D79*G$8*$B13 -> 0 | H13: =Appliances!$D79*H$8*$B13 -> 0 | I13: =Appliances!$D79*I$8*$B13 -> 0 | J13: =Appliances!$D79*J$8*$B13 -> 0 | K13: =Appliances!$D79*K$8*$B13 -> 0 | L13: =Appliances!$D79*L$8*$B13 -> 0 | M13: =Appliances!$D79*M$8*$B13 -> 0 | N13: =Appliances!$D79*N$8*$B13 -> 0 | O13: =Appliances!$D79*O$8*$B13 -> 0 | P13: =Appliances!$D79*P$8*$B13 -> 0 | Q13: =Appliances!$D79*Q$8*$B13 -> 0 | R13: =Appliances!$D79*R$8*$B13 -> 0 | S13: =Appliances!$D79*S$8*$B13 -> 0 | T13: =Appliances!$D79*T$8*$B13 -> 0 | U13: =Appliances!$D79*U$8*$B13 -> 0 | V13: =Appliances!$D79*V$8*$B13 -> 0 | W13: =Appliances!$D79*W$8*$B13 -> 0 | X13: =Appliances!$D79*X$8*$B13 -> 0 | Y13: =Appliances!$D79*Y$8*$B13 -> 0 | Z13: =Appliances!$D79*Z$8*$B13 -> 0 | AA13: =Appliances!$D79*AA$8*$B13 -> 0 | AB13: =Appliances!$D79*AB$8*$B13 ->  | AC13: =Appliances!$D79*AC$8*$B13 ->  | AD13: =Appliances!$D79*AD$8*$B13 ->  | AE13: =Appliances!$D79*AE$8*$B13 ->  | AF13: =Appliances!$D79*AF$8*$B13 ->  | AG13: =Appliances!$D79*AG$8*$B13 -> 
A14: Other | B14: 1 | C14: =Appliances!$D80*C$8*$B14 -> 36522.39953 | D14: =Appliances!$D80*D$8*$B14 -> 37456.98826 | E14: =Appliances!$D80*E$8*$B14 -> 0 | F14: =Appliances!$D80*F$8*$B14 -> 0 | G14: =Appliances!$D80*G$8*$B14 -> 0 | H14: =Appliances!$D80*H$8*$B14 -> 0 | I14: =Appliances!$D80*I$8*$B14 -> 0 | J14: =Appliances!$D80*J$8*$B14 -> 0 | K14: =Appliances!$D80*K$8*$B14 -> 0 | L14: =Appliances!$D80*L$8*$B14 -> 0 | M14: =Appliances!$D80*M$8*$B14 -> 0 | N14: =Appliances!$D80*N$8*$B14 -> 0 | O14: =Appliances!$D80*O$8*$B14 -> 0 | P14: =Appliances!$D80*P$8*$B14 -> 0 | Q14: =Appliances!$D80*Q$8*$B14 -> 0 | R14: =Appliances!$D80*R$8*$B14 -> 0 | S14: =Appliances!$D80*S$8*$B14 -> 0 | T14: =Appliances!$D80*T$8*$B14 -> 0 | U14: =Appliances!$D80*U$8*$B14 -> 0 | V14: =Appliances!$D80*V$8*$B14 -> 0 | W14: =Appliances!$D80*W$8*$B14 -> 0 | X14: =Appliances!$D80*X$8*$B14 -> 0 | Y14: =Appliances!$D80*Y$8*$B14 -> 0 | Z14: =Appliances!$D80*Z$8*$B14 -> 0 | AA14: =Appliances!$D80*AA$8*$B14 -> 0 | AB14: =Appliances!$D80*AB$8*$B14 ->  | AC14: =Appliances!$D80*AC$8*$B14 ->  | AD14: =Appliances!$D80*AD$8*$B14 ->  | AE14: =Appliances!$D80*AE$8*$B14 ->  | AF14: =Appliances!$D80*AF$8*$B14 ->  | AG14: =Appliances!$D80*AG$8*$B14 -> 
A15: Cooling | B15: 1 | C15: =Appliances!$D81*C$8*$B15 -> 43739.63086 | D15: =Appliances!$D81*D$8*$B15 -> 44858.90469 | E15: =Appliances!$D81*E$8*$B15 -> 0 | F15: =Appliances!$D81*F$8*$B15 -> 0 | G15: =Appliances!$D81*G$8*$B15 -> 0 | H15: =Appliances!$D81*H$8*$B15 -> 0 | I15: =Appliances!$D81*I$8*$B15 -> 0 | J15: =Appliances!$D81*J$8*$B15 -> 0 | K15: =Appliances!$D81*K$8*$B15 -> 0 | L15: =Appliances!$D81*L$8*$B15 -> 0 | M15: =Appliances!$D81*M$8*$B15 -> 0 | N15: =Appliances!$D81*N$8*$B15 -> 0 | O15: =Appliances!$D81*O$8*$B15 -> 0 | P15: =Appliances!$D81*P$8*$B15 -> 0 | Q15: =Appliances!$D81*Q$8*$B15 -> 0 | R15: =Appliances!$D81*R$8*$B15 -> 0 | S15: =Appliances!$D81*S$8*$B15 -> 0 | T15: =Appliances!$D81*T$8*$B15 -> 0 | U15: =Appliances!$D81*U$8*$B15 -> 0 | V15: =Appliances!$D81*V$8*$B15 -> 0 | W15: =Appliances!$D81*W$8*$B15 -> 0 | X15: =Appliances!$D81*X$8*$B15 -> 0 | Y15: =Appliances!$D81*Y$8*$B15 -> 0 | Z15: =Appliances!$D81*Z$8*$B15 -> 0 | AA15: =Appliances!$D81*AA$8*$B15 -> 0 | AB15: =Appliances!$D81*AB$8*$B15 ->  | AC15: =Appliances!$D81*AC$8*$B15 ->  | AD15: =Appliances!$D81*AD$8*$B15 ->  | AE15: =Appliances!$D81*AE$8*$B15 ->  | AF15: =Appliances!$D81*AF$8*$B15 ->  | AG15: =Appliances!$D81*AG$8*$B15 -> 
A16: Refrigeration | B16: 1 | C16: =Appliances!$D82*C$8*$B16 -> 10341.64671 | D16: =Appliances!$D82*D$8*$B16 -> 10606.28394 | E16: =Appliances!$D82*E$8*$B16 -> 0 | F16: =Appliances!$D82*F$8*$B16 -> 0 | G16: =Appliances!$D82*G$8*$B16 -> 0 | H16: =Appliances!$D82*H$8*$B16 -> 0 | I16: =Appliances!$D82*I$8*$B16 -> 0 | J16: =Appliances!$D82*J$8*$B16 -> 0 | K16: =Appliances!$D82*K$8*$B16 -> 0 | L16: =Appliances!$D82*L$8*$B16 -> 0 | M16: =Appliances!$D82*M$8*$B16 -> 0 | N16: =Appliances!$D82*N$8*$B16 -> 0 | O16: =Appliances!$D82*O$8*$B16 -> 0 | P16: =Appliances!$D82*P$8*$B16 -> 0 | Q16: =Appliances!$D82*Q$8*$B16 -> 0 | R16: =Appliances!$D82*R$8*$B16 -> 0 | S16: =Appliances!$D82*S$8*$B16 -> 0 | T16: =Appliances!$D82*T$8*$B16 -> 0 | U16: =Appliances!$D82*U$8*$B16 -> 0 | V16: =Appliances!$D82*V$8*$B16 -> 0 | W16: =Appliances!$D82*W$8*$B16 -> 0 | X16: =Appliances!$D82*X$8*$B16 -> 0 | Y16: =Appliances!$D82*Y$8*$B16 -> 0 | Z16: =Appliances!$D82*Z$8*$B16 -> 0 | AA16: =Appliances!$D82*AA$8*$B16 -> 0 | AB16: =Appliances!$D82*AB$8*$B16 ->  | AC16: =Appliances!$D82*AC$8*$B16 ->  | AD16: =Appliances!$D82*AD$8*$B16 ->  | AE16: =Appliances!$D82*AE$8*$B16 ->  | AF16: =Appliances!$D82*AF$8*$B16 ->  | AG16: =Appliances!$D82*AG$8*$B16 -> 
A17: Lighting | B17: 1 | C17: =Appliances!$D83*C$8*$B17 -> 54805.97399 | D17: =Appliances!$D83*D$8*$B17 -> 56208.42964 | E17: =Appliances!$D83*E$8*$B17 -> 0 | F17: =Appliances!$D83*F$8*$B17 -> 0 | G17: =Appliances!$D83*G$8*$B17 -> 0 | H17: =Appliances!$D83*H$8*$B17 -> 0 | I17: =Appliances!$D83*I$8*$B17 -> 0 | J17: =Appliances!$D83*J$8*$B17 -> 0 | K17: =Appliances!$D83*K$8*$B17 -> 0 | L17: =Appliances!$D83*L$8*$B17 -> 0 | M17: =Appliances!$D83*M$8*$B17 -> 0 | N17: =Appliances!$D83*N$8*$B17 -> 0 | O17: =Appliances!$D83*O$8*$B17 -> 0 | P17: =Appliances!$D83*P$8*$B17 -> 0 | Q17: =Appliances!$D83*Q$8*$B17 -> 0 | R17: =Appliances!$D83*R$8*$B17 -> 0 | S17: =Appliances!$D83*S$8*$B17 -> 0 | T17: =Appliances!$D83*T$8*$B17 -> 0 | U17: =Appliances!$D83*U$8*$B17 -> 0 | V17: =Appliances!$D83*V$8*$B17 -> 0 | W17: =Appliances!$D83*W$8*$B17 -> 0 | X17: =Appliances!$D83*X$8*$B17 -> 0 | Y17: =Appliances!$D83*Y$8*$B17 -> 0 | Z17: =Appliances!$D83*Z$8*$B17 -> 0 | AA17: =Appliances!$D83*AA$8*$B17 -> 0 | AB17: =Appliances!$D83*AB$8*$B17 ->  | AC17: =Appliances!$D83*AC$8*$B17 ->  | AD17: =Appliances!$D83*AD$8*$B17 ->  | AE17: =Appliances!$D83*AE$8*$B17 ->  | AF17: =Appliances!$D83*AF$8*$B17 ->  | AG17: =Appliances!$D83*AG$8*$B17 -> 
A18: Total | B18: 1 | C18: =SUM(C11:C17) -> 239374.3936 | D18: 245499.8567 | E18: 0 | F18: 0 | G18: 0 | H18: 0 | I18: 0 | J18: 0 | K18: 0 | L18: 0 | M18: 0 | N18: 0 | O18: 0 | P18: 0 | Q18: 0 | R18: 0 | S18: 0 | T18: 0 | U18: 0 | V18: 0 | W18: 0 | X18: 0 | Y18: 0 | Z18: 0 | AA18: 0
A20: Useful energy [TJ]
A21: Space Heating | B21: 1 | C21: =Appliances!$F77*C$8*$B21 -> 33454.26757 | D21: =Appliances!$F77*D$8*$B21 -> 34310.34444 | E21: =Appliances!$F77*E$8*$B21 -> 0 | F21: =Appliances!$F77*F$8*$B21 -> 0 | G21: =Appliances!$F77*G$8*$B21 -> 0 | H21: =Appliances!$F77*H$8*$B21 -> 0 | I21: =Appliances!$F77*I$8*$B21 -> 0 | J21: =Appliances!$F77*J$8*$B21 -> 0 | K21: =Appliances!$F77*K$8*$B21 -> 0 | L21: =Appliances!$F77*L$8*$B21 -> 0 | M21: =Appliances!$F77*M$8*$B21 -> 0 | N21: =Appliances!$F77*N$8*$B21 -> 0 | O21: =Appliances!$F77*O$8*$B21 -> 0 | P21: =Appliances!$F77*P$8*$B21 -> 0 | Q21: =Appliances!$F77*Q$8*$B21 -> 0 | R21: =Appliances!$F77*R$8*$B21 -> 0 | S21: =Appliances!$F77*S$8*$B21 -> 0 | T21: =Appliances!$F77*T$8*$B21 -> 0 | U21: =Appliances!$F77*U$8*$B21 -> 0 | V21: =Appliances!$F77*V$8*$B21 -> 0 | W21: =Appliances!$F77*W$8*$B21 -> 0 | X21: =Appliances!$F77*X$8*$B21 -> 0 | Y21: =Appliances!$F77*Y$8*$B21 -> 0 | Z21: =Appliances!$F77*Z$8*$B21 -> 0 | AA21: =Appliances!$F77*AA$8*$B21 -> 0 | AB21: =Appliances!$F77*AB$8*$B21 ->  | AC21: =Appliances!$F77*AC$8*$B21 ->  | AD21: =Appliances!$F77*AD$8*$B21 ->  | AE21: =Appliances!$F77*AE$8*$B21 ->  | AF21: =Appliances!$F77*AF$8*$B21 ->  | AG21: =Appliances!$F77*AG$8*$B21 -> 
A22: Water Heating | B22: 1 | C22: =Appliances!$F78*C$8*$B22 -> 27767.25323 | D22: =Appliances!$F78*D$8*$B22 -> 28477.80243 | E22: =Appliances!$F78*E$8*$B22 -> 0 | F22: =Appliances!$F78*F$8*$B22 -> 0 | G22: =Appliances!$F78*G$8*$B22 -> 0 | H22: =Appliances!$F78*H$8*$B22 -> 0 | I22: =Appliances!$F78*I$8*$B22 -> 0 | J22: =Appliances!$F78*J$8*$B22 -> 0 | K22: =Appliances!$F78*K$8*$B22 -> 0 | L22: =Appliances!$F78*L$8*$B22 -> 0 | M22: =Appliances!$F78*M$8*$B22 -> 0 | N22: =Appliances!$F78*N$8*$B22 -> 0 | O22: =Appliances!$F78*O$8*$B22 -> 0 | P22: =Appliances!$F78*P$8*$B22 -> 0 | Q22: =Appliances!$F78*Q$8*$B22 -> 0 | R22: =Appliances!$F78*R$8*$B22 -> 0 | S22: =Appliances!$F78*S$8*$B22 -> 0 | T22: =Appliances!$F78*T$8*$B22 -> 0 | U22: =Appliances!$F78*U$8*$B22 -> 0 | V22: =Appliances!$F78*V$8*$B22 -> 0 | W22: =Appliances!$F78*W$8*$B22 -> 0 | X22: =Appliances!$F78*X$8*$B22 -> 0 | Y22: =Appliances!$F78*Y$8*$B22 -> 0 | Z22: =Appliances!$F78*Z$8*$B22 -> 0 | AA22: =Appliances!$F78*AA$8*$B22 -> 0 | AB22: =Appliances!$F78*AB$8*$B22 ->  | AC22: =Appliances!$F78*AC$8*$B22 ->  | AD22: =Appliances!$F78*AD$8*$B22 ->  | AE22: =Appliances!$F78*AE$8*$B22 ->  | AF22: =Appliances!$F78*AF$8*$B22 ->  | AG22: =Appliances!$F78*AG$8*$B22 -> 
A23: Cooking | B23: 1 | C23: =Appliances!$F79*C$8*$B23 -> 574.2376828 | D23: =Appliances!$F79*D$8*$B23 -> 588.932119 | E23: =Appliances!$F79*E$8*$B23 -> 0 | F23: =Appliances!$F79*F$8*$B23 -> 0 | G23: =Appliances!$F79*G$8*$B23 -> 0 | H23: =Appliances!$F79*H$8*$B23 -> 0 | I23: =Appliances!$F79*I$8*$B23 -> 0 | J23: =Appliances!$F79*J$8*$B23 -> 0 | K23: =Appliances!$F79*K$8*$B23 -> 0 | L23: =Appliances!$F79*L$8*$B23 -> 0 | M23: =Appliances!$F79*M$8*$B23 -> 0 | N23: =Appliances!$F79*N$8*$B23 -> 0 | O23: =Appliances!$F79*O$8*$B23 -> 0 | P23: =Appliances!$F79*P$8*$B23 -> 0 | Q23: =Appliances!$F79*Q$8*$B23 -> 0 | R23: =Appliances!$F79*R$8*$B23 -> 0 | S23: =Appliances!$F79*S$8*$B23 -> 0 | T23: =Appliances!$F79*T$8*$B23 -> 0 | U23: =Appliances!$F79*U$8*$B23 -> 0 | V23: =Appliances!$F79*V$8*$B23 -> 0 | W23: =Appliances!$F79*W$8*$B23 -> 0 | X23: =Appliances!$F79*X$8*$B23 -> 0 | Y23: =Appliances!$F79*Y$8*$B23 -> 0 | Z23: =Appliances!$F79*Z$8*$B23 -> 0 | AA23: =Appliances!$F79*AA$8*$B23 -> 0 | AB23: =Appliances!$F79*AB$8*$B23 ->  | AC23: =Appliances!$F79*AC$8*$B23 ->  | AD23: =Appliances!$F79*AD$8*$B23 ->  | AE23: =Appliances!$F79*AE$8*$B23 ->  | AF23: =Appliances!$F79*AF$8*$B23 ->  | AG23: =Appliances!$F79*AG$8*$B23 -> 
A24: Other | B24: 1 | C24: =Appliances!$F80*C$8*$B24 -> 29575.18762 | D24: =Appliances!$F80*D$8*$B24 -> 30332.00091 | E24: =Appliances!$F80*E$8*$B24 -> 0 | F24: =Appliances!$F80*F$8*$B24 -> 0 | G24: =Appliances!$F80*G$8*$B24 -> 0 | H24: =Appliances!$F80*H$8*$B24 -> 0 | I24: =Appliances!$F80*I$8*$B24 -> 0 | J24: =Appliances!$F80*J$8*$B24 -> 0 | K24: =Appliances!$F80*K$8*$B24 -> 0 | L24: =Appliances!$F80*L$8*$B24 -> 0 | M24: =Appliances!$F80*M$8*$B24 -> 0 | N24: =Appliances!$F80*N$8*$B24 -> 0 | O24: =Appliances!$F80*O$8*$B24 -> 0 | P24: =Appliances!$F80*P$8*$B24 -> 0 | Q24: =Appliances!$F80*Q$8*$B24 -> 0 | R24: =Appliances!$F80*R$8*$B24 -> 0 | S24: =Appliances!$F80*S$8*$B24 -> 0 | T24: =Appliances!$F80*T$8*$B24 -> 0 | U24: =Appliances!$F80*U$8*$B24 -> 0 | V24: =Appliances!$F80*V$8*$B24 -> 0 | W24: =Appliances!$F80*W$8*$B24 -> 0 | X24: =Appliances!$F80*X$8*$B24 -> 0 | Y24: =Appliances!$F80*Y$8*$B24 -> 0 | Z24: =Appliances!$F80*Z$8*$B24 -> 0 | AA24: =Appliances!$F80*AA$8*$B24 -> 0 | AB24: =Appliances!$F80*AB$8*$B24 ->  | AC24: =Appliances!$F80*AC$8*$B24 ->  | AD24: =Appliances!$F80*AD$8*$B24 ->  | AE24: =Appliances!$F80*AE$8*$B24 ->  | AF24: =Appliances!$F80*AF$8*$B24 ->  | AG24: =Appliances!$F80*AG$8*$B24 -> 
A25: Cooling | B25: 1 | C25: =Appliances!$F81*C$8*$B25 -> 123783.1553 | D25: =Appliances!$F81*D$8*$B25 -> 126950.7003 | E25: =Appliances!$F81*E$8*$B25 -> 0 | F25: =Appliances!$F81*F$8*$B25 -> 0 | G25: =Appliances!$F81*G$8*$B25 -> 0 | H25: =Appliances!$F81*H$8*$B25 -> 0 | I25: =Appliances!$F81*I$8*$B25 -> 0 | J25: =Appliances!$F81*J$8*$B25 -> 0 | K25: =Appliances!$F81*K$8*$B25 -> 0 | L25: =Appliances!$F81*L$8*$B25 -> 0 | M25: =Appliances!$F81*M$8*$B25 -> 0 | N25: =Appliances!$F81*N$8*$B25 -> 0 | O25: =Appliances!$F81*O$8*$B25 -> 0 | P25: =Appliances!$F81*P$8*$B25 -> 0 | Q25: =Appliances!$F81*Q$8*$B25 -> 0 | R25: =Appliances!$F81*R$8*$B25 -> 0 | S25: =Appliances!$F81*S$8*$B25 -> 0 | T25: =Appliances!$F81*T$8*$B25 -> 0 | U25: =Appliances!$F81*U$8*$B25 -> 0 | V25: =Appliances!$F81*V$8*$B25 -> 0 | W25: =Appliances!$F81*W$8*$B25 -> 0 | X25: =Appliances!$F81*X$8*$B25 -> 0 | Y25: =Appliances!$F81*Y$8*$B25 -> 0 | Z25: =Appliances!$F81*Z$8*$B25 -> 0 | AA25: =Appliances!$F81*AA$8*$B25 -> 0 | AB25: =Appliances!$F81*AB$8*$B25 ->  | AC25: =Appliances!$F81*AC$8*$B25 ->  | AD25: =Appliances!$F81*AD$8*$B25 ->  | AE25: =Appliances!$F81*AE$8*$B25 ->  | AF25: =Appliances!$F81*AF$8*$B25 ->  | AG25: =Appliances!$F81*AG$8*$B25 -> 
A26: Refrigeration | B26: 1 | C26: =Appliances!$F82*C$8*$B26 -> 10341.64671 | D26: =Appliances!$F82*D$8*$B26 -> 10606.28394 | E26: =Appliances!$F82*E$8*$B26 -> 0 | F26: =Appliances!$F82*F$8*$B26 -> 0 | G26: =Appliances!$F82*G$8*$B26 -> 0 | H26: =Appliances!$F82*H$8*$B26 -> 0 | I26: =Appliances!$F82*I$8*$B26 -> 0 | J26: =Appliances!$F82*J$8*$B26 -> 0 | K26: =Appliances!$F82*K$8*$B26 -> 0 | L26: =Appliances!$F82*L$8*$B26 -> 0 | M26: =Appliances!$F82*M$8*$B26 -> 0 | N26: =Appliances!$F82*N$8*$B26 -> 0 | O26: =Appliances!$F82*O$8*$B26 -> 0 | P26: =Appliances!$F82*P$8*$B26 -> 0 | Q26: =Appliances!$F82*Q$8*$B26 -> 0 | R26: =Appliances!$F82*R$8*$B26 -> 0 | S26: =Appliances!$F82*S$8*$B26 -> 0 | T26: =Appliances!$F82*T$8*$B26 -> 0 | U26: =Appliances!$F82*U$8*$B26 -> 0 | V26: =Appliances!$F82*V$8*$B26 -> 0 | W26: =Appliances!$F82*W$8*$B26 -> 0 | X26: =Appliances!$F82*X$8*$B26 -> 0 | Y26: =Appliances!$F82*Y$8*$B26 -> 0 | Z26: =Appliances!$F82*Z$8*$B26 -> 0 | AA26: =Appliances!$F82*AA$8*$B26 -> 0 | AB26: =Appliances!$F82*AB$8*$B26 ->  | AC26: =Appliances!$F82*AC$8*$B26 ->  | AD26: =Appliances!$F82*AD$8*$B26 ->  | AE26: =Appliances!$F82*AE$8*$B26 ->  | AF26: =Appliances!$F82*AF$8*$B26 ->  | AG26: =Appliances!$F82*AG$8*$B26 -> 
A27: Lighting | B27: 1 | C27: =Appliances!$F83*C$8*$B27 -> 249367.1816 | D27: =Appliances!$F83*D$8*$B27 -> 255748.3549 | E27: =Appliances!$F83*E$8*$B27 -> 0 | F27: =Appliances!$F83*F$8*$B27 -> 0 | G27: =Appliances!$F83*G$8*$B27 -> 0 | H27: =Appliances!$F83*H$8*$B27 -> 0 | I27: =Appliances!$F83*I$8*$B27 -> 0 | J27: =Appliances!$F83*J$8*$B27 -> 0 | K27: =Appliances!$F83*K$8*$B27 -> 0 | L27: =Appliances!$F83*L$8*$B27 -> 0 | M27: =Appliances!$F83*M$8*$B27 -> 0 | N27: =Appliances!$F83*N$8*$B27 -> 0 | O27: =Appliances!$F83*O$8*$B27 -> 0 | P27: =Appliances!$F83*P$8*$B27 -> 0 | Q27: =Appliances!$F83*Q$8*$B27 -> 0 | R27: =Appliances!$F83*R$8*$B27 -> 0 | S27: =Appliances!$F83*S$8*$B27 -> 0 | T27: =Appliances!$F83*T$8*$B27 -> 0 | U27: =Appliances!$F83*U$8*$B27 -> 0 | V27: =Appliances!$F83*V$8*$B27 -> 0 | W27: =Appliances!$F83*W$8*$B27 -> 0 | X27: =Appliances!$F83*X$8*$B27 -> 0 | Y27: =Appliances!$F83*Y$8*$B27 -> 0 | Z27: =Appliances!$F83*Z$8*$B27 -> 0 | AA27: =Appliances!$F83*AA$8*$B27 -> 0 | AB27: =Appliances!$F83*AB$8*$B27 ->  | AC27: =Appliances!$F83*AC$8*$B27 ->  | AD27: =Appliances!$F83*AD$8*$B27 ->  | AE27: =Appliances!$F83*AE$8*$B27 ->  | AF27: =Appliances!$F83*AF$8*$B27 ->  | AG27: =Appliances!$F83*AG$8*$B27 -> 
A28: Total | B28: 1 | C28: =SUM(C21:C27) -> 474862.9298 | D28: 487014.419 | E28: 0 | F28: 0 | G28: 0 | H28: 0 | I28: 0 | J28: 0 | K28: 0 | L28: 0 | M28: 0 | N28: 0 | O28: 0 | P28: 0 | Q28: 0 | R28: 0 | S28: 0 | T28: 0 | U28: 0 | V28: 0 | W28: 0 | X28: 0 | Y28: 0 | Z28: 0 | AA28: 0
D35: Energy Outlook 2002 SA | H35: CT 2011
E36: 2000
D37: PJ | G37: PJ
C38: Elec | D38: 62 | E38: =D38/$D$47 -> 0.8115183246 | G38: =$G$47*H38 -> 19.872 | H38: 0.96
C39: coal | D39: 6.2 | E39: 0.08115183246 | G39: =$G$47*H39 -> 0.207 | H39: 0.01
C40: diesel | D40: 1.5 | E40: 0.01963350785 | G40: =$G$47*H40 -> 0 | H40: 0
C41: fuel oil | D41: 3 | E41: 0.03926701571
C42: H rich gas | D42: 0.8 | E42: 0.01047120419
C43: LPG | D43: 2.4 | E43: 0.03141361257 | G43: =$G$47*H43 -> 0.414 | H43: 0.02
C44: Parrafin | D44: 0.2 | E44: 0.002617801047 | G44: =$G$47*H44 -> 0.207 | H44: 0.01
C45: NG | D45: 0 | E45: 0
C46: Town gas | D46: 0.3 | E46: 0.003926701571
D47: =SUM(D38:D46) -> 76.4 | E47: =SUM(E38:E46) -> 1 | G47: 20.7 | H47: =SUM(H38:H46) -> 1
D49: =D43*1.37 -> 3.288

Sheet Technology costs
A1: CPI Index | B1: 2000 | C1: 2001 | D1: 2002 | E1: 2003 | F1: 2004 | G1: 2005 | H1: 2006 | I1: 2007 | J1: 2008 | K1: 2009 | L1: 2010 | M1: 2011
B2: 62.5 | C2: 66.1 | D2: 72.1 | E2: 76.3 | F2: 77.4 | G2: 80 | H2: 83.7 | I2: 89.7 | J2: 100 | K2: 107.1 | L2: 111.7 | M2: 118.1
B4: 2005 $1 = | C4: =Deflator!P25 -> 6.359328333 | D4: ZAR
D5: US NEMS costs | G5: OLD LTMS Check
C6: Source: | D6: Inv Cost (US$) | E6: Year | F6: 2010 Rands | G6: 2001 Rand value | H6: 2007 Rand value | I6: Inv cost
A7: =COM!A61 -> Commercial - Cooling - Electricity - Chiller - Existing | B7: =COM!B61 -> CECELCCHIL-E | D7: 3.223867809 | E7: 2005 | F7: =D7*$C$4*deflate05to10 -> 29.68221405 | G7: 199.095 | H7: =($I$2/$C$2)*G7 -> 270.1788427 | I7: =H7*Deflator!$B$14 -> 339.7471675
A8: =COM!A62 -> Commercial - Cooling - Electricity - Central - Existing | B8: =COM!B62 -> CECELCCEN-E | D8: 5.430599755 | E8: 2005 | F8: =D8*$C$4*deflate05to10 -> 49.99963828 | G8: 122.52 | H8: =($I$2/$C$2)*G8 -> 166.2639032 | I8: =H8*Deflator!$B$14 -> 209.07518
A9: =COM!A63 -> Commercial - Cooling - Electricity - Heat Pump - Existing | B9: =COM!B63 -> CECELCHP-E | D9: 7.061689106 | E9: 2005 | F9: =D9*$C$4*deflate05to10 -> 65.01710988 | G9: 321.615 | H9: =($I$2/$C$2)*G9 -> 436.4427458 | I9: =H9*Deflator!$B$14 -> 548.8223476
A10: =COM!A64 -> Commercial - Cooling - Electricity - Room - Existing | B10: =COM!B64 -> CECELCROOM-E | D10: 2.94749082 | E10: 2005 | F10: =D10*$C$4*deflate05to10 -> 27.1376057 | G10: 168.465 | H10: 228.6128669 | I10: =H10*Deflator!$B$14 -> 287.4783725
A11: =COM!A69 -> Commercial - Space Heating - Coal - Existing | B11: =COM!B69 -> CEHCOA-E | E11: 2005 | F11: =I11 -> 653.3599376 | G11: 382.875 | H11: 519.5746974 | I11: =H11*Deflator!$B$14 -> 653.3599376
A12: =COM!A70 -> Commercial - Space Heating - Electricity - Existing | B12: =COM!B70 -> CEHELC-E | D12: 1.865116279 | E12: 2005 | F12: =D12*$C$4*deflate05to10 -> 17.1721621 | G12: 229.725 | H12: 311.7448185 | I12: =H12*Deflator!$B$14 -> 392.0159625
A13: =COM!A75 -> Commercial - Cooking - Oil LPG - Existing | B13: =COM!B75 -> CEKOLP-E | E13: 2005 | F13: =I13 -> 85.32287791 | G13: no cooking | I13: =I19 -> 85.32287791
A14: =COM!A78 -> Commercial - Lighting - Electricity - CFL - Existing | B14: =COM!B78 -> CELELCCFL-E | D14: 66.2998776 | E14: 2005 | F14: =D14*$C$4*deflate05to10 -> 610.4242713 | G14: 45.2 | H14: 61.33797277 | I14: =H14*Deflator!$B$14 -> 77.13188163
A15: =COM!A79 -> Commercial - Lighting - Electricity - FLU - Existing | B15: =COM!B79 -> CELELCFLU-E | D15: 66.58115055 | E15: 2005 | F15: 613.0139569 | G15: 37.7 | H15: 51.1602118 | I15: =H15*Deflator!$B$14 -> 64.33344994
A16: =COM!A80 -> Commercial - Lighting - Electricity - HAL - Existing | B16: =COM!B80 -> CELELCHAL-E | D16: 80.89718482 | E16: 2005 | F16: 744.8219647 | G16: 13.6 | H16: 18.45567322 | I16: =H16*Deflator!$B$14 -> 23.20782279
A17: =COM!A81 -> Commercial - Lighting - Electricity - HID - Existing | B17: =COM!B81 -> CELELCHID-E | D17: 61.52741738 | E17: 2005 | F17: 566.4841366 | G17: 5.5 | H17: 7.463691377 | I17: =H17*Deflator!$B$14 -> 9.38551657
A18: =COM!A82 -> Commercial - Lighting - Electricity - INC - Existing | B18: =COM!B82 -> CELELCINC-E | D18: 18.72019584 | E18: 2005 | F18: 172.3572096 | G18: 74.8 | H18: 101.5062027 | I18: =H18*Deflator!$B$14 -> 127.6430253
A19: =COM!A86 -> Commercial - Refrigeration - Electricity - Existing | B19: =COM!B86 -> CERELC-E | D19: 102.9456548 | E19: 2005 | F19: 947.8226599 | G19: 50 | H19: 67.85173979 | I19: =H19*Deflator!$B$14 -> 85.32287791
A20: =COM!A90 -> Commercial - Water Heating - Electricity - Existing | B20: =COM!B90 -> CEWELC-E | D20: 1.874663403 | E20: 2005 | F20: 17.26006266 | G20: 40 | H20: 54.28139183 | I20: =H20*Deflator!$B$14 -> 68.25830232
A21: =COM!A91 -> Commercial - Water Heating - Coal - Existing | B21: =COM!B91 -> CEWCOA-E | E21: 2005 | F21: =I21 -> 102.3874535 | G21: 60 | H21: 81.42208775 | I21: =H21*Deflator!$B$14 -> 102.3874535
A22: =COM!A92 -> Commercial - Water Heating - Oil LPG - Existing | B22: =COM!B92 -> CEWOLP-E | D22: 1.473684211 | E22: 2005 | F22: =D22*$C$4*deflate05to10 -> 13.56823938 | G22: 60 | H22: 81.42208775 | I22: =H22*Deflator!$B$14 -> 102.3874535
A23: =COM!A108 -> Commercial - Other - Coal - Existing | B23: =COM!B108 -> CEOCOA-E | E23: 2005 | F23: =I23*deflate07to10 -> 249.6022861 | G23: no cost | I23: =AVERAGE($I$7:$I$22) -> 198.4924768
A24: =COM!A109 -> Commercial - Other - Oil Diesel - Existing | B24: =COM!B109 -> CEOODS-E | E24: 2005 | F24: 249.6022861 | G24: no cost | I24: =AVERAGE($I$7:$I$22) -> 198.4924768
A25: =COM!A110 -> Commercial - Other - Electricity - Existing | B25: =COM!B110 -> CEOELC-E | D25: 139.9698898 | E25: 2005 | F25: 249.6022861 | G25: no cost | I25: =AVERAGE($I$7:$I$22) -> 198.4924768
A26: =COM!A111 -> Commercial - Other - Gas - Existing | B26: =COM!B111 -> CEOGAS-E | E26: 2005 | F26: 249.6022861 | G26: no cost | I26: 198.4924768
A27: =COM!A112 -> Commercial - Other - Oil Gasoline - Existing | B27: =COM!B112 -> CEOOGS-E | E27: 2005 | F27: 249.6022861 | G27: no cost | I27: 198.4924768
A28: =COM!A113 -> Commercial - Other - Oil HFO - Existing | B28: =COM!B113 -> CEOOHF-E | E28: 2005 | F28: 249.6022861 | G28: no cost | I28: 198.4924768
A29: =COM!A114 -> Commercial - Other - Oil Paraffin - Existing | B29: =COM!B114 -> CEOOKE-E | E29: 2005 | F29: 249.6022861 | G29: no cost | I29: =AVERAGE($I$7:$I$22) -> 198.4924768
D30: R/kW
F31: =F18 -> 172.3572096 | I31: =I18 -> 127.6430253
F32: =F16 -> 744.8219647 | I32: =I16 -> 23.20782279
E33: 2011 | I33: =I17 -> 9.38551657
A34: =COM!A100 -> Commercial - Public Lights - Electricity - HPS - Existing | E34: 2011 | I34: =I17 -> 9.38551657
A35: =COM!A101 -> Commercial - Public Lights - Electricity - MHL - Existing | E35: 2011 | I35: =I17 -> 9.38551657
A36: =COM!A102 -> Commercial - Public Lights - Electricity - LED - New | I36: =I32 -> 23.20782279
A37: =COM!A103 -> \I: Share Check & sub-totals | E37: 2011 | I37: =I33 -> 9.38551657
A38: =COM!A104 -> \I:Commercial - Public Water | E38: 2011 | I38: 9.38551657
A39: =COM!A105 -> Commercial - Public Water - Electricity - - Existing | E39: 2011 | I39: 9.38551657
A40: =COM!A102 -> Commercial - Public Lights - Electricity - LED - New | E40: 2011 | I40: =I39*J42 -> 17.64477115 | J40: From SEA: cost of luminaire is almost twice HPS
J42: =4700/2500 -> 1.88

Sheet REGIONS
A1: REGIONS | B1: _GLOBAL,REGION1

Sheet COM
A1: South Africa | B1: Base Year Energy Balance | E1: Commerce
A2: Import Options [All or Limits only?] | B2: All
C3: Base-year final energy aggregated by sector fuel | L3: Entry #
A4: Fuel # | B4: =COUNT(C4:M4) -> 8 | C4: 1 | D4: =C4+1 -> 2 | E4: =D4+1 -> 3 | F4: 4 | G4: 5 | H4: 6 | I4: 7 | J4: 8
A5: Commercial | B5: CE | C5: Coal | D5: Oil Diesel | E5: Electricity | F5: Gas | G5: Oil Gasoline | H5: Oil HFO | I5: Oil Paraffin | J5: Oil LPG | K5: Total
A6: Sectoral Fuel Names | B6: COM | C6: =$B$6&VLOOKUP(C5,FuelNames,2,FALSE) -> COMCOA | D6: COMODS | E6: COMELC | F6: COMGAS | G6: COMOGS | H6: COMOHF | I6: COMOKE | J6: COMOLP
B7: PJ | C7: 76.302 | D7: 1.742 | E7: 103.8 | F7: 0.864 | G7: 0.237 | H7: 17.767 | I7: 1.329 | J7: 3.29 | K7: =SUM(C7:J7) -> 205.331
A8: Emission Factors | B8: kt/PJ | C8: =C7/$K$7 -> 0.3716048721 | D8: =D7/$K$7 -> 0.008483862641 | E8: =E7/$K$7 -> 0.5055252251 | F8: 0.004207840024 | G8: 0.001154233896 | H8: 0.08652858068 | I8: 0.006472476148 | J8: 0.01602290935
A9: Carbon Dioxide | B9: CO2 | C9: 94.1 | D9: 74.1 | E9: 0 | F9: 64.2 | G9: 69.3 | H9: 77.4 | I9: 71.9 | J9: 63.1 | L9: 1
A10: Methane | B10: CH4 | C10: 0.001 | D10: 0.003 | E10: 0 | F10: 0.003 | G10: 0.003 | H10: 0.003 | I10: 0.003 | J10: 0.001 | L10: =L9+1 -> 2
A11: Nitrous Oxide | B11: N2O | C11: =15/1000 -> 0.015 | D11: 0.0006 | E11: 0 | F11: 0.0006 | G11: 0.0006 | H11: 0.0006 | I11: 0.0006 | J11: 0.0001 | L11: =L10+1 -> 3
A12: Sulphur Gases | B12: SOX | C12: 0.4544 | D12: 0.2529 | E12: 0 | F12: 0 | G12: 0.0467 | H12: 1.5291 | L12: =L11+1 -> 4
A13: Nitrogen Gases | B13: NOX | C13: 0.1 | D13: 0.1 | E13: 0 | F13: 0.05 | G13: 0.1 | H13: 0.1 | L13: =L12+1 -> 5
A15: Distribution Losses | C15: 0 | D15: 0 | E15: 0.1 | F15: 0 | G15: 0 | H15: 0 | I15: 0 | J15: 0
A16: Distribution Capacity (estimate) | B16: PJa | C16: =SUMPRODUCT(--($C$61:$C$116=C6),$M$61:$M$116)^2/(SUMPRODUCT(--($C$61:$C$116=C6),$M$61:$M$116,$F$61:$F$116)+eps) -> 120.0621475 | D16: 2.821966603 | E16: 167.3755785 | F16: 1.399643583 | G16: 0.3839299916 | H16: 28.78179165 | I16: 2.152923998 | J16: 3.980104593
A18: End use demands | B18: Demand
A19: Cooling | B19: C
A20: Space Heating | B20: H
A21: Cooking | B21: K
A22: Lighting | B22: L
A23: Refrigeration | B23: R
A24: Water Heating | B24: W
A25: Public Lights | B25: G
A26: Public Water | B26: T
A27: Other | B27: O
C29: End-use Shares by Fuel - All sourced from Interim report (other than LPG)
A30: End-use Fractional Shares by Sub-sector | B30: Demand ID | C30: =C5 -> Coal | D30: =D5 -> Oil Diesel | E30: Electricity | F30: Gas | G30: Oil Gasoline | H30: Oil HFO | I30: Oil Paraffin | J30: Oil LPG
A31: =$A$5&" - "&A19 -> Commercial - Cooling | B31: =$B$5&B19 -> CEC | E31: ='End use share 2006c'!$E$34 -> 0.2999093805
A32: Commercial - Space Heating | B32: =$B$5&B20 -> CEH | C32: ='End use share 2006c'!$C$37 -> 0.5431712635 | E32: ='End use share 2006c'!$C$34 -> 0.04846063909
A33: Commercial - Cooking | B33: CEK | J33: ='End use share 2006c'!$G$40 -> 0.1010347067
A34: Commercial - Lighting | B34: CEL | E34: ='End use share 2006c'!$B$34 -> 0.3757879384
A35: Commercial - Refrigeration | B35: CER | E35: ='End use share 2006c'!$F$34 -> 0.07090953438
A36: Commercial - Water Heating | B36: CEW | C36: ='End use share 2006c'!$D$37 -> 0.4561150473 | E36: ='End use share 2006c'!$D$34 -> 0.03280506426 | J36: ='End use share 2006c'!$D$40 -> 0.8989652933
A37: Commercial - Public Lights | B37: CEG | E37: ='End use share 2006c'!H34 -> 0.02585021267
A38: Commercial - Public Water | B38: CET | E38: ='End use share 2006c'!I34 -> 0.03051865153
A39: Commercial - Other | B39: CEO | C39: =1-SUM(C31:C38) -> 0.000713689274 | D39: =1-SUM(D31:D38) -> 1 | E39: =1-SUM(E31:E38) -> 0.1157585792 | F39: 1 | G39: 1 | H39: 1 | I39: 1 | J39: 0 | M39: =K52*1.1 -> 226.0841
A40: Total | C40: =SUM(C31:C39) -> 1 | D40: 1 | E40: 1 | F40: 1 | G40: 1 | H40: 1 | I40: 1 | J40: 1 | M40: =1.1*C52 -> 83.9322
M41: =M39-M40 -> 142.1519
A42: End-use Final Energy Consumption by Sub-sector (PJ) | B42: Demand ID | C42: =C30 -> Coal | D42: =D30 -> Oil Diesel | E42: Electricity | F42: Gas | G42: Oil Gasoline | H42: Oil HFO | I42: Oil Paraffin | J42: Oil LPG | K42: Total
A43: =A31 -> Commercial - Cooling | B43: CEC | C43: =C31*C$7 -> 0 | D43: =D31*D$7 -> 0 | E43: =E31*E$7 -> 31.1305937 | F43: 0 | G43: 0 | H43: 0 | I43: 0 | J43: 0 | K43: =SUM(C43:J43) -> 31.1305937 | N43: =E43/0.0036 -> 8647.387138
A44: Commercial - Space Heating | B44: CEH | C44: 41.44505374 | D44: =D32*D$7 -> 0 | E44: =E32*E$7 -> 5.030214337 | F44: =F32*F$7 -> 0 | G44: 0 | H44: 0 | I44: 0 | J44: 0 | K44: 46.47526808 | N44: =E44/0.0036 -> 1397.28176
A45: Commercial - Cooking | B45: CEK | C45: 0 | D45: =D33*D$7 -> 0 | E45: 0.2 | F45: 0 | G45: 0 | H45: 0 | I45: 0 | J45: 0.332404185 | K45: 0.532404185 | N45: 55.55555556
A46: Commercial - Lighting | B46: CEL | C46: 0 | D46: =D34*D$7 -> 0 | E46: =E34*E$7 -> 39.00678801 | F46: 0 | G46: 0 | H46: 0 | I46: 0 | J46: 0 | K46: 39.00678801 | N46: 10835.21889
A47: Commercial - Refrigeration | B47: CER | C47: 0 | D47: =D35*D$7 -> 0 | E47: 7.360409668 | F47: 0 | G47: 0 | H47: 0 | I47: 0 | J47: 0 | K47: 7.360409668 | N47: 2044.558241
A48: Commercial - Water Heating | B48: CEW | C48: 34.80249034 | D48: =D36*D$7 -> 0 | E48: 3.40516567 | F48: 0 | G48: 0 | H48: 0 | I48: 0 | J48: 2.957595815 | K48: 41.16525182 | N48: 945.8793528
A49: Commercial - Public Lights | B49: CEG | C49: 0 | D49: =D37*D$7 -> 0 | E49: =E37*E$7 -> 2.683252075 | F49: 0 | G49: 0 | H49: 0 | I49: 0 | J49: 0 | K49: 2.683252075 | N49: 745.3477986
A50: Commercial - Public Water | B50: CET | E50: 3.167836028 | K50: 3.167836028 | N50: 879.9544523
A51: =A39 -> Commercial - Other | B51: =B39 -> CEO | C51: =C39*C$7 -> 0.05445591898 | D51: =D39*D$7 -> 1.742 | E51: 12.01574052 | F51: =F39*F$7 -> 0.864 | G51: =G39*G$7 -> 0.237 | H51: =H39*H$7 -> 17.767 | I51: =I39*I$7 -> 1.329 | J51: =J39*J$7 -> 0 | K51: =SUM(C51:J51) -> 34.00919644 | N51: 3337.7057
A52: =A40 -> Total | C52: =SUM(C43:C51) -> 76.302 | D52: 1.742 | E52: 104 | F52: 0.864 | G52: 0.237 | H52: 17.767 | I52: 1.329 | J52: 3.29 | K52: 205.531
Q53: 2010 | R53: 2030 | S53: 2050 | V53: 2010 | W53: 2030 | X53: 2050 | AA53: 5
O54: Default Upper Limits | Q54: 0.05 | R54: 0.25 | S54: 0.5 | T54: Default Lower Limits | V54: 0.5 | W54: 0.25 | X54: 0.05 | AA54: =12/5 -> 2.4
D55: ~FI_T | G55: margin on stock | H55: 0.01 | AA55: =AA53*AA54 -> 12
A56: TechDesc | B56: TechName | C56: Comm-IN | D56: Comm-Out | E56: EFF | F56: AFA | G56: Life | H56: STOCK | I56: INVCOST | J56: FIXOM | P56: 0.02 | U56: 0.02
A57: \I:Technology Description | B57: Technology Name | C57: Input Commodity | D57: Useful Energy Service | E57: Efficiency | F57: Utlisation | G57: Lifetime | H57: Existing Installed Cap. | I57: Investment Cost | J57: Fixed O&M Cost | L57: Base Year Technology Share | M57: Final Energy | N57: Useful Energy | O57: Tech Data Source | P57: Base Year Tech Share | Q57: Upper Limit | R57: Upper Limit | S57: Upper Limit | U57: Base Year Tech Share | V57: Lower Limit | W57: Lower Limit | X57: Lower Limit | Y57: Row #
A58: \I: Units | E58: (sum OUT/IN) | F58: (Fraction) | G58: (Years) | H58: (PJa) | I58: 2005R/PJa | J58: 2005R/PJ-a | L58: (%) | M58: (PJ) | N58: (PJ) | P58: U2006 | Q58: ="U"&Q$53 -> U2010 | R58: ="U"&R$53 -> U2030 | S58: ="U"&S$53 -> U2050 | U58: L2006 | V58: ="L"&V$53 -> L2010 | W58: ="L"&W$53 -> L2030 | X58: ="L"&X$53 -> L2050
A59: \I: | C59: 1 | D59: =C59+1 -> 2 | E59: 3 | F59: 4 | G59: 5 | H59: 6 | I59: 7 | J59: 8
A60: ="\I:"&A43 -> \I:Commercial - Cooling
A61: =A43&" - Electricity - Chiller - Existing" -> Commercial - Cooling - Electricity - Chiller - Existing | B61: =D61&RIGHT(C61,3)&"CHIL-E" -> CECELCCHIL-E | C61: =$E$6 -> COMELC | D61: =$B$43 -> CEC | E61: =Appliances!G46 -> 2 | F61: =SUMIF(AFA!$B$3:$S$3,D61,AFA!$B$4:$J$4) -> 0.7444 | G61: 15 | H61: =(N61/F61)*(1+$H$55) -> 4.223790923 | I61: =SUMIF('Technology costs'!$B$7:$B$28,COM!B61,'Technology costs'!$F$7:$F$28) -> 29.68221405 | J61: =I61*0.1 -> 2.968221405 | L61: =Appliances!F46 -> 0.05 | M61: =L61*SUMIF($C$6:$J$6,C61,$C$43:$J$43) -> 1.556529685 | N61: =M61*E61 -> 3.11305937 | P61: =N61/SUMIF($D$61:$D$116,$D61,$N$61:$N$116)*(1+$P$56) -> 0.03863636364 | Q61: =MIN(1,$P61+Q$54) -> 0.08863636364 | R61: =MIN(1,$P61+R$54) -> 0.2886363636 | S61: 0.5386363636 | U61: =P61/(1+$P$56+$U$56) -> 0.03715034965 | V61: =$U61*V$54 -> 0.01857517483 | W61: =$U61*W$54 -> 0.009287587413 | X61: =$U61*X$54 -> 0.001857517483 | Y61: 1 | AB61: =P61*E61 -> 0.07727272727
A62: =A43&" - Electricity - Central - Existing" -> Commercial - Cooling - Electricity - Central - Existing | B62: =D62&RIGHT(C62,3)&"CEN-E" -> CECELCCEN-E | C62: COMELC | D62: CEC | E62: =Appliances!G47 -> 3 | F62: =SUMIF(AFA!$B$3:$S$3,D62,AFA!$B$4:$J$4) -> 0.7444 | G62: 15 | H62: =(N62/F62)*(1+$H$55) -> 76.02823662 | I62: =SUMIF('Technology costs'!$B$7:$B$28,COM!B62,'Technology costs'!$F$7:$F$28) -> 49.99963828 | J62: =I62*0.1 -> 4.999963828 | L62: =Appliances!F47 -> 0.6 | M62: =L62*SUMIF($C$6:$J$6,C62,$C$43:$J$43) -> 18.67835622 | N62: =M62*E62 -> 56.03506865 | P62: 0.6954545455 | Q62: =MIN(1,$P62+Q$54) -> 0.7454545455 | R62: 0.9454545455 | S62: 1 | U62: =P62/(1+$P$56+$U$56) -> 0.6687062937 | V62: =$U62*V$54 -> 0.3343531469 | W62: 0.1671765734 | X62: 0.03343531469 | Y62: =Y61+1 -> 2 | AB62: =P62*E62 -> 2.086363636
A63: =A43&" - Electricity - Heat Pump - Existing" -> Commercial - Cooling - Electricity - Heat Pump - Existing | B63: =D63&RIGHT(C63,3)&"HP-E" -> CECELCHP-E | C63: COMELC | D63: CEC | E63: =Appliances!G48 -> 2.2 | F63: =SUMIF(AFA!$B$3:$S$3,D63,AFA!$B$4:$J$4) -> 0.7444 | G63: 15 | H63: =(N63/F63)*(1+$H$55) -> 18.58468006 | I63: =SUMIF('Technology costs'!$B$7:$B$28,COM!B63,'Technology costs'!$F$7:$F$28) -> 65.01710988 | J63: =I63*0.1 -> 6.501710988 | L63: =Appliances!F48 -> 0.2 | M63: =L63*SUMIF($C$6:$J$6,C63,$C$43:$J$43) -> 6.226118739 | N63: =M63*E63 -> 13.69746123 | P63: 0.17 | Q63: =MIN(1,$P63+Q$54) -> 0.22 | R63: 0.42 | S63: 0.67 | U63: 0.1634615385 | V63: 0.08173076923 | W63: 0.04086538462 | X63: 0.008173076923 | Y63: =Y62+1 -> 3 | AB63: 0.374
A64: =A43&" - Electricity - Room - Existing" -> Commercial - Cooling - Electricity - Room - Existing | B64: =D64&RIGHT(C64,3)&"ROOM-E" -> CECELCROOM-E | C64: COMELC | D64: CEC | E64: =Appliances!G49 -> 2 | F64: =SUMIF(AFA!$B$3:$S$3,D64,AFA!$B$4:$J$4) -> 0.7444 | G64: 15 | H64: =(N64/F64)*(1+$H$55) -> 12.67137277 | I64: =SUMIF('Technology costs'!$B$7:$B$28,COM!B64,'Technology costs'!$F$7:$F$28) -> 27.1376057 | J64: 2.71376057 | L64: =Appliances!F49 -> 0.15 | M64: =L64*SUMIF($C$6:$J$6,C64,$C$43:$J$43) -> 4.669589054 | N64: =M64*E64 -> 9.339178109 | P64: 0.1159090909 | Q64: 0.1659090909 | R64: 0.3659090909 | S64: 0.6159090909 | U64: =P64/(1+$P$56+$U$56) -> 0.111451049 | V64: 0.05572552448 | W64: 0.02786276224 | X64: 0.005572552448 | Y64: =Y63+1 -> 4 | AB64: 0.2318181818
A65: =A43&" - Electricity - Central - New" -> Commercial - Cooling - Electricity - Central - New | B65: =D65&RIGHT(C65,3)&"CEN-N" -> CECELCCEN-N | C65: COMELC | D65: CEC | E65: =(0.19/0.17)*E62 -> 3.352941176 | F65: =SUMIF(AFA!$B$3:$S$3,D65,AFA!$B$4:$J$4) -> 0.7444 | G65: =G62 -> 15 | H65: 0 | I65: =(10/3.74)*I62 -> 133.6888724 | J65: =J62 -> 4.999963828 | L65: 0 | M65: 0 | N65: 0 | P65: 0 | Q65: 0.05 | R65: 0.25 | S65: 0.5 | U65: 0 | V65: 0 | W65: 0 | X65: 0 | Y65: 5 | AB65: 0
A66: =A43&" - Electricity - Heat Pump - New" -> Commercial - Cooling - Electricity - Heat Pump - New | B66: =D66&RIGHT(C66,3)&"HP-N" -> CECELCHP-N | C66: COMELC | D66: CEC | E66: =(3.4/3.52)*E65 -> 3.238636364 | F66: =SUMIF(AFA!$B$3:$S$3,D66,AFA!$B$4:$J$4) -> 0.7444 | G66: 15 | H66: 0 | I66: =(10.68/10)*I65 -> 142.7797157 | J66: =(0.15/0.11)*J65 -> 6.818132493 | L66: 0 | M66: 0 | N66: 0 | P66: 0 | Q66: 0.05 | R66: =MIN(1,$P66+R$54) -> 0.25 | S66: 0.5 | U66: 0 | V66: 0 | W66: 0 | X66: 0 | Y66: 6 | AB66: 0
A67: \I: Share Check & sub-totals | H67: =SUM(H61:H64)/4 -> 27.87702009 | L67: =SUM(L61:L64) -> 1 | M67: =SUM(M61:M64) -> 31.1305937 | N67: =SUM(N61:N64) -> 82.18476736 | Y67: 7 | AB67: 0 | AC67: =SUM(AB61:AB66) -> 2.769454545
A68: ="\I:"&A44 -> \I:Commercial - Space Heating | Y68: 8 | AB68: 0
A69: =A$44&" - "&VLOOKUP(RIGHT(C69,3),NameConv!$E$3:$F$16,2,FALSE)&" - Existing" -> Commercial - Space Heating - Coal - Existing | B69: =D69&RIGHT(C69,3)&"-E" -> CEHCOA-E | C69: =$C$6 -> COMCOA | D69: =$B$44 -> CEH | E69: =Appliances!J14 -> 0.6 | F69: =SUMIF(AFA!$B$3:$S$3,D69,AFA!$B$4:$J$4) -> 0.4588 | G69: 15 | H69: =(N69/F69)*(1+$H$55) -> 54.74215904 | I69: =I71 -> 98.07416645 | J69: 9.807416645 | L69: =Appliances!F20 -> 1 | M69: =L69*SUMIF($C$6:$J$6,C69,$C$44:$J$44) -> 41.44505374 | N69: =M69*E69 -> 24.86703225 | P69: =N69/SUMIF($D$61:$D$116,$D69,$N$61:$N$116)*(1+$P$56) -> 0.8483849113 | Q69: =MIN(1,$P69+Q$54) -> 0.8983849113 | R69: 1 | S69: 1 | U69: =P69/(1+$P$56+$U$56) -> 0.8157547224 | V69: =$U69*V$54 -> 0.4078773612 | W69: 0.2039386806 | X69: 0.04078773612 | Y69: 9 | AB69: 0.5090309468
A70: =A$44&" - "&VLOOKUP(RIGHT(C70,3),NameConv!$E$3:$F$16,2,FALSE)&" - Existing" -> Commercial - Space Heating - Electricity - Existing | B70: =D70&RIGHT(C70,3)&"-E" -> CEHELC-E | C70: =$E$6 -> COMELC | D70: =$B$44 -> CEH | E70: =Appliances!J11 -> 1 | F70: =SUMIF(AFA!$B$3:$S$3,D70,AFA!$B$4:$J$4) -> 0.4588 | G70: 15 | H70: =(N70/F70)*(1+$H$55) -> 11.07348841 | I70: =SUMIF('Technology costs'!$B$7:$B$28,COM!B70,'Technology costs'!$F$7:$F$28) -> 17.1721621 | J70: 1.71721621 | L70: =Appliances!F21 -> 1 | M70: =L70*SUMIF($C$6:$J$6,C70,$C$44:$J$44) -> 5.030214337 | N70: =M70*E70 -> 5.030214337 | P70: =N70/SUMIF($D$61:$D$116,$D70,$N$61:$N$116)*(1+$P$56) -> 0.1716150887 | Q70: 0.2216150887 | R70: 0.4216150887 | S70: 0.6716150887 | U70: =P70/(1+$P$56+$U$56) -> 0.1650145084 | V70: 0.08250725418 | W70: 0.04125362709 | X70: 0.008250725418 | Y70: 10 | AB70: 0.1716150887
A71: =A$44&" - "&VLOOKUP(RIGHT(C71,3),NameConv!$E$3:$F$16,2,FALSE)&" - New" -> Commercial - Space Heating - Electricity - New | B71: =D71&RIGHT(C71,3)&"-N" -> CEHELC-N | C71: =$E$6 -> COMELC | D71: =$B$44 -> CEH | E71: =(3.4/0.96)*E70 -> 3.541666667 | F71: =SUMIF(AFA!$B$3:$S$3,D71,AFA!$B$4:$J$4) -> 0.4588 | G71: 15 | H71: =(N71/F71)*(1+$H$55) -> 0 | I71: =(10.68/1.87)*I70 -> 98.07416645 | J71: =I71*0.1 -> 9.807416645 | L71: 0 | M71: 0 | N71: 0 | P71: =N71/SUMIF($D$61:$D$116,$D71,$N$61:$N$116)*(1+$P$56) -> 0 | Q71: 0.05 | R71: 0.25 | S71: 0.5 | U71: =P71/(1+$P$56+$U$56) -> 0 | V71: 0 | W71: 0 | X71: 0 | Y71: 11 | AB71: 0
A72: =A$44&" - "&VLOOKUP(RIGHT(C72,3),NameConv!$E$3:$F$16,2,FALSE)&" - New" -> Commercial - Space Heating - Gas - New | B72: =D72&RIGHT(C72,3)&"-N" -> CEHGAS-N | C72: =$F$6 -> COMGAS | D72: =$B$44 -> CEH | E72: =COM_N_old!E67 -> 0.88 | F72: =SUMIF(AFA!$B$3:$S$3,D72,AFA!$B$4:$J$4) -> 0.4588 | G72: 15 | H72: =(N72/F72)*(1+$H$55) -> 0 | I72: =COM_N_old!I67 -> 26.62600088 | J72: =COM_N_old!J67 -> 2.662600088 | L72: 0 | M72: 0 | N72: 0 | P72: =N72/SUMIF($D$61:$D$116,$D72,$N$61:$N$116)*(1+$P$56) -> 0 | Q72: 0.05 | R72: 0.25 | S72: 0.5 | U72: =P72/(1+$P$56+$U$56) -> 0 | V72: 0 | W72: 0 | X72: 0 | Y72: 12
A73: \I: Share Check & sub-totals | M73: =SUM(M69:M70) -> 46.47526808 | N73: =SUM(N69:N70) -> 29.89724658 | Y73: 13 | AB73: 0 | AC73: =SUM(AB69:AB71) -> 0.6806460355
A74: ="\I:"&A45 -> \I:Commercial - Cooking | Y74: 14 | AB74: 0
A75: =A$45&" - "&VLOOKUP(RIGHT(C75,3),NameConv!$E$3:$F$16,2,FALSE)&" - Existing" -> Commercial - Cooking - Oil LPG - Existing | B75: =D75&RIGHT(C75,3)&"-E" -> CEKOLP-E | C75: =$J$6 -> COMOLP | D75: =$B$45 -> CEK | E75: =Appliances!G30 -> 0.9 | F75: =SUMIF(AFA!$B$3:$S$3,D75,AFA!$B$4:$J$4) -> 0.6541 | G75: 15 | H75: =(N75/F75)*(1+$H$55) -> 0.4619406883 | I75: =SUMIF('Technology costs'!$B$7:$B$28,COM!B75,'Technology costs'!$F$7:$F$28) -> 85.32287791 | J75: 8.532287791 | L75: =Appliances!F23 -> 1 | M75: =L75*SUMIF($C$6:$J$6,C75,$C$45:$J$45) -> 0.332404185 | N75: =M75*E75 -> 0.2991637665 | P75: =N75/SUMIF($D$61:$D$116,$D75,$N$61:$N$116) -> 1 | Q75: =MIN(1,$P75+Q$54) -> 1 | R75: =MIN(1,$P75+R$54) -> 1 | S75: =MIN(1,$P75+S$54) -> 1 | U75: =P75/(1+$P$56+$U$56) -> 0.9615384615 | V75: =$U75*V$54 -> 0.4807692308 | W75: =$U75*W$54 -> 0.2403846154 | X75: =$U75*X$54 -> 0.04807692308 | Y75: 15 | AB75: 0.9 | AC75: =AB75 -> 0.9
A76: \I: Share Check & sub-totals | L76: =SUM(L75) -> 1 | M76: =SUM(M75) -> 0.332404185 | N76: =SUM(N75) -> 0.2991637665 | Y76: 16 | AB76: 0
A77: ="\I:"&A46 -> \I:Commercial - Lighting | Y77: 17 | AB77: 0
A78: =A$46&" - "&VLOOKUP(RIGHT(C78,3),NameConv!$E$3:$F$16,2,FALSE)&" - CFL - Existing" -> Commercial - Lighting - Electricity - CFL - Existing | B78: =D78&RIGHT(C78,3)&"CFL-E" -> CELELCCFL-E | C78: =$E$6 -> COMELC | D78: =$B$46 -> CEL | E78: =Appliances!G58 -> 4 | F78: =SUMIF(AFA!$B$3:$S$3,D78,AFA!$B$4:$J$4) -> 0.5681 | G78: 5 | H78: =(N78/F78)*(1+$H$55) -> 16.64362861 | I78: 3.3 | J78: 0.33 | L78: =Appliances!F58 -> 0.06 | M78: =L78*SUMIF($C$6:$J$6,C78,$C$46:$J$46) -> 2.34040728 | N78: =M78*E78 -> 9.361629121 | P78: =N78/SUMIF($D$61:$D$116,$D78,$N$61:$N$116)*(1+$P$56) -> 0.0538021978 | Q78: =MIN(1,$P78+Q$54) -> 0.1038021978 | R78: =MIN(1,$P78+R$54) -> 0.3038021978 | S78: 0.5538021978 | U78: =P78/(1+$P$56+$U$56) -> 0.0517328825 | V78: =$U78*V$54 -> 0.02586644125 | W78: 0.01293322063 | X78: 0.002586644125 | Y78: 18 | AB78: 0.2152087912
A79: =A$46&" - "&VLOOKUP(RIGHT(C79,3),NameConv!$E$3:$F$16,2,FALSE)&" - FLU - Existing" -> Commercial - Lighting - Electricity - FLU - Existing | B79: =D79&RIGHT(C79,3)&"FLU-E" -> CELELCFLU-E | C79: COMELC | D79: CEL | E79: =Appliances!G59 -> 4.5 | F79: =SUMIF(AFA!$B$3:$S$3,D79,AFA!$B$4:$J$4) -> 0.5681 | G79: 5 | H79: =(N79/F79)*(1+$H$55) -> 218.4476255 | I79: =('Technology costs'!I15/'Technology costs'!I14)*COM!I78 -> 2.752433628 | J79: 0.2752433628 | L79: =Appliances!F59 -> 0.7 | M79: =L79*SUMIF($C$6:$J$6,C79,$C$46:$J$46) -> 27.3047516 | N79: =M79*E79 -> 122.8713822 | P79: 0.7061538462 | Q79: 0.7561538462 | R79: 0.9561538462 | S79: 1 | U79: 0.6789940828 | V79: 0.3394970414 | W79: 0.1697485207 | X79: 0.03394970414 | Y79: 19 | AB79: 3.177692308
A80: =A$46&" - "&VLOOKUP(RIGHT(C80,3),NameConv!$E$3:$F$16,2,FALSE)&" - HAL - Existing" -> Commercial - Lighting - Electricity - HAL - Existing | B80: =D80&RIGHT(C80,3)&"HAL-E" -> CELELCHAL-E | C80: COMELC | D80: CEL | E80: =Appliances!G60 -> 2 | F80: =SUMIF(AFA!$B$3:$S$3,D80,AFA!$B$4:$J$4) -> 0.5681 | G80: 5 | H80: =(N80/F80)*(1+$H$55) -> 2.773938101 | I80: =('Technology costs'!I16/'Technology costs'!I14)*COM!I78 -> 0.992920354 | J80: 0.0992920354 | L80: =Appliances!F60 -> 0.02 | M80: =L80*SUMIF($C$6:$J$6,C80,$C$46:$J$46) -> 0.7801357601 | N80: 1.56027152 | P80: 0.008967032967 | Q80: 0.05896703297 | R80: 0.258967033 | S80: 0.508967033 | U80: 0.008622147084 | V80: 0.004311073542 | W80: 0.002155536771 | X80: 0.0004311073542 | Y80: 20 | AB80: 0.01793406593
A81: =A$46&" - "&VLOOKUP(RIGHT(C81,3),NameConv!$E$3:$F$16,2,FALSE)&" - HID - Existing" -> Commercial - Lighting - Electricity - HID - Existing | B81: =D81&RIGHT(C81,3)&"HID-E" -> CELELCHID-E | C81: COMELC | D81: CEL | E81: =Appliances!G61 -> 7 | F81: =SUMIF(AFA!$B$3:$S$3,D81,AFA!$B$4:$J$4) -> 0.5681 | G81: 5 | H81: =(N81/F81)*(1+$H$55) -> 72.81587516 | I81: =('Technology costs'!I17/'Technology costs'!I14)*COM!I78 -> 0.4015486726 | J81: 0.04015486726 | L81: =Appliances!F61 -> 0.15 | M81: =L81*SUMIF($C$6:$J$6,C81,$C$46:$J$46) -> 5.851018201 | N81: 40.95712741 | P81: 0.2353846154 | Q81: 0.2853846154 | R81: 0.4853846154 | S81: 0.7353846154 | U81: 0.2263313609 | V81: 0.1131656805 | W81: 0.05658284024 | X81: 0.01131656805 | Y81: 21 | AB81: 1.647692308
A82: =A$46&" - "&VLOOKUP(RIGHT(C82,3),NameConv!$E$3:$F$16,2,FALSE)&" - INC - Existing" -> Commercial - Lighting - Electricity - INC - Existing | B82: =D82&RIGHT(C82,3)&"INC-E" -> CELELCINC-E | C82: COMELC | D82: CEL | E82: =Appliances!G62 -> 1 | F82: =SUMIF(AFA!$B$3:$S$3,D82,AFA!$B$4:$J$4) -> 0.5681 | G82: 2 | H82: =(N82/F82)*(1+$H$55) -> 4.854391678 | I82: 0.35 | J82: 0.035 | L82: =Appliances!F62 -> 0.07 | M82: 2.73047516 | N82: 2.73047516 | P82: 0.01569230769 | Q82: 0.06569230769 | R82: 0.2656923077 | S82: 0.5156923077 | U82: 0.0150887574 | V82: 0.007544378698 | W82: 0.003772189349 | X82: 0.0007544378698 | Y82: 22 | AB82: 0.01569230769
A83: =A$46&" - "&VLOOKUP(RIGHT(C83,3),NameConv!$E$3:$F$16,2,FALSE)&" - LED - New" -> Commercial - Lighting - Electricity - LED - New | B83: =D83&RIGHT(C83,3)&"LED-N" -> CELELCLED-N | C83: COMELC | D83: CEL | E83: 9.8 | F83: =SUMIF(AFA!$B$3:$S$3,D83,AFA!$B$4:$J$4) -> 0.5681 | G83: 10 | H83: 0 | I83: 6.45 | J83: 0.645 | L83: 0 | M83: 0 | N83: 0 | P83: 0 | Q83: 0.05 | R83: 0.25 | S83: =MIN(1,$P83+S$54) -> 0.5 | U83: 0 | V83: 0 | W83: 0 | X83: 0 | Y83: 23 | AB83: 0
A84: \I: Share Check & sub-totals | L84: =SUM(L78:L82) -> 1 | M84: =SUM(M78:M82) -> 39.00678801 | N84: =SUM(N78:N82) -> 177.4808854 | Y84: 24 | AB84: 0 | AC84: =SUM(AB78:AB83) -> 5.07421978
A85: ="\I:"&A47 -> \I:Commercial - Refrigeration | Y85: 25 | AB85: 0
A86: =A$47&" - "&VLOOKUP(RIGHT(C86,3),NameConv!$E$3:$F$16,2,FALSE)&" - Existing" -> Commercial - Refrigeration - Electricity - Existing | B86: =D86&RIGHT(C86,3)&"-E" -> CERELC-E | C86: =$E$6 -> COMELC | D86: =$B$47 -> CER | E86: =Appliances!G53 -> 1 | F86: =SUMIF(AFA!$B$3:$S$3,D86,AFA!$B$4:$J$4) -> 0.7125 | G86: 10 | H86: =(N86/F86)*(1+$H$55) -> 10.43370353 | I86: =SUMIF('Technology costs'!$B$7:$B$28,COM!B86,'Technology costs'!$F$7:$F$28) -> 947.8226599 | J86: 94.78226599 | L86: =Appliances!F53 -> 1 | M86: =L86*SUMIF($C$6:$J$6,C86,$C$47:$J$47) -> 7.360409668 | N86: =M86*E86 -> 7.360409668 | P86: =N86/SUMIF($D$61:$D$116,$D86,$N$61:$N$116) -> 1 | Q86: =MIN(1,$P86+Q$54) -> 1 | R86: 1 | S86: 1 | U86: =P86/(1+$P$56+$U$56) -> 0.9615384615 | V86: =$U86*V$54 -> 0.4807692308 | W86: 0.2403846154 | X86: 0.04807692308 | Y86: 26 | AB86: 1
A87: =A$47&" - "&VLOOKUP(RIGHT(C87,3),NameConv!$E$3:$F$16,2,FALSE)&" - New" -> Commercial - Refrigeration - Electricity - New | B87: =D87&RIGHT(C87,3)&"-N" -> CERELC-N | C87: =$E$6 -> COMELC | D87: =$B$47 -> CER | E87: =(5.13/3.08)*E86 -> 1.665584416 | F87: =SUMIF(AFA!$B$3:$S$3,D87,AFA!$B$4:$J$4) -> 0.7125 | G87: 10 | H87: 0 | I87: =(99.33/95.72)*I86 -> 983.5690013 | J87: 98.35690013 | L87: 0 | M87: 0 | N87: 0 | P87: =N87/SUMIF($D$61:$D$116,$D87,$N$61:$N$116) -> 0 | Q87: 0.05 | R87: 0.25 | S87: 0.5 | U87: =P87 -> 0 | V87: 0 | W87: 0 | X87: 0 | Y87: 27 | AB87: 0
A88: \I: Share Check & sub-totals | L88: =SUM(L86) -> 1 | M88: =SUM(M86) -> 7.360409668 | N88: =SUM(N86) -> 7.360409668 | Y88: 28 | AB88: 0 | AC88: =SUM(AB86:AB87) -> 1
A89: ="\I:"&A48 -> \I:Commercial - Water Heating | Y89: 29 | AB89: 0
A90: =A$48&" - "&VLOOKUP(RIGHT(C90,3),NameConv!$E$3:$F$16,2,FALSE)&" - Existing" -> Commercial - Water Heating - Electricity - Existing | B90: =D90&RIGHT(C90,3)&"-E" -> CEWELC-E | C90: =$E$6 -> COMELC | D90: =$B$48 -> CEW | E90: =Appliances!G20 -> 1 | F90: =SUMIF(AFA!$B$3:$S$3,D90,AFA!$B$4:$J$4) -> 0.846 | G90: 14 | H90: =(N90/F90)*(1+$H$55) -> 4.065268708 | I90: =SUMIF('Technology costs'!$B$7:$B$28,COM!B90,'Technology costs'!$F$7:$F$28) -> 17.26006266 | J90: 1.726006266 | L90: =Appliances!F20 -> 1 | M90: =L90*SUMIF($C$6:$J$6,C90,$C$48:$J$48) -> 3.40516567 | N90: =M90*E90 -> 3.40516567 | P90: =N90/SUMIF($D$61:$D$116,$D90,$N$61:$N$116)*(1+$P$56) -> 0.1099924132 | Q90: =MIN(1,$P90+Q$54) -> 0.1599924132 | R90: 0.3599924132 | S90: 0.6099924132 | U90: =P90/(1+$P$56+$U$56) -> 0.1057619358 | V90: =$U90*V$54 -> 0.05288096789 | W90: 0.02644048394 | X90: 0.005288096789 | Y90: =Y89+1 -> 30 | AB90: 0.1099924132
A91: =A$48&" - "&VLOOKUP(RIGHT(C91,3),NameConv!$E$3:$F$16,2,FALSE)&" - Existing" -> Commercial - Water Heating - Coal - Existing | B91: =D91&RIGHT(C91,3)&"-E" -> CEWCOA-E | C91: =$C$6 -> COMCOA | D91: =$B$48 -> CEW | E91: =Appliances!G21 -> 0.75 | F91: =SUMIF(AFA!$B$3:$S$3,D91,AFA!$B$4:$J$4) -> 0.846 | G91: 14 | H91: =(N91/F91)*(1+$H$55) -> 31.16180429 | I91: =SUMIF('Technology costs'!$B$7:$B$28,COM!B91,'Technology costs'!$F$7:$F$28) -> 102.3874535 | J91: 10.23874535 | L91: =Appliances!F21 -> 1 | M91: =L91*SUMIF($C$6:$J$6,C91,$C$48:$J$48) -> 34.80249034 | N91: =M91*E91 -> 26.10186775 | P91: =N91/SUMIF($D$61:$D$116,$D91,$N$61:$N$116)*(1+$P$56) -> 0.8431329637 | Q91: =MIN(1,$P91+Q$54) -> 0.8931329637 | R91: 1 | S91: 1 | U91: =P91/(1+$P$56+$U$56) -> 0.8107047728 | V91: 0.4053523864 | W91: 0.2026761932 | X91: 0.04053523864 | Y91: 31 | AB91: 0.6323497228
A92: =A$48&" - "&VLOOKUP(RIGHT(C92,3),NameConv!$E$3:$F$16,2,FALSE)&" - Existing" -> Commercial - Water Heating - Oil LPG - Existing | B92: =D92&RIGHT(C92,3)&"-E" -> CEWOLP-E | C92: =$J$6 -> COMOLP | D92: =$B$48 -> CEW | E92: =Appliances!G22 -> 0.7 | F92: =SUMIF(AFA!$B$3:$S$3,D92,AFA!$B$4:$J$4) -> 0.846 | G92: 12 | H92: =(N92/F92)*(1+$H$55) -> 2.471655131 | I92: =SUMIF('Technology costs'!$B$7:$B$28,COM!B92,'Technology costs'!$F$7:$F$28) -> 13.56823938 | J92: 1.356823938 | L92: =Appliances!F22 -> 1 | M92: =L92*SUMIF($C$6:$J$6,C92,$C$48:$J$48) -> 2.957595815 | N92: =M92*E92 -> 2.07031707 | P92: =N92/SUMIF($D$61:$D$116,$D92,$N$61:$N$116)*(1+$P$56) -> 0.06687462307 | Q92: 0.1168746231 | R92: 0.3168746231 | S92: 0.5668746231 | U92: =P92/(1+$P$56+$U$56) -> 0.06430252219 | V92: 0.03215126109 | W92: 0.01607563055 | X92: 0.003215126109 | Y92: 32 | AB92: 0.04681223615
A93: =A$48&" - "&VLOOKUP(RIGHT(C93,3),NameConv!$E$3:$F$16,2,FALSE)&" - New" -> Commercial - Water Heating - Electricity - New | B93: =D93&RIGHT(C93,3)&"-N" -> CEWELC-N | C93: =$E$6 -> COMELC | D93: =$B$48 -> CEW | E93: =(0.97/0.96)*E90 -> 1.010416667 | F93: =SUMIF(AFA!$B$3:$S$3,D93,AFA!$B$4:$J$4) -> 0.846 | G93: 14 | H93: =(2.41/1.87)*H90 -> 5.23919657 | I93: =I90 -> 17.26006266 | J93: =I93*0.1 -> 1.726006266 | L93: 0 | M93: 0 | N93: 0 | P93: =N93/SUMIF($D$61:$D$116,$D93,$N$61:$N$116)*(1+$P$56) -> 0 | Q93: 0.05 | R93: 0.25 | S93: 0.5 | U93: =P93/(1+$P$56+$U$56) -> 0 | V93: 0 | W93: 0 | X93: 0 | Y93: 33 | AB93: 0
A94: =A$48&" - "&VLOOKUP(RIGHT(C94,3),NameConv!$E$3:$F$16,2,FALSE)&" - HP - New" -> Commercial - Water Heating - Electricity - HP - New | B94: =D94&RIGHT(C94,3)&"HP-N" -> CEWELCHP-N | C94: =$E$6 -> COMELC | D94: =$B$48 -> CEW | E94: 2.26 | F94: =SUMIF(AFA!$B$3:$S$3,D94,AFA!$B$4:$J$4) -> 0.846 | G94: 10 | H94: =(N94/F94)*(1+$H$55) -> 0 | I94: =I90*3 -> 51.78018797 | J94: =I94*0.1 -> 5.178018797 | L94: 0 | M94: 0 | N94: 0 | P94: =N94/SUMIF($D$61:$D$116,$D94,$N$61:$N$116)*(1+$P$56) -> 0 | Q94: 0.05 | R94: 0.25 | S94: 0.5 | U94: =P94/(1+$P$56+$U$56) -> 0 | V94: 0 | W94: 0 | X94: 0 | Y94: 34
A95: \I: Share Check & sub-totals | M95: =SUM(M90:M92) -> 41.16525182 | N95: =SUM(N90:N92) -> 31.57735049 | Y95: 35 | AB95: 0 | AC95: =SUM(AB90:AB93) -> 0.7891543721
A96: ="\I:"&A49 -> \I:Commercial - Public Lights | Y96: 36
A97: =A$49&" - "&VLOOKUP(RIGHT(C97,3),NameConv!$E$3:$F$16,2,FALSE)&" - "&LEFT(Appliances!B65,3)&" - Existing" -> Commercial - Public Lights - Electricity - INC - Existing | B97: =D97&RIGHT(C97,3)&LEFT(RIGHT(A97,LEN("LIT - Existing")),3)&"-E" -> CEGELCINC-E | C97: =$E$6 -> COMELC | D97: =$B$49 -> CEG | E97: =Appliances!H65 -> 1 | F97: =SUMIF(AFA!$B$3:$S$3,D97,AFA!$B$4:$J$4) -> 0.0951 | G97: 10 | H97: =(N97/F97)*(1+$H$55) -> 1.410611856 | I97: =I82 -> 0.35 | J97: =I97*0.1 -> 0.035 | L97: =Appliances!F65 -> 0.0495 | M97: =L97*SUMIF($C$6:$J$6,C97,$C$49:$J$49) -> 0.1328209777 | N97: =M97*E97 -> 0.1328209777 | P97: =N97/SUMIF($D$61:$D$116,$D97,$N$61:$N$116)*(1+$P$56) -> 0.01477964639 | Q97: =MIN(1,$P97+Q$54) -> 0.06477964639 | R97: 0.2647796464 | S97: 0.5147796464 | U97: =P97/(1+$P$56+$U$56) -> 0.01421119845 | V97: =$U97*V$54 -> 0.007105599226 | W97: 0.003552799613 | X97: 0.0007105599226 | Y97: 37
A98: =A$49&" - "&VLOOKUP(RIGHT(C98,3),NameConv!$E$3:$F$16,2,FALSE)&" - "&LEFT(Appliances!B66,3)&" - Existing" -> Commercial - Public Lights - Electricity - HAL - Existing | B98: CEGELCHAL-E | C98: COMELC | D98: CEG | E98: =Appliances!H66 -> 2 | F98: =SUMIF(AFA!$B$3:$S$3,D98,AFA!$B$4:$J$4) -> 0.0951 | G98: 10 | H98: =(N98/F98)*(1+$H$55) -> 2.821223712 | I98: =I80 -> 0.992920354 | J98: 0.0992920354 | L98: =Appliances!F66 -> 0.0495 | M98: 0.1328209777 | N98: 0.2656419554 | P98: 0.02955929278 | Q98: 0.07955929278 | R98: 0.2795592928 | S98: 0.5295592928 | U98: 0.0284223969 | V98: 0.01421119845 | W98: 0.007105599226 | X98: 0.001421119845 | Y98: 38
A99: =A$49&" - "&VLOOKUP(RIGHT(C99,3),NameConv!$E$3:$F$16,2,FALSE)&" - "&LEFT(Appliances!B67,3)&" - Existing" -> Commercial - Public Lights - Electricity - HPM - Existing | B99: =D99&RIGHT(C99,3)&LEFT(RIGHT(A99,LEN("LIT - Existing")),3)&"-E" -> CEGELCHPM-E | C99: COMELC | D99: CEG | E99: =Appliances!H67 -> 2.4 | F99: =SUMIF(AFA!$B$3:$S$3,D99,AFA!$B$4:$J$4) -> 0.0951 | G99: 10 | H99: 42.92417067 | I99: =I100 -> 0.992920354 | J99: 0.0992920354 | L99: =Appliances!F67 -> 0.6276078117 | M99: 1.684029963 | N99: 4.041671911 | P99: 0.4497368014 | Q99: 0.4997368014 | R99: 0.6997368014 | S99: 0.9497368014 | U99: 0.4324392321 | V99: 0.2162196161 | W99: 0.108109808 | X99: 0.02162196161 | Y99: 39
A100: =A$49&" - "&VLOOKUP(RIGHT(C100,3),NameConv!$E$3:$F$16,2,FALSE)&" - "&LEFT(Appliances!B68,3)&" - Existing" -> Commercial - Public Lights - Electricity - HPS - Existing | B100: CEGELCHPS-E | C100: COMELC | D100: =$B$49 -> CEG | E100: =Appliances!H68 -> 6.5 | F100: =SUMIF(AFA!$B$3:$S$3,D100,AFA!$B$4:$J$4) -> 0.0951 | G100: 12 | H100: =(N100/F100)*(1+$H$55) -> 48.87218809 | I100: =I80 -> 0.992920354 | J100: =I100*0.1 -> 0.0992920354 | L100: =Appliances!F68 -> 0.2638433158 | M100: =L100*SUMIF($C$6:$J$6,C100,$C$49:$J$49) -> 0.7079581245 | N100: =M100*E100 -> 4.601727809 | P100: =N100/SUMIF($D$61:$D$116,$D100,$N$61:$N$116)*(1+$P$56) -> 0.5120569881 | Q100: =MIN(1,$P100+Q$54) -> 0.5620569881 | R100: 0.7620569881 | S100: 1 | U100: =P100/(1+$P$56+$U$56) -> 0.4923624885 | V100: =$U100*V$54 -> 0.2461812443 | W100: 0.1230906221 | X100: 0.02461812443 | Y100: 40
A101: =A$49&" - "&VLOOKUP(RIGHT(C101,3),NameConv!$E$3:$F$16,2,FALSE)&" - "&LEFT(Appliances!B69,3)&" - Existing" -> Commercial - Public Lights - Electricity - MHL - Existing | B101: CEGELCMHL-E | C101: COMELC | D101: CEG | E101: =Appliances!H69 -> 5 | F101: =SUMIF(AFA!$B$3:$S$3,D101,AFA!$B$4:$J$4) -> 0.0951 | G101: 10 | H101: =(N101/F101)*(1+$H$55) -> 1.323532165 | I101: =I81 -> 0.4015486726 | J101: 0.04015486726 | L101: =Appliances!F69 -> 0.009288854606 | M101: =L101*SUMIF($C$6:$J$6,C101,$C$49:$J$49) -> 0.02492433839 | N101: =M101*E101 -> 0.124621692 | P101: =N101/SUMIF($D$61:$D$116,$D101,$N$61:$N$116)*(1+$P$56) -> 0.01386727136 | Q101: 0.06386727136 | R101: 0.2638672714 | S101: 0.5138672714 | U101: 0.01333391477 | V101: 0.006666957383 | W101: 0.003333478692 | X101: 0.0006666957383 | Y101: 41
A102: =A$49&" - "&VLOOKUP(RIGHT(C102,3),NameConv!$E$3:$F$16,2,FALSE)&" - "&LEFT(Appliances!B70,3)&" - New" -> Commercial - Public Lights - Electricity - LED - New | B102: =D102&RIGHT(C102,3)&LEFT(RIGHT(A102,LEN("LIT - NEW")),3)&"-N" -> CEGELCLED-N | C102: COMELC | D102: CEG | E102: =Appliances!H70 -> 9.8 | F102: =SUMIF(AFA!$B$3:$S$3,D102,AFA!$B$4:$J$4) -> 0.0951 | G102: 10 | H102: 0 | I102: =I83 -> 6.45 | J102: =I102*0.1 -> 0.645 | L102: 0 | M102: 0 | N102: 0 | P102: =N102/SUMIF($D$61:$D$116,$D102,$N$61:$N$116)*(1+$P$56) -> 0 | Q102: 0.05 | R102: 0.25 | S102: 0.5 | U102: 0 | V102: 0 | W102: 0 | X102: 0 | Y102: 42
A103: \I: Share Check & sub-totals | M103: =SUM(M97:M102) -> 2.682554381 | N103: =SUM(N97:N102) -> 9.166484345 | Y103: 43
A104: ="\I:"&A50 -> \I:Commercial - Public Water | Y104: 44
A105: =A$50&" - "&VLOOKUP(RIGHT(C105,3),NameConv!$E$3:$F$16,2,FALSE)&" - "&LEFT(Appliances!B73,3)&" - Existing" -> Commercial - Public Water - Electricity - - Existing | B105: =D105&RIGHT(C105,3)&"-E" -> CETELC-E | C105: =$E$6 -> COMELC | D105: =$B$50 -> CET | E105: 1 | F105: =SUMIF(AFA!$B$3:$S$3,D105,AFA!$B$4:$J$4) -> 0.2946 | G105: 15 | H105: =(N105/F105)*(1+$H$55) -> 10.86053764 | I105: 100 | J105: =0.1*I105 -> 10 | L105: =Appliances!F40 -> 1 | M105: =L105*SUMIF($C$6:$J$6,C105,$C$50:$J$50) -> 3.167836028 | N105: =M105*E105 -> 3.167836028 | P105: =N105/SUMIF($D$61:$D$116,$D105,$N$61:$N$116)*(1+$P$56) -> 1.02 | Q105: =MIN(1,$P105+Q$54) -> 1 | R105: =MIN(1,$P105+R$54) -> 1 | S105: 1 | U105: =P105/(1+$P$56+$U$56) -> 0.9807692308 | V105: =$U105*V$54 -> 0.4903846154 | W105: =$U105*W$54 -> 0.2451923077 | X105: 0.04903846154 | Y105: 45
A106: \I: Share Check & sub-totals | Y106: 46
A107: ="\I:"&A51 -> \I:Commercial - Other | Y107: 47 | AB107: 0
A108: =A$51&" - "&VLOOKUP(RIGHT(C108,3),NameConv!$E$3:$F$16,2,FALSE)&" - Existing" -> Commercial - Other - Coal - Existing | B108: =D108&RIGHT(C108,3)&"-E" -> CEOCOA-E | C108: =$C$6 -> COMCOA | D108: =$B$51 -> CEO | E108: =Appliances!G36 -> 1 | F108: =SUMIF(AFA!$B$3:$S$3,D108,AFA!$B$4:$J$4) -> 0.6173 | G108: 15 | H108: =(N108/F108)*(1+$H$55) -> 0.08909845808 | I108: =SUMIF('Technology costs'!$B$7:$B$28,COM!B108,'Technology costs'!$F$7:$F$28) -> 249.6022861 | J108: 24.96022861 | L108: =Appliances!F25 -> 1 | M108: =L108*SUMIF($C$6:$J$6,C108,$C$51:$J$51) -> 0.05445591898 | N108: =M108*E108 -> 0.05445591898 | P108: =N108/SUMIF($D$61:$D$116,$D108,$N$61:$N$116)*(1+$P$56) -> 0.001801593426 | Q108: =MIN(1,$P108+Q$54) -> 0.05180159343 | R108: 0.2518015934 | S108: 0.5018015934 | U108: =P108/(1+$P$56+$U$56) -> 0.001732301371 | V108: =$U108*V$54 -> 0.0008661506855 | W108: 0.0004330753427 | X108: 8.661506855e-05 | Y108: 48 | AB108: 0.001801593426
A109: =A$51&" - "&VLOOKUP(RIGHT(C109,3),NameConv!$E$3:$F$16,2,FALSE)&" - Existing" -> Commercial - Other - Oil Diesel - Existing | B109: CEOODS-E | C109: =$D$6 -> COMODS | D109: =$B$51 -> CEO | E109: =Appliances!G37 -> 0.9 | F109: =SUMIF(AFA!$B$3:$S$3,D109,AFA!$B$4:$J$4) -> 0.6173 | G109: 15 | H109: =(N109/F109)*(1+$H$55) -> 2.565167666 | I109: =SUMIF('Technology costs'!$B$7:$B$28,COM!B109,'Technology costs'!$F$7:$F$28) -> 249.6022861 | J109: 24.96022861 | L109: =Appliances!F25 -> 1 | M109: 1.742 | N109: 1.5678 | P109: 0.05186834096 | Q109: 0.101868341 | R109: 0.301868341 | S109: 0.551868341 | U109: 0.04987340477 | V109: 0.02493670238 | W109: 0.01246835119 | X109: 0.002493670238 | Y109: 49 | AB109: 0.04668150686
A110: =A$51&" - "&VLOOKUP(RIGHT(C110,3),NameConv!$E$3:$F$16,2,FALSE)&" - Existing" -> Commercial - Other - Electricity - Existing | B110: CEOELC-E | C110: =$E$6 -> COMELC | D110: CEO | E110: =Appliances!G35 -> 0.75 | F110: =SUMIF(AFA!$B$3:$S$3,D110,AFA!$B$4:$J$4) -> 0.6173 | G110: 15 | H110: 14.74473261 | I110: =SUMIF('Technology costs'!$B$7:$B$28,COM!B110,'Technology costs'!$F$7:$F$28) -> 249.6022861 | J110: 24.96022861 | L110: =Appliances!F25 -> 1 | M110: 12.01574052 | N110: 9.011805389 | P110: 0.2981422341 | Q110: 0.3481422341 | R110: 0.5481422341 | S110: 0.7981422341 | U110: 0.2866752251 | V110: =U110 -> 0.2866752251 | W110: =V110 -> 0.2866752251 | X110: 0.2866752251 | Y110: 50 | AB110: 0.2236066755
A111: =A$51&" - "&VLOOKUP(RIGHT(C111,3),NameConv!$E$3:$F$16,2,FALSE)&" - Existing" -> Commercial - Other - Gas - Existing | B111: CEOGAS-E | C111: =$F$6 -> COMGAS | D111: CEO | E111: 1 | F111: =SUMIF(AFA!$B$3:$S$3,D111,AFA!$B$4:$J$4) -> 0.6173 | G111: 15 | H111: 1.413640045 | I111: =SUMIF('Technology costs'!$B$7:$B$28,COM!B111,'Technology costs'!$F$7:$F$28) -> 249.6022861 | J111: 24.96022861 | L111: =Appliances!F25 -> 1 | M111: 0.864 | N111: 0.864 | P111: 0.02858416034 | Q111: 0.07858416034 | R111: 0.2785841603 | S111: 0.5285841603 | U111: 0.02748476956 | V111: 0.01374238478 | W111: 0.00687119239 | X111: 0.001374238478 | Y111: 51 | AB111: 0.02858416034
A112: =A$51&" - "&VLOOKUP(RIGHT(C112,3),NameConv!$E$3:$F$16,2,FALSE)&" - Existing" -> Commercial - Other - Oil Gasoline - Existing | B112: CEOOGS-E | C112: =$G$6 -> COMOGS | D112: CEO | E112: 1 | F112: =SUMIF(AFA!$B$3:$S$3,D112,AFA!$B$4:$J$4) -> 0.6173 | G112: 15 | H112: 0.387769318 | I112: =SUMIF('Technology costs'!$B$7:$B$28,COM!B112,'Technology costs'!$F$7:$F$28) -> 249.6022861 | J112: 24.96022861 | L112: =Appliances!F25 -> 1 | M112: 0.237 | N112: 0.237 | P112: 0.007840793983 | Q112: 0.05784079398 | R112: 0.257840794 | S112: 0.507840794 | U112: 0.007539224984 | V112: 0.003769612492 | W112: 0.001884806246 | X112: 0.0003769612492 | Y112: 52 | AB112: 0.007840793983
A113: =A$51&" - "&VLOOKUP(RIGHT(C113,3),NameConv!$E$3:$F$16,2,FALSE)&" - Existing" -> Commercial - Other - Oil HFO - Existing | B113: CEOOHF-E | C113: =$H$6 -> COMOHF | D113: CEO | E113: 1 | F113: =SUMIF(AFA!$B$3:$S$3,D113,AFA!$B$4:$J$4) -> 0.6173 | G113: 15 | H113: 29.06960959 | I113: =SUMIF('Technology costs'!$B$7:$B$28,COM!B113,'Technology costs'!$F$7:$F$28) -> 249.6022861 | J113: 24.96022861 | L113: =Appliances!F25 -> 1 | M113: 17.767 | N113: 17.767 | P113: 0.5877948806 | Q113: 0.6377948806 | R113: 0.8377948806 | S113: 1 | U113: 0.5651873852 | V113: 0.2825936926 | W113: 0.1412968463 | X113: 0.02825936926 | Y113: 53 | AB113: 0.5877948806
A114: =A$51&" - "&VLOOKUP(RIGHT(C114,3),NameConv!$E$3:$F$16,2,FALSE)&" - Existing" -> Commercial - Other - Oil Paraffin - Existing | B114: CEOOKE-E | C114: =$I$6 -> COMOKE | D114: CEO | E114: 1 | F114: =SUMIF(AFA!$B$3:$S$3,D114,AFA!$B$4:$J$4) -> 0.6173 | G114: 15 | H114: 2.174453264 | I114: =SUMIF('Technology costs'!$B$7:$B$29,COM!B114,'Technology costs'!$F$7:$F$29) -> 249.6022861 | J114: =I114*0.1 -> 24.96022861 | L114: =Appliances!F29 -> 1 | M114: 1.329 | N114: 1.329 | P114: 0.04396799664 | Q114: 0.09396799664 | R114: 0.2939679966 | S114: 0.5439679966 | U114: 0.04227691985 | V114: 0.02113845992 | W114: 0.01056922996 | X114: 0.002113845992 | Y114: 54 | AB114: 0.04396799664
A115: \I: Share Check & sub-totals | M115: =SUM(M108:M114) -> 34.00919644 | N115: =SUM(N108:N114) -> 30.83106131 | Y115: 55 | AB115: 0 | AC115: =SUM(AB108:AB114)/SUM(P108:P114) -> 0.9218407916
A116: \I: Total number of tech entries | B116: =SUMPRODUCT(--(B61:B115<>"")) -> 38 | O116: =ROW()-56 -> 60 | Y116: =Y115+1 -> 56

Sheet COM_N
A1: South Africa | B1: Base Year Energy Balance | E1: Commerce
A2: Import Options [All or Limits only?] | B2: All
C3: Base-year final energy aggregated by sector fuel | L3: Entry #
A4: Fuel # | B4: =COUNT(C4:M4) -> 8 | C4: 1 | D4: =C4+1 -> 2 | E4: =D4+1 -> 3 | F4: 4 | G4: 5 | H4: 6 | I4: 7 | J4: 8
A5: Commercial | B5: CN | C5: Coal | D5: Oil Diesel | E5: Electricity | F5: Gas | G5: Oil Gasoline | H5: Oil HFO | I5: Oil Paraffin | J5: Oil LPG | K5: Total
A6: Sectoral Fuel Names | B6: COM | C6: =$B$6&VLOOKUP(C5,FuelNames,2,FALSE) -> COMCOA | D6: COMODS | E6: COMELC | F6: COMGAS | G6: COMOGS | H6: COMOHF | I6: COMOKE | J6: COMOLP
B7: PJ | C7: 76.302 | D7: 1.742 | E7: 103.8 | F7: 0.864 | G7: 0.237 | H7: 17.767 | I7: 1.329 | J7: 3.29 | K7: =SUM(C7:J7) -> 205.331
A8: Emission Factors | B8: kt/PJ | C8: =C7/$K$7 -> 0.3716048721 | D8: =D7/$K$7 -> 0.008483862641 | E8: =E7/$K$7 -> 0.5055252251 | F8: 0.004207840024 | G8: 0.001154233896 | H8: 0.08652858068 | I8: 0.006472476148 | J8: 0.01602290935
A9: Carbon Dioxide | B9: CO2 | C9: 94.1 | D9: 74.1 | E9: 0 | F9: 64.2 | G9: 69.3 | H9: 77.4 | I9: 71.9 | J9: 63.1 | L9: 1
A10: Methane | B10: CH4 | C10: 0.001 | D10: 0.003 | E10: 0 | F10: 0.003 | G10: 0.003 | H10: 0.003 | I10: 0.003 | J10: 0.001 | L10: =L9+1 -> 2
A11: Nitrous Oxide | B11: N2O | C11: =15/1000 -> 0.015 | D11: 0.0006 | E11: 0 | F11: 0.0006 | G11: 0.0006 | H11: 0.0006 | I11: 0.0006 | J11: 0.0001 | L11: =L10+1 -> 3
A12: Sulphur Gases | B12: SOX | C12: 0.4544 | D12: 0.2529 | E12: 0 | F12: 0 | G12: 0.0467 | H12: 1.5291 | L12: =L11+1 -> 4
A13: Nitrogen Gases | B13: NOX | C13: 0.1 | D13: 0.1 | E13: 0 | F13: 0.05 | G13: 0.1 | H13: 0.1 | L13: =L12+1 -> 5
A15: Distribution Losses
A16: Distribution Capacity (estimate) | B16: PJa
A18: End use demands | B18: Demand
A19: Cooling | B19: C
A20: Space Heating | B20: H
A21: Cooking | B21: K
A22: Lighting | B22: L
A23: Refrigeration | B23: R
A24: Water Heating | B24: W
A25: Public Lights | B25: G
A26: Public Water | B26: T
A27: Other | B27: O
C29: End-use Shares by Fuel - All sourced from Interim report (other than LPG)
A30: End-use Fractional Shares by Sub-sector | B30: Demand ID | C30: =C5 -> Coal | D30: =D5 -> Oil Diesel | E30: Electricity | F30: Gas | G30: Oil Gasoline | H30: Oil HFO | I30: Oil Paraffin | J30: Oil LPG
A31: =$A$5&" - "&A19 -> Commercial - Cooling | B31: =$B$5&B19 -> CNC | E31: ='End use share 2006c'!$E$34 -> 0.2999093805
A32: Commercial - Space Heating | B32: =$B$5&B20 -> CNH | C32: ='End use share 2006c'!$C$37 -> 0.5431712635 | E32: ='End use share 2006c'!$C$34 -> 0.04846063909
A33: Commercial - Cooking | B33: CNK | J33: ='End use share 2006c'!$G$40 -> 0.1010347067
A34: Commercial - Lighting | B34: CNL | E34: ='End use share 2006c'!$B$34 -> 0.3757879384
A35: Commercial - Refrigeration | B35: CNR | E35: ='End use share 2006c'!$F$34 -> 0.07090953438
A36: Commercial - Water Heating | B36: CNW | C36: ='End use share 2006c'!$D$37 -> 0.4561150473 | E36: ='End use share 2006c'!$D$34 -> 0.03280506426 | J36: ='End use share 2006c'!$D$40 -> 0.8989652933
A37: Commercial - Public Lights | B37: CNG | E37: ='End use share 2006c'!H34 -> 0.02585021267
A38: Commercial - Public Water | B38: CNT | E38: ='End use share 2006c'!I34 -> 0.03051865153
A39: Commercial - Other | B39: CNO | C39: =1-SUM(C31:C38) -> 0.000713689274 | D39: =1-SUM(D31:D38) -> 1 | E39: =1-SUM(E31:E38) -> 0.1157585792 | F39: 1 | G39: 1 | H39: 1 | I39: 1 | J39: 0 | M39: =K52*1.1 -> 226.0841
A40: Total | C40: =SUM(C31:C39) -> 1 | D40: 1 | E40: 1 | F40: 1 | G40: 1 | H40: 1 | I40: 1 | J40: 1 | M40: =1.1*C52 -> 83.9322
M41: =M39-M40 -> 142.1519
A42: End-use Final Energy Consumption by Sub-sector (PJ) | B42: Demand ID | C42: =C30 -> Coal | D42: =D30 -> Oil Diesel | E42: Electricity | F42: Gas | G42: Oil Gasoline | H42: Oil HFO | I42: Oil Paraffin | J42: Oil LPG | K42: Total
A43: =A31 -> Commercial - Cooling | B43: CNC | C43: =C31*C$7 -> 0 | D43: 0 | E43: =E31*E$7 -> 31.1305937 | F43: 0 | G43: 0 | H43: 0 | I43: 0 | J43: 0 | K43: =SUM(C43:J43) -> 31.1305937 | N43: =E43/0.0036 -> 8647.387138
A44: Commercial - Space Heating | B44: CNH | C44: 41.44505374 | D44: =D32*D$7 -> 0 | E44: =E32*E$7 -> 5.030214337 | F44: 0 | G44: 0 | H44: 0 | I44: 0 | J44: 0 | K44: 46.47526808 | N44: =E44/0.0036 -> 1397.28176
A45: Commercial - Cooking | B45: CNK | C45: 0 | D45: =D33*D$7 -> 0 | E45: 0.2 | F45: 0 | G45: 0 | H45: 0 | I45: 0 | J45: 0.332404185 | K45: 0.532404185 | N45: 55.55555556
A46: Commercial - Lighting | B46: CNL | C46: 0 | D46: =D34*D$7 -> 0 | E46: =E34*E$7 -> 39.00678801 | F46: 0 | G46: 0 | H46: 0 | I46: 0 | J46: 0 | K46: 39.00678801 | N46: 10835.21889
A47: Commercial - Refrigeration | B47: CNR | C47: 0 | D47: =D35*D$7 -> 0 | E47: 7.360409668 | F47: 0 | G47: 0 | H47: 0 | I47: 0 | J47: 0 | K47: 7.360409668 | N47: 2044.558241
A48: Commercial - Water Heating | B48: CNW | C48: 34.80249034 | D48: =D36*D$7 -> 0 | E48: 3.40516567 | F48: 0 | G48: 0 | H48: 0 | I48: 0 | J48: 2.957595815 | K48: 41.16525182 | N48: 945.8793528
A49: Commercial - Public Lights | B49: CNG | C49: 0 | D49: 0 | E49: =E37*E$7 -> 2.683252075 | F49: 0 | G49: 0 | H49: 0 | I49: 0 | J49: 0 | K49: 2.683252075 | N49: 745.3477986
A50: Commercial - Public Water | B50: CNT | E50: 3.167836028 | K50: 3.167836028 | N50: 879.9544523
A51: Commercial - Other | B51: CNO | C51: =C39*C$7 -> 0.05445591898 | D51: =D39*D$7 -> 1.742 | E51: 12.01574052 | F51: =F39*F$7 -> 0.864 | G51: =G39*G$7 -> 0.237 | H51: =H39*H$7 -> 17.767 | I51: =I39*I$7 -> 1.329 | J51: =J39*J$7 -> 0 | K51: =SUM(C51:J51) -> 34.00919644 | N51: 3337.7057
A52: =A40 -> Total | C52: =SUM(C43:C51) -> 76.302 | D52: 1.742 | E52: 104 | F52: 0.864 | G52: 0.237 | H52: 17.767 | I52: 1.329 | J52: 3.29 | K52: 205.531
Q53: 2020 | R53: 2030 | S53: 2050 | V53: 2020 | W53: 2030 | X53: 2050 | AA53: 5
O54: Default Upper Limits | Q54: 0.05 | R54: 0.25 | S54: 0.5 | T54: Default Lower Limits | V54: 0.5 | W54: 0.25 | X54: 0.05 | AA54: =12/5 -> 2.4
D55: ~FI_T | G55: margin on stock | H55: 0.01 | AA55: =AA53*AA54 -> 12
A56: TechDesc | B56: TechName | C56: Comm-IN | D56: Comm-Out | E56: EFF | F56: AFA | G56: Life | H56: STOCK | I56: INVCOST | J56: FIXOM | P56: 0.02 | U56: 0.02
A57: \I:Technology Description | B57: Technology Name | C57: Input Commodity | D57: Useful Energy Service | E57: Efficiency | F57: Utlisation | G57: Lifetime | H57: Existing Installed Cap. | I57: Investment Cost | J57: Fixed O&M Cost | L57: Base Year Technology Share | M57: Final Energy | N57: Useful Energy | O57: Tech Data Source | P57: Base Year Tech Share | Q57: Upper Limit | R57: Upper Limit | S57: Upper Limit | U57: Base Year Tech Share | V57: Lower Limit | W57: Lower Limit | X57: Lower Limit | Y57: Row #
A58: \I: Units | E58: (sum OUT/IN) | F58: (Fraction) | G58: (Years) | H58: (PJa) | I58: 2005R/PJa | J58: 2005R/PJ-a | L58: (%) | M58: (PJ) | N58: (PJ) | P58: U2012 | Q58: ="U"&Q$53 -> U2020 | R58: ="U"&R$53 -> U2030 | S58: ="U"&S$53 -> U2050 | U58: L2012 | V58: ="L"&V$53 -> L2020 | W58: ="L"&W$53 -> L2030 | X58: ="L"&X$53 -> L2050
A59: \I: | C59: 1 | D59: =C59+1 -> 2 | E59: 3 | F59: 4 | G59: 5 | H59: 6 | I59: 7 | J59: 8
A60: ="\I:"&A43 -> \I:Commercial - Cooling
A61: =A43&" - Electricity - Chiller - Existing" -> Commercial - Cooling - Electricity - Chiller - Existing | B61: =D61&RIGHT(C61,3)&"CHIL-E" -> CNCELCCHIL-E | C61: =$E$6 -> COMELC | D61: =$B$43 -> CNC | E61: =Appliances!G46 -> 2 | F61: =SUMIF(AFA!$B$2:$J$2,D61,AFA!$B$4:$J$4) -> 0.7444 | G61: 15 | H61: =(N61/F61)*(1+$H$55) -> 0 | I61: =COM!I61 -> 29.68221405 | J61: =COM!J61 -> 2.968221405 | L61: 0 | M61: =L61*SUMIF($C$6:$J$6,C61,$C$43:$J$43) -> 0 | N61: =M61*E61 -> 0 | P61: =COM!P61 -> 0.03863636364 | Q61: =MIN(1,$P61+Q$54) -> 0.08863636364 | R61: =MIN(1,$P61+R$54) -> 0.2886363636 | S61: 0.5386363636 | U61: =P61/(1+$P$56+$U$56) -> 0.03715034965 | V61: =$U61*V$54 -> 0.01857517483 | W61: =$U61*W$54 -> 0.009287587413 | X61: =$U61*X$54 -> 0.001857517483 | Y61: 1 | AB61: =P61*E61 -> 0.07727272727
A62: =A43&" - Electricity - Central - Existing" -> Commercial - Cooling - Electricity - Central - Existing | B62: =D62&RIGHT(C62,3)&"CEN-E" -> CNCELCCEN-E | C62: COMELC | D62: CNC | E62: =Appliances!G47 -> 3 | F62: =SUMIF(AFA!$B$2:$J$2,D62,AFA!$B$4:$J$4) -> 0.7444 | G62: 15 | H62: =(N62/F62)*(1+$H$55) -> 0 | I62: =COM!I62 -> 49.99963828 | J62: =COM!J62 -> 4.999963828 | L62: 0 | M62: =L62*SUMIF($C$6:$J$6,C62,$C$43:$J$43) -> 0 | N62: =M62*E62 -> 0 | P62: =COM!P62 -> 0.6954545455 | Q62: =MIN(1,$P62+Q$54) -> 0.7454545455 | R62: 0.9454545455 | S62: 1 | U62: =P62/(1+$P$56+$U$56) -> 0.6687062937 | V62: =$U62*V$54 -> 0.3343531469 | W62: 0.1671765734 | X62: 0.03343531469 | Y62: =Y61+1 -> 2 | AB62: =P62*E62 -> 2.086363636
A63: =A43&" - Electricity - Heat Pump - Existing" -> Commercial - Cooling - Electricity - Heat Pump - Existing | B63: =D63&RIGHT(C63,3)&"HP-E" -> CNCELCHP-E | C63: COMELC | D63: CNC | E63: =Appliances!G48 -> 2.2 | F63: =SUMIF(AFA!$B$2:$J$2,D63,AFA!$B$4:$J$4) -> 0.7444 | G63: 15 | H63: =(N63/F63)*(1+$H$55) -> 0 | I63: =COM!I63 -> 65.01710988 | J63: =COM!J63 -> 6.501710988 | L63: 0 | M63: =L63*SUMIF($C$6:$J$6,C63,$C$43:$J$43) -> 0 | N63: =M63*E63 -> 0 | P63: =COM!P63 -> 0.17 | Q63: =MIN(1,$P63+Q$54) -> 0.22 | R63: 0.42 | S63: 0.67 | U63: 0.1634615385 | V63: 0.08173076923 | W63: 0.04086538462 | X63: 0.008173076923 | Y63: =Y62+1 -> 3 | AB63: 0.374
A64: =A43&" - Electricity - Room - Existing" -> Commercial - Cooling - Electricity - Room - Existing | B64: =D64&RIGHT(C64,3)&"ROOM-E" -> CNCELCROOM-E | C64: COMELC | D64: CNC | E64: =Appliances!G49 -> 2 | F64: =SUMIF(AFA!$B$2:$J$2,D64,AFA!$B$4:$J$4) -> 0.7444 | G64: 15 | H64: =(N64/F64)*(1+$H$55) -> 0 | I64: =COM!I64 -> 27.1376057 | J64: =COM!J64 -> 2.71376057 | L64: 0 | M64: =L64*SUMIF($C$6:$J$6,C64,$C$43:$J$43) -> 0 | N64: =M64*E64 -> 0 | P64: =COM!P64 -> 0.1159090909 | Q64: 0.1659090909 | R64: 0.3659090909 | S64: 0.6159090909 | U64: =P64/(1+$P$56+$U$56) -> 0.111451049 | V64: 0.05572552448 | W64: 0.02786276224 | X64: 0.005572552448 | Y64: =Y63+1 -> 4 | AB64: 0.2318181818
A65: =A43&" - Electricity - Central - New" -> Commercial - Cooling - Electricity - Central - New | B65: =D65&RIGHT(C65,3)&"CEN-N" -> CNCELCCEN-N | C65: COMELC | D65: CNC | E65: =(0.19/0.17)*E62 -> 3.352941176 | F65: =SUMIF(AFA!$B$2:$J$2,D65,AFA!$B$4:$J$4) -> 0.7444 | G65: =G62 -> 15 | H65: 0 | I65: =COM!I65 -> 133.6888724 | J65: =COM!J65 -> 4.999963828 | L65: 0 | M65: 0 | N65: 0 | P65: =COM!P65 -> 0 | Q65: 0.05 | R65: 0.25 | S65: 0.5 | U65: 0 | V65: 0 | W65: 0 | X65: 0 | Y65: 5 | AB65: 0
A66: =A43&" - Electricity - Heat Pump - New" -> Commercial - Cooling - Electricity - Heat Pump - New | B66: =D66&RIGHT(C66,3)&"HP-N" -> CNCELCHP-N | C66: COMELC | D66: CNC | E66: =(3.4/3.52)*E65 -> 3.238636364 | F66: =SUMIF(AFA!$B$2:$J$2,D66,AFA!$B$4:$J$4) -> 0.7444 | G66: 15 | H66: 0 | I66: =COM!I66 -> 142.7797157 | J66: =COM!J66 -> 6.818132493 | L66: 0 | M66: 0 | N66: 0 | P66: =COM!P66 -> 0 | Q66: 0.05 | R66: =MIN(1,$P66+R$54) -> 0.25 | S66: 0.5 | U66: 0 | V66: 0 | W66: 0 | X66: 0 | Y66: 6 | AB66: 0
A67: \I: Share Check & sub-totals | H67: =SUM(H61:H64)/4 -> 0 | L67: =SUM(L61:L64) -> 0 | M67: =SUM(M61:M64) -> 0 | N67: =SUM(N61:N64) -> 0 | Y67: 7 | AB67: 0 | AC67: =SUM(AB61:AB66) -> 2.769454545
A68: ="\I:"&A44 -> \I:Commercial - Space Heating | Y68: 8 | AB68: 0
A69: =A$44&" - "&VLOOKUP(RIGHT(C69,3),NameConv!$E$3:$F$16,2,FALSE)&" - Existing" -> Commercial - Space Heating - Coal - Existing | B69: =D69&RIGHT(C69,3)&"-E" -> CNHCOA-E | C69: =$C$6 -> COMCOA | D69: =$B$44 -> CNH | E69: =Appliances!J14 -> 0.6 | F69: =SUMIF(AFA!$B$2:$J$2,D69,AFA!$B$4:$J$4) -> 0.4588 | G69: 15 | H69: =(N69/F69)*(1+$H$55) -> 0 | I69: =COM!I69 -> 98.07416645 | J69: =COM!J69 -> 9.807416645 | L69: 0 | M69: =L69*SUMIF($C$6:$J$6,C69,$C$44:$J$44) -> 0 | N69: =M69*E69 -> 0 | P69: =COM!P69 -> 0.8483849113 | Q69: =MIN(1,$P69+Q$54) -> 0.8983849113 | R69: 1 | S69: 1 | U69: =P69/(1+$P$56+$U$56) -> 0.8157547224 | V69: =$U69*V$54 -> 0.4078773612 | W69: 0.2039386806 | X69: 0.04078773612 | Y69: 9 | AB69: 0.5090309468
A70: =A$44&" - "&VLOOKUP(RIGHT(C70,3),NameConv!$E$3:$F$16,2,FALSE)&" - Existing" -> Commercial - Space Heating - Electricity - Existing | B70: =D70&RIGHT(C70,3)&"-E" -> CNHELC-E | C70: =$E$6 -> COMELC | D70: =$B$44 -> CNH | E70: =Appliances!J11 -> 1 | F70: =SUMIF(AFA!$B$2:$J$2,D70,AFA!$B$4:$J$4) -> 0.4588 | G70: 15 | H70: =(N70/F70)*(1+$H$55) -> 0 | I70: =COM!I70 -> 17.1721621 | J70: =COM!J70 -> 1.71721621 | L70: 0 | M70: =L70*SUMIF($C$6:$J$6,C70,$C$44:$J$44) -> 0 | N70: =M70*E70 -> 0 | P70: =COM!P70 -> 0.1716150887 | Q70: =MIN(1,$P70+Q$54) -> 0.2216150887 | R70: =MIN(1,$P70+R$54) -> 0.4216150887 | S70: =MIN(1,$P70+S$54) -> 0.6716150887 | U70: =P70/(1+$P$56+$U$56) -> 0.1650145084 | V70: 0.08250725418 | W70: 0.04125362709 | X70: 0.008250725418 | Y70: 10 | AB70: =P70*E70 -> 0.1716150887
A71: =A$44&" - "&VLOOKUP(RIGHT(C71,3),NameConv!$E$3:$F$16,2,FALSE)&" - New" -> Commercial - Space Heating - Electricity - New | B71: =D71&RIGHT(C71,3)&"-N" -> CNHELC-N | C71: =$E$6 -> COMELC | D71: =$B$44 -> CNH | E71: =(3.4/0.96)*E70 -> 3.541666667 | F71: =SUMIF(AFA!$B$2:$J$2,D71,AFA!$B$4:$J$4) -> 0.4588 | G71: 15 | H71: =(N71/F71)*(1+$H$55) -> 0 | I71: =COM!I71 -> 98.07416645 | J71: =COM!J71 -> 9.807416645 | L71: 0 | M71: 0 | N71: 0 | P71: =COM!P71 -> 0 | Q71: 0.05 | R71: 0.25 | S71: 0.5 | U71: =P71/(1+$P$56+$U$56) -> 0 | V71: 0 | W71: 0 | X71: 0 | Y71: 11 | AB71: 0
A72: =A$44&" - "&VLOOKUP(RIGHT(C72,3),NameConv!$E$3:$F$16,2,FALSE)&" - New" -> Commercial - Space Heating - Gas - New | B72: =D72&RIGHT(C72,3)&"-N" -> CNHGAS-N | C72: =$F$6 -> COMGAS | D72: =$B$44 -> CNH | E72: =COM_N_old!E67 -> 0.88 | F72: =SUMIF(AFA!$B$2:$J$2,D72,AFA!$B$4:$J$4) -> 0.4588 | G72: 15 | H72: =(N72/F72)*(1+$H$55) -> 0 | I72: ='Gas for heating techs'!D88 -> 26.62600088 | J72: =COM!J69 -> 9.807416645 | L72: 0 | M72: 0 | N72: 0 | P72: =COM!P72 -> 0 | Q72: =MIN(1,$P72+Q$54) -> 0.05 | R72: =MIN(1,$P72+R$54) -> 0.25 | S72: =MIN(1,$P72+S$54) -> 0.5 | U72: =P72/(1+$P$56+$U$56) -> 0 | V72: 0 | W72: 0 | X72: 0 | Y72: 12
A73: \I: Share Check & sub-totals | M73: =SUM(M69:M70) -> 0 | N73: =SUM(N69:N70) -> 0 | Y73: 13 | AB73: 0 | AC73: =SUM(AB69:AB71) -> 0.6806460355
A74: ="\I:"&A45 -> \I:Commercial - Cooking | Y74: 14 | AB74: 0
A75: =A$45&" - "&VLOOKUP(RIGHT(C75,3),NameConv!$E$3:$F$16,2,FALSE)&" - Existing" -> Commercial - Cooking - Oil LPG - Existing | B75: =D75&RIGHT(C75,3)&"-E" -> CNKOLP-E | C75: =$J$6 -> COMOLP | D75: =$B$45 -> CNK | E75: =Appliances!G30 -> 0.9 | F75: =SUMIF(AFA!$B$2:$J$2,D75,AFA!$B$4:$J$4) -> 0.6541 | G75: 15 | H75: =(N75/F75)*(1+$H$55) -> 0 | I75: =COM!I75 -> 85.32287791 | J75: =COM!J75 -> 8.532287791 | L75: 0 | M75: =L75*SUMIF($C$6:$J$6,C75,$C$45:$J$45) -> 0 | N75: =M75*E75 -> 0 | P75: =COM!P75 -> 1 | Q75: =MIN(1,$P75+Q$54) -> 1 | R75: =MIN(1,$P75+R$54) -> 1 | S75: =MIN(1,$P75+S$54) -> 1 | U75: =P75/(1+$P$56+$U$56) -> 0.9615384615 | V75: =$U75*V$54 -> 0.4807692308 | W75: =$U75*W$54 -> 0.2403846154 | X75: =$U75*X$54 -> 0.04807692308 | Y75: 15 | AB75: 0.9 | AC75: =AB75 -> 0.9
A76: \I: Share Check & sub-totals | Y76: 16 | AB76: 0
A77: ="\I:"&A46 -> \I:Commercial - Lighting | Y77: 17 | AB77: 0
A78: =A$46&" - "&VLOOKUP(RIGHT(C78,3),NameConv!$E$3:$F$16,2,FALSE)&" - CFL - Existing" -> Commercial - Lighting - Electricity - CFL - Existing | B78: =D78&RIGHT(C78,3)&"CFL-E" -> CNLELCCFL-E | C78: =$E$6 -> COMELC | D78: =$B$46 -> CNL | E78: =Appliances!G58 -> 4 | F78: =SUMIF(AFA!$B$2:$J$2,D78,AFA!$B$4:$J$4) -> 0.5681 | G78: 5 | H78: =(N78/F78)*(1+$H$55) -> 0 | I78: =COM!I78 -> 3.3 | J78: =COM!J78 -> 0.33 | L78: 0 | M78: =L78*SUMIF($C$6:$J$6,C78,$C$46:$J$46) -> 0 | N78: =M78*E78 -> 0 | P78: =COM!P78 -> 0.0538021978 | Q78: =MIN(1,$P78+Q$54) -> 0.1038021978 | R78: =MIN(1,$P78+R$54) -> 0.3038021978 | S78: 0.5538021978 | U78: =P78/(1+$P$56+$U$56) -> 0.0517328825 | V78: =$U78*V$54 -> 0.02586644125 | W78: 0.01293322063 | X78: 0.002586644125 | Y78: 18 | AB78: 0.2152087912
A79: =A$46&" - "&VLOOKUP(RIGHT(C79,3),NameConv!$E$3:$F$16,2,FALSE)&" - FLU - Existing" -> Commercial - Lighting - Electricity - FLU - Existing | B79: =D79&RIGHT(C79,3)&"FLU-E" -> CNLELCFLU-E | C79: COMELC | D79: CNL | E79: =Appliances!G59 -> 4.5 | F79: =SUMIF(AFA!$B$2:$J$2,D79,AFA!$B$4:$J$4) -> 0.5681 | G79: 5 | H79: =(N79/F79)*(1+$H$55) -> 0 | I79: =COM!I79 -> 2.752433628 | J79: =COM!J79 -> 0.2752433628 | L79: 0 | M79: =L79*SUMIF($C$6:$J$6,C79,$C$46:$J$46) -> 0 | N79: =M79*E79 -> 0 | P79: =COM!P79 -> 0.7061538462 | Q79: 0.7561538462 | R79: 0.9561538462 | S79: 1 | U79: 0.6789940828 | V79: 0.3394970414 | W79: 0.1697485207 | X79: 0.03394970414 | Y79: 19 | AB79: 3.177692308
A80: =A$46&" - "&VLOOKUP(RIGHT(C80,3),NameConv!$E$3:$F$16,2,FALSE)&" - HAL - Existing" -> Commercial - Lighting - Electricity - HAL - Existing | B80: =D80&RIGHT(C80,3)&"HAL-E" -> CNLELCHAL-E | C80: COMELC | D80: CNL | E80: =Appliances!G60 -> 2 | F80: =SUMIF(AFA!$B$2:$J$2,D80,AFA!$B$4:$J$4) -> 0.5681 | G80: 5 | H80: =(N80/F80)*(1+$H$55) -> 0 | I80: =COM!I80 -> 0.992920354 | J80: =COM!J80 -> 0.0992920354 | L80: 0 | M80: =L80*SUMIF($C$6:$J$6,C80,$C$46:$J$46) -> 0 | N80: 0 | P80: =COM!P80 -> 0.008967032967 | Q80: 0.05896703297 | R80: 0.258967033 | S80: 0.508967033 | U80: 0.008622147084 | V80: 0.004311073542 | W80: 0.002155536771 | X80: 0.0004311073542 | Y80: 20 | AB80: 0.01793406593
A81: =A$46&" - "&VLOOKUP(RIGHT(C81,3),NameConv!$E$3:$F$16,2,FALSE)&" - HID - Existing" -> Commercial - Lighting - Electricity - HID - Existing | B81: =D81&RIGHT(C81,3)&"HID-E" -> CNLELCHID-E | C81: COMELC | D81: CNL | E81: =Appliances!G61 -> 7 | F81: =SUMIF(AFA!$B$2:$J$2,D81,AFA!$B$4:$J$4) -> 0.5681 | G81: 5 | H81: =(N81/F81)*(1+$H$55) -> 0 | I81: =COM!I81 -> 0.4015486726 | J81: =COM!J81 -> 0.04015486726 | L81: 0 | M81: 0 | N81: 0 | P81: =COM!P81 -> 0.2353846154 | Q81: 0.2853846154 | R81: 0.4853846154 | S81: 0.7353846154 | U81: 0.2263313609 | V81: 0.1131656805 | W81: 0.05658284024 | X81: 0.01131656805 | Y81: 21 | AB81: 1.647692308
A82: =A$46&" - "&VLOOKUP(RIGHT(C82,3),NameConv!$E$3:$F$16,2,FALSE)&" - INC - Existing" -> Commercial - Lighting - Electricity - INC - Existing | B82: =D82&RIGHT(C82,3)&"INC-E" -> CNLELCINC-E | C82: COMELC | D82: CNL | E82: =Appliances!G62 -> 1 | F82: =SUMIF(AFA!$B$2:$J$2,D82,AFA!$B$4:$J$4) -> 0.5681 | G82: 2 | H82: =(N82/F82)*(1+$H$55) -> 0 | I82: =COM!I82 -> 0.35 | J82: =COM!J82 -> 0.035 | L82: 0 | M82: 0 | N82: 0 | P82: =COM!P82 -> 0.01569230769 | Q82: 0.06569230769 | R82: 0.2656923077 | S82: 0.5156923077 | U82: 0.0150887574 | V82: 0.007544378698 | W82: 0.003772189349 | X82: 0.0007544378698 | Y82: 22 | AB82: 0.01569230769
A83: =A$46&" - "&VLOOKUP(RIGHT(C83,3),NameConv!$E$3:$F$16,2,FALSE)&" - LED - New" -> Commercial - Lighting - Electricity - LED - New | B83: =D83&RIGHT(C83,3)&"LED-N" -> CNLELCLED-N | C83: COMELC | D83: CNL | E83: 9.8 | F83: =SUMIF(AFA!$B$2:$J$2,D83,AFA!$B$4:$J$4) -> 0.5681 | G83: 10 | H83: 0 | I83: =COM!I83 -> 6.45 | J83: =COM!J83 -> 0.645 | L83: 0 | M83: 0 | N83: 0 | P83: =COM!P83 -> 0 | Q83: 0.05 | R83: 0.25 | S83: =MIN(1,$P83+S$54) -> 0.5 | U83: 0 | V83: 0 | W83: 0 | X83: 0 | Y83: 23 | AB83: 0
A84: \I: Share Check & sub-totals | L84: =SUM(L78:L82) -> 0 | M84: =SUM(M78:M82) -> 0 | N84: =SUM(N78:N82) -> 0 | Y84: 24 | AB84: 0 | AC84: =SUM(AB78:AB83) -> 5.07421978
A85: ="\I:"&A47 -> \I:Commercial - Refrigeration | Y85: 25 | AB85: 0
A86: =A$47&" - "&VLOOKUP(RIGHT(C86,3),NameConv!$E$3:$F$16,2,FALSE)&" - Existing" -> Commercial - Refrigeration - Electricity - Existing | B86: =D86&RIGHT(C86,3)&"-E" -> CNRELC-E | C86: =$E$6 -> COMELC | D86: =$B$47 -> CNR | E86: =Appliances!G53 -> 1 | F86: =SUMIF(AFA!$B$2:$J$2,D86,AFA!$B$4:$J$4) -> 0.7125 | G86: 10 | H86: =(N86/F86)*(1+$H$55) -> 0 | I86: =COM!I86 -> 947.8226599 | J86: =COM!J86 -> 94.78226599 | L86: 0 | M86: =L86*SUMIF($C$6:$J$6,C86,$C$47:$J$47) -> 0 | N86: =M86*E86 -> 0 | P86: =COM!P86 -> 1 | Q86: =MIN(1,$P86+Q$54) -> 1 | R86: 1 | S86: 1 | U86: =P86/(1+$P$56+$U$56) -> 0.9615384615 | V86: =$U86*V$54 -> 0.4807692308 | W86: 0.2403846154 | X86: 0.04807692308 | Y86: 26 | AB86: 1
A87: =A$47&" - "&VLOOKUP(RIGHT(C87,3),NameConv!$E$3:$F$16,2,FALSE)&" - New" -> Commercial - Refrigeration - Electricity - New | B87: =D87&RIGHT(C87,3)&"-N" -> CNRELC-N | C87: =$E$6 -> COMELC | D87: =$B$47 -> CNR | E87: =(5.13/3.08)*E86 -> 1.665584416 | F87: =SUMIF(AFA!$B$2:$J$2,D87,AFA!$B$4:$J$4) -> 0.7125 | G87: 10 | H87: 0 | I87: =COM!I87 -> 983.5690013 | J87: =COM!J87 -> 98.35690013 | L87: 0 | M87: 0 | N87: 0 | P87: =COM!P87 -> 0 | Q87: 0.05 | R87: 0.25 | S87: 0.5 | U87: =P87 -> 0 | V87: 0 | W87: 0 | X87: 0 | Y87: 27 | AB87: 0
A88: \I: Share Check & sub-totals | L88: =SUM(L86) -> 0 | M88: =SUM(M86) -> 0 | N88: =SUM(N86) -> 0 | Y88: 28 | AB88: 0 | AC88: =SUM(AB86:AB87) -> 1
A89: ="\I:"&A48 -> \I:Commercial - Water Heating | Y89: 29 | AB89: 0
A90: =A$48&" - "&VLOOKUP(RIGHT(C90,3),NameConv!$E$3:$F$16,2,FALSE)&" - Existing" -> Commercial - Water Heating - Electricity - Existing | B90: =D90&RIGHT(C90,3)&"-E" -> CNWELC-E | C90: =$E$6 -> COMELC | D90: =$B$48 -> CNW | E90: =Appliances!G20 -> 1 | F90: =SUMIF(AFA!$B$2:$J$2,D90,AFA!$B$4:$J$4) -> 0.846 | G90: 14 | H90: =(N90/F90)*(1+$H$55) -> 0 | I90: =COM!I90 -> 17.26006266 | J90: =COM!J90 -> 1.726006266 | L90: 0 | M90: =L90*SUMIF($C$6:$J$6,C90,$C$48:$J$48) -> 0 | N90: =M90*E90 -> 0 | P90: =COM!P90 -> 0.1099924132 | Q90: =MIN(1,$P90+Q$54) -> 0.1599924132 | R90: 0.3599924132 | S90: 0.6099924132 | U90: =P90/(1+$P$56+$U$56) -> 0.1057619358 | V90: =$U90*V$54 -> 0.05288096789 | W90: 0.02644048394 | X90: 0.005288096789 | Y90: 30 | AB90: 0.1099924132
A91: =A$48&" - "&VLOOKUP(RIGHT(C91,3),NameConv!$E$3:$F$16,2,FALSE)&" - Existing" -> Commercial - Water Heating - Coal - Existing | B91: =D91&RIGHT(C91,3)&"-E" -> CNWCOA-E | C91: =$C$6 -> COMCOA | D91: =$B$48 -> CNW | E91: =Appliances!G21 -> 0.75 | F91: =SUMIF(AFA!$B$2:$J$2,D91,AFA!$B$4:$J$4) -> 0.846 | G91: 14 | H91: =(N91/F91)*(1+$H$55) -> 0 | I91: =COM!I91 -> 102.3874535 | J91: =COM!J91 -> 10.23874535 | L91: 0 | M91: =L91*SUMIF($C$6:$J$6,C91,$C$48:$J$48) -> 0 | N91: =M91*E91 -> 0 | P91: =COM!P91 -> 0.8431329637 | Q91: =MIN(1,$P91+Q$54) -> 0.8931329637 | R91: 1 | S91: 1 | U91: =P91/(1+$P$56+$U$56) -> 0.8107047728 | V91: 0.4053523864 | W91: 0.2026761932 | X91: 0.04053523864 | Y91: 31 | AB91: 0.6323497228
A92: =A$48&" - "&VLOOKUP(RIGHT(C92,3),NameConv!$E$3:$F$16,2,FALSE)&" - Existing" -> Commercial - Water Heating - Oil LPG - Existing | B92: =D92&RIGHT(C92,3)&"-E" -> CNWOLP-E | C92: =$J$6 -> COMOLP | D92: =$B$48 -> CNW | E92: =Appliances!G22 -> 0.7 | F92: =SUMIF(AFA!$B$2:$J$2,D92,AFA!$B$4:$J$4) -> 0.846 | G92: 12 | H92: =(N92/F92)*(1+$H$55) -> 0 | I92: =COM!I92 -> 13.56823938 | J92: =COM!J92 -> 1.356823938 | L92: 0 | M92: =L92*SUMIF($C$6:$J$6,C92,$C$48:$J$48) -> 0 | N92: =M92*E92 -> 0 | P92: =COM!P92 -> 0.06687462307 | Q92: 0.1168746231 | R92: 0.3168746231 | S92: 0.5668746231 | U92: =P92/(1+$P$56+$U$56) -> 0.06430252219 | V92: 0.03215126109 | W92: 0.01607563055 | X92: 0.003215126109 | Y92: 32 | AB92: 0.04681223615
A93: =A$48&" - "&VLOOKUP(RIGHT(C93,3),NameConv!$E$3:$F$16,2,FALSE)&" - New" -> Commercial - Water Heating - Electricity - New | B93: =D93&RIGHT(C93,3)&"-N" -> CNWELC-N | C93: =$E$6 -> COMELC | D93: =$B$48 -> CNW | E93: =(0.97/0.96)*E90 -> 1.010416667 | F93: =SUMIF(AFA!$B$2:$J$2,D93,AFA!$B$4:$J$4) -> 0.846 | G93: 14 | H93: =(2.41/1.87)*H90 -> 0 | I93: =COM!I93 -> 17.26006266 | J93: =COM!J93 -> 1.726006266 | L93: 0 | M93: 0 | N93: 0 | P93: =COM!P93 -> 0 | Q93: 0.05 | R93: 0.25 | S93: 0.5 | U93: =P93/(1+$P$56+$U$56) -> 0 | V93: 0 | W93: 0 | X93: 0 | Y93: 33 | AB93: 0
A94: =A$48&" - "&VLOOKUP(RIGHT(C94,3),NameConv!$E$3:$F$16,2,FALSE)&" - HP - New" -> Commercial - Water Heating - Electricity - HP - New | B94: =D94&RIGHT(C94,3)&"HP-N" -> CNWELCHP-N | C94: =$E$6 -> COMELC | D94: =$B$48 -> CNW | E94: 2.26 | F94: =SUMIF(AFA!$B$2:$J$2,D94,AFA!$B$4:$J$4) -> 0.846 | G94: 10 | H94: =(N94/F94)*(1+$H$55) -> 0 | I94: =COM!I94 -> 51.78018797 | J94: =COM!J94 -> 5.178018797 | L94: 0 | M94: 0 | N94: 0 | P94: =COM!P94 -> 0 | Q94: 0.05 | R94: 0.25 | S94: 0.5 | U94: =P94/(1+$P$56+$U$56) -> 0 | V94: 0 | W94: 0 | X94: 0 | Y94: 34
A95: \I: Share Check & sub-totals | M95: =SUM(M90:M92) -> 0 | N95: =SUM(N90:N92) -> 0 | Y95: 35 | AB95: 0 | AC95: =SUM(AB90:AB93) -> 0.7891543721
A96: ="\I:"&A49 -> \I:Commercial - Public Lights | Y96: 36
A97: =A$49&" - "&VLOOKUP(RIGHT(C97,3),NameConv!$E$3:$F$16,2,FALSE)&" - "&LEFT(Appliances!B65,3)&" - Existing" -> Commercial - Public Lights - Electricity - INC - Existing | B97: =D97&RIGHT(C97,3)&LEFT(RIGHT(A97,LEN("LIT - Existing")),3)&"-E" -> CNGELCINC-E | C97: =$E$6 -> COMELC | D97: =$B$49 -> CNG | E97: =Appliances!H65 -> 1 | F97: =SUMIF(AFA!$B$2:$J$2,D97,AFA!$B$4:$J$4) -> 0.0951 | G97: 9 | H97: =(N97/F97)*(1+$H$55) -> 0 | I97: =COM!I97 -> 0.35 | J97: =COM!J97 -> 0.035 | L97: 0 | M97: =L97*SUMIF($C$6:$J$6,C97,$C$49:$J$49) -> 0 | N97: =M97*E97 -> 0 | P97: =COM!P97 -> 0.01477964639 | Q97: =MIN(1,$P97+Q$54) -> 0.06477964639 | R97: 0.2647796464 | S97: 0.5147796464 | U97: =P97/(1+$P$56+$U$56) -> 0.01421119845 | V97: =$U97*V$54 -> 0.007105599226 | W97: 0.003552799613 | X97: 0.0007105599226 | Y97: 37
A98: =A$49&" - "&VLOOKUP(RIGHT(C98,3),NameConv!$E$3:$F$16,2,FALSE)&" - "&LEFT(Appliances!B66,3)&" - Existing" -> Commercial - Public Lights - Electricity - HAL - Existing | B98: CNGELCHAL-E | C98: COMELC | D98: CNG | E98: =Appliances!H66 -> 2 | F98: =SUMIF(AFA!$B$2:$J$2,D98,AFA!$B$4:$J$4) -> 0.0951 | G98: 10 | H98: 0 | I98: =COM!I98 -> 0.992920354 | J98: =COM!J98 -> 0.0992920354 | L98: 0 | M98: 0 | N98: 0 | P98: =COM!P98 -> 0.02955929278 | Q98: 0.07955929278 | R98: 0.2795592928 | S98: 0.5295592928 | U98: 0.0284223969 | V98: 0.01421119845 | W98: 0.007105599226 | X98: 0.001421119845 | Y98: 38
A99: =A$49&" - "&VLOOKUP(RIGHT(C99,3),NameConv!$E$3:$F$16,2,FALSE)&" - "&LEFT(Appliances!B67,3)&" - Existing" -> Commercial - Public Lights - Electricity - HPM - Existing | B99: CNGELCHPM-E | C99: COMELC | D99: CNG | E99: =Appliances!H67 -> 2.4 | F99: =SUMIF(AFA!$B$2:$J$2,D99,AFA!$B$4:$J$4) -> 0.0951 | G99: 11 | H99: 0 | I99: =COM!I99 -> 0.992920354 | J99: =COM!J99 -> 0.0992920354 | L99: 0 | M99: 0 | N99: 0 | P99: =COM!P99 -> 0.4497368014 | Q99: 0.4997368014 | R99: 0.6997368014 | S99: 0.9497368014 | U99: 0.4324392321 | V99: 0.2162196161 | W99: 0.108109808 | X99: 0.02162196161 | Y99: 39
A100: =A$49&" - "&VLOOKUP(RIGHT(C100,3),NameConv!$E$3:$F$16,2,FALSE)&" - "&LEFT(Appliances!B68,3)&" - Existing" -> Commercial - Public Lights - Electricity - HPS - Existing | B100: =D100&RIGHT(C100,3)&LEFT(RIGHT(A100,LEN("LIT - Existing")),3)&"-E" -> CNGELCHPS-E | C100: =$E$6 -> COMELC | D100: =$B$49 -> CNG | E100: =Appliances!H68 -> 6.5 | F100: =SUMIF(AFA!$B$2:$J$2,D100,AFA!$B$4:$J$4) -> 0.0951 | G100: 12 | H100: =(N100/F100)*(1+$H$55) -> 0 | I100: =COM!I100 -> 0.992920354 | J100: =COM!J100 -> 0.0992920354 | L100: 0 | M100: =L100*SUMIF($C$6:$J$6,C100,$C$49:$J$49) -> 0 | N100: =M100*E100 -> 0 | P100: =COM!P100 -> 0.5120569881 | Q100: =MIN(1,$P100+Q$54) -> 0.5620569881 | R100: 0.7620569881 | S100: 1 | U100: =P100/(1+$P$56+$U$56) -> 0.4923624885 | V100: =$U100*V$54 -> 0.2461812443 | W100: 0.1230906221 | X100: 0.02461812443 | Y100: 40
A101: =A$49&" - "&VLOOKUP(RIGHT(C101,3),NameConv!$E$3:$F$16,2,FALSE)&" - "&LEFT(Appliances!B69,3)&" - Existing" -> Commercial - Public Lights - Electricity - MHL - Existing | B101: CNGELCMHL-E | C101: COMELC | D101: CNG | E101: =Appliances!H69 -> 5 | F101: =SUMIF(AFA!$B$2:$J$2,D101,AFA!$B$4:$J$4) -> 0.0951 | G101: 10 | H101: 0 | I101: =COM!I101 -> 0.4015486726 | J101: =COM!J101 -> 0.04015486726 | L101: 0 | M101: 0 | N101: 0 | P101: =COM!P101 -> 0.01386727136 | Q101: 0.06386727136 | R101: 0.2638672714 | S101: 0.5138672714 | U101: 0.01333391477 | V101: 0.006666957383 | W101: 0.003333478692 | X101: 0.0006666957383 | Y101: 41
A102: =A$49&" - "&VLOOKUP(RIGHT(C102,3),NameConv!$E$3:$F$16,2,FALSE)&" - "&LEFT(Appliances!B70,3)&" - New" -> Commercial - Public Lights - Electricity - LED - New | B102: =D102&RIGHT(C102,3)&LEFT(RIGHT(A102,LEN("LIT - NEW")),3)&"-N" -> CNGELCLED-N | C102: COMELC | D102: CNG | E102: =Appliances!H70 -> 9.8 | F102: =SUMIF(AFA!$B$2:$J$2,D102,AFA!$B$4:$J$4) -> 0.0951 | G102: 10 | H102: 0 | I102: =COM!I102 -> 6.45 | J102: =COM!J102 -> 0.645 | L102: 0 | M102: 0 | N102: 0 | P102: =COM!P102 -> 0 | Q102: 0.05 | R102: 0.25 | S102: 0.5 | U102: 0 | V102: 0 | W102: 0 | X102: 0 | Y102: 42
A103: \I: Share Check & sub-totals | Y103: 43
A104: ="\I:"&A50 -> \I:Commercial - Public Water | Y104: 44
A105: =A$50&" - "&VLOOKUP(RIGHT(C105,3),NameConv!$E$3:$F$16,2,FALSE)&" - "&LEFT(Appliances!B73,3)&" - Existing" -> Commercial - Public Water - Electricity - - Existing | B105: =D105&RIGHT(C105,3)&"-E" -> CNTELC-E | C105: =$E$6 -> COMELC | D105: =$B$50 -> CNT | E105: 1 | F105: =SUMIF(AFA!$B$2:$J$2,D105,AFA!$B$4:$J$4) -> 0.2946 | G105: 15 | H105: =(N105/F105)*(1+$H$55) -> 0 | I105: =COM!I105 -> 100 | J105: =COM!J105 -> 10 | L105: 0 | M105: =L105*SUMIF($C$6:$J$6,C105,$C$50:$J$50) -> 0 | N105: =M105*E105 -> 0 | P105: =COM!P105 -> 1.02 | Q105: =MIN(1,$P105+Q$54) -> 1 | R105: =MIN(1,$P105+R$54) -> 1 | S105: 1 | U105: =P105/(1+$P$56+$U$56) -> 0.9807692308 | V105: =$U105*V$54 -> 0.4903846154 | W105: =$U105*W$54 -> 0.2451923077 | X105: 0.04903846154 | Y105: 45
A106: \I: Share Check & sub-totals | Y106: 46
A107: ="\I:"&A51 -> \I:Commercial - Other | Y107: 47 | AB107: 0
A108: =A$51&" - "&VLOOKUP(RIGHT(C108,3),NameConv!$E$3:$F$16,2,FALSE)&" - Existing" -> Commercial - Other - Coal - Existing | B108: =D108&RIGHT(C108,3)&"-E" -> CNOCOA-E | C108: =$C$6 -> COMCOA | D108: =$B$51 -> CNO | E108: =Appliances!G36 -> 1 | F108: =SUMIF(AFA!$B$2:$J$2,D108,AFA!$B$4:$J$4) -> 0.6173 | G108: 15 | H108: =(N108/F108)*(1+$H$55) -> 0 | I108: =COM!I108 -> 249.6022861 | J108: =COM!J108 -> 24.96022861 | L108: 0 | M108: =L108*SUMIF($C$6:$J$6,C108,$C$51:$J$51) -> 0 | N108: =M108*E108 -> 0 | P108: =COM!P108 -> 0.001801593426 | Q108: =MIN(1,$P108+Q$54) -> 0.05180159343 | R108: 0.2518015934 | S108: 0.5018015934 | U108: =P108/(1+$P$56+$U$56) -> 0.001732301371 | V108: =$U108*V$54 -> 0.0008661506855 | W108: 0.0004330753427 | X108: 8.661506855e-05 | Y108: 48 | AB108: 0.001801593426
A109: =A$51&" - "&VLOOKUP(RIGHT(C109,3),NameConv!$E$3:$F$16,2,FALSE)&" - Existing" -> Commercial - Other - Oil Diesel - Existing | B109: CNOODS-E | C109: =$D$6 -> COMODS | D109: =$B$51 -> CNO | E109: =Appliances!G37 -> 0.9 | F109: =SUMIF(AFA!$B$2:$J$2,D109,AFA!$B$4:$J$4) -> 0.6173 | G109: 15 | H109: 0 | I109: =COM!I109 -> 249.6022861 | J109: =COM!J109 -> 24.96022861 | L109: 0 | M109: 0 | N109: 0 | P109: =COM!P109 -> 0.05186834096 | Q109: 0.101868341 | R109: 0.301868341 | S109: 0.551868341 | U109: 0.04987340477 | V109: 0.02493670238 | W109: 0.01246835119 | X109: 0.002493670238 | Y109: 49 | AB109: 0.04668150686
A110: =A$51&" - "&VLOOKUP(RIGHT(C110,3),NameConv!$E$3:$F$16,2,FALSE)&" - Existing" -> Commercial - Other - Electricity - Existing | B110: CNOELC-E | C110: =$E$6 -> COMELC | D110: CNO | E110: =Appliances!G35 -> 0.75 | F110: =SUMIF(AFA!$B$2:$J$2,D110,AFA!$B$4:$J$4) -> 0.6173 | G110: 15 | H110: 0 | I110: =COM!I110 -> 249.6022861 | J110: =COM!J110 -> 24.96022861 | L110: 0 | M110: 0 | N110: 0 | P110: =COM!P110 -> 0.2981422341 | Q110: 0.3481422341 | R110: 0.5481422341 | S110: 0.7981422341 | U110: 0.2866752251 | V110: =U110 -> 0.2866752251 | W110: =V110 -> 0.2866752251 | X110: 0.2866752251 | Y110: 50 | AB110: 0.2236066755
A111: =A$51&" - "&VLOOKUP(RIGHT(C111,3),NameConv!$E$3:$F$16,2,FALSE)&" - Existing" -> Commercial - Other - Gas - Existing | B111: CNOGAS-E | C111: =$F$6 -> COMGAS | D111: CNO | E111: 1 | F111: =SUMIF(AFA!$B$2:$J$2,D111,AFA!$B$4:$J$4) -> 0.6173 | G111: 15 | H111: 0 | I111: =COM!I111 -> 249.6022861 | J111: =COM!J111 -> 24.96022861 | L111: 0 | M111: 0 | N111: 0 | P111: =COM!P111 -> 0.02858416034 | Q111: 0.07858416034 | R111: 0.2785841603 | S111: 0.5285841603 | U111: 0.02748476956 | V111: 0.01374238478 | W111: 0.00687119239 | X111: 0.001374238478 | Y111: 51 | AB111: 0.02858416034
A112: =A$51&" - "&VLOOKUP(RIGHT(C112,3),NameConv!$E$3:$F$16,2,FALSE)&" - Existing" -> Commercial - Other - Oil Gasoline - Existing | B112: CNOOGS-E | C112: =$G$6 -> COMOGS | D112: CNO | E112: 1 | F112: =SUMIF(AFA!$B$2:$J$2,D112,AFA!$B$4:$J$4) -> 0.6173 | G112: 15 | H112: 0 | I112: =COM!I112 -> 249.6022861 | J112: =COM!J112 -> 24.96022861 | L112: 0 | M112: 0 | N112: 0 | P112: =COM!P112 -> 0.007840793983 | Q112: 0.05784079398 | R112: 0.257840794 | S112: 0.507840794 | U112: 0.007539224984 | V112: 0.003769612492 | W112: 0.001884806246 | X112: 0.0003769612492 | Y112: 52 | AB112: 0.007840793983
A113: =A$51&" - "&VLOOKUP(RIGHT(C113,3),NameConv!$E$3:$F$16,2,FALSE)&" - Existing" -> Commercial - Other - Oil HFO - Existing | B113: CNOOHF-E | C113: =$H$6 -> COMOHF | D113: CNO | E113: 1 | F113: =SUMIF(AFA!$B$2:$J$2,D113,AFA!$B$4:$J$4) -> 0.6173 | G113: 15 | H113: 0 | I113: =COM!I113 -> 249.6022861 | J113: =COM!J113 -> 24.96022861 | L113: 0 | M113: 0 | N113: 0 | P113: =COM!P113 -> 0.5877948806 | Q113: 0.6377948806 | R113: 0.8377948806 | S113: 1 | U113: 0.5651873852 | V113: 0.2825936926 | W113: 0.1412968463 | X113: 0.02825936926 | Y113: 53 | AB113: 0.5877948806
A114: =A$51&" - "&VLOOKUP(RIGHT(C114,3),NameConv!$E$3:$F$16,2,FALSE)&" - Existing" -> Commercial - Other - Oil Paraffin - Existing | B114: CNOOKE-E | C114: =$I$6 -> COMOKE | D114: CNO | E114: 1 | F114: =SUMIF(AFA!$B$2:$J$2,D114,AFA!$B$4:$J$4) -> 0.6173 | G114: 15 | H114: 0 | I114: =COM!I114 -> 249.6022861 | J114: =COM!J114 -> 24.96022861 | L114: 0 | M114: 0 | N114: 0 | P114: =COM!P114 -> 0.04396799664 | Q114: 0.09396799664 | R114: 0.2939679966 | S114: 0.5439679966 | U114: 0.04227691985 | V114: 0.02113845992 | W114: 0.01056922996 | X114: 0.002113845992 | Y114: 54 | AB114: 0.04396799664
A115: \I: Share Check & sub-totals | M115: =SUM(M108:M114) -> 0 | N115: =SUM(N108:N114) -> 0 | Y115: 55 | AB115: 0 | AC115: =SUM(AB108:AB114)/SUM(P108:P114) -> 0.9218407916
A116: \I: Total number of tech entries | B116: =SUMPRODUCT(--(B61:B115<>"")) -> 38 | O116: =ROW()-56 -> 60 | Y116: =Y115+1 -> 56

Sheet COM_N_old
A1: South Africa | B1: Base Year Energy Balance | E1: Commerce
A2: Import Options [All or Limits only?] | B2: All
C3: Base-year final energy aggregated by sector fuel | L3: Entry #
A4: Fuel # | B4: =COUNT(C4:M4) -> 8 | C4: 1 | D4: =C4+1 -> 2 | E4: =D4+1 -> 3 | F4: 4 | G4: 5 | H4: 6 | I4: 7 | J4: 8
A5: Commercial | B5: CN | C5: Coal | D5: Oil Diesel | E5: Electricity | F5: Gas | G5: Oil Gasoline | H5: Oil HFO | I5: Oil Paraffin | J5: Oil LPG | K5: Total
A6: Sectoral Fuel Names | B6: COM | C6: =$B$6&VLOOKUP(C5,FuelNames,2,FALSE) -> COMCOA | D6: COMODS | E6: COMELC | F6: COMGAS | G6: COMOGS | H6: COMOHF | I6: COMOKE | J6: COMOLP
B7: PJ | C7: 76.302 | D7: 1.742 | E7: 114.66 | F7: 0.864 | G7: 0.237 | H7: 17.767 | I7: 1.329 | J7: 3.29 | K7: =SUM(C7:J7) -> 216.191
A8: Emission Factors | B8: kt/PJ | C8: =C7/$K$7 -> 0.3529379114 | D8: =D7/$K$7 -> 0.008057689728 | E8: =E7/$K$7 -> 0.5303643537 | F8: 0.003996466088 | G8: 0.00109625285 | H8: 0.08218195947 | I8: 0.006147341934 | J8: 0.0152180248
A9: Carbon Dioxide | B9: CO2 | C9: 94.1 | D9: 74.1 | E9: 0 | F9: 64.2 | G9: 69.3 | H9: 77.4 | I9: 71.9 | J9: 63.1 | L9: 1
A10: Methane | B10: CH4 | C10: 0.001 | D10: 0.003 | E10: 0 | F10: 0.003 | G10: 0.003 | H10: 0.003 | I10: 0.003 | J10: 0.001 | L10: =L9+1 -> 2
A11: Nitrous Oxide | B11: N2O | C11: =15/1000 -> 0.015 | D11: 0.0006 | E11: 0 | F11: 0.0006 | G11: 0.0006 | H11: 0.0006 | I11: 0.0006 | J11: 0.0001 | L11: =L10+1 -> 3
A12: Sulphur Gases | B12: SOX | C12: 0.4544 | D12: 0.2529 | E12: 0 | F12: 0 | G12: 0.0467 | H12: 1.5291 | L12: =L11+1 -> 4
A13: Nitrogen Gases | B13: NOX | C13: 0.1 | D13: 0.1 | E13: 0 | F13: 0.05 | G13: 0.1 | H13: 0.1 | L13: =L12+1 -> 5
A15: Distribution Losses | C15: 0 | D15: 0 | E15: 0.1 | F15: 0 | G15: 0 | H15: 0 | I15: 0 | J15: 0
A16: Distribution Capacity (estimate) | B16: PJa | C16: =SUMPRODUCT(--($C$62:$C$101=C6),$M$62:$M$101)^2/(SUMPRODUCT(--($C$62:$C$101=C6),$M$62:$M$101,$F$62:$F$101)+eps) -> 0 | D16: 0 | E16: 0 | F16: 0 | G16: 0 | H16: 0 | I16: 0 | J16: 0
A18: End use demands | B18: Demand
A19: Cooling | B19: C
A20: Space Heating | B20: H
A21: Cooking | B21: K
A22: Lighting | B22: L
A23: Refrigeration | B23: R
A24: Water Heating | B24: W
A25: Public Lights | B25: G
A26: Public Water | B26: T
A27: Other | B27: O
C29: End-use Shares by Fuel - All sourced from Interim report (other than LPG)
A30: End-use Fractional Shares by Sub-sector | B30: Demand ID | C30: =C5 -> Coal | D30: =D5 -> Oil Diesel | E30: Electricity | F30: Gas | G30: Oil Gasoline | H30: Oil HFO | I30: Oil Paraffin | J30: Oil LPG
A31: =$A$5&" - "&A19 -> Commercial - Cooling | B31: =$B$5&B19 -> CNC | E31: ='End use share 2006c'!$E$34 -> 0.2999093805
A32: Commercial - Space Heating | B32: CNH | C32: ='End use share 2006c'!$C$37 -> 0.5431712635 | E32: ='End use share 2006c'!$C$34 -> 0.04846063909
A33: Commercial - Cooking | B33: CNK | J33: ='End use share 2006c'!$G$40 -> 0.1010347067
A34: Commercial - Lighting | B34: CNL | E34: ='End use share 2006c'!$B$34 -> 0.3757879384
A35: Commercial - Refrigeration | B35: CNR | E35: ='End use share 2006c'!$F$34 -> 0.07090953438
A36: Commercial - Water Heating | B36: CNW | C36: ='End use share 2006c'!$D$37 -> 0.4561150473 | E36: ='End use share 2006c'!$D$34 -> 0.03280506426 | J36: ='End use share 2006c'!$D$40 -> 0.8989652933
A37: Commercial - Public Lights | B37: CNG | E37: ='End use share 2006c'!H34 -> 0.02585021267
A38: Commercial - Public Water | B38: CNT | E38: ='End use share 2006c'!I34 -> 0.03051865153
A39: Commercial - Other | B39: CNO | C39: =1-SUM(C31:C38) -> 0.000713689274 | D39: =1-SUM(D31:D38) -> 1 | E39: =1-SUM(E31:E38) -> 0.1157585792 | F39: 1 | G39: 1 | H39: 1 | I39: 1 | J39: 0
A40: Total | C40: =SUM(C31:C39) -> 1 | D40: 1 | E40: 1 | F40: 1 | G40: 1 | H40: 1 | I40: 1 | J40: 1
A42: End-use Final Energy Consumption by Sub-sector (PJ) | B42: Demand ID | C42: =C30 -> Coal | D42: =D30 -> Oil Diesel | E42: Electricity | F42: Gas | G42: Oil Gasoline | H42: Oil HFO | I42: Oil Paraffin | J42: Oil LPG | K42: Total
A43: =A31 -> Commercial - Cooling | B43: CNC | C43: =C31*C$7 -> 0 | D43: 0 | E43: =E31*E$7 -> 34.38760957 | F43: 0 | G43: 0 | H43: 0 | I43: 0 | J43: 0 | K43: =SUM(C43:J43) -> 34.38760957 | N43: =E43/0.0036 -> 9552.113769
A44: Commercial - Space Heating | B44: CNH | C44: 41.44505374 | D44: =D32*D$7 -> 0 | E44: =E32*E$7 -> 5.556496878 | F44: 0 | G44: 0 | H44: 0 | I44: 0 | J44: 0 | K44: 47.00155062 | N44: =E44/0.0036 -> 1543.471355
A45: Commercial - Cooking | B45: CNK | C45: 0 | D45: =D33*D$7 -> 0 | E45: 0.2 | F45: 0 | G45: 0 | H45: 0 | I45: 0 | J45: 0.332404185 | K45: 0.532404185 | N45: 55.55555556
A46: Commercial - Lighting | B46: CNL | C46: 0 | D46: =D34*D$7 -> 0 | E46: =E34*E$7 -> 43.08784502 | F46: 0 | G46: 0 | H46: 0 | I46: 0 | J46: 0 | K46: 43.08784502 | N46: 11968.84584
A47: Commercial - Refrigeration | B47: CNR | C47: 0 | D47: =D35*D$7 -> 0 | E47: 8.130487212 | F47: 0 | G47: 0 | H47: 0 | I47: 0 | J47: 0 | K47: 8.130487212 | N47: 2258.46867
A48: Commercial - Water Heating | B48: CNW | C48: 34.80249034 | D48: =D36*D$7 -> 0 | E48: 3.761428668 | F48: 0 | G48: 0 | H48: 0 | I48: 0 | J48: 2.957595815 | K48: 41.52151482 | N48: 1044.841297
A49: Commercial - Public Lights | B49: CNG | C49: 0 | D49: 0 | E49: 2.963985385 | F49: 0 | G49: 0 | H49: 0 | I49: 0 | J49: 0 | K49: 2.963985385 | N49: 823.3292735
A50: Commercial - Public Water | B50: CNT | E50: 3.499268584 | K50: 3.499268584 | N50: 972.0190511
A51: Commercial - Other | B51: CNO | C51: =C39*C$7 -> 0.05445591898 | D51: =D39*D$7 -> 1.742 | E51: 13.27287869 | F51: =F39*F$7 -> 0.864 | G51: =G39*G$7 -> 0.237 | H51: =H39*H$7 -> 17.767 | I51: =I39*I$7 -> 1.329 | J51: =J39*J$7 -> 0 | K51: =SUM(C51:J51) -> 35.26633461 | N51: 3686.910747
A52: =A40 -> Total | C52: =SUM(C43:C51) -> 76.302 | D52: 1.742 | E52: 114.86 | F52: 0.864 | G52: 0.237 | H52: 17.767 | I52: 1.329 | J52: 3.29 | K52: 216.391
P53: 2012 | Q53: 2020 | R53: 2030 | S53: 2050 | V53: =Q53 -> 2020 | W53: 2030 | X53: 2050 | AA53: 5
O54: Default Upper Limits | Q54: 0.05 | R54: 0.25 | S54: 1 | T54: Default Lower Limits | V54: 0.5 | W54: 0.25 | X54: 0.05 | AA54: =12/5 -> 2.4
D55: ~FI_T | G55: margin on stock | H55: 0.01 | AA55: =AA53*AA54 -> 12
A56: TechDesc | B56: TechName | C56: Comm-IN | D56: Comm-Out | E56: EFF | F56: AFA | G56: Life | H56: STOCK | I56: INVCOST | J56: FIXOM | P56: 0.02 | U56: 0.02
A57: \I:Technology Description | B57: Technology Name | C57: Input Commodity | D57: Useful Energy Service | E57: Efficiency | F57: Utlisation | G57: Lifetime | H57: Existing Installed Cap. | I57: Investment Cost | J57: Fixed O&M Cost | L57: Base Year Technology Share | M57: Final Energy | N57: Useful Energy | O57: Tech Data Source | P57: Base Year Tech Share | Q57: Upper Limit | R57: Upper Limit | S57: Upper Limit | U57: Base Year Tech Share | V57: Lower Limit | W57: Lower Limit | X57: Lower Limit | Y57: Row #
A58: \I: Units | E58: (sum OUT/IN) | F58: (Fraction) | G58: (Years) | H58: (PJa) | I58: 2005R/PJa | J58: 2005R/PJ-a | L58: (%) | M58: (PJ) | N58: (PJ) | P58: ="U"&P53 -> U2012 | Q58: ="U"&Q$53 -> U2020 | R58: ="U"&R$53 -> U2030 | S58: ="U"&S$53 -> U2050 | U58: ="L"&RIGHT(P58,4) -> L2012 | V58: ="L"&V$53 -> L2020 | W58: ="L"&W$53 -> L2030 | X58: ="L"&X$53 -> L2050
A59: \I: | C59: 1 | D59: =C59+1 -> 2 | E59: 3 | F59: 4 | G59: 5 | H59: 6 | I59: 7 | J59: 8
A60: ="\I:"&A43 -> \I:Commercial - Cooling
A61: =A43&" - Electricity - Central - Existing" -> Commercial - Cooling - Electricity - Central - Existing | B61: =D61&RIGHT(C61,3)&"CEN-E" -> CNCELCCEN-E | C61: =$E$6 -> COMELC | D61: =$B$43 -> CNC | E61: =COM!E62 -> 3 | F61: =COM!F62 -> 0.7444 | G61: =COM!G62 -> 15 | H61: 0 | I61: =COM!I62 -> 49.99963828 | J61: =COM!J62 -> 4.999963828 | L61: 0 | M61: 0 | N61: 0 | P61: 0.33 | Q61: =MIN(1,$P61+Q$54) -> 0.38 | R61: =MIN(1,$P61+R$54) -> 0.58 | S61: =MIN(1,$P61+S$54) -> 1 | U61: =P61/(1+$P$56+$U$56) -> 0.3173076923 | V61: =$U61*V$54 -> 0.1586538462 | W61: 0.07932692308 | X61: 0.01586538462 | Y61: 1
A62: =A43&" - Electricity - Central - New" -> Commercial - Cooling - Electricity - Central - New | B62: =D62&RIGHT(C62,3)&"CEN-N" -> CNCELCCEN-N | C62: COMELC | D62: CNC | E62: =(0.19/0.17)*3 -> 3.352941176 | F62: =SUMIF(AFA!$B$2:$S$2,D62,AFA!$B$4:$J$4) -> 0.7444 | G62: =G63 -> 15 | H62: 0 | I62: =COM!I65 -> 133.6888724 | J62: =COM!J65 -> 4.999963828 | L62: 0 | M62: 0 | N62: 0 | P62: 0.34 | Q62: =MIN(1,$P62+Q$54) -> 0.39 | R62: =MIN(1,$P62+R$54) -> 0.59 | S62: 1 | U62: =P62/(1+$P$56+$U$56) -> 0.3269230769 | V62: 0.1634615385 | W62: 0.08173076923 | X62: 0.01634615385 | Y62: =Y61+1 -> 2 | AB62: =P62*E62 -> 1.14
A63: =A43&" - Electricity - Heat Pump - New" -> Commercial - Cooling - Electricity - Heat Pump - New | B63: =D63&RIGHT(C63,3)&"HP-N" -> CNCELCHP-N | C63: COMELC | D63: CNC | E63: =(3.4/3.52)*3.4 -> 3.284090909 | F63: =SUMIF(AFA!$B$2:$S$2,D63,AFA!$B$4:$J$4) -> 0.7444 | G63: 15 | H63: 0 | I63: =(10.68/10)*I62 -> 142.7797157 | J63: =(0.15/0.11)*J62 -> 6.818132493 | L63: 0 | M63: 0 | N63: 0 | P63: 0.33 | Q63: =MIN(1,$P63+Q$54) -> 0.38 | R63: 0.58 | S63: 1 | U63: 0.3173076923 | V63: 0.1586538462 | W63: 0.07932692308 | X63: 0.01586538462 | Y63: 3 | AB63: 1.08375
A64: \I: Share Check & sub-totals | Y64: 4 | AB64: 0 | AC64: =SUM(AB62:AB63) -> 2.22375
A65: ="\I:"&A44 -> \I:Commercial - Space Heating | Y65: 5 | AB65: 0
A66: =A$44&" - "&VLOOKUP(RIGHT(C66,3),NameConv!$E$3:$F$16,2,FALSE)&" - New" -> Commercial - Space Heating - Electricity - New | B66: =D66&RIGHT(C66,3)&"-N" -> CNHELC-N | C66: =$E$6 -> COMELC | D66: =$B$44 -> CNH | E66: =(3.4/0.96)*0.8 -> 2.833333333 | F66: =SUMIF(AFA!$B$2:$S$2,D66,AFA!$B$4:$J$4) -> 0.4588 | G66: 15 | H66: 0 | I66: =COM!I71 -> 98.07416645 | J66: =I66*0.1 -> 9.807416645 | L66: 0 | M66: 0 | N66: 0 | P66: 0.33 | Q66: =MIN(1,$P66+Q$54) -> 0.38 | R66: =MIN(1,$P66+R$54) -> 0.58 | S66: 1 | U66: =P66/(1+$P$56+$U$56) -> 0.3173076923 | V66: =$U66*V$54 -> 0.1586538462 | W66: 0.07932692308 | X66: 0.01586538462 | Y66: 6 | AB66: 0.935
A67: =A$44&" - "&VLOOKUP(RIGHT(C67,3),NameConv!$E$3:$F$16,2,FALSE)&" - New" -> Commercial - Space Heating - Gas - New | B67: =D67&RIGHT(C67,3)&"-N" -> CNHGAS-N | C67: =$F$6 -> COMGAS | D67: =$B$44 -> CNH | E67: ='Gas for heating techs'!D75 -> 0.88 | F67: =SUMIF(AFA!$B$2:$S$2,D67,AFA!$B$4:$J$4) -> 0.4588 | G67: =G66 -> 15 | H67: 0 | I67: ='Gas for heating techs'!D88 -> 26.62600088 | J67: =I67*0.1 -> 2.662600088 | L67: 0 | M67: 0 | N67: 0 | P67: 0.34 | Q67: =MIN(1,$P67+Q$54) -> 0.39 | R67: 0.59 | S67: 1 | U67: =P67/(1+$P$56+$U$56) -> 0.3269230769 | V67: 0.1634615385 | W67: 0.08173076923 | X67: 0.01634615385 | Y67: 7
A68: =A$44&" - "&VLOOKUP(RIGHT(C68,3),NameConv!$E$3:$F$16,2,FALSE)&" - New" -> Commercial - Space Heating - Coal - New | B68: =D68&RIGHT(C68,3)&"-N" -> CNHCOA-N | C68: =$C$6 -> COMCOA | D68: =$B$44 -> CNH | E68: =COM!E69 -> 0.6 | F68: =COM!F69 -> 0.4588 | G68: =COM!G69 -> 15 | H68: 0 | I68: =COM!I69 -> 98.07416645 | J68: =COM!J69 -> 9.807416645 | L68: 0 | M68: 0 | N68: 0 | P68: 0.33 | Q68: 0.38 | R68: 0.58 | S68: 1 | U68: 0.3173076923 | V68: 0.1586538462 | W68: 0.07932692308 | X68: 0.01586538462 | Y68: 8
A69: \I: Share Check & sub-totals | Y69: 9 | AB69: 0 | AC69: =SUM(AB66:AB66) -> 0.935
A70: ="\I:"&A45 -> \I:Commercial - Cooking | Y70: 10 | AB70: 0
A71: =A$45&" - "&VLOOKUP(RIGHT(C71,3),NameConv!$E$3:$F$16,2,FALSE)&" - Existing" -> Commercial - Cooking - Oil LPG - Existing | B71: =D71&RIGHT(C71,3)&"-E" -> CNKOLP-E | C71: =$J$6 -> COMOLP | D71: =$B$45 -> CNK | E71: =Appliances!G30 -> 0.9 | F71: =SUMIF(AFA!$B$2:$S$2,D71,AFA!$B$4:$J$4) -> 0.6541 | G71: 15 | H71: 0 | I71: =SUMIF('Technology costs'!$B$7:$B$28,COM_N_old!B71,'Technology costs'!$F$7:$F$28) -> 0 | J71: =I71*0.1 -> 0 | L71: 0 | M71: =L71*SUMIF($C$6:$J$6,C71,$C$45:$J$45) -> 0 | N71: =M71*E71 -> 0 | P71: 1 | Q71: =MIN(1,$P71+Q$54) -> 1 | R71: =MIN(1,$P71+R$54) -> 1 | S71: =MIN(1,$P71+S$54) -> 1 | U71: =P71/(1+$P$56+$U$56) -> 0.9615384615 | V71: =$U71*V$54 -> 0.4807692308 | W71: =$U71*W$54 -> 0.2403846154 | X71: =$U71*X$54 -> 0.04807692308 | Y71: 11 | AB71: 0.9 | AC71: =AB71 -> 0.9
A72: \I: Share Check & sub-totals | L72: 0 | M72: =SUM(M71) -> 0 | N72: =SUM(N71) -> 0 | Y72: 12 | AB72: 0
A73: ="\I:"&A46 -> \I:Commercial - Lighting | Y73: 13 | AB73: 0
A74: =A$46&" - "&VLOOKUP(RIGHT(C74,3),NameConv!$E$3:$F$16,2,FALSE)&" - CFL - Existing" -> Commercial - Lighting - Electricity - CFL - Existing | B74: =D74&RIGHT(C74,3)&"CFL-E" -> CNLELCCFL-E | C74: =$E$6 -> COMELC | D74: =$B$46 -> CNL | E74: =Appliances!G58 -> 4 | F74: =SUMIF(AFA!$B$2:$S$2,D74,AFA!$B$4:$J$4) -> 0.5681 | G74: 5 | H74: 0 | I74: 3.3 | J74: 0.33 | L74: 0 | M74: =L74*SUMIF($C$6:$J$6,C74,$C$46:$J$46) -> 0 | N74: =M74*E74 -> 0 | P74: 0.8 | Q74: =MIN(1,$P74+Q$54) -> 0.85 | R74: =MIN(1,$P74+R$54) -> 1 | S74: =MIN(1,$P74+S$54) -> 1 | U74: =P74/(1+$P$56+$U$56) -> 0.7692307692 | V74: =$U74*V$54 -> 0.3846153846 | W74: 0.1923076923 | X74: 0.03846153846 | Y74: 14 | AB74: 3.2
A75: =A$46&" - "&VLOOKUP(RIGHT(C75,3),NameConv!$E$3:$F$16,2,FALSE)&" - LED - New" -> Commercial - Lighting - Electricity - LED - New | B75: =D75&RIGHT(C75,3)&"LED-N" -> CNLELCLED-N | C75: COMELC | D75: CNL | E75: 9.8 | F75: =SUMIF(AFA!$B$2:$S$2,D75,AFA!$B$4:$J$4) -> 0.5681 | G75: 10 | H75: 0 | I75: 6.45 | J75: 0.645 | L75: 0 | M75: =L75*SUMIF($C$6:$J$6,C75,$C$46:$J$46) -> 0 | N75: =M75*E75 -> 0 | P75: 0.2 | Q75: 0.25 | R75: 0.45 | S75: 1 | U75: 0.1923076923 | V75: 0.09615384615 | W75: 0.04807692308 | X75: 0.009615384615 | Y75: 15 | AB75: 1.96
A76: \I: Share Check & sub-totals | L76: =SUM(L74:L74) -> 0 | M76: =SUM(M74:M75) -> 0 | N76: =SUM(N74:N74) -> 0 | Y76: 16 | AB76: 0 | AC76: =SUM(AB74:AB75) -> 5.16
A77: ="\I:"&A47 -> \I:Commercial - Refrigeration | Y77: 17 | AB77: 0
A78: =A$47&" - "&VLOOKUP(RIGHT(C78,3),NameConv!$E$3:$F$16,2,FALSE)&" - New" -> Commercial - Refrigeration - Electricity - New | B78: =D78&RIGHT(C78,3)&"-N" -> CNRELC-N | C78: =$E$6 -> COMELC | D78: =$B$47 -> CNR | E78: =(5.13/3.08) -> 1.665584416 | F78: =SUMIF(AFA!$B$2:$S$2,D78,AFA!$B$4:$J$4) -> 0.7125 | G78: 10 | H78: 0 | I78: =COM!I87 -> 983.5690013 | J78: 98.35690013 | L78: 0 | M78: =L78*SUMIF($C$6:$J$6,C78,$C$47:$J$47) -> 0 | N78: =M78*E78 -> 0 | P78: 1 | Q78: =MIN(1,$P78+Q$54) -> 1 | R78: =MIN(1,$P78+R$54) -> 1 | S78: 1 | U78: =P78 -> 1 | V78: =$U78*V$54 -> 0.5 | W78: 0.25 | X78: 0.05 | Y78: 18 | AB78: 1.665584416
A79: \I: Share Check & sub-totals | Y79: 19 | AB79: 0 | AC79: =SUM(AB78:AB78) -> 1.665584416
A80: ="\I:"&A48 -> \I:Commercial - Water Heating | Y80: 20 | AB80: 0
A81: =A$48&" - "&VLOOKUP(RIGHT(C81,3),NameConv!$E$3:$F$16,2,FALSE)&" - New" -> Commercial - Water Heating - Electricity - New | B81: =D81&RIGHT(C81,3)&"-N" -> CNWELC-N | C81: =$E$6 -> COMELC | D81: =$B$48 -> CNW | E81: =(0.97/0.96) -> 1.010416667 | F81: =SUMIF(AFA!$B$2:$S$2,D81,AFA!$B$4:$J$4) -> 0.846 | G81: 14 | H81: 0 | I81: =COM!I93 -> 17.26006266 | J81: =I81*0.1 -> 1.726006266 | L81: 0 | M81: 0 | N81: 0 | P81: 0.9 | Q81: =MIN(1,$P81+Q$54) -> 0.95 | R81: =MIN(1,$P81+R$54) -> 1 | S81: 1 | U81: =P81/(1+$P$56+$U$56) -> 0.8653846154 | V81: =$U81*V$54 -> 0.4326923077 | W81: 0.2163461538 | X81: 0.04326923077 | Y81: 21 | AB81: 0.909375
A82: =A$48&" - "&VLOOKUP(RIGHT(C82,3),NameConv!$E$3:$F$16,2,FALSE)&" - HP -New" -> Commercial - Water Heating - Electricity - HP -New | B82: =D82&RIGHT(C82,3)&"HP-N" -> CNWELCHP-N | C82: =$E$6 -> COMELC | D82: =$B$48 -> CNW | E82: 2.26 | F82: =SUMIF(AFA!$B$2:$S$2,D82,AFA!$B$4:$J$4) -> 0.846 | G82: 10 | H82: 0 | I82: =COM!I94 -> 51.78018797 | J82: =I82*0.1 -> 5.178018797 | L82: 0 | M82: 0 | N82: 0 | P82: 0.1 | Q82: 0.15 | R82: 0.35 | S82: 1 | U82: =P82/(1+$P$56+$U$56) -> 0.09615384615 | V82: 0.04807692308 | W82: 0.02403846154 | X82: 0.004807692308 | Y82: 22
A83: \I: Share Check & sub-totals | Y83: 23 | AB83: 0 | AC83: =SUM(AB81:AB81) -> 0.909375
A84: ="\I:"&A49 -> \I:Commercial - Public Lights | Y84: 24
A85: =A$49&" - "&VLOOKUP(RIGHT(C85,3),NameConv!$E$3:$F$16,2,FALSE)&" - "&LEFT(Appliances!B68,3)&" - Existing" -> Commercial - Public Lights - Electricity - HPS - Existing | B85: =D85&RIGHT(C85,3)&LEFT(RIGHT(A85,LEN("LIT - Existing")),3)&"-E" -> CNGELCHPS-E | C85: =$E$6 -> COMELC | D85: =$B$49 -> CNG | E85: =Appliances!H68 -> 6.5 | F85: =SUMIF(AFA!$B$2:$S$2,D85,AFA!$B$4:$J$4) -> 0.0951 | G85: 12 | H85: 0 | I85: =COM!I100 -> 0.992920354 | J85: =I85*0.1 -> 0.0992920354 | L85: 0 | M85: =L85*SUMIF($C$6:$J$6,C85,$C$49:$J$49) -> 0 | N85: =M85*E85 -> 0 | P85: 0.44 | Q85: =MIN(1,$P85+Q$54) -> 0.49 | R85: =MIN(1,$P85+R$54) -> 0.69 | S85: 1 | U85: =P85/(1+$P$56+$U$56) -> 0.4230769231 | V85: =$U85*V$54 -> 0.2115384615 | W85: 0.1057692308 | X85: 0.02115384615 | Y85: 25
A86: =A$49&" - "&VLOOKUP(RIGHT(C86,3),NameConv!$E$3:$F$16,2,FALSE)&" - "&LEFT(Appliances!B69,3)&" - Existing" -> Commercial - Public Lights - Electricity - MHL - Existing | B86: CNGELCMHL-E | C86: COMELC | D86: CNG | E86: =Appliances!H69 -> 5 | F86: =SUMIF(AFA!$B$2:$S$2,D86,AFA!$B$4:$J$4) -> 0.0951 | G86: 10 | H86: 0 | I86: =COM!I101 -> 0.4015486726 | J86: 0.04015486726 | L86: 0 | M86: 0 | N86: 0 | P86: 0.44 | Q86: 0.49 | R86: 0.69 | S86: 1 | U86: 0.4230769231 | V86: 0.2115384615 | W86: 0.1057692308 | X86: 0.02115384615 | Y86: 26
A87: =A$49&" - "&VLOOKUP(RIGHT(C87,3),NameConv!$E$3:$F$16,2,FALSE)&" - "&LEFT(Appliances!B70,3)&" - New" -> Commercial - Public Lights - Electricity - LED - New | B87: =D87&RIGHT(C87,3)&LEFT(RIGHT(A87,LEN("LIT - NEW")),3)&"-N" -> CNGELCLED-N | C87: COMELC | D87: CNG | E87: =Appliances!H70 -> 9.8 | F87: =SUMIF(AFA!$B$2:$S$2,D87,AFA!$B$4:$J$4) -> 0.0951 | G87: 10 | H87: 0 | I87: =I75 -> 6.45 | J87: 0.645 | L87: 0 | M87: 0 | N87: 0 | P87: 0.12 | Q87: 0.17 | R87: 0.37 | S87: =MIN(1,$P87+S$54) -> 1 | U87: 0.1153846154 | V87: 0.05769230769 | W87: 0.02884615385 | X87: 0.005769230769 | Y87: 27
A88: \I: Share Check & sub-totals | Q88: 0.05 | Y88: 28
A89: ="\I:"&A50 -> \I:Commercial - Public Water | Y89: 29
A90: =A$50&" - "&VLOOKUP(RIGHT(C90,3),NameConv!$E$3:$F$16,2,FALSE)&" - "&LEFT(Appliances!B73,3)&" - Existing" -> Commercial - Public Water - Electricity - - Existing | B90: =D90&RIGHT(C90,3)&"-E" -> CNTELC-E | C90: =$E$6 -> COMELC | D90: =$B$50 -> CNT | E90: 1 | F90: =SUMIF(AFA!$B$2:$S$2,D90,AFA!$B$4:$J$4) -> 0.2946 | G90: 15 | H90: 0 | I90: 100 | J90: =0.1*I90 -> 10 | L90: 0 | M90: =L90*SUMIF($C$6:$J$6,C90,$C$50:$J$50) -> 0 | N90: =M90*E90 -> 0 | P90: 1 | Q90: =MIN(1,$P90+Q$54) -> 1 | R90: =MIN(1,$P90+R$54) -> 1 | S90: 1 | U90: =P90/(1+$P$56+$U$56) -> 0.9615384615 | V90: =$U90*V$54 -> 0.4807692308 | W90: =$U90*W$54 -> 0.2403846154 | X90: 0.04807692308 | Y90: 30
A91: \I: Share Check & sub-totals | Y91: 31
A92: ="\I:"&A51 -> \I:Commercial - Other | Y92: 32 | AB92: 0
A93: =A$51&" - "&VLOOKUP(RIGHT(C93,3),NameConv!$E$3:$F$16,2,FALSE)&" - Existing" -> Commercial - Other - Coal - Existing | B93: =D93&RIGHT(C93,3)&"-E" -> CNOCOA-E | C93: =$C$6 -> COMCOA | D93: =$B$51 -> CNO | E93: =Appliances!G36 -> 1 | F93: =SUMIF(AFA!$B$2:$S$2,D93,AFA!$B$4:$J$4) -> 0.6173 | G93: 15 | H93: 0 | I93: =SUMIF('Technology costs'!$B$7:$B$28,COM_N_old!B93,'Technology costs'!$F$7:$F$28) -> 0 | J93: 0 | L93: 0 | M93: =L93*SUMIF($C$6:$J$6,C93,$C$51:$J$51) -> 0 | N93: =M93*E93 -> 0 | P93: =COM!P108 -> 0.001801593426 | Q93: =MIN(1,$P93+Q$54) -> 0.05180159343 | R93: =MIN(1,$P93+R$54) -> 0.2518015934 | S93: 1 | U93: =P93/(1+$P$56+$U$56) -> 0.001732301371 | V93: =$U93*V$54 -> 0.0008661506855 | W93: 0.0004330753427 | X93: 8.661506855e-05 | Y93: 33 | AB93: 0.001801593426
A94: =A$51&" - "&VLOOKUP(RIGHT(C94,3),NameConv!$E$3:$F$16,2,FALSE)&" - Existing" -> Commercial - Other - Oil Diesel - Existing | B94: CNOODS-E | C94: =$D$6 -> COMODS | D94: =$B$51 -> CNO | E94: =Appliances!G37 -> 0.9 | F94: =SUMIF(AFA!$B$2:$S$2,D94,AFA!$B$4:$J$4) -> 0.6173 | G94: 15 | H94: 0 | I94: =SUMIF('Technology costs'!$B$7:$B$28,COM_N_old!B94,'Technology costs'!$F$7:$F$28) -> 0 | J94: 0 | L94: 0 | M94: 0 | N94: 0 | P94: =COM!P109 -> 0.05186834096 | Q94: 0.101868341 | R94: 0.301868341 | S94: 1 | U94: 0.04987340477 | V94: 0.02493670238 | W94: 0.01246835119 | X94: 0.002493670238 | Y94: 34 | AB94: 0.04668150686
A95: =A$51&" - "&VLOOKUP(RIGHT(C95,3),NameConv!$E$3:$F$16,2,FALSE)&" - Existing" -> Commercial - Other - Electricity - Existing | B95: CNOELC-E | C95: =$E$6 -> COMELC | D95: CNO | E95: =Appliances!G35 -> 0.75 | F95: =SUMIF(AFA!$B$2:$S$2,D95,AFA!$B$4:$J$4) -> 0.6173 | G95: 15 | H95: 0 | I95: =SUMIF('Technology costs'!$B$7:$B$28,COM_N_old!B95,'Technology costs'!$F$7:$F$28) -> 0 | J95: 0 | L95: 0 | M95: 0 | N95: 0 | P95: =COM!P110 -> 0.2981422341 | Q95: 0.3481422341 | R95: 0.5481422341 | S95: 1 | U95: 0.2866752251 | V95: 0.1433376125 | W95: 0.07166880626 | X95: 0.01433376125 | Y95: 35 | AB95: 0.2236066755
A96: =A$51&" - "&VLOOKUP(RIGHT(C96,3),NameConv!$E$3:$F$16,2,FALSE)&" - Existing" -> Commercial - Other - Gas - Existing | B96: CNOGAS-E | C96: =$F$6 -> COMGAS | D96: CNO | E96: 1 | F96: =SUMIF(AFA!$B$2:$S$2,D96,AFA!$B$4:$J$4) -> 0.6173 | G96: 15 | H96: 0 | I96: =SUMIF('Technology costs'!$B$7:$B$28,COM_N_old!B96,'Technology costs'!$F$7:$F$28) -> 0 | J96: 0 | L96: 0 | M96: 0 | N96: 0 | P96: =COM!P111 -> 0.02858416034 | Q96: 0.07858416034 | R96: 0.2785841603 | S96: 1 | U96: 0.02748476956 | V96: 0.01374238478 | W96: 0.00687119239 | X96: 0.001374238478 | Y96: 36 | AB96: 0.02858416034
A97: =A$51&" - "&VLOOKUP(RIGHT(C97,3),NameConv!$E$3:$F$16,2,FALSE)&" - Existing" -> Commercial - Other - Oil Gasoline - Existing | B97: CNOOGS-E | C97: =$G$6 -> COMOGS | D97: CNO | E97: 1 | F97: =SUMIF(AFA!$B$2:$S$2,D97,AFA!$B$4:$J$4) -> 0.6173 | G97: 15 | H97: 0 | I97: =SUMIF('Technology costs'!$B$7:$B$28,COM_N_old!B97,'Technology costs'!$F$7:$F$28) -> 0 | J97: 0 | L97: 0 | M97: 0 | N97: 0 | P97: =COM!P112 -> 0.007840793983 | Q97: 0.05784079398 | R97: 0.257840794 | S97: 1 | U97: 0.007539224984 | V97: 0.003769612492 | W97: 0.001884806246 | X97: 0.0003769612492 | Y97: 37 | AB97: 0.007840793983
A98: =A$51&" - "&VLOOKUP(RIGHT(C98,3),NameConv!$E$3:$F$16,2,FALSE)&" - Existing" -> Commercial - Other - Oil HFO - Existing | B98: CNOOHF-E | C98: =$H$6 -> COMOHF | D98: CNO | E98: 1 | F98: =SUMIF(AFA!$B$2:$S$2,D98,AFA!$B$4:$J$4) -> 0.6173 | G98: 15 | H98: 0 | I98: =SUMIF('Technology costs'!$B$7:$B$28,COM_N_old!B98,'Technology costs'!$F$7:$F$28) -> 0 | J98: 0 | L98: 0 | M98: 0 | N98: 0 | P98: =COM!P113 -> 0.5877948806 | Q98: 0.6377948806 | R98: 0.8377948806 | S98: 1 | U98: 0.5651873852 | V98: 0.2825936926 | W98: 0.1412968463 | X98: 0.02825936926 | Y98: 38 | AB98: 0.5877948806
A99: =A$51&" - "&VLOOKUP(RIGHT(C99,3),NameConv!$E$3:$F$16,2,FALSE)&" - Existing" -> Commercial - Other - Oil Paraffin - Existing | B99: CNOOKE-E | C99: =$I$6 -> COMOKE | D99: CNO | E99: 1 | F99: =SUMIF(AFA!$B$2:$S$2,D99,AFA!$B$4:$J$4) -> 0.6173 | G99: 15 | H99: 0 | I99: =SUMIF('Technology costs'!$B$7:$B$29,COM_N_old!B99,'Technology costs'!$F$7:$F$29) -> 0 | J99: =I99*0.1 -> 0 | L99: 0 | M99: 0 | N99: 0 | P99: =COM!P114 -> 0.04396799664 | Q99: 0.09396799664 | R99: 0.2939679966 | S99: 1 | U99: 0.04227691985 | V99: 0.02113845992 | W99: 0.01056922996 | X99: 0.002113845992 | Y99: 39 | AB99: 0.04396799664
A100: \I: Share Check & sub-totals | M100: =SUM(M93:M99) -> 0 | N100: =SUM(N93:N99) -> 0 | Y100: =Y99+1 -> 40 | AB100: 0 | AC100: =SUM(AB93:AB99)/SUM(P93:P99) -> 0.9218407916
A101: \I: Total number of tech entries | B101: =SUMPRODUCT(--(B62:B100<>"")) -> 22 | O101: =ROW()-56 -> 45 | Y101: =Y100+1 -> 41

Sheet ITEMS_Tech
A1: ITEMS | B1: REGION1 | I1: * Fuel #
A2: *
A3: * | C3: Start row | D3: =ROW(COM!$A$60) -> 60
A4: *
A5: *
A6: *
A7: * | B7: Comp | C7: Name | D7: Description | E7: Unit(s) | F7: Set Memberships | G7: Comment
A8: * | B8: Sector Fuels
A9: * | B9: =IF(A9="*","","T") ->  | C9: ="X"&OFFSET(COM!$B$6,0,I9) -> XCOMCOA | D9: ="Commercial "&OFFSET(COM!$B$5,0,I9) -> Commercial Coal | E9: ="PJ,"&IF(RIGHT(C9,3)="ELC","GW","PJa") -> PJ,PJa | F9: ="PRC,PRE,"&IF(RIGHT(C9,3)="ELC","DAYNITE","ANNUAL") -> PRC,PRE,ANNUAL | I9: 1
A10: * | C10: ="X"&OFFSET(COM!$B$6,0,I10) -> XCOMODS | D10: ="Commercial "&OFFSET(COM!$B$5,0,I10) -> Commercial Oil Diesel | E10: ="PJ,"&IF(RIGHT(C10,3)="ELC","GW","PJa") -> PJ,PJa | F10: ="PRC,PRE,"&IF(RIGHT(C10,3)="ELC","DAYNITE","ANNUAL") -> PRC,PRE,ANNUAL | I10: =I9+1 -> 2
A11: * | C11: ="X"&OFFSET(COM!$B$6,0,I11) -> XCOMELC | D11: ="Commercial "&OFFSET(COM!$B$5,0,I11) -> Commercial Electricity | E11: PJ,GW | F11: PRC,PRE,DAYNITE | I11: 3
A12: * | C12: ="X"&OFFSET(COM!$B$6,0,I12) -> XCOMGAS | D12: ="Commercial "&OFFSET(COM!$B$5,0,I12) -> Commercial Gas | E12: PJ,PJa | F12: PRC,PRE,ANNUAL | I12: 4
A13: * | C13: ="X"&OFFSET(COM!$B$6,0,I13) -> XCOMOGS | D13: ="Commercial "&OFFSET(COM!$B$5,0,I13) -> Commercial Oil Gasoline | E13: PJ,PJa | F13: PRC,PRE,ANNUAL | I13: 5
A14: * | C14: ="X"&OFFSET(COM!$B$6,0,I14) -> XCOMOHF | D14: ="Commercial "&OFFSET(COM!$B$5,0,I14) -> Commercial Oil HFO | E14: PJ,PJa | F14: PRC,PRE,ANNUAL | I14: 6
A15: * | C15: ="X"&OFFSET(COM!$B$6,0,I15) -> XCOMOKE | D15: ="Commercial "&OFFSET(COM!$B$5,0,I15) -> Commercial Oil Paraffin | E15: PJ,PJa | F15: PRC,PRE,ANNUAL | I15: 7
A16: * | C16: ="X"&OFFSET(COM!$B$6,0,I16) -> XCOMOLP | D16: ="Commercial "&OFFSET(COM!$B$5,0,I16) -> Commercial Oil LPG | E16: PJ,PJa | F16: PRC,PRE,ANNUAL | I16: 8
A17: * | B17: Demand Techs
A18: =IF(LEFT(INDIRECT("COM!A"&$D$3+ROW()-ROW($A$17)-1,1),2)="\I","*","") -> * | B18: =IF(A18="*","","T") ->  | C18: =IF(A18="*","",INDIRECT("COM!B"&$D$3+ROW()-ROW($C$17)-1)) ->  | D18: =IF(A18="*","",INDIRECT("COM!A"&$D$3+ROW()-ROW($A$17)-1,1)) ->  | E18: =IF(A18="*","","PJ,PJa") ->  | F18: =IF(A18="*","","PRC,DMD,DAYNITE") -> 
A19: =IF(LEFT(INDIRECT("COM!A"&$D$3+ROW()-ROW($A$17)-1,1),2)="\I","*","") ->  | B19: =IF(A19="*","","T") -> T | C19: =IF(A19="*","",INDIRECT("COM!B"&$D$3+ROW()-ROW($C$17)-1)) -> CECELCCHIL-E | D19: =IF(A19="*","",INDIRECT("COM!A"&$D$3+ROW()-ROW($A$17)-1,1)) -> Commercial - Cooling - Electricity - Chiller - Existing | E19: =IF(A19="*","","PJ,PJa") -> PJ,PJa | F19: =IF(A19="*","","PRC,DMD,DAYNITE") -> PRC,DMD,DAYNITE
B20: T | C20: CECELCCEN-E | D20: Commercial - Cooling - Electricity - Central - Existing | E20: =IF(A20="*","","PJ,PJa") -> PJ,PJa | F20: =IF(A20="*","","PRC,DMD,DAYNITE") -> PRC,DMD,DAYNITE
B21: T | C21: CECELCHP-E | D21: Commercial - Cooling - Electricity - Heat Pump - Existing | E21: PJ,PJa | F21: PRC,DMD,DAYNITE
A22: =IF(LEFT(INDIRECT("COM!A"&$D$3+ROW()-ROW($A$17)-1,1),2)="\I","*","") ->  | B22: T | C22: CECELCROOM-E | D22: Commercial - Cooling - Electricity - Room - Existing | E22: PJ,PJa | F22: PRC,DMD,DAYNITE
B23: T | C23: CECELCCEN-N | D23: Commercial - Cooling - Electricity - Central - New | E23: PJ,PJa | F23: PRC,DMD,DAYNITE
B24: T | C24: CECELCHP-N | D24: Commercial - Cooling - Electricity - Heat Pump - New | E24: PJ,PJa | F24: PRC,DMD,DAYNITE
A25: *
A26: =IF(LEFT(INDIRECT("COM!A"&$D$3+ROW()-ROW($A$17)-1,1),2)="\I","*","") -> *
B27: T | C27: CEHCOA-E | D27: Commercial - Space Heating - Coal - Existing | E27: PJ,PJa | F27: PRC,DMD,DAYNITE
B28: T | C28: CEHELC-E | D28: Commercial - Space Heating - Electricity - Existing | E28: PJ,PJa | F28: PRC,DMD,DAYNITE
B29: T | C29: CEHELC-N | D29: Commercial - Space Heating - Electricity - New | E29: PJ,PJa | F29: PRC,DMD,DAYNITE
A30: =IF(LEFT(INDIRECT("COM!A"&$D$3+ROW()-ROW($A$17)-1,1),2)="\I","*","") ->  | B30: T | C30: CEHGAS-N | D30: Commercial - Space Heating - Gas - New | E30: PJ,PJa | F30: PRC,DMD,DAYNITE
A31: *
A32: *
B33: T | C33: CEKOLP-E | D33: Commercial - Cooking - Oil LPG - Existing | E33: PJ,PJa | F33: PRC,DMD,DAYNITE
A34: *
A35: *
B36: T | C36: CELELCCFL-E | D36: Commercial - Lighting - Electricity - CFL - Existing | E36: PJ,PJa | F36: PRC,DMD,DAYNITE
B37: T | C37: CELELCFLU-E | D37: Commercial - Lighting - Electricity - FLU - Existing | E37: PJ,PJa | F37: PRC,DMD,DAYNITE
B38: T | C38: CELELCHAL-E | D38: Commercial - Lighting - Electricity - HAL - Existing | E38: PJ,PJa | F38: PRC,DMD,DAYNITE
B39: T | C39: CELELCHID-E | D39: Commercial - Lighting - Electricity - HID - Existing | E39: PJ,PJa | F39: PRC,DMD,DAYNITE
B40: T | C40: CELELCINC-E | D40: Commercial - Lighting - Electricity - INC - Existing | E40: PJ,PJa | F40: PRC,DMD,DAYNITE
B41: T | C41: CELELCLED-N | D41: Commercial - Lighting - Electricity - LED - New | E41: PJ,PJa | F41: PRC,DMD,DAYNITE
A42: *
A43: *
B44: T | C44: CERELC-E | D44: Commercial - Refrigeration - Electricity - Existing | E44: PJ,PJa | F44: PRC,DMD,DAYNITE
B45: T | C45: CERELC-N | D45: Commercial - Refrigeration - Electricity - New | E45: PJ,PJa | F45: PRC,DMD,DAYNITE
A46: *
A47: *
B48: T | C48: CEWELC-E | D48: Commercial - Water Heating - Electricity - Existing | E48: PJ,PJa | F48: PRC,DMD,DAYNITE
B49: T | C49: CEWCOA-E | D49: Commercial - Water Heating - Coal - Existing | E49: PJ,PJa | F49: PRC,DMD,DAYNITE
B50: T | C50: CEWOLP-E | D50: Commercial - Water Heating - Oil LPG - Existing | E50: PJ,PJa | F50: PRC,DMD,DAYNITE
B51: T | C51: CEWELC-N | D51: Commercial - Water Heating - Electricity - New | E51: PJ,PJa | F51: PRC,DMD,DAYNITE
B52: T | C52: CEWELCHP-N | D52: Commercial - Water Heating - Electricity - HP - New | E52: PJ,PJa | F52: PRC,DMD,DAYNITE
A53: *
A54: *
B55: T | C55: CEGELCINC-E | D55: Commercial - Public Lights - Electricity - INC - Existing | E55: PJ,PJa | F55: PRC,DMD,DAYNITE
B56: T | C56: CEGELCHAL-E | D56: Commercial - Public Lights - Electricity - HAL - Existing | E56: PJ,PJa | F56: PRC,DMD,DAYNITE
B57: T | C57: CEGELCHPM-E | D57: Commercial - Public Lights - Electricity - HPM - Existing | E57: PJ,PJa | F57: PRC,DMD,DAYNITE
B58: T | C58: CEGELCHPS-E | D58: Commercial - Public Lights - Electricity - HPS - Existing | E58: PJ,PJa | F58: PRC,DMD,DAYNITE
B59: T | C59: CEGELCMHL-E | D59: Commercial - Public Lights - Electricity - MHL - Existing | E59: PJ,PJa | F59: PRC,DMD,DAYNITE
B60: T | C60: CEGELCLED-N | D60: Commercial - Public Lights - Electricity - LED - New | E60: PJ,PJa | F60: PRC,DMD,DAYNITE
A61: *
A62: *
B63: T | C63: CETELC-E | D63: Commercial - Public Water - Electricity - - Existing | E63: PJ,PJa | F63: PRC,DMD,DAYNITE
A64: *
A65: *
B66: T | C66: CEOCOA-E | D66: Commercial - Other - Coal - Existing | E66: PJ,PJa | F66: PRC,DMD,DAYNITE
B67: T | C67: CEOODS-E | D67: Commercial - Other - Oil Diesel - Existing | E67: PJ,PJa | F67: PRC,DMD,DAYNITE
B68: T | C68: CEOELC-E | D68: Commercial - Other - Electricity - Existing | E68: PJ,PJa | F68: PRC,DMD,DAYNITE
B69: T | C69: CEOGAS-E | D69: Commercial - Other - Gas - Existing | E69: =IF(A69="*","","PJ,PJa") -> PJ,PJa | F69: =IF(A69="*","","PRC,DMD,DAYNITE") -> PRC,DMD,DAYNITE
B70: =IF(A70="*","","T") -> T | C70: CEOOGS-E | D70: Commercial - Other - Oil Gasoline - Existing | E70: PJ,PJa | F70: PRC,DMD,DAYNITE
B71: T | C71: CEOOHF-E | D71: Commercial - Other - Oil HFO - Existing | E71: =IF(A71="*","","PJ,PJa") -> PJ,PJa | F71: =IF(A71="*","","PRC,DMD,DAYNITE") -> PRC,DMD,DAYNITE
B72: =IF(A72="*","","T") -> T | C72: =IF(A72="*","",INDIRECT("COM!B"&$D$3+ROW()-ROW($C$17)-1)) -> CEOOKE-E | D72: =IF(A72="*","",INDIRECT("COM!A"&$D$3+ROW()-ROW($A$17)-1,1)) -> Commercial - Other - Oil Paraffin - Existing | E72: =IF(A72="*","","PJ,PJa") -> PJ,PJa | F72: =IF(A72="*","","PRC,DMD,DAYNITE") -> PRC,DMD,DAYNITE
A73: *
A74: *
A77: =IF(LEFT(COM!A131,2)="\I","*","") -> 
A78: =IF(LEFT(COM!A132,2)="\I","*","") -> 
A79: =IF(LEFT(COM!A133,2)="\I","*","") -> 
A80: =IF(LEFT(COM!A134,2)="\I","*","") -> 
A81: =IF(LEFT(COM!A135,2)="\I","*","") -> 
A82: =IF(LEFT(COM!A136,2)="\I","*","") -> 
A83: =IF(LEFT(COM!A137,2)="\I","*","") -> 
A84: =IF(LEFT(COM!A138,2)="\I","*","") -> 
A85: =IF(LEFT(COM!A139,2)="\I","*","") -> 

Sheet ITEMS_nTech
A1: ITEMS | B1: REGION1 | I1: * Fuel #
A2: *
A3: *
A4: *
A5: *
A6: *
A7: * | B7: Comp | C7: Name | D7: Description | E7: Unit(s) | F7: Set Memberships | G7: Comment
A8: * | B8: Sector Fuels
A9: * | B9: =IF(A9="*","","T") ->  | C9: ="X"&OFFSET(COM!$B$6,0,I9) -> XCOMCOA | D9: ="Commercial "&OFFSET(COM!$B$5,0,I9) -> Commercial Coal | E9: ="PJ,"&IF(RIGHT(C9,3)="ELC","GW","PJa") -> PJ,PJa | F9: ="PRC,PRE,"&IF(RIGHT(C9,3)="ELC","DAYNITE","ANNUAL") -> PRC,PRE,ANNUAL | I9: 1
A10: * | C10: ="X"&OFFSET(COM!$B$6,0,I10) -> XCOMODS | D10: ="Commercial "&OFFSET(COM!$B$5,0,I10) -> Commercial Oil Diesel | E10: PJ,PJa | F10: PRC,PRE,ANNUAL | I10: =I9+1 -> 2
A11: * | C11: ="X"&OFFSET(COM!$B$6,0,I11) -> XCOMELC | D11: ="Commercial "&OFFSET(COM!$B$5,0,I11) -> Commercial Electricity | E11: PJ,GW | F11: PRC,PRE,DAYNITE | I11: 3
A12: * | C12: ="X"&OFFSET(COM!$B$6,0,I12) -> XCOMGAS | D12: ="Commercial "&OFFSET(COM!$B$5,0,I12) -> Commercial Gas | E12: PJ,PJa | F12: PRC,PRE,ANNUAL | I12: 4
A13: * | C13: ="X"&OFFSET(COM!$B$6,0,I13) -> XCOMOGS | D13: ="Commercial "&OFFSET(COM!$B$5,0,I13) -> Commercial Oil Gasoline | E13: PJ,PJa | F13: PRC,PRE,ANNUAL | I13: 5
A14: * | C14: ="X"&OFFSET(COM!$B$6,0,I14) -> XCOMOHF | D14: ="Commercial "&OFFSET(COM!$B$5,0,I14) -> Commercial Oil HFO | E14: PJ,PJa | F14: PRC,PRE,ANNUAL | I14: 6
A15: * | C15: ="X"&OFFSET(COM!$B$6,0,I15) -> XCOMOKE | D15: ="Commercial "&OFFSET(COM!$B$5,0,I15) -> Commercial Oil Paraffin | E15: PJ,PJa | F15: PRC,PRE,ANNUAL | I15: 7
A16: * | C16: ="X"&OFFSET(COM!$B$6,0,I16) -> XCOMOLP | D16: ="Commercial "&OFFSET(COM!$B$5,0,I16) -> Commercial Oil LPG | E16: PJ,PJa | F16: PRC,PRE,ANNUAL | I16: 8
A17: * | B17: Demand Techs
A18: =IF(LEFT(COM_N!A60,2)="\I","*","") -> * | B18: =IF(A18="*","","T") ->  | C18: =IF(A18="*","",COM_N!B60) ->  | D18: =IF(A18="*","",COM_N!A60) ->  | E18: =IF(A18="*","","PJ,PJa") ->  | F18: =IF(A18="*","","PRC,DMD,DAYNITE") -> 
A19: =IF(LEFT(COM_N!A61,2)="\I","*","") ->  | B19: T | C19: =IF(A19="*","",COM_N!B61) -> CNCELCCHIL-E | D19: =IF(A19="*","",COM_N!A61) -> Commercial - Cooling - Electricity - Chiller - Existing | E19: PJ,PJa | F19: PRC,DMD,DAYNITE
A20: =IF(LEFT(COM_N!A62,2)="\I","*","") ->  | B20: T | C20: =IF(A20="*","",COM_N!B62) -> CNCELCCEN-E | D20: =IF(A20="*","",COM_N!A62) -> Commercial - Cooling - Electricity - Central - Existing | E20: PJ,PJa | F20: PRC,DMD,DAYNITE
A21: =IF(LEFT(COM_N!A63,2)="\I","*","") ->  | B21: T | C21: =IF(A21="*","",COM_N!B63) -> CNCELCHP-E | D21: =IF(A21="*","",COM_N!A63) -> Commercial - Cooling - Electricity - Heat Pump - Existing | E21: PJ,PJa | F21: PRC,DMD,DAYNITE
A22: =IF(LEFT(COM_N!A64,2)="\I","*","") ->  | B22: T | C22: =IF(A22="*","",COM_N!B64) -> CNCELCROOM-E | D22: =IF(A22="*","",COM_N!A64) -> Commercial - Cooling - Electricity - Room - Existing | E22: PJ,PJa | F22: PRC,DMD,DAYNITE
A23: =IF(LEFT(COM_N!A65,2)="\I","*","") ->  | B23: T | C23: =IF(A23="*","",COM_N!B65) -> CNCELCCEN-N | D23: =IF(A23="*","",COM_N!A65) -> Commercial - Cooling - Electricity - Central - New | E23: PJ,PJa | F23: PRC,DMD,DAYNITE
A24: =IF(LEFT(COM_N!A66,2)="\I","*","") ->  | B24: T | C24: =IF(A24="*","",COM_N!B66) -> CNCELCHP-N | D24: =IF(A24="*","",COM_N!A66) -> Commercial - Cooling - Electricity - Heat Pump - New | E24: PJ,PJa | F24: PRC,DMD,DAYNITE
A25: =IF(LEFT(COM_N!A67,2)="\I","*","") -> * | C25: =IF(A25="*","",COM_N!B67) ->  | D25: =IF(A25="*","",COM_N!A67) -> 
A26: =IF(LEFT(COM_N!A68,2)="\I","*","") -> * | C26: =IF(A26="*","",COM_N!B68) ->  | D26: =IF(A26="*","",COM_N!A68) -> 
A27: =IF(LEFT(COM_N!A69,2)="\I","*","") ->  | B27: T | C27: =IF(A27="*","",COM_N!B69) -> CNHCOA-E | D27: =IF(A27="*","",COM_N!A69) -> Commercial - Space Heating - Coal - Existing | E27: PJ,PJa | F27: PRC,DMD,DAYNITE
A28: =IF(LEFT(COM_N!A70,2)="\I","*","") ->  | B28: T | C28: =IF(A28="*","",COM_N!B70) -> CNHELC-E | D28: =IF(A28="*","",COM_N!A70) -> Commercial - Space Heating - Electricity - Existing | E28: PJ,PJa | F28: PRC,DMD,DAYNITE
A29: =IF(LEFT(COM_N!A71,2)="\I","*","") ->  | B29: T | C29: =IF(A29="*","",COM_N!B71) -> CNHELC-N | D29: =IF(A29="*","",COM_N!A71) -> Commercial - Space Heating - Electricity - New | E29: PJ,PJa | F29: PRC,DMD,DAYNITE
A30: =IF(LEFT(COM_N!A72,2)="\I","*","") ->  | B30: T | C30: =IF(A30="*","",COM_N!B72) -> CNHGAS-N | D30: =IF(A30="*","",COM_N!A72) -> Commercial - Space Heating - Gas - New | E30: =IF(A30="*","","PJ,PJa") -> PJ,PJa | F30: =IF(A30="*","","PRC,DMD,DAYNITE") -> PRC,DMD,DAYNITE
A31: =IF(LEFT(COM_N!A73,2)="\I","*","") -> * | C31: =IF(A31="*","",COM_N!B73) ->  | D31: =IF(A31="*","",COM_N!A73) -> 
A32: =IF(LEFT(COM_N!A74,2)="\I","*","") -> * | C32: =IF(A32="*","",COM_N!B74) ->  | D32: =IF(A32="*","",COM_N!A74) -> 
A33: =IF(LEFT(COM_N!A75,2)="\I","*","") ->  | B33: T | C33: =IF(A33="*","",COM_N!B75) -> CNKOLP-E | D33: =IF(A33="*","",COM_N!A75) -> Commercial - Cooking - Oil LPG - Existing | E33: PJ,PJa | F33: PRC,DMD,DAYNITE
A34: =IF(LEFT(COM_N!A76,2)="\I","*","") -> * | C34: =IF(A34="*","",COM_N!B76) ->  | D34: =IF(A34="*","",COM_N!A76) -> 
A35: =IF(LEFT(COM_N!A77,2)="\I","*","") -> * | C35: =IF(A35="*","",COM_N!B77) ->  | D35: =IF(A35="*","",COM_N!A77) -> 
A36: =IF(LEFT(COM_N!A78,2)="\I","*","") ->  | B36: T | C36: =IF(A36="*","",COM_N!B78) -> CNLELCCFL-E | D36: =IF(A36="*","",COM_N!A78) -> Commercial - Lighting - Electricity - CFL - Existing | E36: PJ,PJa | F36: PRC,DMD,DAYNITE
A37: =IF(LEFT(COM_N!A79,2)="\I","*","") ->  | B37: T | C37: =IF(A37="*","",COM_N!B79) -> CNLELCFLU-E | D37: =IF(A37="*","",COM_N!A79) -> Commercial - Lighting - Electricity - FLU - Existing | E37: PJ,PJa | F37: PRC,DMD,DAYNITE
A38: =IF(LEFT(COM_N!A80,2)="\I","*","") ->  | B38: T | C38: =IF(A38="*","",COM_N!B80) -> CNLELCHAL-E | D38: =IF(A38="*","",COM_N!A80) -> Commercial - Lighting - Electricity - HAL - Existing | E38: PJ,PJa | F38: PRC,DMD,DAYNITE
A39: =IF(LEFT(COM_N!A81,2)="\I","*","") ->  | B39: T | C39: =IF(A39="*","",COM_N!B81) -> CNLELCHID-E | D39: =IF(A39="*","",COM_N!A81) -> Commercial - Lighting - Electricity - HID - Existing | E39: PJ,PJa | F39: PRC,DMD,DAYNITE
A40: =IF(LEFT(COM_N!A82,2)="\I","*","") ->  | B40: T | C40: =IF(A40="*","",COM_N!B82) -> CNLELCINC-E | D40: =IF(A40="*","",COM_N!A82) -> Commercial - Lighting - Electricity - INC - Existing | E40: PJ,PJa | F40: PRC,DMD,DAYNITE
A41: =IF(LEFT(COM_N!A83,2)="\I","*","") ->  | B41: T | C41: =IF(A41="*","",COM_N!B83) -> CNLELCLED-N | D41: =IF(A41="*","",COM_N!A83) -> Commercial - Lighting - Electricity - LED - New | E41: PJ,PJa | F41: PRC,DMD,DAYNITE
A42: =IF(LEFT(COM_N!A84,2)="\I","*","") -> * | C42: =IF(A42="*","",COM_N!B84) ->  | D42: =IF(A42="*","",COM_N!A84) -> 
A43: =IF(LEFT(COM_N!A85,2)="\I","*","") -> * | C43: =IF(A43="*","",COM_N!B85) ->  | D43: =IF(A43="*","",COM_N!A85) -> 
A44: =IF(LEFT(COM_N!A86,2)="\I","*","") ->  | B44: T | C44: =IF(A44="*","",COM_N!B86) -> CNRELC-E | D44: =IF(A44="*","",COM_N!A86) -> Commercial - Refrigeration - Electricity - Existing | E44: PJ,PJa | F44: PRC,DMD,DAYNITE
A45: =IF(LEFT(COM_N!A87,2)="\I","*","") ->  | B45: T | C45: =IF(A45="*","",COM_N!B87) -> CNRELC-N | D45: =IF(A45="*","",COM_N!A87) -> Commercial - Refrigeration - Electricity - New | E45: PJ,PJa | F45: PRC,DMD,DAYNITE
A46: =IF(LEFT(COM_N!A88,2)="\I","*","") -> * | C46: =IF(A46="*","",COM_N!B88) ->  | D46: =IF(A46="*","",COM_N!A88) -> 
A47: =IF(LEFT(COM_N!A89,2)="\I","*","") -> * | C47: =IF(A47="*","",COM_N!B89) ->  | D47: =IF(A47="*","",COM_N!A89) -> 
A48: =IF(LEFT(COM_N!A90,2)="\I","*","") ->  | B48: T | C48: =IF(A48="*","",COM_N!B90) -> CNWELC-E | D48: =IF(A48="*","",COM_N!A90) -> Commercial - Water Heating - Electricity - Existing | E48: PJ,PJa | F48: PRC,DMD,DAYNITE
A49: =IF(LEFT(COM_N!A91,2)="\I","*","") ->  | B49: T | C49: =IF(A49="*","",COM_N!B91) -> CNWCOA-E | D49: =IF(A49="*","",COM_N!A91) -> Commercial - Water Heating - Coal - Existing | E49: PJ,PJa | F49: PRC,DMD,DAYNITE
A50: =IF(LEFT(COM_N!A92,2)="\I","*","") ->  | B50: T | C50: =IF(A50="*","",COM_N!B92) -> CNWOLP-E | D50: =IF(A50="*","",COM_N!A92) -> Commercial - Water Heating - Oil LPG - Existing | E50: PJ,PJa | F50: PRC,DMD,DAYNITE
A51: =IF(LEFT(COM_N!A93,2)="\I","*","") ->  | B51: T | C51: =IF(A51="*","",COM_N!B93) -> CNWELC-N | D51: =IF(A51="*","",COM_N!A93) -> Commercial - Water Heating - Electricity - New | E51: PJ,PJa | F51: PRC,DMD,DAYNITE
A52: =IF(LEFT(COM_N!A94,2)="\I","*","") ->  | B52: T | C52: =IF(A52="*","",COM_N!B94) -> CNWELCHP-N | D52: =IF(A52="*","",COM_N!A94) -> Commercial - Water Heating - Electricity - HP - New | E52: PJ,PJa | F52: PRC,DMD,DAYNITE
A53: =IF(LEFT(COM_N!A95,2)="\I","*","") -> * | C53: =IF(A53="*","",COM_N!B95) ->  | D53: =IF(A53="*","",COM_N!A95) -> 
A54: =IF(LEFT(COM_N!A96,2)="\I","*","") -> * | C54: =IF(A54="*","",COM_N!B96) ->  | D54: =IF(A54="*","",COM_N!A96) -> 
A55: =IF(LEFT(COM_N!A97,2)="\I","*","") ->  | B55: T | C55: =IF(A55="*","",COM_N!B97) -> CNGELCINC-E | D55: =IF(A55="*","",COM_N!A97) -> Commercial - Public Lights - Electricity - INC - Existing | E55: PJ,PJa | F55: PRC,DMD,DAYNITE
A56: =IF(LEFT(COM_N!A98,2)="\I","*","") ->  | B56: T | C56: =IF(A56="*","",COM_N!B98) -> CNGELCHAL-E | D56: =IF(A56="*","",COM_N!A98) -> Commercial - Public Lights - Electricity - HAL - Existing | E56: PJ,PJa | F56: PRC,DMD,DAYNITE
A57: =IF(LEFT(COM_N!A99,2)="\I","*","") ->  | B57: T | C57: =IF(A57="*","",COM_N!B99) -> CNGELCHPM-E | D57: =IF(A57="*","",COM_N!A99) -> Commercial - Public Lights - Electricity - HPM - Existing | E57: =IF(A57="*","","PJ,PJa") -> PJ,PJa | F57: =IF(A57="*","","PRC,DMD,DAYNITE") -> PRC,DMD,DAYNITE
A58: =IF(LEFT(COM_N!A100,2)="\I","*","") ->  | B58: T | C58: =IF(A58="*","",COM_N!B100) -> CNGELCHPS-E | D58: =IF(A58="*","",COM_N!A100) -> Commercial - Public Lights - Electricity - HPS - Existing | E58: PJ,PJa | F58: PRC,DMD,DAYNITE
A59: =IF(LEFT(COM_N!A101,2)="\I","*","") ->  | B59: T | C59: =IF(A59="*","",COM_N!B101) -> CNGELCMHL-E | D59: =IF(A59="*","",COM_N!A101) -> Commercial - Public Lights - Electricity - MHL - Existing | E59: PJ,PJa | F59: PRC,DMD,DAYNITE
A60: =IF(LEFT(COM_N!A102,2)="\I","*","") ->  | B60: T | C60: =IF(A60="*","",COM_N!B102) -> CNGELCLED-N | D60: =IF(A60="*","",COM_N!A102) -> Commercial - Public Lights - Electricity - LED - New | E60: PJ,PJa | F60: PRC,DMD,DAYNITE
A61: =IF(LEFT(COM_N!A103,2)="\I","*","") -> * | C61: =IF(A61="*","",COM_N!B103) ->  | D61: =IF(A61="*","",COM_N!A103) -> 
A62: =IF(LEFT(COM_N!A104,2)="\I","*","") -> * | C62: =IF(A62="*","",COM_N!B104) ->  | D62: =IF(A62="*","",COM_N!A104) -> 
A63: =IF(LEFT(COM_N!A105,2)="\I","*","") ->  | B63: T | C63: =IF(A63="*","",COM_N!B105) -> CNTELC-E | D63: =IF(A63="*","",COM_N!A105) -> Commercial - Public Water - Electricity - - Existing | E63: PJ,PJa | F63: PRC,DMD,DAYNITE
A64: =IF(LEFT(COM_N!A106,2)="\I","*","") -> * | C64: =IF(A64="*","",COM_N!B106) ->  | D64: =IF(A64="*","",COM_N!A106) -> 
A65: =IF(LEFT(COM_N!A107,2)="\I","*","") -> * | C65: =IF(A65="*","",COM_N!B107) ->  | D65: =IF(A65="*","",COM_N!A107) -> 
A66: =IF(LEFT(COM_N!A108,2)="\I","*","") ->  | B66: T | C66: =IF(A66="*","",COM_N!B108) -> CNOCOA-E | D66: =IF(A66="*","",COM_N!A108) -> Commercial - Other - Coal - Existing | E66: PJ,PJa | F66: PRC,DMD,DAYNITE
A67: =IF(LEFT(COM_N!A109,2)="\I","*","") ->  | B67: T | C67: =IF(A67="*","",COM_N!B109) -> CNOODS-E | D67: =IF(A67="*","",COM_N!A109) -> Commercial - Other - Oil Diesel - Existing | E67: PJ,PJa | F67: PRC,DMD,DAYNITE
A68: =IF(LEFT(COM_N!A110,2)="\I","*","") ->  | B68: T | C68: =IF(A68="*","",COM_N!B110) -> CNOELC-E | D68: =IF(A68="*","",COM_N!A110) -> Commercial - Other - Electricity - Existing | E68: PJ,PJa | F68: PRC,DMD,DAYNITE
A69: =IF(LEFT(COM_N!A111,2)="\I","*","") ->  | B69: T | C69: =IF(A69="*","",COM_N!B111) -> CNOGAS-E | D69: =IF(A69="*","",COM_N!A111) -> Commercial - Other - Gas - Existing | E69: PJ,PJa | F69: PRC,DMD,DAYNITE
A70: =IF(LEFT(COM_N!A112,2)="\I","*","") ->  | B70: T | C70: =IF(A70="*","",COM_N!B112) -> CNOOGS-E | D70: =IF(A70="*","",COM_N!A112) -> Commercial - Other - Oil Gasoline - Existing | E70: PJ,PJa | F70: PRC,DMD,DAYNITE
A71: =IF(LEFT(COM_N!A113,2)="\I","*","") ->  | B71: T | C71: =IF(A71="*","",COM_N!B113) -> CNOOHF-E | D71: =IF(A71="*","",COM_N!A113) -> Commercial - Other - Oil HFO - Existing | E71: PJ,PJa | F71: PRC,DMD,DAYNITE
A72: =IF(LEFT(COM_N!A114,2)="\I","*","") ->  | B72: T | C72: =IF(A72="*","",COM_N!B114) -> CNOOKE-E | D72: =IF(A72="*","",COM_N!A114) -> Commercial - Other - Oil Paraffin - Existing | E72: PJ,PJa | F72: PRC,DMD,DAYNITE
A73: =IF(LEFT(COM_N!A115,2)="\I","*","") -> * | C73: =IF(A73="*","",COM_N!B115) ->  | D73: =IF(A73="*","",COM_N!A115) -> 
A74: =IF(LEFT(COM_N!A116,2)="\I","*","") -> *
A75: =IF(LEFT(COM_N!A117,2)="\I","*","") -> 
A78: =IF(LEFT(COM!A132,2)="\I","*","") -> 
A79: =IF(LEFT(COM!A133,2)="\I","*","") -> 
A80: =IF(LEFT(COM!A134,2)="\I","*","") -> 
A81: =IF(LEFT(COM!A135,2)="\I","*","") -> 
A82: =IF(LEFT(COM!A136,2)="\I","*","") -> 
A83: =IF(LEFT(COM!A137,2)="\I","*","") -> 
A84: =IF(LEFT(COM!A138,2)="\I","*","") -> 
A85: =IF(LEFT(COM!A139,2)="\I","*","") -> 

Sheet TS DTech
A1: TS DATA | B1: REGION1 | AV1: * | AW1: * | AX1: *
A2: * | AV2: Parameter # | AW2: row # | AX2: Col #
A3: *
A4: *
A5: *
A6: *
A7: * | B7: Parameter | C7: Arg1 | D7: Arg2 | E7: Arg3 | F7: Arg4 | G7: Arg5 | H7: Arg6 | I7: I/E Opt or Value | J7: 2006 | K7: =J7+1 -> 2007 | L7: =K7+1 -> 2008 | M7: 2009 | N7: 2010 | O7: 2011 | P7: 2012 | Q7: 2013 | R7: 2014 | S7: 2015 | T7: 2016 | U7: 2017 | V7: 2018 | W7: 2019 | X7: 2020 | Y7: 2021 | Z7: 2022 | AA7: 2023 | AB7: =AA7+1 -> 2024 | AC7: 2025 | AD7: 2026 | AE7: 2027 | AF7: 2028 | AG7: 2029 | AH7: 2030 | AI7: =AH7+1 -> 2031 | AJ7: =AI7+1 -> 2032 | AK7: =AJ7+1 -> 2033 | AL7: =AK7+1 -> 2034 | AM7: =AL7+1 -> 2035 | AN7: =AM7+1 -> 2036 | AO7: =AN7+1 -> 2037 | AP7: =AO7+1 -> 2038 | AQ7: =AP7+1 -> 2039 | AR7: =AM7+5 -> 2040 | AS7: =AR7+5 -> 2045 | AT7: =AS7+5 -> 2050 | AU7: =AT7+10 -> 2060
A8: *
A9: * | B9: 1 | C9: 2 | D9: 3 | E9: 4 | F9: 5 | G9: 6 | H9: 7 | I9: 8
A10: *1 | B10: ACT_EFF | C10: Process | D10: - | E10: ACTGRP | F10: - | G10: ANNUAL | H10: - | I10: 0 | AX10: =COM!$E$59 -> 3
A11: *2 | B11: NCAP_AFA | C11: Process | D11: - | E11: - | F11: - | G11: - | H11: UP | I11: 0 | AX11: =COM!$F$59 -> 4
A12: *3 | B12: NCAP_BND | C12: Process | D12: - | E12: - | F12: - | G12: - | H12: UP | I12: 0 | AX12: 50
A13: *4 | B13: NCAP_TLIFE | C13: Process | D13: - | E13: - | F13: - | G13: - | H13: - | I13: 0 | AX13: =COM!$G$59 -> 5
A14: *5 | B14: NCAP_COST | C14: Process | D14: - | E14: - | F14: - | G14: - | H14: - | I14: 0 | AX14: =COM!I59 -> 7
A15: *6 | B15: NCAP_FOM | C15: Process | D15: - | E15: - | F15: - | G15: - | H15: - | I15: 0 | AX15: =COM!J59 -> 8
A16: *7 | B16: PRC_RESID | C16: Process | D16: - | E16: - | F16: - | G16: - | H16: - | I16: 0 | AX16: =COM!$H$59 -> 6
A17: *
A18: =IF(LEFT(OFFSET(COM!$A$60,AW18,0),2)="\I","*","") ->  | B18: =IF(A18="*","",VLOOKUP("*"&AV18,$A$9:$B$16,2,FALSE)) -> ACT_EFF | C18: =IF($A18="*","",OFFSET(COM!$B$60,AW18,0)) -> CECELCCHIL-E | D18: =IF($A18="*","",VLOOKUP($B18,$B$10:$I$16,D$9,FALSE)) -> - | E18: =IF($A18="*","",VLOOKUP($B18,$B$10:$I$16,E$9,FALSE)) -> ACTGRP | F18: - | G18: ANNUAL | H18: - | I18: 0 | J18: =IF($A18="*","",OFFSET(COM!$B$60,AW18,SUMIF($B$10:$B$16,B18,$AX$10:$AX$16))) -> 2 | K18: =IF($B18<>"PRC_RESID","",IF(K$7=2005+OFFSET(COM!$B$60,$AW18,SUMIF($B$10:$B$16,"NCAP_TLIFE",$AX$10:$AX$16)),0,"")) ->  | L18: =IF($B18<>"PRC_RESID","",IF(L$7=2005+OFFSET(COM!$B$60,$AW18,SUMIF($B$10:$B$16,"NCAP_TLIFE",$AX$10:$AX$16)),0,"")) ->  | M18: =IF($B18<>"PRC_RESID","",IF(M$7=2005+OFFSET(COM!$B$60,$AW18,SUMIF($B$10:$B$16,"NCAP_TLIFE",$AX$10:$AX$16)),0,"")) ->  | N18: =IF($B18<>"PRC_RESID","",IF(N$7=2005+OFFSET(COM!$B$60,$AW18,SUMIF($B$10:$B$16,"NCAP_TLIFE",$AX$10:$AX$16)),0,"")) ->  | O18: =IF($B18<>"PRC_RESID","",IF(O$7=2005+OFFSET(COM!$B$60,$AW18,SUMIF($B$10:$B$16,"NCAP_TLIFE",$AX$10:$AX$16)),0,"")) ->  | P18: =IF($B18<>"PRC_RESID","",IF(P$7=2005+OFFSET(COM!$B$60,$AW18,SUMIF($B$10:$B$16,"NCAP_TLIFE",$AX$10:$AX$16)),0,"")) ->  | Q18: =IF($B18<>"PRC_RESID","",IF(Q$7=2005+OFFSET(COM!$B$60,$AW18,SUMIF($B$10:$B$16,"NCAP_TLIFE",$AX$10:$AX$16)),0,"")) ->  | R18: =IF($B18<>"PRC_RESID","",IF(R$7=2005+OFFSET(COM!$B$60,$AW18,SUMIF($B$10:$B$16,"NCAP_TLIFE",$AX$10:$AX$16)),0,"")) ->  | S18: =IF($B18<>"PRC_RESID","",IF(S$7=2005+OFFSET(COM!$B$60,$AW18,SUMIF($B$10:$B$16,"NCAP_TLIFE",$AX$10:$AX$16)),0,"")) ->  | T18: =IF($B18<>"PRC_RESID","",IF(T$7=2005+OFFSET(COM!$B$60,$AW18,SUMIF($B$10:$B$16,"NCAP_TLIFE",$AX$10:$AX$16)),0,"")) ->  | U18: =IF($B18<>"PRC_RESID","",IF(U$7=2005+OFFSET(COM!$B$60,$AW18,SUMIF($B$10:$B$16,"NCAP_TLIFE",$AX$10:$AX$16)),0,"")) ->  | V18: =IF($B18<>"PRC_RESID","",IF(V$7=2005+OFFSET(COM!$B$60,$AW18,SUMIF($B$10:$B$16,"NCAP_TLIFE",$AX$10:$AX$16)),0,"")) ->  | W18: =IF($B18<>"PRC_RESID","",IF(W$7=2005+OFFSET(COM!$B$60,$AW18,SUMIF($B$10:$B$16,"NCAP_TLIFE",$AX$10:$AX$16)),0,"")) ->  | X18: =IF($B18<>"PRC_RESID","",IF(X$7=2005+OFFSET(COM!$B$60,$AW18,SUMIF($B$10:$B$16,"NCAP_TLIFE",$AX$10:$AX$16)),0,"")) ->  | Y18: =IF($B18<>"PRC_RESID","",IF(Y$7=2005+OFFSET(COM!$B$60,$AW18,SUMIF($B$10:$B$16,"NCAP_TLIFE",$AX$10:$AX$16)),0,"")) ->  | Z18: =IF($B18<>"PRC_RESID","",IF(Z$7=2005+OFFSET(COM!$B$60,$AW18,SUMIF($B$10:$B$16,"NCAP_TLIFE",$AX$10:$AX$16)),0,"")) ->  | AA18: =IF($B18<>"PRC_RESID","",IF(AA$7=2005+OFFSET(COM!$B$60,$AW18,SUMIF($B$10:$B$16,"NCAP_TLIFE",$AX$10:$AX$16)),0,"")) ->  | AB18: =IF($B18<>"PRC_RESID","",IF(AB$7=2005+OFFSET(COM!$B$60,$AW18,SUMIF($B$10:$B$16,"NCAP_TLIFE",$AX$10:$AX$16)),0,"")) ->  | AC18: =IF($B18<>"PRC_RESID","",IF(AC$7=2005+OFFSET(COM!$B$60,$AW18,SUMIF($B$10:$B$16,"NCAP_TLIFE",$AX$10:$AX$16)),0,"")) ->  | AD18: =IF($B18<>"PRC_RESID","",IF(AD$7=2005+OFFSET(COM!$B$60,$AW18,SUMIF($B$10:$B$16,"NCAP_TLIFE",$AX$10:$AX$16)),0,"")) ->  | AE18: =IF($B18<>"PRC_RESID","",IF(AE$7=2005+OFFSET(COM!$B$60,$AW18,SUMIF($B$10:$B$16,"NCAP_TLIFE",$AX$10:$AX$16)),0,"")) ->  | AF18: =IF($B18<>"PRC_RESID","",IF(AF$7=2005+OFFSET(COM!$B$60,$AW18,SUMIF($B$10:$B$16,"NCAP_TLIFE",$AX$10:$AX$16)),0,"")) ->  | AG18: =IF($B18<>"PRC_RESID","",IF(AG$7=2005+OFFSET(COM!$B$60,$AW18,SUMIF($B$10:$B$16,"NCAP_TLIFE",$AX$10:$AX$16)),0,"")) ->  | AH18: =IF($B18<>"PRC_RESID","",IF(AH$7=2005+OFFSET(COM!$B$60,$AW18,SUMIF($B$10:$B$16,"NCAP_TLIFE",$AX$10:$AX$16)),0,"")) ->  | AI18: =IF($B18<>"PRC_RESID","",IF(AI$7=2005+OFFSET(COM!$B$60,$AW18,SUMIF($B$10:$B$16,"NCAP_TLIFE",$AX$10:$AX$16)),0,"")) ->  | AJ18: =IF($B18<>"PRC_RESID","",IF(AJ$7=2005+OFFSET(COM!$B$60,$AW18,SUMIF($B$10:$B$16,"NCAP_TLIFE",$AX$10:$AX$16)),0,"")) ->  | AK18: =IF($B18<>"PRC_RESID","",IF(AK$7=2005+OFFSET(COM!$B$60,$AW18,SUMIF($B$10:$B$16,"NCAP_TLIFE",$AX$10:$AX$16)),0,"")) ->  | AL18: =IF($B18<>"PRC_RESID","",IF(AL$7=2005+OFFSET(COM!$B$60,$AW18,SUMIF($B$10:$B$16,"NCAP_TLIFE",$AX$10:$AX$16)),0,"")) ->  | AM18: =IF($B18<>"PRC_RESID","",IF(AM$7=2005+OFFSET(COM!$B$60,$AW18,SUMIF($B$10:$B$16,"NCAP_TLIFE",$AX$10:$AX$16)),0,"")) ->  | AN18: =IF($B18<>"PRC_RESID","",IF(AN$7=2005+OFFSET(COM!$B$60,$AW18,SUMIF($B$10:$B$16,"NCAP_TLIFE",$AX$10:$AX$16)),0,"")) ->  | AO18: =IF($B18<>"PRC_RESID","",IF(AO$7=2005+OFFSET(COM!$B$60,$AW18,SUMIF($B$10:$B$16,"NCAP_TLIFE",$AX$10:$AX$16)),0,"")) ->  | AP18: =IF($B18<>"PRC_RESID","",IF(AP$7=2005+OFFSET(COM!$B$60,$AW18,SUMIF($B$10:$B$16,"NCAP_TLIFE",$AX$10:$AX$16)),0,"")) ->  | AQ18: =IF($B18<>"PRC_RESID","",IF(AQ$7=2005+OFFSET(COM!$B$60,$AW18,SUMIF($B$10:$B$16,"NCAP_TLIFE",$AX$10:$AX$16)),0,"")) ->  | AR18: =IF($B18<>"PRC_RESID","",IF(AR$7=2005+OFFSET(COM!$B$60,$AW18,SUMIF($B$10:$B$16,"NCAP_TLIFE",$AX$10:$AX$16)),0,"")) ->  | AS18: =IF($B18<>"PRC_RESID","",IF(AS$7=2005+OFFSET(COM!$B$60,$AW18,SUMIF($B$10:$B$16,"NCAP_TLIFE",$AX$10:$AX$16)),0,"")) ->  | AT18: =IF($B18<>"PRC_RESID","",IF(AT$7=2005+OFFSET(COM!$B$60,$AW18,SUMIF($B$10:$B$16,"NCAP_TLIFE",$AX$10:$AX$16)),0,"")) ->  | AU18: =IF($B18<>"PRC_RESID","",IF(AU$7=2005+OFFSET(COM!$B$60,$AW18,SUMIF($B$10:$B$16,"NCAP_TLIFE",$AX$10:$AX$16)),0,"")) ->  | AV18: 1 | AW18: 1
A19: =IF(LEFT(OFFSET(COM!$A$60,AW19,0),2)="\I","*","") ->  | B19: ACT_EFF | C19: =IF($A19="*","",OFFSET(COM!$B$60,AW19,0)) -> CECELCCEN-E | D19: - | E19: ACTGRP | F19: - | G19: ANNUAL | H19: - | I19: 0 | J19: =IF($A19="*","",OFFSET(COM!$B$60,AW19,SUMIF($B$10:$B$16,B19,$AX$10:$AX$16))) -> 3 | K19: =IF($B19<>"PRC_RESID","",IF(K$7=2005+OFFSET(COM!$B$60,$AW19,SUMIF($B$10:$B$16,"NCAP_TLIFE",$AX$10:$AX$16)),0,"")) ->  | L19: =IF($B19<>"PRC_RESID","",IF(L$7=2005+OFFSET(COM!$B$60,$AW19,SUMIF($B$10:$B$16,"NCAP_TLIFE",$AX$10:$AX$16)),0,"")) ->  | M19: =IF($B19<>"PRC_RESID","",IF(M$7=2005+OFFSET(COM!$B$60,$AW19,SUMIF($B$10:$B$16,"NCAP_TLIFE",$AX$10:$AX$16)),0,"")) ->  | N19: =IF($B19<>"PRC_RESID","",IF(N$7=2005+OFFSET(COM!$B$60,$AW19,SUMIF($B$10:$B$16,"NCAP_TLIFE",$AX$10:$AX$16)),0,"")) ->  | O19: =IF($B19<>"PRC_RESID","",IF(O$7=2005+OFFSET(COM!$B$60,$AW19,SUMIF($B$10:$B$16,"NCAP_TLIFE",$AX$10:$AX$16)),0,"")) ->  | P19: =IF($B19<>"PRC_RESID","",IF(P$7=2005+OFFSET(COM!$B$60,$AW19,SUMIF($B$10:$B$16,"NCAP_TLIFE",$AX$10:$AX$16)),0,"")) ->  | Q19: =IF($B19<>"PRC_RESID","",IF(Q$7=2005+OFFSET(COM!$B$60,$AW19,SUMIF($B$10:$B$16,"NCAP_TLIFE",$AX$10:$AX$16)),0,"")) ->  | R19: =IF($B19<>"PRC_RESID","",IF(R$7=2005+OFFSET(COM!$B$60,$AW19,SUMIF($B$10:$B$16,"NCAP_TLIFE",$AX$10:$AX$16)),0,"")) ->  | S19: =IF($B19<>"PRC_RESID","",IF(S$7=2005+OFFSET(COM!$B$60,$AW19,SUMIF($B$10:$B$16,"NCAP_TLIFE",$AX$10:$AX$16)),0,"")) ->  | T19: =IF($B19<>"PRC_RESID","",IF(T$7=2005+OFFSET(COM!$B$60,$AW19,SUMIF($B$10:$B$16,"NCAP_TLIFE",$AX$10:$AX$16)),0,"")) ->  | U19: =IF($B19<>"PRC_RESID","",IF(U$7=2005+OFFSET(COM!$B$60,$AW19,SUMIF($B$10:$B$16,"NCAP_TLIFE",$AX$10:$AX$16)),0,"")) ->  | V19: =IF($B19<>"PRC_RESID","",IF(V$7=2005+OFFSET(COM!$B$60,$AW19,SUMIF($B$10:$B$16,"NCAP_TLIFE",$AX$10:$AX$16)),0,"")) ->  | W19: =IF($B19<>"PRC_RESID","",IF(W$7=2005+OFFSET(COM!$B$60,$AW19,SUMIF($B$10:$B$16,"NCAP_TLIFE",$AX$10:$AX$16)),0,"")) ->  | X19: =IF($B19<>"PRC_RESID","",IF(X$7=2005+OFFSET(COM!$B$60,$AW19,SUMIF($B$10:$B$16,"NCAP_TLIFE",$AX$10:$AX$16)),0,"")) ->  | Y19: =IF($B19<>"PRC_RESID","",IF(Y$7=2005+OFFSET(COM!$B$60,$AW19,SUMIF($B$10:$B$16,"NCAP_TLIFE",$AX$10:$AX$16)),0,"")) ->  | Z19: =IF($B19<>"PRC_RESID","",IF(Z$7=2005+OFFSET(COM!$B$60,$AW19,SUMIF($B$10:$B$16,"NCAP_TLIFE",$AX$10:$AX$16)),0,"")) ->  | AA19: =IF($B19<>"PRC_RESID","",IF(AA$7=2005+OFFSET(COM!$B$60,$AW19,SUMIF($B$10:$B$16,"NCAP_TLIFE",$AX$10:$AX$16)),0,"")) ->  | AB19: =IF($B19<>"PRC_RESID","",IF(AB$7=2005+OFFSET(COM!$B$60,$AW19,SUMIF($B$10:$B$16,"NCAP_TLIFE",$AX$10:$AX$16)),0,"")) ->  | AC19: =IF($B19<>"PRC_RESID","",IF(AC$7=2005+OFFSET(COM!$B$60,$AW19,SUMIF($B$10:$B$16,"NCAP_TLIFE",$AX$10:$AX$16)),0,"")) ->  | AD19: =IF($B19<>"PRC_RESID","",IF(AD$7=2005+OFFSET(COM!$B$60,$AW19,SUMIF($B$10:$B$16,"NCAP_TLIFE",$AX$10:$AX$16)),0,"")) ->  | AE19: =IF($B19<>"PRC_RESID","",IF(AE$7=2005+OFFSET(COM!$B$60,$AW19,SUMIF($B$10:$B$16,"NCAP_TLIFE",$AX$10:$AX$16)),0,"")) ->  | AF19: =IF($B19<>"PRC_RESID","",IF(AF$7=2005+OFFSET(COM!$B$60,$AW19,SUMIF($B$10:$B$16,"NCAP_TLIFE",$AX$10:$AX$16)),0,"")) ->  | AG19: =IF($B19<>"PRC_RESID","",IF(AG$7=2005+OFFSET(COM!$B$60,$AW19,SUMIF($B$10:$B$16,"NCAP_TLIFE",$AX$10:$AX$16)),0,"")) ->  | AH19: =IF($B19<>"PRC_RESID","",IF(AH$7=2005+OFFSET(COM!$B$60,$AW19,SUMIF($B$10:$B$16,"NCAP_TLIFE",$AX$10:$AX$16)),0,"")) ->  | AI19: =IF($B19<>"PRC_RESID","",IF(AI$7=2005+OFFSET(COM!$B$60,$AW19,SUMIF($B$10:$B$16,"NCAP_TLIFE",$AX$10:$AX$16)),0,"")) ->  | AJ19: =IF($B19<>"PRC_RESID","",IF(AJ$7=2005+OFFSET(COM!$B$60,$AW19,SUMIF($B$10:$B$16,"NCAP_TLIFE",$AX$10:$AX$16)),0,"")) ->  | AK19: =IF($B19<>"PRC_RESID","",IF(AK$7=2005+OFFSET(COM!$B$60,$AW19,SUMIF($B$10:$B$16,"NCAP_TLIFE",$AX$10:$AX$16)),0,"")) ->  | AL19: =IF($B19<>"PRC_RESID","",IF(AL$7=2005+OFFSET(COM!$B$60,$AW19,SUMIF($B$10:$B$16,"NCAP_TLIFE",$AX$10:$AX$16)),0,"")) ->  | AM19: =IF($B19<>"PRC_RESID","",IF(AM$7=2005+OFFSET(COM!$B$60,$AW19,SUMIF($B$10:$B$16,"NCAP_TLIFE",$AX$10:$AX$16)),0,"")) ->  | AN19: =IF($B19<>"PRC_RESID","",IF(AN$7=2005+OFFSET(COM!$B$60,$AW19,SUMIF($B$10:$B$16,"NCAP_TLIFE",$AX$10:$AX$16)),0,"")) ->  | AO19: =IF($B19<>"PRC_RESID","",IF(AO$7=2005+OFFSET(COM!$B$60,$AW19,SUMIF($B$10:$B$16,"NCAP_TLIFE",$AX$10:$AX$16)),0,"")) ->  | AP19: =IF($B19<>"PRC_RESID","",IF(AP$7=2005+OFFSET(COM!$B$60,$AW19,SUMIF($B$10:$B$16,"NCAP_TLIFE",$AX$10:$AX$16)),0,"")) ->  | AQ19: =IF($B19<>"PRC_RESID","",IF(AQ$7=2005+OFFSET(COM!$B$60,$AW19,SUMIF($B$10:$B$16,"NCAP_TLIFE",$AX$10:$AX$16)),0,"")) ->  | AR19: =IF($B19<>"PRC_RESID","",IF(AR$7=2005+OFFSET(COM!$B$60,$AW19,SUMIF($B$10:$B$16,"NCAP_TLIFE",$AX$10:$AX$16)),0,"")) ->  | AS19: =IF($B19<>"PRC_RESID","",IF(AS$7=2005+OFFSET(COM!$B$60,$AW19,SUMIF($B$10:$B$16,"NCAP_TLIFE",$AX$10:$AX$16)),0,"")) ->  | AT19: =IF($B19<>"PRC_RESID","",IF(AT$7=2005+OFFSET(COM!$B$60,$AW19,SUMIF($B$10:$B$16,"NCAP_TLIFE",$AX$10:$AX$16)),0,"")) ->  | AU19: =IF($B19<>"PRC_RESID","",IF(AU$7=2005+OFFSET(COM!$B$60,$AW19,SUMIF($B$10:$B$16,"NCAP_TLIFE",$AX$10:$AX$16)),0,"")) ->  | AV19: =IF(AW18=COM!$Y$116,AV18+1,AV18) -> 1 | AW19: =IF(AV19=AV18,AW18+1,1) -> 2
A20: =IF(LEFT(OFFSET(COM!$A$60,AW20,0),2)="\I","*","") ->  | B20: ACT_EFF | C20: =IF($A20="*","",OFFSET(COM!$B$60,AW20,0)) -> CECELCHP-E | D20: - | E20: ACTGRP | F20: - | G20: ANNUAL | H20: - | I20: 0 | J20: =IF($A20="*","",OFFSET(COM!$B$60,AW20,SUMIF($B$10:$B$16,B20,$AX$10:$AX$16))) -> 2.2 | K20: =IF($B20<>"PRC_RESID","",IF(K$7=2005+OFFSET(COM!$B$60,$AW20,SUMIF($B$10:$B$16,"NCAP_TLIFE",$AX$10:$AX$16)),0,"")) ->  | L20: =IF($B20<>"PRC_RESID","",IF(L$7=2005+OFFSET(COM!$B$60,$AW20,SUMIF($B$10:$B$16,"NCAP_TLIFE",$AX$10:$AX$16)),0,"")) ->  | M20: =IF($B20<>"PRC_RESID","",IF(M$7=2005+OFFSET(COM!$B$60,$AW20,SUMIF($B$10:$B$16,"NCAP_TLIFE",$AX$10:$AX$16)),0,"")) ->  | N20: =IF($B20<>"PRC_RESID","",IF(N$7=2005+OFFSET(COM!$B$60,$AW20,SUMIF($B$10:$B$16,"NCAP_TLIFE",$AX$10:$AX$16)),0,"")) ->  | O20: =IF($B20<>"PRC_RESID","",IF(O$7=2005+OFFSET(COM!$B$60,$AW20,SUMIF($B$10:$B$16,"NCAP_TLIFE",$AX$10:$AX$16)),0,"")) ->  | P20: =IF($B20<>"PRC_RESID","",IF(P$7=2005+OFFSET(COM!$B$60,$AW20,SUMIF($B$10:$B$16,"NCAP_TLIFE",$AX$10:$AX$16)),0,"")) ->  | Q20: =IF($B20<>"PRC_RESID","",IF(Q$7=2005+OFFSET(COM!$B$60,$AW20,SUMIF($B$10:$B$16,"NCAP_TLIFE",$AX$10:$AX$16)),0,"")) ->  | R20: =IF($B20<>"PRC_RESID","",IF(R$7=2005+OFFSET(COM!$B$60,$AW20,SUMIF($B$10:$B$16,"NCAP_TLIFE",$AX$10:$AX$16)),0,"")) ->  | S20: =IF($B20<>"PRC_RESID","",IF(S$7=2005+OFFSET(COM!$B$60,$AW20,SUMIF($B$10:$B$16,"NCAP_TLIFE",$AX$10:$AX$16)),0,"")) ->  | T20: =IF($B20<>"PRC_RESID","",IF(T$7=2005+OFFSET(COM!$B$60,$AW20,SUMIF($B$10:$B$16,"NCAP_TLIFE",$AX$10:$AX$16)),0,"")) ->  | U20: =IF($B20<>"PRC_RESID","",IF(U$7=2005+OFFSET(COM!$B$60,$AW20,SUMIF($B$10:$B$16,"NCAP_TLIFE",$AX$10:$AX$16)),0,"")) ->  | V20: =IF($B20<>"PRC_RESID","",IF(V$7=2005+OFFSET(COM!$B$60,$AW20,SUMIF($B$10:$B$16,"NCAP_TLIFE",$AX$10:$AX$16)),0,"")) ->  | W20: =IF($B20<>"PRC_RESID","",IF(W$7=2005+OFFSET(COM!$B$60,$AW20,SUMIF($B$10:$B$16,"NCAP_TLIFE",$AX$10:$AX$16)),0,"")) ->  | X20: =IF($B20<>"PRC_RESID","",IF(X$7=2005+OFFSET(COM!$B$60,$AW20,SUMIF($B$10:$B$16,"NCAP_TLIFE",$AX$10:$AX$16)),0,"")) ->  | Y20: =IF($B20<>"PRC_RESID","",IF(Y$7=2005+OFFSET(COM!$B$60,$AW20,SUMIF($B$10:$B$16,"NCAP_TLIFE",$AX$10:$AX$16)),0,"")) ->  | Z20: =IF($B20<>"PRC_RESID","",IF(Z$7=2005+OFFSET(COM!$B$60,$AW20,SUMIF($B$10:$B$16,"NCAP_TLIFE",$AX$10:$AX$16)),0,"")) ->  | AA20: =IF($B20<>"PRC_RESID","",IF(AA$7=2005+OFFSET(COM!$B$60,$AW20,SUMIF($B$10:$B$16,"NCAP_TLIFE",$AX$10:$AX$16)),0,"")) ->  | AB20: =IF($B20<>"PRC_RESID","",IF(AB$7=2005+OFFSET(COM!$B$60,$AW20,SUMIF($B$10:$B$16,"NCAP_TLIFE",$AX$10:$AX$16)),0,"")) ->  | AC20: =IF($B20<>"PRC_RESID","",IF(AC$7=2005+OFFSET(COM!$B$60,$AW20,SUMIF($B$10:$B$16,"NCAP_TLIFE",$AX$10:$AX$16)),0,"")) ->  | AD20: =IF($B20<>"PRC_RESID","",IF(AD$7=2005+OFFSET(COM!$B$60,$AW20,SUMIF($B$10:$B$16,"NCAP_TLIFE",$AX$10:$AX$16)),0,"")) ->  | AE20: =IF($B20<>"PRC_RESID","",IF(AE$7=2005+OFFSET(COM!$B$60,$AW20,SUMIF($B$10:$B$16,"NCAP_TLIFE",$AX$10:$AX$16)),0,"")) ->  | AF20: =IF($B20<>"PRC_RESID","",IF(AF$7=2005+OFFSET(COM!$B$60,$AW20,SUMIF($B$10:$B$16,"NCAP_TLIFE",$AX$10:$AX$16)),0,"")) ->  | AG20: =IF($B20<>"PRC_RESID","",IF(AG$7=2005+OFFSET(COM!$B$60,$AW20,SUMIF($B$10:$B$16,"NCAP_TLIFE",$AX$10:$AX$16)),0,"")) ->  | AH20: =IF($B20<>"PRC_RESID","",IF(AH$7=2005+OFFSET(COM!$B$60,$AW20,SUMIF($B$10:$B$16,"NCAP_TLIFE",$AX$10:$AX$16)),0,"")) ->  | AI20: =IF($B20<>"PRC_RESID","",IF(AI$7=2005+OFFSET(COM!$B$60,$AW20,SUMIF($B$10:$B$16,"NCAP_TLIFE",$AX$10:$AX$16)),0,"")) ->  | AJ20: =IF($B20<>"PRC_RESID","",IF(AJ$7=2005+OFFSET(COM!$B$60,$AW20,SUMIF($B$10:$B$16,"NCAP_TLIFE",$AX$10:$AX$16)),0,"")) ->  | AK20: =IF($B20<>"PRC_RESID","",IF(AK$7=2005+OFFSET(COM!$B$60,$AW20,SUMIF($B$10:$B$16,"NCAP_TLIFE",$AX$10:$AX$16)),0,"")) ->  | AL20: =IF($B20<>"PRC_RESID","",IF(AL$7=2005+OFFSET(COM!$B$60,$AW20,SUMIF($B$10:$B$16,"NCAP_TLIFE",$AX$10:$AX$16)),0,"")) ->  | AM20: =IF($B20<>"PRC_RESID","",IF(AM$7=2005+OFFSET(COM!$B$60,$AW20,SUMIF($B$10:$B$16,"NCAP_TLIFE",$AX$10:$AX$16)),0,"")) ->  | AN20: =IF($B20<>"PRC_RESID","",IF(AN$7=2005+OFFSET(COM!$B$60,$AW20,SUMIF($B$10:$B$16,"NCAP_TLIFE",$AX$10:$AX$16)),0,"")) ->  | AO20: =IF($B20<>"PRC_RESID","",IF(AO$7=2005+OFFSET(COM!$B$60,$AW20,SUMIF($B$10:$B$16,"NCAP_TLIFE",$AX$10:$AX$16)),0,"")) ->  | AP20: =IF($B20<>"PRC_RESID","",IF(AP$7=2005+OFFSET(COM!$B$60,$AW20,SUMIF($B$10:$B$16,"NCAP_TLIFE",$AX$10:$AX$16)),0,"")) ->  | AQ20: =IF($B20<>"PRC_RESID","",IF(AQ$7=2005+OFFSET(COM!$B$60,$AW20,SUMIF($B$10:$B$16,"NCAP_TLIFE",$AX$10:$AX$16)),0,"")) ->  | AR20: =IF($B20<>"PRC_RESID","",IF(AR$7=2005+OFFSET(COM!$B$60,$AW20,SUMIF($B$10:$B$16,"NCAP_TLIFE",$AX$10:$AX$16)),0,"")) ->  | AS20: =IF($B20<>"PRC_RESID","",IF(AS$7=2005+OFFSET(COM!$B$60,$AW20,SUMIF($B$10:$B$16,"NCAP_TLIFE",$AX$10:$AX$16)),0,"")) ->  | AT20: =IF($B20<>"PRC_RESID","",IF(AT$7=2005+OFFSET(COM!$B$60,$AW20,SUMIF($B$10:$B$16,"NCAP_TLIFE",$AX$10:$AX$16)),0,"")) ->  | AU20: =IF($B20<>"PRC_RESID","",IF(AU$7=2005+OFFSET(COM!$B$60,$AW20,SUMIF($B$10:$B$16,"NCAP_TLIFE",$AX$10:$AX$16)),0,"")) ->  | AV20: =IF(AW19=COM!$Y$116,AV19+1,AV19) -> 1 | AW20: =IF(AV20=AV19,AW19+1,1) -> 3
A21: =IF(LEFT(OFFSET(COM!$A$60,AW21,0),2)="\I","*","") ->  | B21: ACT_EFF | C21: =IF($A21="*","",OFFSET(COM!$B$60,AW21,0)) -> CECELCROOM-E | D21: - | E21: ACTGRP | F21: - | G21: ANNUAL | H21: - | I21: 0 | J21: =IF($A21="*","",OFFSET(COM!$B$60,AW21,SUMIF($B$10:$B$16,B21,$AX$10:$AX$16))) -> 2 | K21: =IF($B21<>"PRC_RESID","",IF(K$7=2005+OFFSET(COM!$B$60,$AW21,SUMIF($B$10:$B$16,"NCAP_TLIFE",$AX$10:$AX$16)),0,"")) ->  | L21: =IF($B21<>"PRC_RESID","",IF(L$7=2005+OFFSET(COM!$B$60,$AW21,SUMIF($B$10:$B$16,"NCAP_TLIFE",$AX$10:$AX$16)),0,"")) ->  | M21: =IF($B21<>"PRC_RESID","",IF(M$7=2005+OFFSET(COM!$B$60,$AW21,SUMIF($B$10:$B$16,"NCAP_TLIFE",$AX$10:$AX$16)),0,"")) ->  | N21: =IF($B21<>"PRC_RESID","",IF(N$7=2005+OFFSET(COM!$B$60,$AW21,SUMIF($B$10:$B$16,"NCAP_TLIFE",$AX$10:$AX$16)),0,"")) ->  | O21: =IF($B21<>"PRC_RESID","",IF(O$7=2005+OFFSET(COM!$B$60,$AW21,SUMIF($B$10:$B$16,"NCAP_TLIFE",$AX$10:$AX$16)),0,"")) ->  | P21: =IF($B21<>"PRC_RESID","",IF(P$7=2005+OFFSET(COM!$B$60,$AW21,SUMIF($B$10:$B$16,"NCAP_TLIFE",$AX$10:$AX$16)),0,"")) ->  | Q21: =IF($B21<>"PRC_RESID","",IF(Q$7=2005+OFFSET(COM!$B$60,$AW21,SUMIF($B$10:$B$16,"NCAP_TLIFE",$AX$10:$AX$16)),0,"")) ->  | R21: =IF($B21<>"PRC_RESID","",IF(R$7=2005+OFFSET(COM!$B$60,$AW21,SUMIF($B$10:$B$16,"NCAP_TLIFE",$AX$10:$AX$16)),0,"")) ->  | S21: =IF($B21<>"PRC_RESID","",IF(S$7=2005+OFFSET(COM!$B$60,$AW21,SUMIF($B$10:$B$16,"NCAP_TLIFE",$AX$10:$AX$16)),0,"")) ->  | T21: =IF($B21<>"PRC_RESID","",IF(T$7=2005+OFFSET(COM!$B$60,$AW21,SUMIF($B$10:$B$16,"NCAP_TLIFE",$AX$10:$AX$16)),0,"")) ->  | U21: =IF($B21<>"PRC_RESID","",IF(U$7=2005+OFFSET(COM!$B$60,$AW21,SUMIF($B$10:$B$16,"NCAP_TLIFE",$AX$10:$AX$16)),0,"")) ->  | V21: =IF($B21<>"PRC_RESID","",IF(V$7=2005+OFFSET(COM!$B$60,$AW21,SUMIF($B$10:$B$16,"NCAP_TLIFE",$AX$10:$AX$16)),0,"")) ->  | W21: =IF($B21<>"PRC_RESID","",IF(W$7=2005+OFFSET(COM!$B$60,$AW21,SUMIF($B$10:$B$16,"NCAP_TLIFE",$AX$10:$AX$16)),0,"")) ->  | X21: =IF($B21<>"PRC_RESID","",IF(X$7=2005+OFFSET(COM!$B$60,$AW21,SUMIF($B$10:$B$16,"NCAP_TLIFE",$AX$10:$AX$16)),0,"")) ->  | Y21: =IF($B21<>"PRC_RESID","",IF(Y$7=2005+OFFSET(COM!$B$60,$AW21,SUMIF($B$10:$B$16,"NCAP_TLIFE",$AX$10:$AX$16)),0,"")) ->  | Z21: =IF($B21<>"PRC_RESID","",IF(Z$7=2005+OFFSET(COM!$B$60,$AW21,SUMIF($B$10:$B$16,"NCAP_TLIFE",$AX$10:$AX$16)),0,"")) ->  | AA21: =IF($B21<>"PRC_RESID","",IF(AA$7=2005+OFFSET(COM!$B$60,$AW21,SUMIF($B$10:$B$16,"NCAP_TLIFE",$AX$10:$AX$16)),0,"")) ->  | AB21: =IF($B21<>"PRC_RESID","",IF(AB$7=2005+OFFSET(COM!$B$60,$AW21,SUMIF($B$10:$B$16,"NCAP_TLIFE",$AX$10:$AX$16)),0,"")) ->  | AC21: =IF($B21<>"PRC_RESID","",IF(AC$7=2005+OFFSET(COM!$B$60,$AW21,SUMIF($B$10:$B$16,"NCAP_TLIFE",$AX$10:$AX$16)),0,"")) ->  | AD21: =IF($B21<>"PRC_RESID","",IF(AD$7=2005+OFFSET(COM!$B$60,$AW21,SUMIF($B$10:$B$16,"NCAP_TLIFE",$AX$10:$AX$16)),0,"")) ->  | AE21: =IF($B21<>"PRC_RESID","",IF(AE$7=2005+OFFSET(COM!$B$60,$AW21,SUMIF($B$10:$B$16,"NCAP_TLIFE",$AX$10:$AX$16)),0,"")) ->  | AF21: =IF($B21<>"PRC_RESID","",IF(AF$7=2005+OFFSET(COM!$B$60,$AW21,SUMIF($B$10:$B$16,"NCAP_TLIFE",$AX$10:$AX$16)),0,"")) ->  | AG21: =IF($B21<>"PRC_RESID","",IF(AG$7=2005+OFFSET(COM!$B$60,$AW21,SUMIF($B$10:$B$16,"NCAP_TLIFE",$AX$10:$AX$16)),0,"")) ->  | AH21: =IF($B21<>"PRC_RESID","",IF(AH$7=2005+OFFSET(COM!$B$60,$AW21,SUMIF($B$10:$B$16,"NCAP_TLIFE",$AX$10:$AX$16)),0,"")) ->  | AI21: =IF($B21<>"PRC_RESID","",IF(AI$7=2005+OFFSET(COM!$B$60,$AW21,SUMIF($B$10:$B$16,"NCAP_TLIFE",$AX$10:$AX$16)),0,"")) ->  | AJ21: =IF($B21<>"PRC_RESID","",IF(AJ$7=2005+OFFSET(COM!$B$60,$AW21,SUMIF($B$10:$B$16,"NCAP_TLIFE",$AX$10:$AX$16)),0,"")) ->  | AK21: =IF($B21<>"PRC_RESID","",IF(AK$7=2005+OFFSET(COM!$B$60,$AW21,SUMIF($B$10:$B$16,"NCAP_TLIFE",$AX$10:$AX$16)),0,"")) ->  | AL21: =IF($B21<>"PRC_RESID","",IF(AL$7=2005+OFFSET(COM!$B$60,$AW21,SUMIF($B$10:$B$16,"NCAP_TLIFE",$AX$10:$AX$16)),0,"")) ->  | AM21: =IF($B21<>"PRC_RESID","",IF(AM$7=2005+OFFSET(COM!$B$60,$AW21,SUMIF($B$10:$B$16,"NCAP_TLIFE",$AX$10:$AX$16)),0,"")) ->  | AN21: =IF($B21<>"PRC_RESID","",IF(AN$7=2005+OFFSET(COM!$B$60,$AW21,SUMIF($B$10:$B$16,"NCAP_TLIFE",$AX$10:$AX$16)),0,"")) ->  | AO21: =IF($B21<>"PRC_RESID","",IF(AO$7=2005+OFFSET(COM!$B$60,$AW21,SUMIF($B$10:$B$16,"NCAP_TLIFE",$AX$10:$AX$16)),0,"")) ->  | AP21: =IF($B21<>"PRC_RESID","",IF(AP$7=2005+OFFSET(COM!$B$60,$AW21,SUMIF($B$10:$B$16,"NCAP_TLIFE",$AX$10:$AX$16)),0,"")) ->  | AQ21: =IF($B21<>"PRC_RESID","",IF(AQ$7=2005+OFFSET(COM!$B$60,$AW21,SUMIF($B$10:$B$16,"NCAP_TLIFE",$AX$10:$AX$16)),0,"")) ->  | AR21: =IF($B21<>"PRC_RESID","",IF(AR$7=2005+OFFSET(COM!$B$60,$AW21,SUMIF($B$10:$B$16,"NCAP_TLIFE",$AX$10:$AX$16)),0,"")) ->  | AS21: =IF($B21<>"PRC_RESID","",IF(AS$7=2005+OFFSET(COM!$B$60,$AW21,SUMIF($B$10:$B$16,"NCAP_TLIFE",$AX$10:$AX$16)),0,"")) ->  | AT21: =IF($B21<>"PRC_RESID","",IF(AT$7=2005+OFFSET(COM!$B$60,$AW21,SUMIF($B$10:$B$16,"NCAP_TLIFE",$AX$10:$AX$16)),0,"")) ->  | AU21: =IF($B21<>"PRC_RESID","",IF(AU$7=2005+OFFSET(COM!$B$60,$AW21,SUMIF($B$10:$B$16,"NCAP_TLIFE",$AX$10:$AX$16)),0,"")) ->  | AV21: =IF(AW20=COM!$Y$116,AV20+1,AV20) -> 1 | AW21: =IF(AV21=AV20,AW20+1,1) -> 4
A22: =IF(LEFT(OFFSET(COM!$A$60,AW22,0),2)="\I","*","") ->  | B22: ACT_EFF | C22: =IF($A22="*","",OFFSET(COM!$B$60,AW22,0)) -> CECELCCEN-N | D22: - | E22: ACTGRP | F22: - | G22: ANNUAL | H22: - | I22: 0 | J22: =IF($A22="*","",OFFSET(COM!$B$60,AW22,SUMIF($B$10:$B$16,B22,$AX$10:$AX$16))) -> 3.352941176 | K22: =IF($B22<>"PRC_RESID","",IF(K$7=2005+OFFSET(COM!$B$60,$AW22,SUMIF($B$10:$B$16,"NCAP_TLIFE",$AX$10:$AX$16)),0,"")) ->  | L22: =IF($B22<>"PRC_RESID","",IF(L$7=2005+OFFSET(COM!$B$60,$AW22,SUMIF($B$10:$B$16,"NCAP_TLIFE",$AX$10:$AX$16)),0,"")) ->  | M22: =IF($B22<>"PRC_RESID","",IF(M$7=2005+OFFSET(COM!$B$60,$AW22,SUMIF($B$10:$B$16,"NCAP_TLIFE",$AX$10:$AX$16)),0,"")) ->  | N22: =IF($B22<>"PRC_RESID","",IF(N$7=2005+OFFSET(COM!$B$60,$AW22,SUMIF($B$10:$B$16,"NCAP_TLIFE",$AX$10:$AX$16)),0,"")) ->  | O22: =IF($B22<>"PRC_RESID","",IF(O$7=2005+OFFSET(COM!$B$60,$AW22,SUMIF($B$10:$B$16,"NCAP_TLIFE",$AX$10:$AX$16)),0,"")) ->  | P22: =IF($B22<>"PRC_RESID","",IF(P$7=2005+OFFSET(COM!$B$60,$AW22,SUMIF($B$10:$B$16,"NCAP_TLIFE",$AX$10:$AX$16)),0,"")) ->  | Q22: =IF($B22<>"PRC_RESID","",IF(Q$7=2005+OFFSET(COM!$B$60,$AW22,SUMIF($B$10:$B$16,"NCAP_TLIFE",$AX$10:$AX$16)),0,"")) ->  | R22: =IF($B22<>"PRC_RESID","",IF(R$7=2005+OFFSET(COM!$B$60,$AW22,SUMIF($B$10:$B$16,"NCAP_TLIFE",$AX$10:$AX$16)),0,"")) ->  | S22: =IF($B22<>"PRC_RESID","",IF(S$7=2005+OFFSET(COM!$B$60,$AW22,SUMIF($B$10:$B$16,"NCAP_TLIFE",$AX$10:$AX$16)),0,"")) ->  | T22: =IF($B22<>"PRC_RESID","",IF(T$7=2005+OFFSET(COM!$B$60,$AW22,SUMIF($B$10:$B$16,"NCAP_TLIFE",$AX$10:$AX$16)),0,"")) ->  | U22: =IF($B22<>"PRC_RESID","",IF(U$7=2005+OFFSET(COM!$B$60,$AW22,SUMIF($B$10:$B$16,"NCAP_TLIFE",$AX$10:$AX$16)),0,"")) ->  | V22: =IF($B22<>"PRC_RESID","",IF(V$7=2005+OFFSET(COM!$B$60,$AW22,SUMIF($B$10:$B$16,"NCAP_TLIFE",$AX$10:$AX$16)),0,"")) ->  | W22: =IF($B22<>"PRC_RESID","",IF(W$7=2005+OFFSET(COM!$B$60,$AW22,SUMIF($B$10:$B$16,"NCAP_TLIFE",$AX$10:$AX$16)),0,"")) ->  | X22: =IF($B22<>"PRC_RESID","",IF(X$7=2005+OFFSET(COM!$B$60,$AW22,SUMIF($B$10:$B$16,"NCAP_TLIFE",$AX$10:$AX$16)),0,"")) ->  | Y22: =IF($B22<>"PRC_RESID","",IF(Y$7=2005+OFFSET(COM!$B$60,$AW22,SUMIF($B$10:$B$16,"NCAP_TLIFE",$AX$10:$AX$16)),0,"")) ->  | Z22: =IF($B22<>"PRC_RESID","",IF(Z$7=2005+OFFSET(COM!$B$60,$AW22,SUMIF($B$10:$B$16,"NCAP_TLIFE",$AX$10:$AX$16)),0,"")) ->  | AA22: =IF($B22<>"PRC_RESID","",IF(AA$7=2005+OFFSET(COM!$B$60,$AW22,SUMIF($B$10:$B$16,"NCAP_TLIFE",$AX$10:$AX$16)),0,"")) ->  | AB22: =IF($B22<>"PRC_RESID","",IF(AB$7=2005+OFFSET(COM!$B$60,$AW22,SUMIF($B$10:$B$16,"NCAP_TLIFE",$AX$10:$AX$16)),0,"")) ->  | AC22: =IF($B22<>"PRC_RESID","",IF(AC$7=2005+OFFSET(COM!$B$60,$AW22,SUMIF($B$10:$B$16,"NCAP_TLIFE",$AX$10:$AX$16)),0,"")) ->  | AD22: =IF($B22<>"PRC_RESID","",IF(AD$7=2005+OFFSET(COM!$B$60,$AW22,SUMIF($B$10:$B$16,"NCAP_TLIFE",$AX$10:$AX$16)),0,"")) ->  | AE22: =IF($B22<>"PRC_RESID","",IF(AE$7=2005+OFFSET(COM!$B$60,$AW22,SUMIF($B$10:$B$16,"NCAP_TLIFE",$AX$10:$AX$16)),0,"")) ->  | AF22: =IF($B22<>"PRC_RESID","",IF(AF$7=2005+OFFSET(COM!$B$60,$AW22,SUMIF($B$10:$B$16,"NCAP_TLIFE",$AX$10:$AX$16)),0,"")) ->  | AG22: =IF($B22<>"PRC_RESID","",IF(AG$7=2005+OFFSET(COM!$B$60,$AW22,SUMIF($B$10:$B$16,"NCAP_TLIFE",$AX$10:$AX$16)),0,"")) ->  | AH22: =IF($B22<>"PRC_RESID","",IF(AH$7=2005+OFFSET(COM!$B$60,$AW22,SUMIF($B$10:$B$16,"NCAP_TLIFE",$AX$10:$AX$16)),0,"")) ->  | AI22: =IF($B22<>"PRC_RESID","",IF(AI$7=2005+OFFSET(COM!$B$60,$AW22,SUMIF($B$10:$B$16,"NCAP_TLIFE",$AX$10:$AX$16)),0,"")) ->  | AJ22: =IF($B22<>"PRC_RESID","",IF(AJ$7=2005+OFFSET(COM!$B$60,$AW22,SUMIF($B$10:$B$16,"NCAP_TLIFE",$AX$10:$AX$16)),0,"")) ->  | AK22: =IF($B22<>"PRC_RESID","",IF(AK$7=2005+OFFSET(COM!$B$60,$AW22,SUMIF($B$10:$B$16,"NCAP_TLIFE",$AX$10:$AX$16)),0,"")) ->  | AL22: =IF($B22<>"PRC_RESID","",IF(AL$7=2005+OFFSET(COM!$B$60,$AW22,SUMIF($B$10:$B$16,"NCAP_TLIFE",$AX$10:$AX$16)),0,"")) ->  | AM22: =IF($B22<>"PRC_RESID","",IF(AM$7=2005+OFFSET(COM!$B$60,$AW22,SUMIF($B$10:$B$16,"NCAP_TLIFE",$AX$10:$AX$16)),0,"")) ->  | AN22: =IF($B22<>"PRC_RESID","",IF(AN$7=2005+OFFSET(COM!$B$60,$AW22,SUMIF($B$10:$B$16,"NCAP_TLIFE",$AX$10:$AX$16)),0,"")) ->  | AO22: =IF($B22<>"PRC_RESID","",IF(AO$7=2005+OFFSET(COM!$B$60,$AW22,SUMIF($B$10:$B$16,"NCAP_TLIFE",$AX$10:$AX$16)),0,"")) ->  | AP22: =IF($B22<>"PRC_RESID","",IF(AP$7=2005+OFFSET(COM!$B$60,$AW22,SUMIF($B$10:$B$16,"NCAP_TLIFE",$AX$10:$AX$16)),0,"")) ->  | AQ22: =IF($B22<>"PRC_RESID","",IF(AQ$7=2005+OFFSET(COM!$B$60,$AW22,SUMIF($B$10:$B$16,"NCAP_TLIFE",$AX$10:$AX$16)),0,"")) ->  | AR22: =IF($B22<>"PRC_RESID","",IF(AR$7=2005+OFFSET(COM!$B$60,$AW22,SUMIF($B$10:$B$16,"NCAP_TLIFE",$AX$10:$AX$16)),0,"")) ->  | AS22: =IF($B22<>"PRC_RESID","",IF(AS$7=2005+OFFSET(COM!$B$60,$AW22,SUMIF($B$10:$B$16,"NCAP_TLIFE",$AX$10:$AX$16)),0,"")) ->  | AT22: =IF($B22<>"PRC_RESID","",IF(AT$7=2005+OFFSET(COM!$B$60,$AW22,SUMIF($B$10:$B$16,"NCAP_TLIFE",$AX$10:$AX$16)),0,"")) ->  | AU22: =IF($B22<>"PRC_RESID","",IF(AU$7=2005+OFFSET(COM!$B$60,$AW22,SUMIF($B$10:$B$16,"NCAP_TLIFE",$AX$10:$AX$16)),0,"")) ->  | AV22: =IF(AW21=COM!$Y$116,AV21+1,AV21) -> 1 | AW22: =IF(AV22=AV21,AW21+1,1) -> 5
A23: =IF(LEFT(OFFSET(COM!$A$60,AW23,0),2)="\I","*","") ->  | B23: ACT_EFF | C23: =IF($A23="*","",OFFSET(COM!$B$60,AW23,0)) -> CECELCHP-N | D23: - | E23: ACTGRP | F23: - | G23: ANNUAL | H23: - | I23: 0 | J23: =IF($A23="*","",OFFSET(COM!$B$60,AW23,SUMIF($B$10:$B$16,B23,$AX$10:$AX$16))) -> 3.238636364 | K23: =IF($B23<>"PRC_RESID","",IF(K$7=2005+OFFSET(COM!$B$60,$AW23,SUMIF($B$10:$B$16,"NCAP_TLIFE",$AX$10:$AX$16)),0,"")) ->  | L23: =IF($B23<>"PRC_RESID","",IF(L$7=2005+OFFSET(COM!$B$60,$AW23,SUMIF($B$10:$B$16,"NCAP_TLIFE",$AX$10:$AX$16)),0,"")) ->  | M23: =IF($B23<>"PRC_RESID","",IF(M$7=2005+OFFSET(COM!$B$60,$AW23,SUMIF($B$10:$B$16,"NCAP_TLIFE",$AX$10:$AX$16)),0,"")) ->  | N23: =IF($B23<>"PRC_RESID","",IF(N$7=2005+OFFSET(COM!$B$60,$AW23,SUMIF($B$10:$B$16,"NCAP_TLIFE",$AX$10:$AX$16)),0,"")) ->  | O23: =IF($B23<>"PRC_RESID","",IF(O$7=2005+OFFSET(COM!$B$60,$AW23,SUMIF($B$10:$B$16,"NCAP_TLIFE",$AX$10:$AX$16)),0,"")) ->  | P23: =IF($B23<>"PRC_RESID","",IF(P$7=2005+OFFSET(COM!$B$60,$AW23,SUMIF($B$10:$B$16,"NCAP_TLIFE",$AX$10:$AX$16)),0,"")) ->  | Q23: =IF($B23<>"PRC_RESID","",IF(Q$7=2005+OFFSET(COM!$B$60,$AW23,SUMIF($B$10:$B$16,"NCAP_TLIFE",$AX$10:$AX$16)),0,"")) ->  | R23: =IF($B23<>"PRC_RESID","",IF(R$7=2005+OFFSET(COM!$B$60,$AW23,SUMIF($B$10:$B$16,"NCAP_TLIFE",$AX$10:$AX$16)),0,"")) ->  | S23: =IF($B23<>"PRC_RESID","",IF(S$7=2005+OFFSET(COM!$B$60,$AW23,SUMIF($B$10:$B$16,"NCAP_TLIFE",$AX$10:$AX$16)),0,"")) ->  | T23: =IF($B23<>"PRC_RESID","",IF(T$7=2005+OFFSET(COM!$B$60,$AW23,SUMIF($B$10:$B$16,"NCAP_TLIFE",$AX$10:$AX$16)),0,"")) ->  | U23: =IF($B23<>"PRC_RESID","",IF(U$7=2005+OFFSET(COM!$B$60,$AW23,SUMIF($B$10:$B$16,"NCAP_TLIFE",$AX$10:$AX$16)),0,"")) ->  | V23: =IF($B23<>"PRC_RESID","",IF(V$7=2005+OFFSET(COM!$B$60,$AW23,SUMIF($B$10:$B$16,"NCAP_TLIFE",$AX$10:$AX$16)),0,"")) ->  | W23: =IF($B23<>"PRC_RESID","",IF(W$7=2005+OFFSET(COM!$B$60,$AW23,SUMIF($B$10:$B$16,"NCAP_TLIFE",$AX$10:$AX$16)),0,"")) ->  | X23: =IF($B23<>"PRC_RESID","",IF(X$7=2005+OFFSET(COM!$B$60,$AW23,SUMIF($B$10:$B$16,"NCAP_TLIFE",$AX$10:$AX$16)),0,"")) ->  | Y23: =IF($B23<>"PRC_RESID","",IF(Y$7=2005+OFFSET(COM!$B$60,$AW23,SUMIF($B$10:$B$16,"NCAP_TLIFE",$AX$10:$AX$16)),0,"")) ->  | Z23: =IF($B23<>"PRC_RESID","",IF(Z$7=2005+OFFSET(COM!$B$60,$AW23,SUMIF($B$10:$B$16,"NCAP_TLIFE",$AX$10:$AX$16)),0,"")) ->  | AA23: =IF($B23<>"PRC_RESID","",IF(AA$7=2005+OFFSET(COM!$B$60,$AW23,SUMIF($B$10:$B$16,"NCAP_TLIFE",$AX$10:$AX$16)),0,"")) ->  | AB23: =IF($B23<>"PRC_RESID","",IF(AB$7=2005+OFFSET(COM!$B$60,$AW23,SUMIF($B$10:$B$16,"NCAP_TLIFE",$AX$10:$AX$16)),0,"")) ->  | AC23: =IF($B23<>"PRC_RESID","",IF(AC$7=2005+OFFSET(COM!$B$60,$AW23,SUMIF($B$10:$B$16,"NCAP_TLIFE",$AX$10:$AX$16)),0,"")) ->  | AD23: =IF($B23<>"PRC_RESID","",IF(AD$7=2005+OFFSET(COM!$B$60,$AW23,SUMIF($B$10:$B$16,"NCAP_TLIFE",$AX$10:$AX$16)),0,"")) ->  | AE23: =IF($B23<>"PRC_RESID","",IF(AE$7=2005+OFFSET(COM!$B$60,$AW23,SUMIF($B$10:$B$16,"NCAP_TLIFE",$AX$10:$AX$16)),0,"")) ->  | AF23: =IF($B23<>"PRC_RESID","",IF(AF$7=2005+OFFSET(COM!$B$60,$AW23,SUMIF($B$10:$B$16,"NCAP_TLIFE",$AX$10:$AX$16)),0,"")) ->  | AG23: =IF($B23<>"PRC_RESID","",IF(AG$7=2005+OFFSET(COM!$B$60,$AW23,SUMIF($B$10:$B$16,"NCAP_TLIFE",$AX$10:$AX$16)),0,"")) ->  | AH23: =IF($B23<>"PRC_RESID","",IF(AH$7=2005+OFFSET(COM!$B$60,$AW23,SUMIF($B$10:$B$16,"NCAP_TLIFE",$AX$10:$AX$16)),0,"")) ->  | AI23: =IF($B23<>"PRC_RESID","",IF(AI$7=2005+OFFSET(COM!$B$60,$AW23,SUMIF($B$10:$B$16,"NCAP_TLIFE",$AX$10:$AX$16)),0,"")) ->  | AJ23: =IF($B23<>"PRC_RESID","",IF(AJ$7=2005+OFFSET(COM!$B$60,$AW23,SUMIF($B$10:$B$16,"NCAP_TLIFE",$AX$10:$AX$16)),0,"")) ->  | AK23: =IF($B23<>"PRC_RESID","",IF(AK$7=2005+OFFSET(COM!$B$60,$AW23,SUMIF($B$10:$B$16,"NCAP_TLIFE",$AX$10:$AX$16)),0,"")) ->  | AL23: =IF($B23<>"PRC_RESID","",IF(AL$7=2005+OFFSET(COM!$B$60,$AW23,SUMIF($B$10:$B$16,"NCAP_TLIFE",$AX$10:$AX$16)),0,"")) ->  | AM23: =IF($B23<>"PRC_RESID","",IF(AM$7=2005+OFFSET(COM!$B$60,$AW23,SUMIF($B$10:$B$16,"NCAP_TLIFE",$AX$10:$AX$16)),0,"")) ->  | AN23: =IF($B23<>"PRC_RESID","",IF(AN$7=2005+OFFSET(COM!$B$60,$AW23,SUMIF($B$10:$B$16,"NCAP_TLIFE",$AX$10:$AX$16)),0,"")) ->  | AO23: =IF($B23<>"PRC_RESID","",IF(AO$7=2005+OFFSET(COM!$B$60,$AW23,SUMIF($B$10:$B$16,"NCAP_TLIFE",$AX$10:$AX$16)),0,"")) ->  | AP23: =IF($B23<>"PRC_RESID","",IF(AP$7=2005+OFFSET(COM!$B$60,$AW23,SUMIF($B$10:$B$16,"NCAP_TLIFE",$AX$10:$AX$16)),0,"")) ->  | AQ23: =IF($B23<>"PRC_RESID","",IF(AQ$7=2005+OFFSET(COM!$B$60,$AW23,SUMIF($B$10:$B$16,"NCAP_TLIFE",$AX$10:$AX$16)),0,"")) ->  | AR23: =IF($B23<>"PRC_RESID","",IF(AR$7=2005+OFFSET(COM!$B$60,$AW23,SUMIF($B$10:$B$16,"NCAP_TLIFE",$AX$10:$AX$16)),0,"")) ->  | AS23: =IF($B23<>"PRC_RESID","",IF(AS$7=2005+OFFSET(COM!$B$60,$AW23,SUMIF($B$10:$B$16,"NCAP_TLIFE",$AX$10:$AX$16)),0,"")) ->  | AT23: =IF($B23<>"PRC_RESID","",IF(AT$7=2005+OFFSET(COM!$B$60,$AW23,SUMIF($B$10:$B$16,"NCAP_TLIFE",$AX$10:$AX$16)),0,"")) ->  | AU23: =IF($B23<>"PRC_RESID","",IF(AU$7=2005+OFFSET(COM!$B$60,$AW23,SUMIF($B$10:$B$16,"NCAP_TLIFE",$AX$10:$AX$16)),0,"")) ->  | AV23: =IF(AW22=COM!$Y$116,AV22+1,AV22) -> 1 | AW23: 6
A24: =IF(LEFT(OFFSET(COM!$A$60,AW24,0),2)="\I","*","") -> * | C24: =IF($A24="*","",OFFSET(COM!$B$60,AW24,0)) ->  | J24: =IF($A24="*","",OFFSET(COM!$B$60,AW24,SUMIF($B$10:$B$16,B24,$AX$10:$AX$16))) ->  | K24: =IF($B24<>"PRC_RESID","",IF(K$7=2005+OFFSET(COM!$B$60,$AW24,SUMIF($B$10:$B$16,"NCAP_TLIFE",$AX$10:$AX$16)),0,"")) ->  | L24: =IF($B24<>"PRC_RESID","",IF(L$7=2005+OFFSET(COM!$B$60,$AW24,SUMIF($B$10:$B$16,"NCAP_TLIFE",$AX$10:$AX$16)),0,"")) ->  | M24: =IF($B24<>"PRC_RESID","",IF(M$7=2005+OFFSET(COM!$B$60,$AW24,SUMIF($B$10:$B$16,"NCAP_TLIFE",$AX$10:$AX$16)),0,"")) ->  | N24: =IF($B24<>"PRC_RESID","",IF(N$7=2005+OFFSET(COM!$B$60,$AW24,SUMIF($B$10:$B$16,"NCAP_TLIFE",$AX$10:$AX$16)),0,"")) ->  | O24: =IF($B24<>"PRC_RESID","",IF(O$7=2005+OFFSET(COM!$B$60,$AW24,SUMIF($B$10:$B$16,"NCAP_TLIFE",$AX$10:$AX$16)),0,"")) ->  | P24: =IF($B24<>"PRC_RESID","",IF(P$7=2005+OFFSET(COM!$B$60,$AW24,SUMIF($B$10:$B$16,"NCAP_TLIFE",$AX$10:$AX$16)),0,"")) ->  | Q24: =IF($B24<>"PRC_RESID","",IF(Q$7=2005+OFFSET(COM!$B$60,$AW24,SUMIF($B$10:$B$16,"NCAP_TLIFE",$AX$10:$AX$16)),0,"")) ->  | R24: =IF($B24<>"PRC_RESID","",IF(R$7=2005+OFFSET(COM!$B$60,$AW24,SUMIF($B$10:$B$16,"NCAP_TLIFE",$AX$10:$AX$16)),0,"")) ->  | S24: =IF($B24<>"PRC_RESID","",IF(S$7=2005+OFFSET(COM!$B$60,$AW24,SUMIF($B$10:$B$16,"NCAP_TLIFE",$AX$10:$AX$16)),0,"")) ->  | T24: =IF($B24<>"PRC_RESID","",IF(T$7=2005+OFFSET(COM!$B$60,$AW24,SUMIF($B$10:$B$16,"NCAP_TLIFE",$AX$10:$AX$16)),0,"")) ->  | U24: =IF($B24<>"PRC_RESID","",IF(U$7=2005+OFFSET(COM!$B$60,$AW24,SUMIF($B$10:$B$16,"NCAP_TLIFE",$AX$10:$AX$16)),0,"")) ->  | V24: =IF($B24<>"PRC_RESID","",IF(V$7=2005+OFFSET(COM!$B$60,$AW24,SUMIF($B$10:$B$16,"NCAP_TLIFE",$AX$10:$AX$16)),0,"")) ->  | W24: =IF($B24<>"PRC_RESID","",IF(W$7=2005+OFFSET(COM!$B$60,$AW24,SUMIF($B$10:$B$16,"NCAP_TLIFE",$AX$10:$AX$16)),0,"")) ->  | X24: =IF($B24<>"PRC_RESID","",IF(X$7=2005+OFFSET(COM!$B$60,$AW24,SUMIF($B$10:$B$16,"NCAP_TLIFE",$AX$10:$AX$16)),0,"")) ->  | Y24: =IF($B24<>"PRC_RESID","",IF(Y$7=2005+OFFSET(COM!$B$60,$AW24,SUMIF($B$10:$B$16,"NCAP_TLIFE",$AX$10:$AX$16)),0,"")) ->  | Z24: =IF($B24<>"PRC_RESID","",IF(Z$7=2005+OFFSET(COM!$B$60,$AW24,SUMIF($B$10:$B$16,"NCAP_TLIFE",$AX$10:$AX$16)),0,"")) ->  | AA24: =IF($B24<>"PRC_RESID","",IF(AA$7=2005+OFFSET(COM!$B$60,$AW24,SUMIF($B$10:$B$16,"NCAP_TLIFE",$AX$10:$AX$16)),0,"")) ->  | AB24: =IF($B24<>"PRC_RESID","",IF(AB$7=2005+OFFSET(COM!$B$60,$AW24,SUMIF($B$10:$B$16,"NCAP_TLIFE",$AX$10:$AX$16)),0,"")) ->  | AC24: =IF($B24<>"PRC_RESID","",IF(AC$7=2005+OFFSET(COM!$B$60,$AW24,SUMIF($B$10:$B$16,"NCAP_TLIFE",$AX$10:$AX$16)),0,"")) ->  | AD24: =IF($B24<>"PRC_RESID","",IF(AD$7=2005+OFFSET(COM!$B$60,$AW24,SUMIF($B$10:$B$16,"NCAP_TLIFE",$AX$10:$AX$16)),0,"")) ->  | AE24: =IF($B24<>"PRC_RESID","",IF(AE$7=2005+OFFSET(COM!$B$60,$AW24,SUMIF($B$10:$B$16,"NCAP_TLIFE",$AX$10:$AX$16)),0,"")) ->  | AF24: =IF($B24<>"PRC_RESID","",IF(AF$7=2005+OFFSET(COM!$B$60,$AW24,SUMIF($B$10:$B$16,"NCAP_TLIFE",$AX$10:$AX$16)),0,"")) ->  | AG24: =IF($B24<>"PRC_RESID","",IF(AG$7=2005+OFFSET(COM!$B$60,$AW24,SUMIF($B$10:$B$16,"NCAP_TLIFE",$AX$10:$AX$16)),0,"")) ->  | AH24: =IF($B24<>"PRC_RESID","",IF(AH$7=2005+OFFSET(COM!$B$60,$AW24,SUMIF($B$10:$B$16,"NCAP_TLIFE",$AX$10:$AX$16)),0,"")) ->  | AI24: =IF($B24<>"PRC_RESID","",IF(AI$7=2005+OFFSET(COM!$B$60,$AW24,SUMIF($B$10:$B$16,"NCAP_TLIFE",$AX$10:$AX$16)),0,"")) ->  | AJ24: =IF($B24<>"PRC_RESID","",IF(AJ$7=2005+OFFSET(COM!$B$60,$AW24,SUMIF($B$10:$B$16,"NCAP_TLIFE",$AX$10:$AX$16)),0,"")) ->  | AK24: =IF($B24<>"PRC_RESID","",IF(AK$7=2005+OFFSET(COM!$B$60,$AW24,SUMIF($B$10:$B$16,"NCAP_TLIFE",$AX$10:$AX$16)),0,"")) ->  | AL24: =IF($B24<>"PRC_RESID","",IF(AL$7=2005+OFFSET(COM!$B$60,$AW24,SUMIF($B$10:$B$16,"NCAP_TLIFE",$AX$10:$AX$16)),0,"")) ->  | AM24: =IF($B24<>"PRC_RESID","",IF(AM$7=2005+OFFSET(COM!$B$60,$AW24,SUMIF($B$10:$B$16,"NCAP_TLIFE",$AX$10:$AX$16)),0,"")) ->  | AN24: =IF($B24<>"PRC_RESID","",IF(AN$7=2005+OFFSET(COM!$B$60,$AW24,SUMIF($B$10:$B$16,"NCAP_TLIFE",$AX$10:$AX$16)),0,"")) ->  | AO24: =IF($B24<>"PRC_RESID","",IF(AO$7=2005+OFFSET(COM!$B$60,$AW24,SUMIF($B$10:$B$16,"NCAP_TLIFE",$AX$10:$AX$16)),0,"")) ->  | AP24: =IF($B24<>"PRC_RESID","",IF(AP$7=2005+OFFSET(COM!$B$60,$AW24,SUMIF($B$10:$B$16,"NCAP_TLIFE",$AX$10:$AX$16)),0,"")) ->  | AQ24: =IF($B24<>"PRC_RESID","",IF(AQ$7=2005+OFFSET(COM!$B$60,$AW24,SUMIF($B$10:$B$16,"NCAP_TLIFE",$AX$10:$AX$16)),0,"")) ->  | AR24: =IF($B24<>"PRC_RESID","",IF(AR$7=2005+OFFSET(COM!$B$60,$AW24,SUMIF($B$10:$B$16,"NCAP_TLIFE",$AX$10:$AX$16)),0,"")) ->  | AS24: =IF($B24<>"PRC_RESID","",IF(AS$7=2005+OFFSET(COM!$B$60,$AW24,SUMIF($B$10:$B$16,"NCAP_TLIFE",$AX$10:$AX$16)),0,"")) ->  | AT24: =IF($B24<>"PRC_RESID","",IF(AT$7=2005+OFFSET(COM!$B$60,$AW24,SUMIF($B$10:$B$16,"NCAP_TLIFE",$AX$10:$AX$16)),0,"")) ->  | AU24: =IF($B24<>"PRC_RESID","",IF(AU$7=2005+OFFSET(COM!$B$60,$AW24,SUMIF($B$10:$B$16,"NCAP_TLIFE",$AX$10:$AX$16)),0,"")) ->  | AV24: =IF(AW23=COM!$Y$116,AV23+1,AV23) -> 1 | AW24: 7
A25: =IF(LEFT(OFFSET(COM!$A$60,AW25,0),2)="\I","*","") -> * | C25: =IF($A25="*","",OFFSET(COM!$B$60,AW25,0)) ->  | J25: =IF($A25="*","",OFFSET(COM!$B$60,AW25,SUMIF($B$10:$B$16,B25,$AX$10:$AX$16))) ->  | K25: =IF($B25<>"PRC_RESID","",IF(K$7=2005+OFFSET(COM!$B$60,$AW25,SUMIF($B$10:$B$16,"NCAP_TLIFE",$AX$10:$AX$16)),0,"")) ->  | L25: =IF($B25<>"PRC_RESID","",IF(L$7=2005+OFFSET(COM!$B$60,$AW25,SUMIF($B$10:$B$16,"NCAP_TLIFE",$AX$10:$AX$16)),0,"")) ->  | M25: =IF($B25<>"PRC_RESID","",IF(M$7=2005+OFFSET(COM!$B$60,$AW25,SUMIF($B$10:$B$16,"NCAP_TLIFE",$AX$10:$AX$16)),0,"")) ->  | N25: =IF($B25<>"PRC_RESID","",IF(N$7=2005+OFFSET(COM!$B$60,$AW25,SUMIF($B$10:$B$16,"NCAP_TLIFE",$AX$10:$AX$16)),0,"")) ->  | O25: =IF($B25<>"PRC_RESID","",IF(O$7=2005+OFFSET(COM!$B$60,$AW25,SUMIF($B$10:$B$16,"NCAP_TLIFE",$AX$10:$AX$16)),0,"")) ->  | P25: =IF($B25<>"PRC_RESID","",IF(P$7=2005+OFFSET(COM!$B$60,$AW25,SUMIF($B$10:$B$16,"NCAP_TLIFE",$AX$10:$AX$16)),0,"")) ->  | Q25: =IF($B25<>"PRC_RESID","",IF(Q$7=2005+OFFSET(COM!$B$60,$AW25,SUMIF($B$10:$B$16,"NCAP_TLIFE",$AX$10:$AX$16)),0,"")) ->  | R25: =IF($B25<>"PRC_RESID","",IF(R$7=2005+OFFSET(COM!$B$60,$AW25,SUMIF($B$10:$B$16,"NCAP_TLIFE",$AX$10:$AX$16)),0,"")) ->  | S25: =IF($B25<>"PRC_RESID","",IF(S$7=2005+OFFSET(COM!$B$60,$AW25,SUMIF($B$10:$B$16,"NCAP_TLIFE",$AX$10:$AX$16)),0,"")) ->  | T25: =IF($B25<>"PRC_RESID","",IF(T$7=2005+OFFSET(COM!$B$60,$AW25,SUMIF($B$10:$B$16,"NCAP_TLIFE",$AX$10:$AX$16)),0,"")) ->  | U25: =IF($B25<>"PRC_RESID","",IF(U$7=2005+OFFSET(COM!$B$60,$AW25,SUMIF($B$10:$B$16,"NCAP_TLIFE",$AX$10:$AX$16)),0,"")) ->  | V25: =IF($B25<>"PRC_RESID","",IF(V$7=2005+OFFSET(COM!$B$60,$AW25,SUMIF($B$10:$B$16,"NCAP_TLIFE",$AX$10:$AX$16)),0,"")) ->  | W25: =IF($B25<>"PRC_RESID","",IF(W$7=2005+OFFSET(COM!$B$60,$AW25,SUMIF($B$10:$B$16,"NCAP_TLIFE",$AX$10:$AX$16)),0,"")) ->  | X25: =IF($B25<>"PRC_RESID","",IF(X$7=2005+OFFSET(COM!$B$60,$AW25,SUMIF($B$10:$B$16,"NCAP_TLIFE",$AX$10:$AX$16)),0,"")) ->  | Y25: =IF($B25<>"PRC_RESID","",IF(Y$7=2005+OFFSET(COM!$B$60,$AW25,SUMIF($B$10:$B$16,"NCAP_TLIFE",$AX$10:$AX$16)),0,"")) ->  | Z25: =IF($B25<>"PRC_RESID","",IF(Z$7=2005+OFFSET(COM!$B$60,$AW25,SUMIF($B$10:$B$16,"NCAP_TLIFE",$AX$10:$AX$16)),0,"")) ->  | AA25: =IF($B25<>"PRC_RESID","",IF(AA$7=2005+OFFSET(COM!$B$60,$AW25,SUMIF($B$10:$B$16,"NCAP_TLIFE",$AX$10:$AX$16)),0,"")) ->  | AB25: =IF($B25<>"PRC_RESID","",IF(AB$7=2005+OFFSET(COM!$B$60,$AW25,SUMIF($B$10:$B$16,"NCAP_TLIFE",$AX$10:$AX$16)),0,"")) ->  | AC25: =IF($B25<>"PRC_RESID","",IF(AC$7=2005+OFFSET(COM!$B$60,$AW25,SUMIF($B$10:$B$16,"NCAP_TLIFE",$AX$10:$AX$16)),0,"")) ->  | AD25: =IF($B25<>"PRC_RESID","",IF(AD$7=2005+OFFSET(COM!$B$60,$AW25,SUMIF($B$10:$B$16,"NCAP_TLIFE",$AX$10:$AX$16)),0,"")) ->  | AE25: =IF($B25<>"PRC_RESID","",IF(AE$7=2005+OFFSET(COM!$B$60,$AW25,SUMIF($B$10:$B$16,"NCAP_TLIFE",$AX$10:$AX$16)),0,"")) ->  | AF25: =IF($B25<>"PRC_RESID","",IF(AF$7=2005+OFFSET(COM!$B$60,$AW25,SUMIF($B$10:$B$16,"NCAP_TLIFE",$AX$10:$AX$16)),0,"")) ->  | AG25: =IF($B25<>"PRC_RESID","",IF(AG$7=2005+OFFSET(COM!$B$60,$AW25,SUMIF($B$10:$B$16,"NCAP_TLIFE",$AX$10:$AX$16)),0,"")) ->  | AH25: =IF($B25<>"PRC_RESID","",IF(AH$7=2005+OFFSET(COM!$B$60,$AW25,SUMIF($B$10:$B$16,"NCAP_TLIFE",$AX$10:$AX$16)),0,"")) ->  | AI25: =IF($B25<>"PRC_RESID","",IF(AI$7=2005+OFFSET(COM!$B$60,$AW25,SUMIF($B$10:$B$16,"NCAP_TLIFE",$AX$10:$AX$16)),0,"")) ->  | AJ25: =IF($B25<>"PRC_RESID","",IF(AJ$7=2005+OFFSET(COM!$B$60,$AW25,SUMIF($B$10:$B$16,"NCAP_TLIFE",$AX$10:$AX$16)),0,"")) ->  | AK25: =IF($B25<>"PRC_RESID","",IF(AK$7=2005+OFFSET(COM!$B$60,$AW25,SUMIF($B$10:$B$16,"NCAP_TLIFE",$AX$10:$AX$16)),0,"")) ->  | AL25: =IF($B25<>"PRC_RESID","",IF(AL$7=2005+OFFSET(COM!$B$60,$AW25,SUMIF($B$10:$B$16,"NCAP_TLIFE",$AX$10:$AX$16)),0,"")) ->  | AM25: =IF($B25<>"PRC_RESID","",IF(AM$7=2005+OFFSET(COM!$B$60,$AW25,SUMIF($B$10:$B$16,"NCAP_TLIFE",$AX$10:$AX$16)),0,"")) ->  | AN25: =IF($B25<>"PRC_RESID","",IF(AN$7=2005+OFFSET(COM!$B$60,$AW25,SUMIF($B$10:$B$16,"NCAP_TLIFE",$AX$10:$AX$16)),0,"")) ->  | AO25: =IF($B25<>"PRC_RESID","",IF(AO$7=2005+OFFSET(COM!$B$60,$AW25,SUMIF($B$10:$B$16,"NCAP_TLIFE",$AX$10:$AX$16)),0,"")) ->  | AP25: =IF($B25<>"PRC_RESID","",IF(AP$7=2005+OFFSET(COM!$B$60,$AW25,SUMIF($B$10:$B$16,"NCAP_TLIFE",$AX$10:$AX$16)),0,"")) ->  | AQ25: =IF($B25<>"PRC_RESID","",IF(AQ$7=2005+OFFSET(COM!$B$60,$AW25,SUMIF($B$10:$B$16,"NCAP_TLIFE",$AX$10:$AX$16)),0,"")) ->  | AR25: =IF($B25<>"PRC_RESID","",IF(AR$7=2005+OFFSET(COM!$B$60,$AW25,SUMIF($B$10:$B$16,"NCAP_TLIFE",$AX$10:$AX$16)),0,"")) ->  | AS25: =IF($B25<>"PRC_RESID","",IF(AS$7=2005+OFFSET(COM!$B$60,$AW25,SUMIF($B$10:$B$16,"NCAP_TLIFE",$AX$10:$AX$16)),0,"")) ->  | AT25: =IF($B25<>"PRC_RESID","",IF(AT$7=2005+OFFSET(COM!$B$60,$AW25,SUMIF($B$10:$B$16,"NCAP_TLIFE",$AX$10:$AX$16)),0,"")) ->  | AU25: =IF($B25<>"PRC_RESID","",IF(AU$7=2005+OFFSET(COM!$B$60,$AW25,SUMIF($B$10:$B$16,"NCAP_TLIFE",$AX$10:$AX$16)),0,"")) ->  | AV25: =IF(AW24=COM!$Y$116,AV24+1,AV24) -> 1 | AW25: 8
